Workbook

Sheet base case
A1: Case: | B1: base case (2.1)
A2: N | B2: 55 | C2: [MSm3]
K3: qw_max [Sm3/d] | L3: =MAX(E6:E690) -> 18904.5 | M3: qg_max [1000 Sm3/d] | N3: =MAX(C6:C690) -> 2984.73
A4: Average Oil Rate | B4: Cum Oil Production | C4: Average Gas Rate | D4: Cum Gas Production | E4: Average Water Rate | F4: Cum Water Production | G4: Average Liquid Rate | H4: Average Gaslift Rate | I4: Reservoir Pressure | J4: RF | K4: qomax_n | L4: qwmax_n | M4: qgmax_n | N4: GOR | O4: WC
A5: sm3/d | B5: M sm3 | C5: 1000 sm3/d | D5: M sm3 | E5: sm3/d | F5: M sm3 | G5: sm3/d | H5: 1000 sm3/d | I5: bara
A6: 19897.2 | B6: 0 | C6: 2984.73 | D6: 0 | E6: 0 | F6: 0 | G6: 19897.2 | H6: 99.6948 | I6: 280 | J6: =B6/$B$2 -> 0 | K6: =A6/$A$6 -> 1 | L6: =E6/$L$3 -> 0 | M6: =C6/$N$3 -> 1 | N6: =C6*1000/A6 -> 150.0075387 | O6: =E6/(E6+A6) -> 0
A7: 19818.3 | B7: 0.616863 | C7: 2972.89 | D7: 92.5267 | E7: 78.9768 | F7: 0 | G7: 19897.3 | H7: 99.6672 | I7: 280 | J7: 0.01121569091 | K7: =A7/$A$6 -> 0.9960346179 | L7: =E7/$L$3 -> 0.004177671983 | M7: =C7/$N$3 -> 0.996033142 | N7: =C7*1000/A7 -> 150.0073165 | O7: =E7/(E7+A7) -> 0.003969226583
A8: 19687.4 | B8: 1.17182 | C8: 2953.25 | D8: 175.768 | E8: 210.25 | F8: 0.00221153 | G8: 19897.6 | H8: 99.6092 | I8: 280 | J8: 0.02130581818 | K8: 0.9894558028 | L8: 0.0111216906 | M8: 0.9894529823 | N8: 150.0071111 | O8: 0.01056657444
A9: 19497.2 | B9: 1.78218 | C9: 2924.72 | D9: 267.319 | E9: 400.826 | F9: 0.00872979 | G9: 19898 | H9: 99.5415 | I9: 280 | J9: 0.03240327273 | K9: 0.9798966689 | L9: 0.02120267661 | M9: 0.9798943288 | N9: 150.0071805 | O9: 0.02014400825
A10: 19276.8 | B10: 2.36714 | C10: 2891.66 | D10: 355.06 | E10: 622.219 | F10: 0.0207555 | G10: 19899 | H10: 99.4629 | I10: 280 | J10: 0.04303890909 | K10: 0.9688197334 | L10: 0.03291380359 | M10: 0.96881795 | N10: 150.0072626 | O10: 0.03126882788
A11: 19017.3 | B11: 2.96477 | C11: 2852.73 | D11: 444.702 | E11: 883.4 | F11: 0.0400459 | G11: 19900.7 | H11: 99.3675 | I11: 280 | J11: 0.05390490909 | K11: 0.9557776974 | L11: 0.04672961464 | M11: 0.9557748942 | N11: 150.0070988 | O11: 0.04439039833
A12: 18687.6 | B12: 3.53533 | C12: 2803.28 | D12: 530.283 | E12: 1159.7 | F12: 0.06655 | G12: 19847.3 | H12: 196.258 | I12: 280 | J12: 0.06427872727 | K12: 0.9392075267 | L12: 0.06134518236 | M12: 0.9392072315 | N12: 150.0074916 | O12: 0.05843112161
A13: 18380.7 | B13: 4.11469 | C13: 2757.24 | D13: 617.185 | E13: 1470.64 | F13: 0.102503 | G13: 19851.4 | H13: 196.105 | I13: 280 | J13: 0.07481254545 | K13: 0.9237832459 | L13: 0.07779311804 | M13: 0.9237820506 | N13: 150.0073447 | O13: 0.07408265638
A14: 18054.9 | B14: 4.68454 | C14: 2708.36 | D14: 702.66 | E14: 1801.93 | F14: 0.148097 | G14: 19856.8 | H14: 195.958 | I14: 280 | J14: 0.08517345455 | K14: 0.9074090827 | L14: 0.09531751699 | M14: 0.9074053599 | N14: 150.0069233 | O14: 0.090746106
A15: 17724.2 | B15: 5.22623 | C15: 2658.76 | D15: 783.911 | E15: 2138.56 | F15: 0.202159 | G15: 19862.8 | H15: 197.303 | I15: 280 | J15: 0.09502236364 | K15: 0.8907886537 | L15: 0.1131243884 | M15: 0.8907874414 | N15: 150.0073346 | O15: 0.1076668096
A16: 17364.6 | B16: 5.77572 | C16: 2604.81 | D16: 866.332 | E16: 2499.37 | F16: 0.26846 | G16: 19863.9 | H16: 197.091 | I16: 280 | J16: 0.1050130909 | K16: 0.872715759 | L16: 0.1322103203 | M16: 0.8727121046 | N16: 150.0069106 | O16: 0.1258242939
A17: 17006.1 | B17: 6.2967 | C17: 2551.04 | D17: 944.477 | E17: 2858.33 | F17: 0.343447 | G17: 19864.4 | H17: 196.869 | I17: 280 | J17: 0.1144854545 | K17: 0.8546981485 | L17: 0.1511983919 | M17: 0.8546970748 | N17: 150.0073503 | O17: 0.143891871
A18: 16628.9 | B18: 6.82393 | C18: 2494.45 | D18: 1023.56 | E18: 3237.14 | F18: 0.432062 | G18: 19866 | H18: 196.625 | I18: 280 | J18: 0.1240714545 | K18: 0.8357407072 | L18: 0.1712364781 | M18: 0.8357372359 | N18: 150.0069157 | O18: 0.1629484286
A19: 16247.4 | B19: 7.33947 | C19: 2437.23 | D19: 1100.89 | E19: 3621.42 | F19: 0.532422 | G19: 19868.8 | H19: 196.385 | I19: 280 | J19: 0.1334449091 | K19: 0.8165671552 | L19: 0.1915639134 | M19: 0.8165663226 | N19: 150.0073858 | O19: 0.1822664859
A20: 15888.9 | B20: 7.81068 | C20: 2383.46 | D20: 1171.57 | E20: 3983.63 | F20: 0.637451 | G20: 19872.6 | H20: 196.156 | I20: 280 | J20: 0.1420123636 | K20: 0.7985495447 | L20: 0.2107239017 | M20: 0.7985512927 | N20: 150.0078671 | O20: 0.2004591262
A21: 15505.4 | B21: 8.30327 | C21: 2325.92 | D21: 1245.45 | E21: 4372.44 | F21: 0.760954 | G21: 19877.8 | H21: 195.909 | I21: 280 | J21: 0.1509685455 | K21: 0.7792754759 | L21: 0.2312909625 | M21: 0.7792731671 | N21: 150.0070943 | O21: 0.2199655496
A22: 15126.4 | B22: 8.76847 | C22: 2269.08 | D22: 1315.23 | E22: 4745.3 | F22: 0.892137 | G22: 19871.7 | H22: 195.602 | I22: 280 | J22: 0.1594267273 | K22: 0.7602275697 | L22: 0.2510143088 | M22: 0.7602295685 | N22: 150.0079331 | O22: 0.238796882
A23: 14737.1 | B23: 9.23743 | C23: 2210.67 | D23: 1385.57 | E23: 5127.7 | F23: 1.03925 | G23: 19864.8 | H23: 195.275 | I23: 280 | J23: 0.1679532727 | K23: 0.7406620027 | L23: 0.2712422968 | M23: 0.7406599592 | N23: 150.0071249 | O23: 0.2581299585
A24: 14365.3 | B24: 9.67958 | C24: 2154.9 | D24: 1451.89 | E24: 5493.77 | F24: 1.1931 | G24: 19859.1 | H24: 194.961 | I24: 280 | J24: 0.1759923636 | K24: 0.7219759564 | L24: 0.2906064694 | M24: 0.721974852 | N24: 150.0073093 | O24: 0.2766378285
A25: 13986.8 | B25: 10.1249 | C25: 2098.13 | D25: 1518.7 | E25: 5867.03 | F25: 1.36342 | G25: 19853.8 | H25: 196.139 | I25: 280 | J25: 0.1840890909 | K25: 0.7029531793 | L25: 0.3103509746 | M25: 0.7029547061 | N25: 150.0078646 | O25: 0.2955112439
A26: 13594.3 | B26: 10.5586 | C26: 2039.24 | D26: 1583.74 | E26: 6224.51 | F26: 1.54531 | G26: 19818.8 | H26: 351.065 | I26: 280 | J26: 0.1919745455 | K26: 0.6832267857 | L26: 0.329260758 | M26: 0.6832242782 | N26: 150.0069882 | O26: 0.3140708246
A27: 13247.3 | B27: 10.9664 | C27: 1987.2 | D27: 1644.91 | E27: 6573.93 | F27: 1.73206 | G27: 19821.3 | H27: 351.065 | I27: 280 | J27: 0.1993890909 | K27: 0.6657871459 | L27: 0.3477441879 | M27: 0.6657888653 | N27: 150.0079261 | O27: 0.3316610523
A28: 12887.2 | B28: 11.3771 | C28: 1933.17 | D28: 1706.52 | E28: 6923.08 | F28: 1.93587 | G28: 19810.2 | H28: 385.186 | I28: 280 | J28: 0.2068563636 | K28: 0.6476891221 | L28: 0.3662133354 | M28: 0.6476867254 | N28: 150.0069837 | O28: 0.3494690635
A29: 12550 | B29: 11.7638 | C29: 1882.6 | D29: 1764.51 | E29: 7254.29 | F29: 2.14358 | G29: 19804.3 | H29: 384.979 | I29: 280 | J29: 0.2138872727 | K29: 0.630742014 | L29: 0.3837335026 | M29: 0.6307438194 | N29: 150.0079681 | O29: 0.3662989181
A30: 12210.8 | B30: 12.1529 | C30: 1831.72 | D30: 1822.87 | E30: 7588.42 | F30: 2.36848 | G30: 19799.3 | H30: 384.689 | I30: 280 | J30: 0.2209618182 | K30: 0.6136943892 | L30: 0.4014081303 | M30: 0.6136970513 | N30: 150.0081895 | O30: 0.3832686338
A31: 11881.3 | B31: 12.5314 | C31: 1782.28 | D31: 1879.66 | E31: 7913.91 | F31: 2.60374 | G31: 19795.2 | H31: 384.313 | I31: 280 | J31: 0.2278436364 | K31: 0.5971342701 | L31: 0.418625724 | M31: 0.597132739 | N31: 150.0071541 | O31: 0.3997891409
A32: 11592.4 | B32: 12.8641 | C32: 1738.94 | D32: 1929.56 | E32: 8199.97 | F32: 2.82535 | G32: 19792.3 | H32: 383.917 | I32: 280 | J32: 0.2338927273 | K32: 0.5826146392 | L32: 0.4337575709 | M32: 0.5826121626 | N32: 150.0069011 | O32: 0.4142995508
A33: 11281.3 | B33: 13.2235 | C33: 1692.28 | D33: 1983.47 | E33: 8508.66 | F33: 3.07956 | G33: 19790 | H33: 383.462 | I33: 280 | J33: 0.2404272727 | K33: 0.5669792735 | L33: 0.4500864873 | M33: 0.5669792578 | N33: 150.0075346 | O33: 0.4299483172
A34: 10989.5 | B34: 13.562 | C34: 1648.51 | D34: 2034.24 | E34: 8798.71 | F34: 3.33485 | G34: 19788.2 | H34: 382.95 | I34: 280 | J34: 0.2465818182 | K34: 0.5523138934 | L34: 0.4654293951 | M34: 0.5523146147 | N34: 150.0077347 | O34: 0.4446440583
A35: 10689.2 | B35: 13.9027 | C35: 1603.46 | D35: 2085.34 | E35: 9082.9 | F35: 3.60763 | G35: 19772.1 | H35: 382.466 | I35: 280 | J35: 0.2527763636 | K35: 0.5372213176 | L35: 0.4804623238 | M35: 0.5372211222 | N35: 150.0074842 | O35: 0.4593796309
A36: 10406.6 | B36: 14.2234 | C36: 1561.07 | D36: 2133.44 | E36: 9347.38 | F36: 3.88014 | G36: 19754 | H36: 413.703 | I36: 280 | J36: 0.2586072727 | K36: 0.5230183141 | L36: 0.4944526436 | M36: 0.5230188325 | N36: 150.0076874 | O36: 0.4731897066
A37: 10123.4 | B37: 14.546 | C37: 1518.58 | D37: 2181.84 | E37: 9610.56 | F37: 4.16993 | G37: 19733.9 | H37: 435.848 | I37: 280 | J37: 0.2644727273 | K37: 0.5087851557 | L37: 0.5083741966 | M37: 0.508783039 | N37: 150.0069147 | O37: 0.4870061559
A38: 9847.08 | B38: 14.8599 | C38: 1477.13 | D38: 2228.91 | E38: 9861.58 | F38: 4.46788 | G38: 19708.7 | H38: 381.018 | I38: 280 | J38: 0.27018 | K38: 0.4948977746 | L38: 0.5216525166 | M38: 0.4948956857 | N38: 150.0069056 | O38: 0.5003678586
A39: 9593.36 | B39: 15.1553 | C39: 1439.08 | D39: 2273.23 | E39: 10100 | F39: 4.76375 | G39: 19693.3 | H39: 380.581 | I39: 280 | J39: 0.2755509091 | K39: 0.4821462316 | L39: 0.5342643286 | M39: 0.4821474639 | N39: 150.0079221 | O39: 0.5128632189
A40: 9340.11 | B40: 15.4527 | C40: 1401.09 | D40: 2317.84 | E40: 10337.9 | F40: 5.07687 | G40: 19678 | H40: 380.115 | I40: 280 | J40: 0.2809581818 | K40: 0.4694183101 | L40: 0.5468486339 | M40: 0.4694193445 | N40: 150.0078693 | O40: 0.5253529193
A41: 9102.03 | B41: 15.7329 | C41: 1365.37 | D41: 2359.87 | E41: 10558.2 | F41: 5.38704 | G41: 19660.2 | H41: 668.63 | I41: 280 | J41: 0.2860527273 | K41: 0.4574528074 | L41: 0.558501944 | M41: 0.4574517628 | N41: 150.0071962 | O41: 0.5370333918
A42: 8872.92 | B42: 16.0151 | C42: 1331 | D42: 2402.2 | E42: 10787.9 | F42: 5.71436 | G42: 19660.9 | H42: 644.88 | I42: 280 | J42: 0.2911836364 | K42: 0.4459381219 | L42: 0.5706524901 | M42: 0.4459364834 | N42: 150.0069876 | O42: 0.5487004103
A43: 8648.24 | B43: 16.2902 | C43: 1297.3 | D43: 2443.46 | E43: 11006 | F43: 6.04882 | G43: 19654.3 | H43: 662.379 | I43: 280 | J43: 0.2961854545 | K43: 0.4346460809 | L43: 0.5821894258 | M43: 0.4346456798 | N43: 150.0074003 | O43: 0.5599809507
A44: 8450.58 | B44: 16.5324 | C44: 1267.65 | D44: 2479.78 | E44: 11194.1 | F44: 6.35701 | G44: 19644.7 | H44: 665.703 | I44: 280 | J44: 0.3005890909 | K44: 0.4247120198 | L44: 0.5921394377 | M44: 0.424711783 | N44: 150.0074551 | O44: 0.5698285745
A45: 8238.96 | B45: 16.7944 | C45: 1235.91 | D45: 2519.08 | E45: 11396 | F45: 6.70406 | G45: 19634.9 | H45: 670.054 | I45: 280 | J45: 0.3053527273 | K45: 0.4140763525 | L45: 0.6028194345 | M45: 0.4140776553 | N45: 150.0080107 | O45: 0.5803933392
A46: 8032.6 | B46: 17.0416 | C46: 1204.95 | D46: 2556.16 | E46: 11572 | F46: 7.04596 | G46: 19604.6 | H46: 826.596 | I46: 280 | J46: 0.3098472727 | K46: 0.4037050439 | L46: 0.6121293872 | M46: 0.4037048577 | N46: 150.0074696 | O46: 0.5902696306
A47: 7846.02 | B47: 17.2906 | C47: 1176.96 | D47: 2593.51 | E47: 11775.2 | F47: 7.40472 | G47: 19621.3 | H47: 796.198 | I47: 280 | J47: 0.3143745455 | K47: 0.3943278451 | L47: 0.6228781507 | M47: 0.3943271251 | N47: 150.0072648 | O47: 0.6001257822
A48: 7631.44 | B48: 17.526 | C48: 1144.77 | D48: 2628.82 | E48: 11904.2 | F48: 7.75801 | G48: 19535.6 | H48: 923.043 | I48: 280 | J48: 0.3186545455 | K48: 0.3835434131 | L48: 0.6297019228 | M48: 0.38354223 | N48: 150.007076 | O48: 0.6093580758
A49: 7462.37 | B49: 17.7626 | C49: 1119.41 | D49: 2664.31 | E49: 12100.6 | F49: 8.12707 | G49: 19563 | H49: 874.579 | I49: 280 | J49: 0.3229563636 | K49: 0.3750462377 | L49: 0.6400909836 | M49: 0.375045649 | N49: 150.0073033 | O49: 0.6185461614
A50: 7306.36 | B50: 17.9939 | C50: 1096.01 | D50: 2699.01 | E50: 12305.1 | F50: 8.50221 | G50: 19611.4 | H50: 794.395 | I50: 280 | J50: 0.3271618182 | K50: 0.3672054359 | L50: 0.6509085138 | M50: 0.3672057439 | N50: 150.0076646 | O50: 0.6274443616
A51: 7141.05 | B51: 18.2131 | C51: 1071.21 | D51: 2731.89 | E51: 12466 | F51: 8.8714 | G51: 19607 | H51: 796.585 | I51: 280 | J51: 0.3311472727 | K51: 0.3588972318 | L51: 0.6594197149 | M51: 0.3588967846 | N51: 150.0073519 | O51: 0.6357917178
A52: 6968.78 | B52: 18.4345 | C52: 1045.37 | D52: 2765.1 | E52: 12614 | F52: 9.25787 | G52: 19582.8 | H52: 831.072 | I52: 280 | J52: 0.3351727273 | K52: 0.3502392296 | L52: 0.6672485387 | M52: 0.3502393851 | N52: 150.0076053 | O52: 0.6441373492
A53: 6800.69 | B53: 18.6436 | C53: 1020.15 | D53: 2796.46 | E53: 12738.3 | F53: 9.63632 | G53: 19539 | H53: 902.844 | I53: 280 | J53: 0.3389745455 | K53: 0.3417913073 | L53: 0.6738236928 | M53: 0.3417897096 | N53: 150.0068375 | O53: 0.651942603
A54: 6663.06 | B54: 18.8545 | C54: 999.509 | D54: 2828.08 | E54: 12918.8 | F54: 10.0312 | G54: 19581.9 | H54: 787.009 | I54: 280 | J54: 0.3428090909 | K54: 0.3348742537 | L54: 0.683371684 | M54: 0.3348741762 | N54: 150.0075041 | O54: 0.6597330386
A55: 6510.02 | B55: 19.061 | C55: 976.552 | D55: 2859.07 | E55: 13056.6 | F55: 10.4318 | G55: 19566.6 | H55: 807.924 | I55: 280 | J55: 0.3465636364 | K55: 0.3271827192 | L55: 0.6906609537 | M55: 0.3271826932 | N55: 150.0075269 | O55: 0.6672894961
A56: 6363.09 | B56: 19.2433 | C56: 954.511 | D56: 2886.41 | E56: 13149.1 | F56: 10.7974 | G56: 19512.2 | H56: 935.059 | I56: 280 | J56: 0.3498781818 | K56: 0.3197982631 | L56: 0.6955539686 | M56: 0.3197981057 | N56: 150.0074649 | O56: 0.6738915519
A57: 6226.7 | B57: 19.4406 | C57: 934.052 | D57: 2916 | E57: 13290.7 | F57: 11.205 | G57: 19517.4 | H57: 909.411 | I57: 280 | J57: 0.3534654545 | K57: 0.3129435297 | L57: 0.7030442487 | M57: 0.3129435493 | N57: 150.0075481 | O57: 0.6809667271
A58: 6103.16 | B58: 19.6274 | C58: 915.519 | D58: 2944.02 | E58: 13433.1 | F58: 11.6038 | G58: 19536.3 | H58: 801.786 | I58: 280 | J58: 0.3568618182 | K58: 0.3067346159 | L58: 0.7105768468 | M58: 0.3067342775 | N58: 150.0073732 | O58: 0.6875983428
A59: 5968.64 | B59: 19.8166 | C59: 895.341 | D59: 2972.4 | E59: 13552.6 | F59: 12.0202 | G59: 19521.3 | H59: 811.361 | I59: 280 | J59: 0.3603018182 | K59: 0.2999738657 | L59: 0.716898093 | M59: 0.299973867 | N59: 150.0075394 | O59: 0.6942489309
A60: 5837.32 | B60: 19.9957 | C60: 875.641 | D60: 2999.26 | E60: 13651.5 | F60: 12.4268 | G60: 19488.8 | H60: 868.784 | I60: 280 | J60: 0.3635581818 | K60: 0.2933739421 | L60: 0.7221296517 | M60: 0.293373605 | N60: 150.0073664 | O60: 0.7004785308
A61: 5675.82 | B61: 20.1767 | C61: 851.415 | D61: 3026.41 | E61: 13676.5 | F61: 12.8501 | G61: 19352.4 | H61: 1296.05 | I61: 280 | J61: 0.3668490909 | K61: 0.2852572221 | L61: 0.7234520881 | M61: 0.2852569579 | N61: 150.0073998 | O61: 0.7067111333
A62: 5567.92 | B62: 20.3526 | C62: 835.23 | D62: 3052.8 | E62: 13813 | F62: 13.2741 | G62: 19380.9 | H62: 1190.71 | I62: 280 | J62: 0.3700472727 | K62: 0.2798343486 | L62: 0.7306725912 | M62: 0.2798343569 | N62: 150.0075432 | O62: 0.7127112645
A63: 5473.98 | B63: 20.5197 | C63: 821.138 | D63: 3077.86 | E63: 13961.3 | F63: 13.6885 | G63: 19435.3 | H63: 1017.47 | I63: 280 | J63: 0.3730854545 | K63: 0.2751130812 | L63: 0.7385172842 | M63: 0.2751129918 | N63: 150.00749 | O63: 0.7183482821
A64: 5363.75 | B64: 20.6894 | C64: 804.602 | D64: 3103.32 | E64: 14071.5 | F64: 14.1213 | G64: 19435.2 | H64: 935.403 | I64: 280 | J64: 0.3761709091 | K64: 0.2695731058 | L64: 0.7443465841 | M64: 0.2695727922 | N64: 150.0073643 | O64: 0.7240195006
A65: 5255.48 | B65: 20.8503 | C65: 788.362 | D65: 3127.45 | E65: 14162.1 | F65: 14.5435 | G65: 19417.6 | H65: 977.43 | I65: 280 | J65: 0.3790963636 | K65: 0.2641316366 | L65: 0.7491390939 | M65: 0.264131764 | N65: 150.0076111 | O65: 0.7293442334
A66: 5149.24 | B66: 21.0132 | C66: 772.425 | D66: 3151.89 | E66: 14258.5 | F66: 14.9826 | G66: 19407.8 | H66: 993.893 | I66: 280 | J66: 0.3820581818 | K66: 0.2587921919 | L66: 0.7542384088 | M66: 0.2587922526 | N66: 150.0075739 | O66: 0.7346811118
A67: 5050.13 | B67: 21.1729 | C67: 757.557 | D67: 3175.84 | E67: 14362.9 | F67: 15.4246 | G67: 19413 | H67: 947.296 | I67: 280 | J67: 0.3849618182 | K67: 0.253811089 | L67: 0.7597609035 | M67: 0.2538108975 | N67: 150.0074256 | O67: 0.7398587444
A68: 4963.71 | B68: 21.3194 | C68: 744.593 | D68: 3197.81 | E68: 14468.5 | F68: 15.8412 | G68: 19432.2 | H68: 835.777 | I68: 280 | J68: 0.3876254545 | K68: 0.2494677643 | L68: 0.7653468751 | M68: 0.249467456 | N68: 150.0073534 | O68: 0.7445627646
A69: 4864.73 | B69: 21.4732 | C69: 729.746 | D69: 3220.89 | E69: 14552.1 | F69: 16.2897 | G69: 19416.8 | H69: 872.459 | I69: 280 | J69: 0.3904218182 | K69: 0.244493195 | L69: 0.7697691026 | M69: 0.2444931367 | N69: 150.007503 | O69: 0.7494580732
A70: 4774.95 | B70: 21.6192 | C70: 716.278 | D70: 3242.78 | E70: 14639.9 | F70: 16.7263 | G70: 19414.8 | H70: 845.983 | I70: 280 | J70: =B70/$B$2 -> 0.3930763636 | K70: 0.2399810024 | L70: 0.7744134994 | M70: 0.2399808358 | N70: 150.0074346 | O70: 0.7540568173
A71: 4685.04 | B71: 21.7672 | C71: 702.791 | D71: 3264.99 | E71: 14728.8 | F71: 17.1802 | G71: 19413.8 | H71: 801.948 | I71: 280 | J71: 0.3957672727 | K71: =A71/$A$6 -> 0.2354622761 | L71: =E71/$L$3 -> 0.7791160835 | M71: =C71/$N$3 -> 0.2354621691 | N71: =C71*1000/A71 -> 150.0074706 | O71: =E71/(E71+A71) -> 0.7586752544
A72: 4591.48 | B72: 21.9078 | C72: 688.756 | D72: 3286.07 | E72: 14783.4 | F72: 17.6221 | G72: 19374.9 | H72: 1018.98 | I72: 280 | J72: 0.3983236364 | K72: 0.2307601069 | L72: 0.7820042847 | M72: 0.2307599012 | N72: 150.007405 | O72: 0.7630189193
A73: 4509.67 | B73: 22.0501 | C73: 676.484 | D73: 3307.42 | E73: 14876.5 | F73: 18.0804 | G73: 19386.1 | H73: 903.547 | I73: 280 | J73: 0.4009109091 | K73: 0.2266484732 | L73: 0.7869290381 | M73: 0.2266483065 | N73: 150.0074285 | O73: 0.7673769497
A74: 4425.85 | B74: 22.1899 | C74: 663.911 | D74: 3328.39 | E74: 14953.1 | F74: 18.5416 | G74: 19378.9 | H74: 915.604 | I74: 280 | J74: 0.4034527273 | K74: 0.2224358201 | L74: 0.7909809834 | M74: 0.2224358652 | N74: 150.0075692 | O74: 0.7716155932
A75: 4348.14 | B75: 22.3227 | C75: 652.253 | D75: 3348.31 | E75: 15028.9 | F75: 18.9903 | G75: 19377 | H75: 875.445 | I75: 280 | J75: 0.4058672727 | K75: 0.2185302455 | L75: 0.7949906107 | M75: 0.2185299843 | N75: 150.0073595 | O75: 0.7756034977
A76: 4268.33 | B76: 22.4575 | C76: 640.282 | D76: 3368.53 | E76: 15099.2 | F76: 19.4562 | G76: 19367.6 | H76: 885.166 | I76: 280 | J76: 0.4083181818 | K76: 0.2145191283 | L76: 0.798709302 | M76: 0.2145192362 | N76: 150.0076142 | O76: 0.7796141274
A77: 4192.75 | B77: 22.5856 | C77: 628.944 | D77: 3387.74 | E77: 15163.4 | F77: 19.9092 | G77: 19356.2 | H77: 1184.91 | I77: 280 | J77: 0.4106472727 | K77: 0.2107206039 | L77: 0.8021053188 | M77: 0.2107205677 | N77: 150.007513 | O77: 0.7833892587
A78: 4114.84 | B78: 22.7156 | C78: 617.257 | D78: 3407.24 | E78: 15220.6 | F78: 20.3793 | G78: 19335.4 | H78: 1126.5 | I78: 280 | J78: 0.4130109091 | K78: 0.2068049776 | L78: 0.8051310535 | M78: 0.2068049706 | N78: 150.0075337 | O78: 0.7871866376
A79: 4045.93 | B79: 22.8432 | C79: 606.919 | D79: 3426.37 | E79: 15301.3 | F79: 20.8512 | G79: 19347.3 | H79: 1183.15 | I79: 280 | J79: 0.4153309091 | K79: 0.2033416762 | L79: 0.8093998783 | M79: 0.2033413408 | N79: 150.0072913 | O79: 0.790878074
A80: 3978.6 | B80: 22.9564 | C80: 596.82 | D80: 3443.36 | E80: 15347.1 | F80: 21.2797 | G80: 19325.7 | H80: 955.726 | I80: 280 | J80: 0.4173890909 | K80: 0.199957783 | L80: 0.8118225819 | M80: 0.1999577851 | N80: 150.0075403 | O80: 0.7941290613
A81: 3912.53 | B81: 23.0798 | C81: 586.908 | D81: 3461.87 | E81: 15421.6 | F81: 21.7555 | G81: 19334.2 | H81: 1247.67 | I81: 280 | J81: 0.4196327273 | K81: 0.1966372153 | L81: 0.8157634426 | M81: 0.1966368817 | N81: 150.0072843 | O81: 0.7976360974
A82: 3847.67 | B82: 23.1972 | C82: 577.179 | D82: 3479.47 | E82: 15482 | F82: 22.2182 | G82: 19329.7 | H82: 1269.94 | I82: 280 | J82: 0.4217672727 | K82: 0.1933774601 | L82: 0.818958449 | M82: 0.1933772904 | N82: 150.0074071 | O82: 0.8009448687
A83: 3764.26 | B83: 23.3165 | C83: 564.667 | D83: 3497.37 | E83: 15468.5 | F83: 22.6981 | G83: 19232.7 | H83: 1618.93 | I83: 280 | J83: 0.4239363636 | K83: 0.189185413 | L83: 0.8182443334 | M83: 0.1891852864 | N83: 150.0074384 | O83: 0.8042787411
A84: 3721.69 | B84: 23.4294 | C84: 558.282 | D84: 3514.31 | E84: 15602.3 | F84: 23.1622 | G84: 19324 | H84: 1271.85 | I84: 280 | J84: 0.4259890909 | K84: 0.187045916 | L84: 0.8253220133 | M84: 0.1870460645 | N84: 150.0076578 | O84: 0.8074057169
A85: 3659.82 | B85: 23.5448 | C85: 549 | D85: 3531.61 | E85: 15660.7 | F85: 23.6459 | G85: 19320.6 | H85: 1316.52 | I85: 280 | J85: 0.4280872727 | K85: 0.1839364333 | L85: 0.8284112248 | M85: 0.1839362354 | N85: 150.0073774 | O85: 0.8105734214
A86: 3599.78 | B86: 23.6582 | C86: 539.993 | D86: 3548.63 | E86: 15718.7 | F86: 24.1315 | G86: 19318.5 | H86: 1304.86 | I86: 280 | J86: 0.4301490909 | K86: 0.1809189233 | L86: 0.8314792774 | M86: 0.180918542 | N86: 150.0072227 | O86: 0.8136613233
A87: 3543.11 | B87: 23.7663 | C87: 531.492 | D87: 3564.83 | E87: 15773.4 | F87: 24.6031 | G87: 19316.5 | H87: 1317.08 | I87: 280 | J87: 0.4321145455 | K87: 0.1780707838 | L87: 0.8343727684 | M87: 0.1780703782 | N87: 150.0071971 | O87: 0.8165760792
A88: 3381.61 | B88: 23.8761 | C88: 507.267 | D88: 3581.31 | E88: 15354.6 | F88: 25.0921 | G88: 18736.2 | H88: 2086.23 | I88: 280 | J88: 0.4341109091 | K88: 0.1699540639 | L88: 0.8122193129 | M88: 0.1699540662 | N88: 150.0075408 | O88: 0.8195147258
A89: 3434.96 | B89: 23.9776 | C89: 515.27 | D89: 3596.53 | E89: 15885 | F89: 25.5527 | G89: 19320 | H89: 1547.06 | I89: 280 | J89: 0.4359563636 | K89: 0.1726353457 | L89: 0.8402761247 | M89: 0.1726353808 | N89: 150.0075692 | O89: 0.8222066712
A90: 3239.58 | B90: 24.084 | C90: 485.96 | D90: 3612.5 | E90: 15273.2 | F90: 26.0452 | G90: 18512.8 | H90: 2371.61 | I90: 280 | J90: 0.4378909091 | K90: 0.1628158736 | L90: 0.8079134598 | M90: 0.162815397 | N90: 150.0070997 | O90: 0.8250084536
A91: 3192.54 | B91: 24.1845 | C91: 478.905 | D91: 3627.56 | E91: 15328.9 | F91: 26.5187 | G91: 18521.4 | H91: 2360.04 | I91: 280 | J91: 0.4397181818 | K91: 0.1604517219 | L91: 0.8108598482 | M91: 0.1604516991 | N91: 150.0075175 | O91: 0.8276300331
A92: 3150.97 | B92: 24.2739 | C92: 472.669 | D92: 3640.97 | E92: 15378.2 | F92: 26.948 | G92: 18529.1 | H92: 2349.97 | I92: 280 | J92: 0.4413436364 | K92: 0.1583624832 | L92: 0.8134676929 | M92: 0.1583623979 | N92: 150.007458 | O92: 0.829945432
A93: 3236.73 | B93: 24.3716 | C93: 485.534 | D93: 3655.63 | E93: 16081.9 | F93: 27.4247 | G93: 19318.7 | H93: 1549.03 | I93: 280 | J93: 0.44312 | K93: 0.1626726374 | L93: 0.8506916343 | M93: 0.1626726706 | N93: 150.0075694 | O93: 0.8324555106
A94: 3189.2 | B94: 24.4687 | C94: 478.403 | D94: 3670.19 | E94: 16131.3 | F94: 27.9072 | G94: 19320.5 | H94: 1547.81 | I94: 280 | J94: 0.4448854545 | K94: 0.160283859 | L94: 0.8533047687 | M94: 0.1602835097 | N94: 150.0072118 | O94: 0.8349318082
A95: 3139.97 | B95: 24.5675 | C95: 471.019 | D95: 3685.02 | E95: 16174.9 | F95: 28.4073 | G95: 19314.9 | H95: 1552.66 | I95: 280 | J95: 0.4466818182 | K95: 0.1578096416 | L95: 0.8556110979 | M95: 0.1578095841 | N95: 150.0074841 | O95: 0.8374325067
A96: 3095.07 | B96: 24.6618 | C96: 464.284 | D96: 3699.15 | E96: 16224.6 | F96: 28.8926 | G96: 19319.6 | H96: 1549.08 | I96: 280 | J96: 0.4483963636 | K96: 0.1555530426 | L96: 0.8582401016 | M96: 0.1555530986 | N96: 150.0075927 | O96: 0.8397969531
A97: 3049 | B97: 24.7577 | C97: 457.373 | D97: 3713.55 | E97: 16271.1 | F97: 29.3956 | G97: 19320.1 | H97: 1549.01 | I97: 280 | J97: 0.45014 | K97: 0.1532376415 | L97: 0.8606998334 | M97: 0.1532376463 | N97: 150.0075435 | O97: 0.8421850819
A98: 3003.9 | B98: 24.8522 | C98: 450.607 | D98: 3727.72 | E98: 16316.2 | F98: 29.9001 | G98: 19320.1 | H98: 1549.34 | I98: 280 | J98: 0.4518581818 | K98: 0.1509709909 | L98: 0.8630855087 | M98: 0.1509707746 | N98: 150.0073238 | O98: 0.8445194383
A99: 2961.71 | B99: 24.9424 | C99: 444.279 | D99: 3741.24 | E99: 16361.5 | F99: 30.3896 | G99: 19323.2 | H99: 1547.11 | I99: 280 | J99: 0.4534981818 | K99: 0.148850592 | L99: 0.8654817636 | M99: 0.1488506498 | N99: 150.007597 | O99: 0.846727847
A100: 2834.07 | B100: 25.0342 | C100: 425.131 | D100: 3755.01 | E100: 15929.6 | F100: 30.8968 | G100: 18763.7 | H100: 2062.95 | I100: 280 | J100: 0.4551672727 | K100: 0.1424356191 | L100: 0.8426353514 | M100: 0.1424353292 | N100: 150.0072334 | O100: 0.8489597184
A101: 2878.6 | B101: 25.1192 | C101: 431.811 | D101: 3767.77 | E101: 16442.4 | F101: 31.3748 | G101: 19321 | H101: 1549.6 | I101: 280 | J101: 0.4567127273 | K101: 0.1446736224 | L101: 0.869761168 | M101: 0.1446733875 | N101: 150.0072952 | O101: 0.8510118524
A102: 2837.44 | B102: 25.2085 | C102: 425.638 | D102: 3781.16 | E102: 16484.5 | F102: 31.8845 | G102: 19321.9 | H102: 1549.17 | I102: 280 | J102: 0.4583363636 | K102: 0.1426049896 | L102: 0.871988151 | M102: 0.1426051938 | N102: 150.0077535 | O102: 0.8531493214
A103: 2797.18 | B103: 25.2964 | C103: 419.597 | D103: 3794.35 | E103: 16525.6 | F103: 32.3956 | G103: 19322.8 | H103: 1548.82 | I103: 280 | J103: 0.4599345455 | K103: 0.1405815894 | L103: 0.8741622365 | M103: 0.1405812251 | N103: 150.0071501 | O103: 0.8552392565
A104: 2754.09 | B104: 25.3747 | C104: 413.133 | D104: 3806.1 | E104: 16517.1 | F104: 32.8583 | G104: 19271.2 | H104: 1592 | I104: 280 | J104: 0.4613581818 | K104: 0.138415958 | L104: 0.8737126081 | M104: 0.1384155351 | N104: 150.0070804 | O104: 0.8570877045
A105: 2722.13 | B105: 25.4601 | C105: 408.34 | D105: 3818.91 | E105: 16595.8 | F105: 33.3704 | G105: 19317.9 | H105: 1553.53 | I105: 280 | J105: 0.4629109091 | K105: 0.1368097019 | L105: 0.8778756381 | M105: 0.1368096947 | N105: 150.0075309 | O105: 0.8590879043
A106: 2587.12 | B106: 25.5418 | C106: 388.088 | D106: 3831.16 | E106: 16023.5 | F106: 33.8683 | G106: 18610.6 | H106: 2252.79 | I106: 280 | J106: 0.4643963636 | K106: 0.130024325 | L106: 0.8476024227 | M106: 0.1300244913 | N106: 150.0077306 | O106: 0.8609868989
A107: 2546.29 | B107: 25.622 | C107: 381.962 | D107: 3843.19 | E107: 16017.8 | F107: 34.3651 | G107: 18564.1 | H107: 2317.29 | I107: 280 | J107: 0.4658545455 | K107: 0.1279722775 | L107: 0.8473009072 | M107: 0.1279720444 | N107: 150.0072655 | O107: 0.8628378768
A108: 2514.28 | B108: 25.6984 | C108: 377.16 | D108: 3854.65 | E108: 16053.5 | F108: 34.8457 | G108: 18567.8 | H108: 2313.15 | I108: 280 | J108: 0.4672436364 | K108: 0.1263635084 | L108: 0.8491893465 | M108: 0.1263631886 | N108: 150.0071591 | O108: 0.8645890893
A109: 2481.6 | B109: 25.7764 | C109: 372.259 | D109: 3866.34 | E109: 16088.2 | F109: 35.3434 | G109: 18569.8 | H109: 2311.36 | I109: 280 | J109: 0.4686618182 | K109: 0.1247210663 | L109: 0.8510248883 | M109: 0.1247211641 | N109: 150.0076564 | O109: 0.8663636657
A110: 2449.36 | B110: 25.8533 | C110: 367.422 | D110: 3877.88 | E110: 16120.9 | F110: 35.8421 | G110: 18570.2 | H110: 2311.88 | I110: 280 | J110: 0.47006 | K110: 0.1231007378 | L110: 0.8527546351 | M110: 0.123100582 | N110: 150.0073489 | O110: 0.8681030853
A111: 2419.2 | B111: 25.9268 | C111: 362.898 | D111: 3888.9 | E111: 16154.7 | F111: 36.3258 | G111: 18573.9 | H111: 2307.72 | I111: 280 | J111: 0.4713963636 | K111: 0.1215849466 | L111: 0.8545425692 | M111: 0.121584867 | N111: 150.0074405 | O111: 0.8697527175
A112: 2388.42 | B112: 26.0018 | C112: 358.281 | D112: 3900.15 | E112: 16187.7 | F112: 36.8266 | G112: 18576.1 | H112: 2305.62 | I112: 280 | J112: 0.47276 | K112: 0.1200379953 | L112: 0.8562881854 | M112: 0.1200379934 | N112: 150.0075364 | O112: 0.8714252492
A113: 2358.95 | B113: 26.0734 | C113: 353.86 | D113: 3910.9 | E113: 16217.3 | F113: 37.3123 | G113: 18576.2 | H113: 2306.53 | I113: 280 | J113: 0.4740618182 | K113: 0.1185568824 | L113: 0.8578539501 | M113: 0.1185567874 | N113: 150.0074186 | O113: 0.8730125833
A114: 2329.41 | B114: 26.1466 | C114: 349.429 | D114: 3921.87 | E114: 16249.6 | F114: 37.8151 | G114: 18579.1 | H114: 2303.58 | I114: 280 | J114: 0.4753927273 | K114: 0.1170722514 | L114: 0.859562538 | M114: 0.117072231 | N114: 150.0075126 | O114: 0.8746214142
A115: 2300.47 | B115: 26.2188 | C115: 345.087 | D115: 3932.7 | E115: 16281.6 | F115: 38.3189 | G115: 18582.1 | H115: 2300.39 | I115: 280 | J115: 0.4767054545 | K115: 0.1156177754 | L115: 0.8612552567 | M115: 0.115617493 | N115: 150.0071724 | O115: 0.8761994762
A116: 2273.54 | B116: 26.2855 | C116: 341.049 | D116: 3942.71 | E116: 16308.5 | F116: 38.7911 | G116: 18582 | H116: 2301.37 | I116: 280 | J116: 0.4779181818 | K116: 0.1142643186 | L116: 0.8626781983 | M116: 0.1142646068 | N116: 150.0079172 | O116: 0.8776485251
A117: 2333.27 | B117: 26.356 | C117: 350.008 | D117: 3953.28 | E117: 16976.9 | F117: 39.2967 | G117: 19310.2 | H117: 1564.33 | I117: 280 | J117: 0.4792 | K117: 0.1172662485 | L117: 0.8980348594 | M117: 0.1172662184 | N117: 150.0075002 | O117: 0.8791688525
A118: 2306.76 | B118: 26.426 | C118: 346.031 | D118: 3963.78 | E118: 17024 | F118: 39.806 | G118: 19330.7 | H118: 1540.52 | I118: 280 | J118: 0.4804727273 | K118: 0.1159339002 | L118: 0.9005263297 | M118: 0.1159337696 | N118: 150.0073696 | O118: 0.8806689442
A119: 2276.7 | B119: 26.4975 | C119: 341.523 | D119: 3974.51 | E119: 17048.7 | F119: 40.3338 | G119: 19325.4 | H119: 1516.2 | I119: 280 | J119: 0.4817727273 | K119: 0.1144231349 | L119: 0.9018328969 | M119: 0.1144234152 | N119: 150.0079062 | O119: 0.882191313
A120: 2249.38 | B120: 26.5658 | C120: 337.424 | D120: 3984.75 | E120: 17081.1 | F120: 40.8453 | G120: 19330.5 | H120: 1536.18 | I120: 280 | J120: 0.4830145455 | K120: 0.1130500774 | L120: 0.9035467746 | M120: 0.1130500916 | N120: 150.0075576 | O120: 0.8836355848
A121: 2214.83 | B121: 26.6356 | C121: 332.242 | D121: 3995.21 | E121: 17061.4 | F121: 41.3749 | G121: 19276.2 | H121: 1594.32 | I121: 280 | J121: 0.4842836364 | K121: 0.1113136522 | L121: 0.9025046946 | M121: 0.1113139212 | N121: 150.0079013 | O121: 0.8851004579
A122: 2186.92 | B122: 26.7042 | C122: 328.055 | D122: 4005.51 | E122: 17086.7 | F122: 41.9038 | G122: 19273.6 | H122: 1596.92 | I122: 280 | J122: 0.4855309091 | K122: 0.1099109422 | L122: 0.9038430003 | M122: 0.1099111142 | N122: 150.0077735 | O122: 0.8865329917
A123: 2160.36 | B123: 26.7698 | C123: 324.07 | D123: 4015.35 | E123: 17110.2 | F123: 42.4165 | G123: 19270.6 | H123: 1599.93 | I123: 280 | J123: 0.4867236364 | K123: 0.1085760811 | L123: 0.9050860906 | M123: 0.1085759851 | N123: 150.0074062 | O123: 0.8878932423
A124: 2133.68 | B124: 26.8368 | C124: 320.069 | D124: 4025.4 | E124: 17136 | F124: 42.9469 | G124: 19269.7 | H124: 1600.59 | I124: 280 | J124: 0.4879418182 | K124: 0.1072351889 | L124: 0.906450845 | M124: 0.1072354953 | N124: 150.0079675 | O124: 0.8892726812
A125: 2107.57 | B125: 26.9008 | C125: 316.151 | D125: 4035 | E125: 17154.2 | F125: 43.461 | G125: 19261.8 | H125: 1606.14 | I125: 280 | J125: 0.4891054545 | K125: 0.1059229439 | L125: 0.9074135788 | M125: 0.1059228138 | N125: 150.0073544 | O125: 0.890582745
A126: 2089.24 | B126: 26.9662 | C126: 313.401 | D126: 4044.8 | E126: 17239.7 | F126: 43.9929 | G126: 19328.9 | H126: 1548.68 | I126: 280 | J126: 0.4902945455 | K126: 0.1050017088 | L126: 0.9119363115 | M126: 0.1050014574 | N126: 150.0071796 | O126: 0.8919112998
A127: 2063.54 | B127: 27.0309 | C127: 309.546 | D127: 4054.52 | E127: 17261.6 | F127: 44.5273 | G127: 19325.2 | H127: 1550.61 | I127: 280 | J127: 0.4914709091 | K127: 0.1037100698 | L127: 0.9130947658 | M127: 0.1037098833 | N127: 150.0072691 | O127: 0.8932199198
A128: 2021.72 | B128: 27.0887 | C128: 303.273 | D128: 4063.19 | E128: 17119.8 | F128: 45.0107 | G128: 19141.5 | H128: 1708.86 | I128: 280 | J128: 0.4925218182 | K128: 0.1016082665 | L128: 0.9055939062 | M128: 0.1016081857 | N128: 150.0074194 | O128: 0.8943803836
A129: 2001.52 | B129: 27.1514 | C129: 300.243 | D129: 4072.59 | E129: 17176 | F129: 45.5415 | G129: 19177.5 | H129: 1675.21 | I129: 280 | J129: 0.4936618182 | K129: 0.1005930483 | L129: 0.9085667434 | M129: 0.1005930185 | N129: 150.0074943 | O129: 0.8956319691
A130: 1982.14 | B130: 27.2114 | C130: 297.336 | D130: 4081.59 | E130: 17229 | F130: 46.0568 | G130: 19211.1 | H130: 1644.27 | I130: 280 | J130: 0.4947527273 | K130: 0.09961904188 | L130: 0.9113703087 | M130: 0.09961906102 | N130: 150.0075676 | O130: 0.8968234056
A131: 1969.2 | B131: 27.2729 | C131: 295.395 | D131: 4090.81 | E131: 17343.3 | F131: 46.5909 | G131: 19312.5 | H131: 1556.66 | I131: 280 | J131: 0.4958709091 | K131: 0.09896869911 | L131: 0.9174164881 | M131: 0.09896875094 | N131: 150.0076173 | O131: 0.8980349515
A132: 1947.89 | B132: 27.332 | C132: 292.198 | D132: 4099.67 | E132: 17375.1 | F132: 47.1113 | G132: 19322.9 | H132: 1546.91 | I132: 280 | J132: 0.4969454545 | K132: 0.09789769415 | L132: 0.9190986273 | M132: 0.09789763228 | N132: 150.007444 | O132: 0.8991931373
A133: 1923.2 | B133: 27.3924 | C133: 288.494 | D133: 4108.73 | E133: 17380.1 | F133: 47.6499 | G133: 19303.3 | H133: 1482.01 | I133: 280 | J133: 0.4980436364 | K133: 0.09665681603 | L133: 0.9193631146 | M133: 0.09665664901 | N133: 150.0072795 | O133: 0.9003693669
A134: 1900.97 | B134: 27.452 | C134: 285.159 | D134: 4117.68 | E134: 17402.8 | F134: 48.1887 | G134: 19303.8 | H134: 1488.33 | I134: 280 | J134: =B134/$B$2 -> 0.4991272727 | K134: 0.09553957341 | L134: 0.9205638869 | M134: 0.09553929501 | N134: 150.0071016 | O134: 0.9015233812
A135: 1880.99 | B135: 27.509 | C135: 282.163 | D135: 4126.23 | E135: 17435.3 | F135: 48.7109 | G135: 19316.3 | H135: 1531.98 | I135: 280 | J135: 0.5001636364 | K135: =A135/$A$6 -> 0.09453541202 | L135: =E135/$L$3 -> 0.9222830543 | M135: =C135/$N$3 -> 0.09453551913 | N135: =C135*1000/A135 -> 150.0077087 | O135: =E135/(E135+A135) -> 0.9026215697
A136: 1858.54 | B136: 27.5673 | C136: 278.795 | D136: 4134.98 | E136: 17448.4 | F136: 49.2514 | G136: 19307 | H136: 1556 | I136: 280 | J136: 0.5012236364 | K136: 0.09340711256 | L136: 0.922976011 | M136: 0.09340710885 | N136: 150.0075328 | O136: 0.9037372054
A137: 1839.05 | B137: 27.6231 | C137: 275.871 | D137: 4143.34 | E137: 17478.2 | F137: 49.7749 | G137: 19317.3 | H137: 1546.38 | I137: 280 | J137: 0.5022381818 | K137: 0.09242757775 | L137: 0.9245523553 | M137: 0.09242745575 | N137: 150.0073407 | O137: 0.9047975255
A138: 1816.02 | B138: 27.6801 | C138: 272.416 | D138: 4151.89 | E138: 17477.8 | F138: 50.3168 | G138: 19293.8 | H138: 1564.98 | I138: 280 | J138: 0.5032745455 | K138: 0.09127012846 | L138: 0.9245311963 | M138: 0.09126989711 | N138: 150.0071585 | O138: 0.9058755602
A139: 1795.31 | B139: 27.7364 | C139: 269.309 | D139: 4160.34 | E139: 17495.4 | F139: 50.8586 | G139: 19290.7 | H139: 1469.87 | I139: 280 | J139: 0.5042981818 | K139: 0.09022927849 | L139: 0.9254621915 | M139: 0.09022893193 | N139: 150.0069626 | O139: 0.9069339594
A140: 1776.73 | B140: 27.7867 | C140: 266.523 | D140: 4167.88 | E140: 17509.1 | F140: 51.3485 | G140: 19285.9 | H140: 1569.79 | I140: 280 | J140: 0.5052127273 | K140: 0.08929547876 | L140: 0.9261868867 | M140: 0.08929551417 | N140: 150.0075982 | O140: 0.907873812
A141: 1756.51 | B141: 27.8418 | C141: 263.489 | D141: 4176.14 | E141: 17524.1 | F141: 51.8914 | G141: 19280.6 | H141: 1573.27 | I141: 280 | J141: 0.5062145455 | K141: 0.08827925537 | L141: 0.9269803486 | M141: 0.08827900681 | N141: 150.0071164 | O141: 0.9088975919
A142: 1740.41 | B142: 27.8945 | C142: 261.074 | D142: 4184.05 | E142: 17570 | F142: 52.4171 | G142: 19310.4 | H142: 1547.45 | I142: 280 | J142: 0.5071727273 | K142: 0.08747009629 | L142: 0.9294083419 | M142: 0.0874698884 | N142: 150.0071822 | O142: 0.9098719292
A143: 1714.82 | B143: 27.9484 | C143: 257.236 | D143: 4192.14 | E143: 17523.3 | F143: 52.9618 | G143: 19238.2 | H143: 1607.65 | I143: 280 | J143: 0.5081527273 | K143: 0.08618398569 | L143: 0.9269380306 | M143: 0.08618400994 | N143: 150.007581 | O143: 0.9108634316
A144: 1698.17 | B144: 27.9999 | C144: 254.739 | D144: 4199.86 | E144: 17556.3 | F144: 53.4876 | G144: 19254.5 | H144: 1592.7 | I144: 280 | J144: 0.5090890909 | K144: 0.08534718453 | L144: 0.9286836468 | M144: 0.08534741836 | N144: 150.0079497 | O144: 0.9118038565
A145: 1682.89 | B145: 28.0525 | C145: 252.447 | D145: 4207.75 | E145: 17607.7 | F145: 54.0319 | G145: 19290.6 | H145: 1561.27 | I145: 280 | J145: 0.5100454545 | K145: 0.08457923728 | L145: 0.9314025761 | M145: 0.0845795097 | N145: 150.0080219 | O145: 0.9127610923
A146: 1666.24 | B146: 28.1047 | C146: 249.948 | D146: 4215.58 | E146: 17642.1 | F146: 54.5778 | G146: 19308.3 | H146: 1545.56 | I146: 280 | J146: 0.5109945455 | K146: 0.08374243612 | L146: 0.9332222487 | M146: 0.08374224804 | N146: 150.0072018 | O146: 0.913703612
A147: 1485.46 | B147: 28.1547 | C147: 222.831 | D147: 4223.08 | E147: 15909.2 | F147: 55.1071 | G147: 17394.6 | H147: 351.048 | I147: 280 | J147: 0.5119036364 | K147: 0.07465673562 | L147: 0.8415562432 | M147: 0.07465700415 | N147: 150.0080783 | O147: 0.9146025274
A148: 1470.22 | B148: 28.2007 | C148: 220.544 | D148: 4229.99 | E148: 15913.6 | F148: 55.6003 | G148: 17383.8 | H148: 351.048 | I148: 280 | J148: 0.51274 | K148: 0.07389079871 | L148: 0.841788992 | M148: 0.07389077069 | N148: 150.0074819 | O148: 0.9154259536
A149: 1455.71 | B149: 28.2449 | C149: 218.367 | D149: 4236.6 | E149: 15917.7 | F149: 56.0777 | G149: 17373.4 | H149: 351.048 | I149: 280 | J149: 0.5135436364 | K149: 0.07316155037 | L149: 0.8420058716 | M149: 0.07316139148 | N149: 150.007213 | O149: 0.9162104618
A150: 1440.95 | B150: 28.29 | C150: 216.153 | D150: 4243.37 | E150: 15921.9 | F150: 56.5712 | G150: 17362.9 | H150: 351.048 | I150: 280 | J150: 0.5143636364 | K150: 0.07241973745 | L150: 0.8422280409 | M150: 0.07241961584 | N150: 150.0072869 | O150: 0.9170095923
A151: 1577.02 | B151: 28.3347 | C151: 236.565 | D151: 4250.07 | E151: 17607.4 | F151: 57.0648 | G151: 19184.4 | H151: 1648.22 | I151: 280 | J151: 0.5151763636 | K151: 0.07925838811 | L151: 0.9313867069 | M151: 0.07925842539 | N151: 150.0076093 | O151: 0.9177968372
A152: 1561.69 | B152: 28.3788 | C152: 234.265 | D152: 4256.7 | E152: 17616.8 | F152: 57.5579 | G152: 19178.5 | H152: 1652.74 | I152: 280 | J152: 0.5159781818 | K152: 0.07848792795 | L152: 0.931883943 | M152: 0.07848783642 | N152: 150.0073638 | O152: 0.918570753
A153: 1554.61 | B153: 28.4272 | C153: 233.204 | D153: 4263.96 | E153: 17737.1 | F153: 58.104 | G153: 19291.7 | H153: 1514.6 | I153: 280 | J153: 0.5168581818 | K153: 0.07813209899 | L153: 0.9382475072 | M153: 0.07813236038 | N153: 150.0080406 | O153: 0.9194156454
A154: 1538.6 | B154: 28.4739 | C154: 230.801 | D154: 4270.95 | E154: 17748.1 | F154: 58.6362 | G154: 19286.7 | H154: 1557.47 | I154: 280 | J154: 0.5177072727 | K154: 0.07732746316 | L154: 0.9388293792 | M154: 0.07732726243 | N154: 150.0071494 | O154: 0.9202248181
A155: 1522.61 | B155: 28.5216 | C155: 228.403 | D155: 4278.11 | E155: 17762.7 | F155: 59.1864 | G155: 19285.3 | H155: 1503.34 | I155: 280 | J155: 0.5185745455 | K155: 0.0765238325 | L155: 0.9396016821 | M155: 0.07652383968 | N155: 150.0075528 | O155: 0.9210481968
A156: 1507.33 | B156: 28.5673 | C156: 226.111 | D156: 4284.96 | E156: 17776.1 | F156: 59.7194 | G156: 19283.4 | H156: 1500.95 | I156: 280 | J156: 0.5194054545 | K156: 0.07575588525 | L156: 0.9403105081 | M156: 0.07575593102 | N156: 150.0076294 | O156: 0.9218328897
A157: 1491.69 | B157: 28.614 | C157: 223.765 | D157: 4291.97 | E157: 17788.5 | F157: 60.2705 | G157: 19280.2 | H157: 1495.54 | I157: 280 | J157: 0.5202545455 | K157: 0.074969845 | L157: 0.9409664366 | M157: 0.07496993028 | N157: 150.0077094 | O157: 0.9226309492
A158: 1476.09 | B158: 28.6602 | C158: 221.424 | D158: 4298.91 | E158: 17798.3 | F158: 60.822 | G158: 19274.4 | H158: 1564.82 | I158: 280 | J158: 0.5210945455 | K158: 0.07418581509 | L158: 0.9414848317 | M158: 0.07418560473 | N158: 150.0071134 | O158: 0.9234170316
A159: 1462.7 | B159: 28.7045 | C159: 219.416 | D159: 4305.55 | E159: 17825.5 | F159: 61.3559 | G159: 19288.2 | H159: 1552.43 | I159: 280 | J159: 0.5219 | K159: 0.07351285608 | L159: 0.9429236425 | M159: 0.07351284706 | N159: 150.0075203 | O159: 0.9241660704
A160: 1447.92 | B160: 28.7499 | C160: 217.199 | D160: 4312.35 | E160: 17839.4 | F160: 61.9086 | G160: 19287.3 | H160: 1552.45 | I160: 280 | J160: 0.5227254545 | K160: 0.072770038 | L160: 0.9436589172 | M160: 0.0727700663 | N160: 150.0075971 | O160: 0.924928917
A161: 1433.56 | B161: 28.7933 | C161: 215.045 | D161: 4318.87 | E161: 17849.2 | F161: 62.4438 | G161: 19282.8 | H161: 1555.54 | I161: 280 | J161: 0.5235145455 | K161: 0.07204832841 | L161: 0.9441773123 | M161: 0.07204839299 | N161: 150.0076732 | O161: 0.9256558708
A162: 1420.08 | B162: 28.8378 | C162: 213.022 | D162: 4325.53 | E162: 17873.4 | F162: 62.9972 | G162: 19293.5 | H162: 1545.83 | I162: 280 | J162: 0.5243236364 | K162: 0.07137084615 | L162: 0.9454574308 | M162: 0.07137060974 | N162: 150.0070419 | O162: 0.9263958602
A163: 1400.23 | B163: 28.8818 | C163: 210.045 | D163: 4332.14 | E163: 17814 | F163: 63.5513 | G163: 19214.3 | H163: 1612.99 | I163: 280 | J163: 0.5251236364 | K163: 0.07037321834 | L163: 0.9423153217 | M163: 0.07037319959 | N163: 150.0074988 | O163: 0.9271253649
A164: 1392.51 | B164: 28.9224 | C164: 208.887 | D164: 4338.23 | E164: 17893 | F164: 64.0679 | G164: 19285.5 | H164: 1551.15 | I164: 280 | J164: 0.5258618182 | K164: 0.06998522405 | L164: 0.946494221 | M164: 0.06998522479 | N164: 150.0075403 | O164: 0.9277950129
A165: 1379.33 | B165: 28.9656 | C165: 206.91 | D165: 4344.7 | E165: 17912.9 | F165: 64.6227 | G165: 19292.2 | H165: 1544.53 | I165: 280 | J165: 0.5266472727 | K165: 0.06932281929 | L165: 0.9475468804 | M165: 0.06932285332 | N165: 150.0076124 | O165: 0.9285033405
A166: 1363.99 | B166: 29.0069 | C166: 204.609 | D166: 4350.91 | E166: 17895.8 | F166: 65.1601 | G166: 19259.8 | H166: 1571.68 | I166: 280 | J166: 0.5273981818 | K166: 0.06855185654 | L166: 0.9466423338 | M166: 0.06855192932 | N166: 150.007698 | O166: 0.929179394
A167: 1350.64 | B167: 29.0492 | C167: 202.606 | D167: 4357.25 | E167: 17907.4 | F167: 65.7149 | G167: 19258 | H167: 1572.49 | I167: 280 | J167: 0.5281672727 | K167: 0.06788090787 | L167: 0.9472559444 | M167: 0.06788084684 | N167: 150.0074039 | O167: 0.9298661754
A168: 1339.88 | B168: 29.0898 | C168: 200.992 | D168: 4363.33 | E168: 17945 | F168: 66.2522 | G168: 19284.9 | H168: 1549.05 | I168: 280 | J168: 0.5289054545 | K168: 0.06734012826 | L168: 0.9492448888 | M168: 0.06734009441 | N168: 150.0074634 | O168: 0.9305217352
A169: 1324.58 | B169: 29.1313 | C169: 198.697 | D169: 4369.56 | E169: 17925.3 | F169: 66.8085 | G169: 19249.8 | H169: 1578.23 | I169: 280 | J169: 0.52966 | K169: 0.06657117584 | L169: 0.9482028089 | M169: 0.06657118064 | N169: 150.0075496 | O169: 0.9311902204
A170: 1312.28 | B170: 29.1724 | C170: 196.852 | D170: 4375.72 | E170: 17942.9 | F170: 67.3642 | G170: 19255.2 | H170: 1573 | I170: 280 | J170: 0.5304072727 | K170: 0.06595299841 | L170: 0.9491338041 | M170: 0.06595303428 | N170: 150.0076203 | O170: 0.9318479495
A171: 1300.36 | B171: 29.2117 | C171: 195.064 | D171: 4381.63 | E171: 17957.2 | F171: 67.9026 | G171: 19257.6 | H171: 1570.34 | I171: 280 | J171: 0.5311218182 | K171: 0.06535391914 | L171: 0.9498902378 | M171: 0.06535398512 | N171: 150.0076902 | O171: 0.9324753499
A172: 1288.18 | B172: 29.252 | C172: 193.237 | D172: 4387.68 | E172: 17971.4 | F172: 68.4593 | G172: 19259.6 | H172: 1567.97 | I172: 280 | J172: 0.5318545455 | K172: 0.06474177271 | L172: 0.9506413817 | M172: 0.06474186945 | N172: 150.0077629 | O172: 0.9331148447
A173: 1276.74 | B173: 29.2907 | C173: 191.52 | D173: 4393.47 | E173: 17987.5 | F173: 68.9985 | G173: 19264.3 | H173: 1563.42 | I173: 280 | J173: 0.5325581818 | K173: 0.06416681744 | L173: 0.9514930308 | M173: 0.06416660803 | N173: 150.0070492 | O173: 0.9337248705
A174: 1264.3 | B174: 29.3303 | C174: 189.654 | D174: 4399.41 | E174: 17993.1 | F174: 69.5561 | G174: 19257.4 | H174: 1568.69 | I174: 280 | J174: 0.5332781818 | K174: 0.06354160384 | L174: 0.9517892565 | M174: 0.06354142586 | N174: 150.0071186 | O174: 0.9343473158
A175: 1252.06 | B175: 29.3695 | C175: 187.819 | D175: 4405.29 | E175: 17998.7 | F175: 70.114 | G175: 19250.8 | H175: 1573.76 | I175: 280 | J175: 0.5339909091 | K175: 0.06292644191 | L175: 0.9520854823 | M175: 0.06292662988 | N175: 150.0079868 | O175: 0.9349604899
A176: 1242.92 | B176: 29.4045 | C176: 186.447 | D176: 4410.55 | E176: 18029.1 | F176: 70.618 | G176: 19272 | H176: 1555.08 | I176: 280 | J176: 0.5346272727 | K176: 0.0624670808 | L176: 0.953693565 | M176: 0.06246695681 | N176: 150.007241 | O176: 0.9355065011
A177: 1231.6 | B177: 29.4431 | C177: 184.749 | D177: 4416.33 | E177: 18043.4 | F177: 71.1769 | G177: 19275 | H177: 1551.95 | I177: 280 | J177: 0.5353290909 | K177: 0.06189815652 | L177: 0.9544499987 | M177: 0.06189806113 | N177: 150.0073076 | O177: 0.9361037613
A178: 1221.01 | B178: 29.48 | C178: 183.16 | D178: 4421.87 | E178: 18060.3 | F178: 71.7183 | G178: 19281.3 | H178: 1546.02 | I178: 280 | J178: 0.536 | K178: 0.06136592083 | L178: 0.9553439657 | M178: 0.06136568467 | N178: 150.0069614 | O178: 0.9366739086
A179: 1207.96 | B179: 29.5179 | C179: 181.203 | D179: 4427.55 | E179: 18044.1 | F179: 72.2782 | G179: 19252.1 | H179: 1570.38 | I179: 280 | J179: 0.5366890909 | K179: 0.06071004966 | L179: 0.9544870269 | M179: 0.06071001397 | N179: 150.0074506 | O179: 0.9372555456
A180: 1197.79 | B180: 29.5541 | C180: 179.677 | D180: 4432.98 | E180: 18062.3 | F180: 72.8195 | G180: 19260.1 | H180: 1562.96 | I180: 280 | J180: 0.5373472727 | K180: 0.06019892246 | L180: 0.9554497606 | M180: 0.06019874495 | N180: 150.0070964 | O180: 0.9378097402
A181: 1187.22 | B181: 29.5912 | C181: 178.091 | D181: 4438.55 | E181: 18078.1 | F181: 73.3795 | G181: 19265.3 | H181: 1557.96 | I181: 280 | J181: 0.5380218182 | K181: 0.05966769194 | L181: 0.9562855405 | M181: 0.0596673736 | N181: 150.0067384 | O181: 0.9383752774
A182: 1177.11 | B182: 29.6281 | C182: 176.576 | D182: 4444.08 | E182: 18098.7 | F182: 73.94 | G182: 19275.8 | H182: 1548.42 | I182: 280 | J182: 0.5386927273 | K182: 0.05915958024 | L182: 0.9573752281 | M182: 0.05915979 | N182: 150.0080706 | O182: 0.9389333055
A183: 1165.94 | B183: 29.6634 | C183: 174.9 | D183: 4449.37 | E183: 18095 | F183: 74.483 | G183: 19261 | H183: 1560.55 | I183: 280 | J183: 0.5393345455 | K183: 0.05859819472 | L183: 0.9571795075 | M183: 0.05859826517 | N183: 150.0077191 | O183: 0.9394660904
A184: 1155.78 | B184: 29.6995 | C184: 173.376 | D184: 4454.79 | E184: 18110.1 | F184: 75.044 | G184: 19265.9 | H184: 1555.78 | I184: 280 | J184: 0.5399909091 | K184: 0.05808757011 | L184: 0.9579782591 | M184: 0.05808766622 | N184: 150.0077869 | O184: 0.9400089692
A185: 1145.18 | B185: 29.7342 | C185: 171.785 | D185: 4460 | E185: 18110.5 | F185: 75.5873 | G185: 19255.7 | H185: 1564.04 | I185: 280 | J185: 0.5406218182 | K185: 0.05755483184 | L185: 0.9579994181 | M185: 0.05755461968 | N185: 150.0069858 | O185: 0.9405276781
A186: 1135.57 | B186: 29.7697 | C186: 170.344 | D186: 4465.32 | E186: 18129.8 | F186: 76.1488 | G186: 19265.3 | H186: 1555.22 | I186: 280 | J186: 0.5412672727 | K186: 0.05707184931 | L186: 0.9590203391 | M186: 0.05707182894 | N186: 150.0074852 | O186: 0.9410564137
A187: 1124.95 | B187: 29.8049 | C187: 168.751 | D187: 4470.6 | E187: 18130.8 | F187: 76.7109 | G187: 19255.8 | H187: 1562.92 | I187: 280 | J187: 0.5419072727 | K187: 0.05653810586 | L187: 0.9590732365 | M187: 0.05653811233 | N187: 150.0075559 | O187: 0.9415784895
A188: 1116.6 | B188: 29.8364 | C188: 167.499 | D188: 4475.33 | E188: 18149.6 | F188: 77.2186 | G188: 19266.2 | H188: 1553.46 | I188: 280 | J188: 0.54248 | K188: 0.05611844883 | L188: 0.9600677087 | M188: 0.0561186439 | N188: 150.0080602 | O188: 0.9420435789
A189: 1095.97 | B189: 29.871 | C189: 164.404 | D189: 4480.52 | E189: 17981.8 | F189: 77.7813 | G189: 19077.8 | H189: 1717.79 | I189: 280 | J189: 0.5431090909 | K189: 0.05508161952 | L189: 0.9511915152 | M189: 0.05508169918 | N189: 150.0077557 | O189: 0.9425525101
A190: 1096.49 | B190: 29.9039 | C190: 164.481 | D190: 4485.45 | E190: 18151.6 | F190: 78.3208 | G190: 19248.1 | H190: 1568.11 | I190: 280 | J190: 0.5437072727 | K190: 0.05510775385 | L190: 0.9601735037 | M190: 0.05510749716 | N190: 150.00684 | O190: 0.9430338283
A191: 1086.71 | B191: 29.9379 | C191: 163.015 | D191: 4490.55 | E191: 18157.1 | F191: 78.8835 | G191: 19243.8 | H191: 1571.26 | I191: 280 | J191: 0.5443254545 | K191: 0.05461622741 | L191: 0.9604644397 | M191: 0.05461633046 | N191: 150.0078218 | O191: 0.9435293739
A192: 1078.45 | B192: 29.9705 | C192: 161.776 | D192: 4495.44 | E192: 18180.6 | F192: 79.4283 | G192: 19259 | H192: 1557.69 | I192: 280 | J192: 0.5449181818 | K192: 0.05420109362 | L192: 0.96170753 | M192: 0.05420121753 | N192: 150.0078817 | O192: 0.9440029493
A193: 1069.12 | B193: 30.0039 | C193: 160.376 | D193: 4500.46 | E193: 18189.5 | F193: 79.9919 | G193: 19258.6 | H193: 1557.58 | I193: 280 | J193: 0.5455254545 | K193: 0.05373218342 | L193: 0.9621783173 | M193: 0.05373216338 | N193: 150.0074828 | O193: 0.9444861574
A194: 1057.85 | B194: 30.0371 | C194: 158.686 | D194: 4505.43 | E194: 18163 | F194: 80.5558 | G194: 19220.8 | H194: 1589.85 | I194: 280 | J194: 0.5461290909 | K194: 0.05316577207 | L194: 0.9607765347 | M194: 0.05316594801 | N194: 150.0080352 | O194: 0.9449634121
A195: 1049.45 | B195: 30.0688 | C195: 157.426 | D195: 4510.19 | E195: 18177.7 | F195: 81.1007 | G195: 19227.2 | H195: 1583.83 | I195: 280 | J195: 0.5467054545 | K195: 0.05274360211 | L195: 0.9615541273 | M195: 0.05274379927 | N195: 150.0080995 | O195: 0.9454183277
A196: 1040.14 | B196: 30.1014 | C196: 156.029 | D196: 4515.07 | E196: 18180 | F196: 81.6643 | G196: 19220.2 | H196: 1589.5 | I196: 280 | J196: 0.5472981818 | K196: 0.05227569708 | L196: 0.9616757915 | M196: 0.05227575024 | N196: 150.0076913 | O196: 0.9458828083
A197: 1031.85 | B197: 30.1326 | C197: 154.785 | D197: 4519.75 | E197: 18192.7 | F197: 82.2097 | G197: 19224.5 | H197: 1585.25 | I197: 280 | J197: 0.5478654545 | K197: 0.05185905555 | L197: 0.9623475892 | M197: 0.05185896212 | N197: 150.0072685 | O197: 0.946326442
A198: 1023.04 | B198: 30.1646 | C198: 153.463 | D198: 4524.55 | E198: 18199.5 | F198: 82.7738 | G198: 19222.6 | H198: 1586.52 | I198: 280 | J198: =B198/$B$2 -> 0.5484472727 | K198: 0.05141627968 | L198: 0.9627072919 | M198: 0.05141604098 | N198: 150.0068424 | O198: 0.9467791457
A199: 1015.92 | B199: 30.1963 | C199: 152.395 | D199: 4529.3 | E199: 18234.6 | F199: 83.338 | G199: 19250.5 | H199: 1561.76 | I199: 280 | J199: 0.5490236364 | K199: =A199/$A$6 -> 0.05105844038 | L199: =E199/$L$3 -> 0.9645639927 | M199: =C199/$N$3 -> 0.05105821967 | N199: =C199*1000/A199 -> 150.0068903 | O199: =E199/(E199+A199) -> 0.9472263606
A200: 993.687 | B200: 30.2247 | C200: 149.06 | D200: 4533.57 | E200: 17979.3 | F200: 83.8486 | G200: 18972.9 | H200: 1806.66 | I200: 280 | J200: 0.54954 | K200: 0.04994104698 | L200: 0.9510592716 | M200: 0.04994086567 | N200: 150.0069942 | O200: 0.9476262225
... 490 more rows

Sheet VR 75%
A1: Case: | B1: VRR = 75% (2.5)
A2: N | B2: 55 | C2: [MSm3]
K3: qw_max [Sm3/d] | L3: =MAX(E6:E690) -> 5889.3 | M3: qg_max [1000 Sm3/d] | N3: =MAX(C6:C691) -> 3867.55
A4: Average Oil Rate | B4: Cum Oil Production | C4: Average Gas Rate | D4: Cum Gas Production | E4: Average Water Rate | F4: Cum Water Production | G4: Average Liquid Rate | H4: Average Gaslift Rate | I4: Reservoir Pressure | J4: RF | K4: qomax_n | L4: qwmax_n | M4: qgmax_n | N4: GOR | O4: WC
A5: sm3/d | B5: M sm3 | C5: 1000 sm3/d | D5: M sm3 | E5: sm3/d | F5: M sm3 | G5: sm3/d | H5: 1000 sm3/d | I5: bara
A6: 19897.2 | B6: 0 | C6: 2984.73 | D6: 0 | E6: 0 | F6: 0 | G6: 19897.2 | H6: 99.6948 | I6: 280 | J6: =B6/$B$2 -> 0 | K6: =A6/$A$6 -> 1 | L6: =E6/$L$3 -> 0 | M6: =C6/$N$3 -> 0.7717366291 | N6: =C6*1000/A6 -> 150.0075387 | O6: =E6/(E6+A6) -> 0
A7: 18823.8 | B7: 0.616863 | C7: 2823.71 | D7: 92.5267 | E7: 52.9619 | F7: 0 | G7: 18876.8 | H7: 186.572 | I7: 270.395 | J7: 0.01121569091 | K7: =A7/$A$6 -> 0.9460527109 | L7: =E7/$L$3 -> 0.008992902382 | M7: =C7/$N$3 -> 0.7301030368 | N7: =C7*1000/A7 -> 150.0074374 | O7: =E7/(E7+A7) -> 0.00280566658
A8: 17906.4 | B8: 1.14397 | C8: 2686.09 | D8: 171.591 | E8: 128.668 | F8: 0.00148305 | G8: 18035 | H8: 179.296 | I8: 262.452 | J8: 0.02079945455 | K8: 0.899945721 | L8: 0.0218477578 | M8: 0.6945197864 | N8: 150.00726 | O8: 0.007134322976
A9: 17140.2 | B9: 1.69911 | C9: 2586.95 | D9: 254.859 | E9: 227.095 | F9: 0.00547208 | G9: 17367.3 | H9: 172.457 | I9: 255.94 | J9: 0.03089290909 | K9: 0.8614377902 | L9: 0.03856060992 | M9: 0.6688859873 | N9: 150.9288106 | O9: 0.01307601443
A10: 16624.4 | B10: 2.21336 | C10: 2653.47 | D10: 332.468 | E10: 338.308 | F10: 0.0122855 | G10: 16962.7 | H10: 169.138 | I10: 252.72 | J10: 0.04024290909 | K10: 0.8355145448 | L10: 0.05744451802 | M10: 0.6860855063 | N10: 159.6129785 | O10: 0.01994422117
A11: 16065.8 | B11: 2.72876 | C11: 2790.61 | D11: 414.726 | E11: 467.506 | F11: 0.0227738 | G11: 16533.3 | H11: 165.839 | I11: 249.519 | J11: 0.04961381818 | K11: 0.8074402428 | L11: 0.07938226954 | M11: 0.7215446471 | N11: 173.6987887 | O11: 0.02827661933
A12: 15543.2 | B12: 3.21077 | C12: 2959.23 | D12: 498.444 | E12: 607.105 | F12: 0.0368002 | G12: 16150.3 | H12: 161.588 | I12: 246.497 | J12: 0.05837763636 | K12: 0.7811752407 | L12: 0.1030861053 | M12: 0.7651433078 | N12: 190.3874363 | O12: 0.03759093095
A13: 15084.4 | B13: 3.69265 | C13: 3163.76 | D13: 590.18 | E13: 770.134 | F13: 0.0556219 | G13: 15854.6 | H13: 80.4917 | I13: 243.42 | J13: 0.06713909091 | K13: 0.7581167199 | L13: 0.1307683426 | M13: 0.8180269163 | N13: 209.737212 | O13: 0.04857500069
A14: 14680.5 | B14: 4.1603 | C14: 3383.9 | D14: 688.257 | E14: 954.579 | F14: 0.079498 | G14: 15635.1 | H14: 6.33206 | I14: 240.356 | J14: 0.07564181818 | K14: 0.7378173813 | L14: 0.1620870052 | M14: 0.8749466717 | N14: 230.5030483 | O14: 0.06105367296
A15: 13986.8 | B15: 4.60075 | C15: 3516.22 | D15: 789.774 | E15: 1128.34 | F15: 0.108138 | G15: 15115.2 | H15: 6.39812 | I15: 237.383 | J15: 0.08365 | K15: 0.7029531793 | L15: 0.1915915304 | M15: 0.9091595454 | N15: 251.3956016 | O15: 0.07464965591
A16: 13294.7 | B16: 5.03438 | C16: 3627.44 | D16: 898.777 | E16: 1313.96 | F16: 0.143119 | G16: 14608.6 | H16: 6.39066 | I16: 234.365 | J16: 0.09153418182 | K16: 0.6681693907 | L16: 0.2231097074 | M16: 0.937916769 | N16: 272.8485788 | O16: 0.08994390998
A17: 12682.9 | B17: 5.43325 | C17: 3716.11 | D17: 1007.6 | E17: 1501.29 | F17: 0.182541 | G17: 14184.2 | H17: 6.37028 | I17: 231.497 | J17: 0.09878636364 | K17: 0.6374213457 | L17: 0.2549182416 | M17: 0.960843428 | N17: 293.0016006 | O17: 0.1058424908
A18: 12096.2 | B18: 5.82645 | C18: 3785.94 | D18: 1122.8 | E18: 1701.45 | F18: 0.229085 | G18: 13797.6 | H18: 6.35252 | I18: 228.585 | J18: 0.1059354545 | K18: 0.6079347848 | L18: 0.2889053028 | M18: 0.9788987861 | N18: 312.9858964 | O18: 0.1233144775
A19: 11554.6 | B19: 6.20147 | C19: 3834.75 | D19: 1240.16 | E19: 1907.98 | F19: 0.281834 | G19: 13462.5 | H19: 6.32675 | I19: 225.724 | J19: 0.112754 | K19: 0.5807148745 | L19: 0.3239739867 | M19: 0.9915191788 | N19: 331.8808094 | O19: 0.1417246917
A20: 11080 | B20: 6.53658 | C20: 3860.26 | D20: 1351.37 | E20: 2105.3 | F20: 0.33717 | G20: 13185.3 | H20: 6.30017 | I20: 223.094 | J20: 0.1188469091 | K20: 0.5568622721 | L20: 0.3574788175 | M20: 0.9981150858 | N20: 348.398917 | O20: 0.1596702388
A21: 10600.7 | B21: 6.88008 | C21: 3867.55 | D21: 1471.04 | E21: 2319.07 | F21: 0.402439 | G21: 12919.7 | H21: 6.34293 | I21: 220.332 | J21: 0.1250923636 | K21: 0.5327734556 | L21: 0.3937768495 | M21: 1 | N21: 364.8391144 | O21: 0.1794977774
A22: 10171.2 | B22: 7.19813 | C22: 3859.26 | D22: 1587.07 | E22: 2529.47 | F22: 0.472017 | G22: 12700.6 | H22: 6.23 | I22: 217.71 | J22: 0.1308750909 | K22: 0.5111875038 | L22: 0.4295026574 | M22: 0.9978565242 | N22: 379.4301557 | O22: 0.1991603593
A23: 9757.57 | B23: 7.51346 | C23: 3836.62 | D23: 1706.7 | E23: 2749.6 | F23: 0.550436 | G23: 12507.2 | H23: 6.23 | I23: 215.052 | J23: 0.1366083636 | K23: 0.4903991516 | L23: 0.466880614 | M23: 0.992002689 | N23: 393.1942072 | O23: 0.2198418987
A24: 9372.32 | B24: 7.80621 | C24: 3797.84 | D24: 1821.8 | E24: 2960.75 | F24: 0.632931 | G24: 12333.1 | H24: 6.23 | I24: 212.531 | J24: 0.1419310909 | K24: 0.4710371309 | L24: 0.5027337714 | M24: 0.9819756694 | N24: 405.2187719 | O24: 0.2400659365
A25: 8997.29 | B25: 8.09678 | C25: 3746.22 | D25: 1939.53 | E25: 3178.31 | F25: 0.724722 | G25: 12175.6 | H25: 6.23 | I25: 209.98 | J25: 0.1472141818 | K25: 0.4521887502 | L25: 0.5396753434 | M25: 0.9686287184 | N25: 416.3720409 | O25: 0.2610392917
A26: 8644.64 | B26: 8.37571 | C26: 3684.97 | D26: 2055.67 | E26: 3394.5 | F26: 0.823257 | G26: 12039.1 | H26: 6.23 | I26: 207.485 | J26: 0.1522856364 | K26: 0.4344651509 | L26: 0.5763842902 | M26: 0.9527918191 | N26: 426.2722334 | O26: 0.2819553556
A27: 8295.79 | B27: 8.63508 | C27: 3606.29 | D27: 2166.22 | E27: 3589.75 | F27: 0.9251 | G27: 11885.5 | H27: 6.23 | I27: 205.125 | J27: 0.1570014545 | K27: 0.4169325332 | L27: 0.6095376361 | M27: 0.9324481907 | N27: 434.7132702 | O27: 0.3020266643
A28: 7941.54 | B28: 8.89227 | C28: 3512.84 | D28: 2278.01 | E28: 3779.35 | F28: 1.03639 | G28: 11720.9 | H28: 6.23 | I28: 202.747 | J28: 0.1616776364 | K28: 0.3991285206 | L28: 0.641731615 | M28: 0.9082856072 | N28: 442.3373804 | O28: 0.3224456505
A29: 7615.72 | B29: 9.13053 | C29: 3417.2 | D29: 2383.4 | E29: 3954.14 | F29: 1.14978 | G29: 11569.9 | H29: 6.23 | I29: 200.511 | J29: 0.1660096364 | K29: 0.3827533522 | L29: 0.6714108638 | M29: 0.8835567737 | N29: 448.7034712 | O29: 0.3417621302
A30: 7293.29 | B30: 9.36664 | C30: 3313.69 | D30: 2489.33 | E30: 4124.14 | F30: 1.27237 | G30: 11417.4 | H30: 6.23 | I30: 198.265 | J30: 0.1703025455 | K30: 0.3665485596 | L30: 0.7002767731 | M30: 0.8567930602 | N30: 454.3477635 | O30: 0.3612143889
A31: 6993.47 | B31: 9.59275 | C31: 3210.89 | D31: 2592.05 | E31: 4287.71 | F31: 1.40023 | G31: 11281.2 | H31: 6.23 | I31: 196.085 | J31: 0.1744136364 | K31: 0.3514801078 | L31: 0.7280508719 | M31: 0.8302129255 | N31: 459.1268712 | O31: 0.380076375
A32: 6740.51 | B32: 9.78858 | C32: 3119.27 | D32: 2681.96 | E32: 4429.58 | F32: 1.52029 | G32: 11170.1 | H32: 6.23 | I32: 194.174 | J32: 0.1779741818 | K32: 0.3387667612 | L32: 0.7521403223 | M32: 0.8065235097 | N32: 462.7646869 | O32: 0.3965572345
A33: 6477.33 | B33: 9.99755 | C33: 3019.41 | D33: 2778.66 | E33: 4580.61 | F33: 1.65762 | G33: 11057.9 | H33: 6.25071 | I33: 192.113 | J33: 0.1817736364 | K33: 0.3255397744 | L33: 0.7777851358 | M33: 0.7807035462 | N33: 466.1504046 | O33: 0.4142371907
A34: 6238.61 | B34: 10.1919 | C34: 2924.9 | D34: 2869.24 | E34: 4720.39 | F34: 1.79505 | G34: 10959 | H34: 6.26722 | I34: 190.175 | J34: 0.1853072727 | K34: 0.3135421064 | L34: 0.8015197052 | M34: 0.7562668873 | N34: 468.8384111 | O34: 0.4307318186
A35: 5984.7 | B35: 10.3853 | C35: 2819.32 | D35: 2959.91 | E35: 4840.69 | F35: 1.94139 | G35: 10825.4 | H35: 54.561 | I35: 188.225 | J35: 0.1888236364 | K35: 0.3007810144 | L35: 0.8219465811 | M35: 0.7289679513 | N35: 471.0879409 | O35: 0.4471607951
A36: 5760.75 | B36: 10.5649 | C36: 2723.73 | D36: 3044.49 | E36: 4954.83 | F36: 2.08663 | G36: 10715.6 | H36: 53.6948 | I36: 186.398 | J36: 0.1920890909 | K36: 0.2895256619 | L36: 0.8413274922 | M36: 0.7042520459 | N36: 472.8082281 | O36: 0.4623949427
A37: 5526.3 | B37: 10.7435 | C37: 2620.43 | D37: 3128.93 | E37: 5050.38 | F37: 2.24024 | G37: 10576.7 | H37: 104.421 | I37: 184.562 | J37: 0.1953363636 | K37: 0.2777425969 | L37: 0.8575518313 | M37: 0.6775426303 | N37: 474.1744024 | O37: 0.4775014466
A38: 5324.44 | B38: 10.9148 | C38: 2530.06 | D38: 3210.16 | E38: 5155.26 | F38: 2.39681 | G38: 10479.7 | H38: 103.487 | I38: 182.785 | J38: 0.1984509091 | K38: 0.2675974509 | L38: 0.8753603994 | M38: 0.6541764166 | N38: 475.1786103 | O38: 0.4919282041
A39: 5140.79 | B39: 11.0745 | C39: 2446.28 | D39: 3286.06 | E39: 5250.97 | F39: 2.55148 | G39: 10391.8 | H39: 101.808 | I39: 181.113 | J39: 0.2013545455 | K39: 0.258367509 | L39: 0.8916119063 | M39: 0.6325141239 | N39: 475.8568236 | O39: 0.5053013157
A40: 4961.61 | B40: 11.2339 | C40: 2363.19 | D40: 3361.9 | E40: 5344.01 | F40: 2.71428 | G40: 10305.6 | H40: 100.12 | I40: 179.431 | J40: 0.2042527273 | K40: 0.2493622218 | L40: 0.9074100487 | M40: 0.6110302388 | N40: 476.294993 | O40: 0.5185529837
A41: 4773.79 | B41: 11.3828 | C41: 2274.73 | D41: 3432.79 | E41: 5401.26 | F41: 2.87461 | G41: 10175.1 | H41: 195.938 | I41: 177.847 | J41: 0.20696 | K41: 0.2399227027 | L41: 0.9171310682 | M41: 0.5881578777 | N41: 476.5039937 | O41: 0.5308337551
A42: 4616.04 | B42: 11.5308 | C42: 2199.65 | D42: 3503.31 | E42: 5483.35 | F42: 3.04206 | G42: 10099.4 | H42: 193.07 | I42: 176.26 | J42: 0.2096509091 | K42: 0.2319944515 | L42: 0.9310699064 | M42: 0.5687450712 | N42: 476.523167 | O42: 0.5429387319
A43: 4466.45 | B43: 11.6739 | C43: 2127.73 | D43: 3571.5 | E43: 5560.05 | F43: 3.21206 | G43: 10026.5 | H43: 190.983 | I43: 174.712 | J43: 0.2122527273 | K43: 0.2244763082 | L43: 0.9440935255 | M43: 0.5501493193 | N43: 476.3805707 | O43: 0.554535481
A44: 4328.49 | B44: 11.7989 | C44: 2060.98 | D44: 3631.07 | E44: 5612.33 | F44: 3.36775 | G44: 9940.82 | H44: 188.167 | I44: 173.35 | J44: 0.2145254545 | K44: 0.2175426693 | L44: 0.9529706417 | M44: 0.5328903311 | N44: 476.1429505 | O44: 0.5645741498
A45: 4182.29 | B45: 11.9331 | C45: 1989.74 | D45: 3694.96 | E45: 5663.96 | F45: 3.54175 | G45: 9846.25 | H45: 185.08 | I45: 171.877 | J45: 0.2169654545 | K45: 0.2101949018 | L45: 0.9617373881 | M45: 0.5144704012 | N45: 475.7537139 | O45: 0.5752403199
A46: 4048.23 | B46: 12.0586 | C46: 1924.09 | D46: 3754.66 | E46: 5709.1 | F46: 3.71168 | G46: 9757.33 | H46: 182.869 | I46: 170.491 | J46: 0.2192472727 | K46: 0.2034572704 | L46: 0.9694021361 | M46: 0.4974958307 | N46: 475.2916707 | O46: 0.5851088361
A47: 3916.79 | B47: 12.1841 | C47: 1859.42 | D47: 3814.3 | E47: 5751.27 | F47: 3.88868 | G47: 9668.06 | H47: 179.865 | I47: 169.094 | J47: 0.2215290909 | K47: 0.1968513158 | L47: 0.9765625796 | M47: 0.4807746506 | N47: 474.730583 | O47: 0.5948732217
A48: 3795.86 | B48: 12.3016 | C48: 1799.73 | D48: 3870.09 | E48: 5787.58 | F48: 4.06123 | G48: 9583.44 | H48: 177.005 | I48: 167.777 | J48: 0.2236654545 | K48: 0.1907735762 | L48: 0.9827279982 | M48: 0.4653411074 | N48: 474.1297097 | O48: 0.6039146695
A49: 3676.29 | B49: 12.4193 | C49: 1740.56 | D49: 3925.88 | E49: 5819.95 | F49: 4.24066 | G49: 9496.24 | H49: 182.483 | I49: 166.449 | J49: 0.2258054545 | K49: 0.1847641879 | L49: 0.988224407 | M49: 0.4500420163 | N49: 473.4555761 | O49: 0.6128688828
A50: 3562.15 | B50: 12.5333 | C50: 1683.98 | D50: 3979.84 | E50: 5847.61 | F50: 4.42109 | G50: 9409.75 | H50: 180.981 | I50: 165.154 | J50: 0.2278781818 | K50: 0.1790277024 | L50: 0.9929210602 | M50: 0.4354125997 | N50: 472.7425852 | O50: 0.6214409294
A51: 3439.8 | B51: 12.6402 | C51: 1623.68 | D51: 4030.35 | E51: 5841.61 | F51: 4.59653 | G51: 9281.41 | H51: 335.195 | I51: 163.931 | J51: 0.2298218182 | K51: 0.172878596 | L51: 0.9919022634 | M51: 0.4198213339 | N51: 472.0274435 | O51: 0.6293882072
A52: 3339.08 | B52: 12.7468 | C52: 1573.6 | D52: 4080.69 | E52: 5865.25 | F52: 4.77764 | G52: 9204.33 | H52: 330.795 | I52: 162.703 | J52: 0.23176 | K52: 0.1678165772 | L52: 0.9959163228 | M52: 0.4068725679 | N52: 471.2675348 | O52: 0.6372272615
A53: 3242.23 | B53: 12.847 | C53: 1525.53 | D53: 4127.9 | E53: 5878.17 | F53: 4.95361 | G53: 9120.4 | H53: 332.896 | I53: 161.543 | J53: 0.2335818182 | K53: 0.1629490582 | L53: 0.9981101319 | M53: 0.3944435107 | N53: 470.5187479 | O53: 0.6445079163
A54: 3144.8 | B54: 12.9475 | C54: 1477.23 | D54: 4175.19 | E54: 5884.98 | F54: 5.13585 | G54: 9029.78 | H54: 328.923 | I54: 160.371 | J54: 0.2354090909 | K54: 0.1580523893 | L54: 0.9992664663 | M54: 0.3819549844 | N54: 469.7373442 | O54: 0.651730164
A55: 3050.12 | B55: 13.045 | C55: 1430.35 | D55: 4220.98 | E55: 5885.49 | F55: 5.3183 | G55: 8935.6 | H55: 378.127 | I55: 159.227 | J55: 0.2371818182 | K55: 0.1532939308 | L55: 0.999353064 | M55: 0.3698336156 | N55: 468.9487627 | O55: 0.6586556486
A56: 2971.37 | B56: 13.1304 | C56: 1391.36 | D56: 4261.03 | E56: 5889.3 | F56: 5.4831 | G56: 8860.68 | H56: 321.484 | I56: 158.219 | J56: 0.2387345455 | K56: 0.1493360875 | L56: 1 | M56: 0.359752298 | N56: 468.2553839 | O56: 0.6646562845
A57: 2882.93 | B57: 13.2225 | C57: 1347.69 | D57: 4304.16 | E57: 5881.33 | F57: 5.66569 | G57: 8764.26 | H57: 317.882 | I57: 157.126 | J57: 0.2404090909 | K57: 0.144891241 | L57: 0.9986466982 | M57: 0.3484609119 | N57: 467.4723285 | O57: 0.6710583666
A58: 2798.81 | B58: 13.309 | C58: 1306.29 | D58: 4344.6 | E58: 5866.34 | F58: 5.84214 | G58: 8665.15 | H58: 313.852 | I58: 156.094 | J58: 0.2419818182 | K58: 0.1406635104 | L58: 0.9961014042 | M58: 0.3377564608 | N58: 466.7305033 | O58: 0.6770038603
A59: 2717.22 | B59: 13.3958 | C59: 1266.14 | D59: 4385.09 | E59: 5851.82 | F59: 6.02401 | G59: 8569.04 | H59: 349.771 | I59: 155.052 | J59: 0.24356 | K59: 0.1365629335 | L59: 0.993635916 | M59: 0.3273752117 | N59: 465.9688947 | O59: 0.6829026355
A60: 2641.83 | B60: 13.4773 | C60: 1229.11 | D60: 4423.07 | E60: 5836.02 | F60: 6.19958 | G60: 8477.85 | H60: 345.417 | I60: 154.068 | J60: 0.2450418182 | K60: 0.1327739581 | L60: 0.9909530844 | M60: 0.3178006748 | N60: 465.2494672 | O60: 0.6883844371
A61: 2567.43 | B61: 13.5592 | C61: 1192.61 | D61: 4461.18 | E61: 5818.3 | F61: 6.38051 | G61: 8385.73 | H61: 340.901 | I61: 153.074 | J61: 0.2465309091 | K61: 0.1290347386 | L61: 0.9879442379 | M61: 0.3083631757 | N61: 464.5150988 | O61: 0.6938334528
A62: 2494.62 | B62: 13.6388 | C62: 1157 | D62: 4498.15 | E62: 5795.16 | F62: 6.56089 | G62: 8289.78 | H62: 354.724 | I62: 152.102 | J62: 0.2479781818 | K62: 0.1253754297 | L62: 0.9840150782 | M62: 0.2991557963 | N62: 463.7980935 | O62: 0.6990728343
A63: 2429.19 | B63: 13.7137 | C63: 1125.01 | D63: 4532.86 | E63: 5776.08 | F63: 6.73476 | G63: 8205.27 | H63: 350.18 | I63: 151.183 | J63: 0.24934 | K63: 0.1220870273 | L63: 0.9807753044 | M63: 0.29088441 | N63: 463.121452 | O63: 0.7039475849
A64: 2361.9 | B64: 13.789 | C64: 1092.23 | D64: 4567.73 | E64: 5749.11 | F64: 6.91383 | G64: 8111.01 | H64: 386.42 | I64: 150.254 | J64: 0.2507090909 | K64: 0.1187051444 | L64: 0.9761958127 | M64: 0.2824087601 | N64: 462.437021 | O64: 0.7088032193
A65: 2299.53 | B65: 13.8598 | C65: 1061.91 | D65: 4600.5 | E65: 5721.86 | F65: 7.08632 | G65: 8021.39 | H65: 480.123 | I65: 149.375 | J65: 0.2519963636 | K65: 0.1155705325 | L65: 0.9715687773 | M65: 0.2745691717 | N65: 461.7943667 | O65: 0.7133252466
A66: 2242.56 | B66: 13.9311 | C66: 1034.15 | D66: 4633.42 | E66: 5704.99 | F66: 7.26371 | G66: 7947.55 | H66: 565.524 | I66: 148.487 | J66: 0.2532927273 | K66: 0.1127073156 | L66: 0.9687042603 | M66: 0.2673915011 | N66: 461.1470819 | O66: 0.7178300231
A67: 2186.03 | B67: 14.0007 | C67: 1006.7 | D67: 4665.48 | E67: 5682.47 | F67: 7.44058 | G67: 7868.5 | H67: 651.039 | I67: 147.616 | J67: 0.2545581818 | K67: 0.1098662123 | L67: 0.9648803763 | M67: 0.2602939846 | N67: 460.5151805 | O67: 0.7221795768
A68: 2138.43 | B68: 14.0641 | C68: 983.555 | D68: 4694.67 | E68: 5669.13 | F68: 7.60539 | G68: 7807.56 | H68: 643.639 | I68: 146.818 | J68: 0.2557109091 | K68: 0.1074739159 | L68: 0.9626152514 | M68: 0.2543095758 | N68: 459.9425747 | O68: 0.7261077725
A69: 2089.5 | B69: 14.1303 | C69: 959.797 | D69: 4725.16 | E69: 5654.49 | F69: 7.78114 | G69: 7743.99 | H69: 635.079 | I69: 145.979 | J69: 0.2569145455 | K69: 0.1050147759 | L69: 0.9601293872 | M69: 0.2481666688 | N69: 459.342905 | O69: 0.7301778541
A70: 2027.33 | B70: 14.193 | C70: 930.097 | D70: 4753.96 | E70: 5593.92 | F70: 7.95079 | G70: 7621.26 | H70: 702.93 | I70: 145.182 | J70: =B70/$B$2 -> 0.2580545455 | K70: 0.1018902157 | L70: 0.9498446335 | M70: 0.2404873887 | N70: 458.7792811 | O70: 0.7339898311
A71: 1982.72 | B71: 14.2559 | C71: 908.51 | D71: 4782.79 | E71: 5578.46 | F71: 8.12422 | G71: 7561.18 | H71: 694.301 | I71: 144.38 | J71: 0.2591981818 | K71: =A71/$A$6 -> 0.09964819171 | L71: =E71/$L$3 -> 0.9472195337 | M71: =C71/$N$3 -> 0.2349058189 | N71: =C71*1000/A71 -> 458.2139687 | O71: =E71/(E71+A71) -> 0.7377763788
A72: 1940.75 | B72: 14.3154 | C72: 888.255 | D72: 4810.04 | E72: 5562.01 | F72: 8.29159 | G72: 7502.76 | H72: 687.46 | I72: 143.617 | J72: 0.26028 | K72: 0.09753884969 | L72: 0.9444263325 | M72: 0.2296686533 | N72: 457.6864614 | O72: 0.7413285244
A73: 1899.23 | B73: 14.3755 | C73: 868.237 | D73: 4837.58 | E73: 5545.49 | F73: 8.46402 | G73: 7444.72 | H73: 678.46 | I73: 142.841 | J73: 0.2613727273 | K73: 0.09545212392 | L73: 0.9416212453 | M73: 0.2244927667 | N73: 457.152109 | O73: 0.7448889952
A74: 1858.87 | B74: 14.4344 | C74: 848.819 | D74: 4864.5 | E74: 5527.61 | F74: 8.63595 | G74: 7386.48 | H74: 670.825 | I74: 142.079 | J74: 0.2624436364 | K74: 0.09342369781 | L74: 0.9385852308 | M74: 0.2194720172 | N74: 456.6317171 | O74: 0.7483415646
A75: 1826.77 | B75: 14.4902 | C75: 833.273 | D75: 4889.96 | E75: 5526.89 | F75: 8.80179 | G75: 7353.66 | H75: 632.547 | I75: 141.354 | J75: 0.2634581818 | K75: 0.09181040548 | L75: 0.9384629752 | M75: 0.2154524182 | N75: 456.1455465 | O75: 0.7515835652
A76: 1787.45 | B76: 14.5468 | C76: 814.453 | D76: 4915.79 | E76: 5503.72 | F76: 8.97313 | G76: 7291.17 | H76: 632.017 | I76: 140.615 | J76: 0.2644872727 | K76: 0.08983424803 | L76: 0.9345287216 | M76: 0.2105862885 | N76: 455.6507874 | O76: 0.7548473016
A77: 1750.6 | B77: 14.6005 | C77: 796.853 | D77: 4940.23 | E77: 5480.64 | F77: 9.13826 | G77: 7231.24 | H77: 632.123 | I77: 139.911 | J77: 0.2654636364 | K77: 0.08798222866 | L77: 0.9306097499 | M77: 0.2060356039 | N77: 455.1885068 | O77: 0.7579115062
A78: 1713.78 | B78: 14.6547 | C78: 779.293 | D78: 4964.93 | E78: 5456.44 | F78: 9.30817 | G78: 7170.22 | H78: 632.344 | I78: 139.197 | J78: 0.2664490909 | K78: 0.08613171703 | L78: 0.9265006028 | M78: 0.2014952619 | N78: 454.7217262 | O78: 0.7609864132
A79: 1678.02 | B79: 14.7079 | C79: 762.273 | D79: 4989.09 | E79: 5431.39 | F79: 9.47734 | G79: 7109.41 | H79: 633.727 | I79: 138.494 | J79: 0.2674163636 | K79: 0.08433447922 | L79: 0.9222471261 | M79: 0.1970945431 | N79: 454.2693174 | O79: 0.7639719752
A80: 1646.97 | B80: 14.7549 | C80: 747.523 | D80: 5010.43 | E80: 5409.2 | F80: 9.62943 | G80: 7056.17 | H80: 633.802 | I80: 137.87 | J80: 0.2682709091 | K80: 0.08277395814 | L80: 0.918479276 | M80: 0.1932807591 | N80: 453.877727 | O80: 0.7665915079
A81: 1613.65 | B81: 14.8059 | C81: 731.71 | D81: 5033.6 | E81: 5384.46 | F81: 9.79712 | G81: 6998.11 | H81: 633.81 | I81: 137.189 | J81: 0.2691981818 | K81: 0.08109935066 | L81: 0.9142784372 | M81: 0.1891921242 | N81: 453.4502525 | O81: 0.7694163138
A82: 1582.35 | B82: 14.8543 | C82: 716.879 | D82: 5055.55 | E82: 5359.98 | F82: 9.95867 | G82: 6942.33 | H82: 634.597 | I82: 136.541 | J82: 0.2700781818 | K82: 0.079526265 | L82: 0.9101217462 | M82: 0.1853573968 | N82: 453.0470503 | O82: 0.7720722005
A83: 1551.3 | B83: 14.9034 | C83: 702.183 | D83: 5077.78 | E83: 5335.5 | F83: 10.1248 | G83: 6886.8 | H83: 633.329 | I83: 135.882 | J83: 0.2709709091 | K83: 0.07796574392 | L83: 0.9059650553 | M83: 0.1815575752 | N83: 452.6416554 | O83: 0.7747429866
A84: 1521.96 | B84: 14.9499 | C84: 688.328 | D84: 5098.84 | E84: 5310.9 | F84: 10.2849 | G84: 6832.86 | H84: 633.74 | I84: 135.255 | J84: 0.2718163636 | K84: 0.07649116459 | L84: 0.9017879884 | M84: 0.1779752039 | N84: 452.2641857 | O84: 0.7772587174
A85: 1490.63 | B85: 14.9971 | C85: 673.586 | D85: 5120.18 | E85: 5278.45 | F85: 10.4496 | G85: 6769.07 | H85: 633.421 | I85: 134.616 | J85: 0.2726745455 | K85: 0.07491657118 | L85: 0.8962779957 | M85: 0.1741634885 | N85: 451.8800776 | O85: 0.7797883907
A86: 1436.02 | B86: 15.0433 | C86: 648.373 | D86: 5141.06 | E86: 5158.7 | F86: 10.6132 | G86: 6594.72 | H86: 916.303 | I86: 133.988 | J86: 0.2735145455 | K86: 0.07217196389 | L86: 0.8759445095 | M86: 0.1676443743 | N86: 451.5069428 | O86: 0.7822470097
A87: 1409.92 | B87: 15.0864 | C87: 636.108 | D87: 5160.51 | E87: 5133.34 | F87: 10.768 | G87: 6543.26 | H87: 916.586 | I87: 133.4 | J87: 0.2742981818 | K87: 0.07086022154 | L87: 0.8716383951 | M87: 0.1644731161 | N87: 451.1660236 | O87: 0.784523311
A88: 1404.98 | B88: 15.1301 | C88: 633.395 | D88: 5180.23 | E88: 5185.48 | F88: 10.9271 | G88: 6590.46 | H88: 614.571 | I88: 132.801 | J88: 0.2750927273 | K88: 0.0706119454 | L88: 0.8804917393 | M88: 0.1637716384 | N88: 450.821364 | O88: 0.7868160948
A89: 1359.01 | B89: 15.1723 | C89: 612.223 | D89: 5199.23 | E89: 5082.15 | F89: 11.0827 | G89: 6441.16 | H89: 917.101 | I89: 132.222 | J89: 0.27586 | K89: 0.06830157007 | L89: 0.8629463603 | M89: 0.1582973717 | N89: 450.4919022 | O89: 0.7890116066
A90: 1334.3 | B90: 15.2144 | C90: 600.652 | D90: 5218.21 | E90: 5055.71 | F90: 11.2403 | G90: 6390 | H90: 917.705 | I90: 131.641 | J90: 0.2766254545 | K90: 0.06705968679 | L90: 0.8584568624 | M90: 0.1553055552 | N90: 450.1626321 | O90: 0.7911896851
A91: 1309.03 | B91: 15.2558 | C91: 588.861 | D91: 5236.83 | E91: 5024.41 | F91: 11.397 | G91: 6333.44 | H91: 1001.84 | I91: 131.069 | J91: 0.2773781818 | K91: 0.06578965885 | L91: 0.8531421391 | M91: 0.1522568551 | N91: 449.8453053 | O91: 0.7933145336
A92: 1297.45 | B92: 15.2924 | C92: 583.289 | D92: 5253.32 | E92: 5037.26 | F92: 11.5377 | G92: 6334.7 | H92: 690.986 | I92: 130.56 | J92: 0.2780436364 | K92: 0.06520766741 | L92: 0.8553240623 | M92: 0.1508161498 | N92: 449.5656865 | O92: 0.7951839942
A93: 1266.44 | B93: 15.3326 | C93: 568.963 | D93: 5271.4 | E93: 4979.06 | F93: 11.6939 | G93: 6245.5 | H93: 997.684 | I93: 130 | J93: 0.2787745455 | K93: 0.06364915667 | L93: 0.8454417333 | M93: 0.147111996 | N93: 449.26171 | O93: 0.797223601
A94: 1247.83 | B94: 15.3706 | C94: 560.246 | D94: 5288.47 | E94: 4964.51 | F94: 11.8433 | G94: 6212.34 | H94: 767.302 | I94: 129.469 | J94: 0.2794654545 | K94: 0.06271384918 | L94: 0.8429711511 | M94: 0.1448581143 | N94: 448.9762227 | O94: 0.7991368792
A95: 1224.7 | B95: 15.4093 | C95: 549.505 | D95: 5305.84 | E95: 4931.8 | F95: 11.9972 | G95: 6156.5 | H95: 973.22 | I95: 128.927 | J95: 0.2801690909 | K95: 0.06155137406 | L95: 0.8374170105 | M95: 0.1420809039 | N95: 448.6853923 | O95: 0.8010720377
A96: 1205.05 | B96: 15.4461 | C96: 540.36 | D96: 5322.33 | E96: 4908.8 | F96: 12.1451 | G96: 6113.85 | H96: 969.5 | I96: 128.41 | J96: 0.2808381818 | K96: 0.06056379792 | L96: 0.8335116228 | M96: 0.1397163579 | N96: 448.4129289 | O96: 0.8028983374
A97: 1184.83 | B97: 15.4834 | C97: 530.964 | D97: 5339.08 | E97: 4883.23 | F97: 12.2973 | G97: 6068.06 | H97: 943.399 | I97: 127.883 | J97: 0.2815163636 | K97: 0.05954757453 | L97: 0.8291698504 | M97: 0.1372869129 | N97: 448.1351755 | O97: 0.8047431963
A98: 1165.41 | B98: 15.5202 | C98: 521.946 | D98: 5355.54 | E98: 4858.81 | F98: 12.4487 | G98: 6024.22 | H98: 935.886 | I98: 127.364 | J98: 0.2821854545 | K98: 0.05857155781 | L98: 0.8250233474 | M98: 0.1349552042 | N98: 447.8647 | O98: 0.8065459097
A99: 1147.95 | B99: 15.5551 | C99: 513.837 | D99: 5371.2 | E99: 4838.82 | F99: 12.5945 | G99: 5986.77 | H99: 957.697 | I99: 126.867 | J99: 0.28282 | K99: 0.0576940474 | L99: 0.8216290561 | M99: 0.132858528 | N99: 447.6127009 | O99: 0.8082521961
A100: 1129.24 | B100: 15.5907 | C100: 505.168 | D100: 5387.12 | E100: 4813.41 | F100: 12.7445 | G100: 5942.65 | H100: 940.397 | I100: 126.361 | J100: 0.2834672727 | K100: 0.05675371409 | L100: 0.8173144516 | M100: 0.1306170573 | N100: 447.3522015 | O100: 0.8099770304
A101: 1111.35 | B101: 15.6246 | C101: 496.892 | D101: 5402.28 | E101: 4787.81 | F101: 12.8889 | G101: 5899.15 | H101: 919.71 | I101: 125.877 | J101: 0.2840836364 | K101: 0.05585459261 | L101: 0.8129675853 | M101: 0.1284772013 | N101: 447.1066721 | O101: 0.8116087714
A102: 1094.79 | B102: 15.6591 | C102: 489.219 | D102: 5417.68 | E102: 4767.85 | F102: 13.0374 | G102: 5862.64 | H102: 936.199 | I102: 125.383 | J102: 0.2847109091 | K102: 0.0550223147 | L102: 0.8095783879 | M102: 0.126493258 | N102: 446.8610418 | O102: 0.8132598966
A103: 1077.54 | B103: 15.693 | C103: 481.25 | D103: 5432.85 | E103: 4743.1 | F103: 13.1852 | G103: 5820.64 | H103: 925.363 | I103: 124.896 | J103: 0.2853272727 | K103: 0.05415535854 | L103: 0.8053758511 | M103: 0.1244327804 | N103: 446.619151 | O103: 0.8148760274
A104: 1062.08 | B104: 15.7232 | C104: 474.119 | D104: 5446.32 | E104: 4719.65 | F104: 13.318 | G104: 5781.73 | H104: 911.27 | I104: 124.461 | J104: 0.2858763636 | K104: 0.0533783648 | L104: 0.8013940536 | M104: 0.1225889775 | N104: 446.4061088 | O104: 0.8163041166
A105: 1044.37 | B105: 15.7561 | C105: 465.97 | D105: 5461.02 | E105: 4689.34 | F105: 13.4643 | G105: 5733.72 | H105: 878.645 | I105: 123.986 | J105: 0.2864745455 | K105: 0.05248828981 | L105: 0.7962474318 | M105: 0.1204819589 | N105: 446.1732911 | O105: 0.8178544084
A106: 1031.05 | B106: 15.7874 | C106: 459.798 | D106: 5475 | E106: 4675.47 | F106: 13.605 | G106: 5706.52 | H106: 912.968 | I106: 123.532 | J106: 0.2870436364 | K106: 0.05181884888 | L106: 0.7938923132 | M106: 0.1188861165 | N106: 445.9512148 | O106: 0.8193207068
A107: 1015.59 | B107: 15.8194 | C107: 452.677 | D107: 5489.25 | E107: 4652.06 | F107: 13.7499 | G107: 5667.65 | H107: 907.347 | I107: 123.068 | J107: 0.2876254545 | K107: 0.05104185514 | L107: 0.7899173077 | M107: 0.1170448992 | N107: 445.7280989 | O107: 0.8208093301
A108: 1000.78 | B108: 15.8499 | C108: 445.862 | D108: 5502.83 | E108: 4628.51 | F108: 13.8895 | G108: 5629.29 | H108: 900.751 | I108: 122.624 | J108: 0.28818 | K108: 0.0502975293 | L108: 0.7859185302 | M108: 0.1152828018 | N108: 445.5144987 | O108: 0.8222191431
A109: 986.023 | B109: 15.8809 | C109: 439.075 | D109: 5516.66 | E109: 4605.2 | F109: 14.033 | G109: 5591.22 | H109: 894.497 | I109: 122.171 | J109: 0.2887436364 | K109: 0.04955586716 | L109: 0.7819605046 | M109: 0.113527944 | N109: 445.2989433 | O109: 0.8236480641
A110: 971.45 | B110: 15.9115 | C110: 432.379 | D110: 5530.27 | E110: 4581.2 | F110: 14.1758 | G110: 5552.65 | H110: 885.323 | I110: 121.723 | J110: 0.2893 | K110: 0.04882345255 | L110: 0.7778853174 | M110: 0.1117966154 | N110: 445.0862113 | O110: 0.8250474998
A111: 957.597 | B111: 15.9406 | C111: 426.021 | D111: 5543.24 | E111: 4557.71 | F111: 14.3132 | G111: 5515.31 | H111: 877.802 | I111: 121.295 | J111: 0.2898290909 | K111: 0.04812722393 | L111: 0.773896728 | M111: 0.1101526806 | N111: 444.885479 | O111: 0.8263746696
A112: 943.825 | B112: 15.9703 | C112: 419.7 | D112: 5556.45 | E112: 4534.59 | F112: 14.4545 | G112: 5478.42 | H112: 873.104 | I112: 120.858 | J112: 0.2903690909 | K112: 0.04743506624 | L112: 0.7699709643 | M112: 0.1085183126 | N112: 444.679893 | O112: 0.8277193312
A113: 930.819 | B113: 15.9986 | C113: 413.736 | D113: 5569.04 | E113: 4512.42 | F113: 14.5906 | G113: 5443.23 | H113: 870.497 | I113: 120.441 | J113: 0.2908836364 | K113: 0.04678140643 | L113: 0.7662065101 | M113: 0.1069762511 | N113: 444.4859849 | O113: 0.8289953831
A114: 909.94 | B114: 16.0275 | C114: 404.274 | D114: 5581.86 | E114: 4451.76 | F114: 14.7305 | G114: 5361.7 | H114: 907.24 | I114: 120.014 | J114: 0.2914090909 | K114: 0.0457320628 | L114: 0.7559064745 | M114: 0.1045297411 | N114: 444.2864365 | O114: 0.8302889009
A115: 896.357 | B115: 16.0557 | C115: 398.066 | D115: 5594.39 | E115: 4424.74 | F115: 14.8685 | G115: 5321.1 | H115: 906.175 | I115: 119.595 | J115: 0.2919218182 | K115: 0.04504940394 | L115: 0.7513184929 | M115: 0.1029245905 | N115: 444.0931459 | O115: 0.8315465777
A116: 884.026 | B116: 16.0817 | C116: 392.434 | D116: 5605.94 | E116: 4400.06 | F116: 14.9968 | G116: 5284.09 | H116: 904.757 | I116: 119.209 | J116: 0.2923945455 | K116: 0.0444296685 | L116: 0.747127842 | M116: 0.1014683714 | N116: 443.9168079 | O116: 0.8327003005
A117: 871.17 | B117: 16.1091 | C117: 386.564 | D117: 5618.1 | E117: 4374.01 | F117: 15.1332 | G117: 5245.18 | H117: 903.08 | I117: 118.801 | J117: 0.2928927273 | K117: 0.04378354743 | L117: 0.7427045659 | M117: 0.09995061473 | N117: 443.7296968 | O117: 0.833910371
A118: 858.992 | B118: 16.1352 | C118: 381.008 | D118: 5629.7 | E118: 4348.88 | F118: 15.2645 | G118: 5207.87 | H118: 901.609 | I118: 118.41 | J118: 0.2933672727 | K118: 0.04317150152 | L118: 0.7384375053 | M118: 0.09851404636 | N118: 443.5524429 | O118: 0.8350589262
A119: 846.722 | B119: 16.1619 | C119: 375.412 | D119: 5641.51 | E119: 4323.25 | F119: 15.3993 | G119: 5169.98 | H119: 899.925 | I119: 118.012 | J119: 0.2938527273 | K119: 0.04255483184 | L119: 0.734085545 | M119: 0.09706713553 | N119: 443.3710238 | O119: 0.8362230975
A120: 835.107 | B120: 16.1873 | C120: 370.118 | D120: 5652.77 | E120: 4298.6 | F120: 15.529 | G120: 5133.7 | H120: 898.374 | I120: 117.63 | J120: 0.2943145455 | K120: 0.04197108136 | L120: 0.7298999881 | M120: 0.0956983103 | N120: 443.1982967 | O120: 0.8373286594
A121: 823.915 | B121: 16.2131 | C121: 365.013 | D121: 5664.25 | E121: 4276.14 | F121: 15.6623 | G121: 5100.06 | H121: 893.375 | I121: 117.241 | J121: 0.2947836364 | K121: 0.04140859015 | L121: 0.7260862921 | M121: 0.09437835322 | N121: 443.0226419 | O121: 0.8384497814
A122: 811.124 | B122: 16.2387 | C122: 359.205 | D122: 5675.56 | E122: 4244.21 | F122: 15.7948 | G122: 5055.33 | H122: 900.127 | I122: 116.856 | J122: 0.2952490909 | K122: 0.04076573588 | L122: 0.7206645951 | M122: 0.09287662732 | N122: 442.8484424 | O122: 0.8395508586
A123: 798.917 | B123: 16.263 | C123: 353.667 | D123: 5686.34 | E123: 4212.95 | F123: 15.9222 | G123: 5011.86 | H123: 907.657 | I123: 116.489 | J123: 0.2956909091 | K123: 0.04015223247 | L123: 0.7153566638 | M123: 0.09144471306 | N123: 442.6830322 | O123: 0.840594932
A124: 787.953 | B124: 16.2878 | C124: 348.681 | D124: 5697.3 | E124: 4188.15 | F124: 16.0528 | G124: 4976.1 | H124: 906.539 | I124: 116.114 | J124: 0.2961418182 | K124: 0.03960120017 | L124: 0.711145637 | M124: 0.09015552482 | N124: 442.5149723 | O124: 0.8416525944
A125: 779.528 | B125: 16.3114 | C125: 344.867 | D125: 5707.76 | E125: 4174.83 | F125: 16.1784 | G125: 4954.36 | H125: 891.998 | I125: 115.754 | J125: 0.2965709091 | K125: 0.03917777376 | L125: 0.7088839081 | M125: 0.08916937079 | N125: 442.4048912 | O125: 0.8426581204
A126: 769.376 | B126: 16.3356 | C126: 340.242 | D126: 5718.45 | E126: 4152.44 | F126: 16.3079 | G126: 4921.81 | H126: 888.088 | I126: 115.387 | J126: 0.2970109091 | K126: 0.03866755121 | L126: 0.705082098 | M126: 0.08797352329 | N126: 442.2311068 | O126: 0.8436804627
A127: 768.17 | B127: 16.3595 | C127: 339.582 | D127: 5729 | E127: 4177.72 | F127: 16.4366 | G127: 4945.89 | H127: 822.136 | I127: 115.023 | J127: 0.2974454545 | K127: 0.03860693967 | L127: 0.7093746286 | M127: 0.08780287262 | N127: 442.0662093 | O127: 0.8446851831
A128: 762.604 | B128: 16.381 | C128: 337.044 | D128: 5738.51 | E128: 4176.16 | F128: 16.5536 | G128: 4938.77 | H128: 792.671 | I128: 114.694 | J128: 0.2978363636 | K128: 0.03832720182 | L128: 0.7091097414 | M128: 0.08714664322 | N128: 441.964637 | O128: 0.8455880864
A129: 752.757 | B129: 16.4046 | C129: 332.563 | D129: 5748.96 | E129: 4153.6 | F129: 16.6831 | G129: 4906.36 | H129: 787.337 | I129: 114.332 | J129: 0.2982654545 | K129: 0.03783230806 | L129: 0.7052790654 | M129: 0.0859880286 | N129: 441.7933012 | O129: 0.8465751677
A130: 724.517 | B130: 16.4272 | C130: 320.008 | D130: 5758.94 | E130: 4026.89 | F130: 16.8077 | G130: 4751.4 | H130: 926.832 | I130: 113.985 | J130: 0.2986763636 | K130: 0.03641301289 | L130: 0.683763775 | M130: 0.08274178744 | N130: 441.6845982 | O130: 0.8475152728
A131: 720.943 | B131: 16.4497 | C131: 318.345 | D131: 5768.86 | E131: 4036.04 | F131: 16.9325 | G131: 4756.99 | H131: 880.71 | I131: 113.639 | J131: 0.2990854545 | K131: 0.03623338962 | L131: 0.6853174401 | M131: 0.08231179946 | N131: 441.5675026 | O131: 0.8484453276
A132: 714.783 | B132: 16.4713 | C132: 315.543 | D132: 5778.41 | E132: 4029.48 | F132: 17.0536 | G132: 4744.27 | H132: 856.18 | I132: 113.305 | J132: 0.2994781818 | K132: 0.03592379832 | L132: 0.6842035556 | M132: 0.0815873098 | N132: 441.4528605 | O132: 0.8493373997
A133: 708.779 | B133: 16.4934 | C133: 312.809 | D133: 5788.19 | E133: 4024.23 | F133: 17.1785 | G133: 4733.01 | H133: 828.012 | I133: 112.963 | J133: 0.29988 | K133: 0.03562204732 | L133: 0.6833121084 | M133: 0.08088040232 | N133: 441.3350283 | O133: 0.8502476965
A134: 628.103 | B134: 16.5154 | C134: 277.13 | D134: 5797.89 | E134: 3591.5 | F134: 17.3033 | G134: 4219.6 | H134: 351.048 | I134: 112.623 | J134: =B134/$B$2 -> 0.30028 | K134: 0.03156740647 | L134: 0.6098347851 | M134: 0.07165518222 | N134: 441.2174436 | O134: 0.851146423
A135: 687.748 | B135: 16.5343 | C135: 303.374 | D135: 5806.2 | E135: 3956.5 | F135: 17.4111 | G135: 4644.25 | H135: 861.011 | I135: 112.33 | J135: 0.3006236364 | K135: =A135/$A$6 -> 0.03456506443 | L135: =E135/$L$3 -> 0.6718115905 | M135: =C135/$N$3 -> 0.07844087342 | N135: =C135*1000/A135 -> 441.1121515 | O135: =E135/(E135+A135) -> 0.8519140235
A136: 634.211 | B136: 16.5556 | C136: 279.684 | D136: 5815.6 | E136: 3673.69 | F136: 17.5337 | G136: 4307.9 | H136: 1308.81 | I136: 111.999 | J136: 0.3010109091 | K136: 0.03187438434 | L136: 0.6237906033 | M136: 0.0723155486 | N136: 440.9951893 | O136: 0.8527795787
A137: 675.016 | B137: 16.5746 | C137: 297.605 | D137: 5823.99 | E137: 3934.13 | F137: 17.6439 | G137: 4609.15 | H137: 825.412 | I137: 111.702 | J137: 0.3013563636 | K137: 0.0339251754 | L137: 0.6680131764 | M137: 0.07694923143 | N137: 440.8858457 | O137: 0.8535485749
A138: 592.916 | B138: 16.5955 | C138: 261.339 | D138: 5833.22 | E138: 3479.07 | F138: 17.7659 | G138: 4071.99 | H138: 351.048 | I138: 111.376 | J138: 0.3017363636 | K138: 0.02979896669 | L138: 0.5907442311 | M138: 0.06757223565 | N138: 440.7690128 | O138: 0.8543914444
A139: 585.049 | B139: 16.6139 | C139: 257.809 | D139: 5841.32 | E139: 3453.37 | F139: 17.8738 | G139: 4038.41 | H139: 351.048 | I139: 111.089 | J139: 0.3020709091 | K139: 0.02940358442 | L139: 0.5863803848 | M139: 0.06665951313 | N139: 440.6622351 | O139: 0.8551291978
A140: 611.913 | B140: 16.6303 | C140: 269.587 | D140: 5848.54 | E140: 3631.12 | F140: 17.9705 | G140: 4243.03 | H140: 1255.16 | I140: 110.832 | J140: 0.3023690909 | K140: 0.03075372414 | L140: 0.61656224 | M140: 0.06970485191 | N140: 440.5642632 | O140: 0.8557840582
A141: 627.056 | B141: 16.6493 | C141: 276.19 | D141: 5856.9 | E141: 3743.9 | F141: 18.083 | G141: 4370.95 | H141: 1003.91 | I141: 110.535 | J141: 0.3027145455 | K141: 0.031514786 | L141: 0.6357122239 | M141: 0.0714121343 | N141: 440.455079 | O141: 0.8565403083
A142: 630.439 | B142: 16.6681 | C142: 277.609 | D142: 5865.18 | E142: 3787.09 | F142: 18.1954 | G142: 4417.53 | H142: 894.326 | I142: 110.24 | J142: 0.3030563636 | K142: 0.03168480992 | L142: 0.6430458628 | M142: 0.07177903324 | N142: 440.3423646 | O142: 0.8572869584
A143: 623.068 | B143: 16.6876 | C143: 274.291 | D143: 5873.79 | E143: 3766.6 | F143: 18.3128 | G143: 4389.67 | H143: 891.555 | I143: 109.932 | J143: 0.3034109091 | K143: 0.03131435579 | L143: 0.6395666718 | M143: 0.07092112578 | N143: 440.2264279 | O143: 0.8580603362
A144: 629.07 | B144: 16.7063 | C144: 276.861 | D144: 5882.02 | E144: 3826 | F144: 18.4258 | G144: 4455.07 | H144: 747.123 | I144: 109.638 | J144: 0.3037509091 | K144: 0.03161600627 | L144: 0.6496527601 | M144: 0.07158562915 | N144: 440.1115933 | O144: 0.8587968315
A145: 612.083 | B145: 16.7258 | C145: 269.312 | D145: 5890.6 | E145: 3746.32 | F145: 18.5444 | G145: 4358.41 | H145: 849.04 | I145: 109.33 | J145: 0.3041054545 | K145: 0.03076226806 | L145: 0.6361231386 | M145: 0.06963374746 | N145: 439.9926154 | O145: 0.8595625508
A146: 608.882 | B146: 16.7448 | C146: 267.833 | D146: 5898.95 | E146: 3749.77 | F146: 18.6605 | G146: 4358.65 | H146: 801.067 | I146: 109.03 | J146: 0.3044509091 | K146: 0.03060139115 | L146: 0.6367089467 | M146: 0.06925133482 | N146: 439.876692 | O146: 0.860304975
A147: 570.482 | B147: 16.7631 | C147: 250.876 | D147: 5906.98 | E147: 3534.21 | F147: 18.773 | G147: 4104.69 | H147: 1193.27 | I147: 108.741 | J147: 0.3047836364 | K147: 0.02867147136 | L147: 0.6001069737 | M147: 0.06486690541 | N147: 439.7614649 | O147: 0.8610170995
A148: 562.802 | B148: 16.7808 | C148: 247.435 | D148: 5914.76 | E148: 3506.74 | F148: 18.8826 | G148: 4069.54 | H148: 1218.57 | I148: 108.46 | J148: 0.3051054545 | K148: 0.02828548741 | L148: 0.5954425823 | M148: 0.06397719486 | N148: 439.6484021 | O148: 0.8617038478
A149: 583.709 | B149: 16.7976 | C149: 256.563 | D149: 5922.18 | E149: 3657.05 | F149: 18.9878 | G149: 4240.75 | H149: 860.266 | I149: 108.192 | J149: 0.3054109091 | K149: 0.02933623826 | L149: 0.6209651402 | M149: 0.06633734535 | N149: 439.5392225 | O149: 0.8623574223
A150: 576.886 | B150: 16.8157 | C150: 253.498 | D150: 5930.14 | E150: 3635.67 | F150: 19.1012 | G150: 4212.55 | H150: 861 | I150: 107.904 | J150: 0.30574 | K150: 0.02899332569 | L150: 0.6173348276 | M150: 0.06554485398 | N150: 439.4247737 | O150: 0.8630555891
A151: 570.226 | B151: 16.8336 | C151: 250.505 | D151: 5938 | E151: 3614.7 | F151: 19.2139 | G151: 4184.92 | H151: 861.386 | I151: 107.619 | J151: 0.3060654545 | K151: 0.02865860523 | L151: 0.6137741327 | M151: 0.06477097904 | N151: 439.3082743 | O151: 0.8637428714
A152: 564.422 | B152: 16.8496 | C152: 247.895 | D152: 5945.01 | E152: 3596.58 | F152: 19.3151 | G152: 4161 | H152: 860.384 | I152: 107.365 | J152: 0.3063563636 | K152: 0.0283669059 | L152: 0.6106973664 | M152: 0.06409613321 | N152: 439.2015194 | O152: 0.864354307
A153: 558.307 | B153: 16.8671 | C153: 245.145 | D153: 5952.7 | E153: 3577.99 | F153: 19.4266 | G153: 4136.3 | H153: 856.343 | I153: 107.085 | J153: 0.3066745455 | K153: 0.02805957622 | L153: 0.6075407943 | M153: 0.06338508875 | N153: 439.0863808 | O153: 0.8650225068
A154: 553.364 | B154: 16.8838 | C154: 242.912 | D154: 5960.05 | E154: 3565.76 | F154: 19.534 | G154: 4119.13 | H154: 839.373 | I154: 106.817 | J154: 0.3069781818 | K154: 0.02781114931 | L154: 0.6054641468 | M154: 0.06280772065 | N154: 438.9732617 | O154: 0.8656597859
A155: 547.154 | B155: 16.901 | C155: 240.122 | D155: 5967.58 | E155: 3545.57 | F155: 19.6445 | G155: 4092.72 | H155: 839.182 | I155: 106.542 | J155: 0.3072909091 | K155: 0.02749904509 | L155: 0.6020358956 | M155: 0.06208633373 | N155: 438.8563366 | O155: 0.866310555
A156: 541.448 | B156: 16.9174 | C156: 237.557 | D156: 5974.78 | E156: 3527.47 | F156: 19.7509 | G156: 4068.92 | H156: 835.945 | I156: 106.278 | J156: 0.3075890909 | K156: 0.02721227107 | L156: 0.5989625253 | M156: 0.06142312317 | N156: 438.7438868 | O156: 0.8669307172
A157: 535.698 | B157: 16.9342 | C157: 234.972 | D157: 5982.15 | E157: 3509.23 | F157: 19.8603 | G157: 4044.93 | H157: 831.746 | I157: 106.009 | J157: 0.3078945455 | K157: 0.02692328569 | L157: 0.595865383 | M157: 0.06075474137 | N157: 438.6277343 | O157: 0.867563032
A158: 536.136 | B158: 16.9508 | C158: 235.102 | D158: 5989.43 | E158: 3531.24 | F158: 19.9691 | G158: 4067.38 | H158: 719.907 | I158: 105.741 | J158: 0.3081963636 | K158: 0.02694529884 | L158: 0.5996026692 | M158: 0.06078835438 | N158: 438.5118701 | O158: 0.8681862705
A159: 532.515 | B159: 16.9669 | C159: 233.454 | D159: 5996.49 | E159: 3525.93 | F159: 20.075 | G159: 4058.44 | H159: 674.479 | I159: 105.482 | J159: 0.3084890909 | K159: 0.02676331343 | L159: 0.5987010341 | M159: 0.06036224483 | N159: 438.3989183 | O159: 0.8687884153
A160: 526.487 | B160: 16.9834 | C160: 230.749 | D160: 6003.72 | E160: 3504.93 | F160: 20.1843 | G160: 4031.42 | H160: 671.818 | I160: 105.215 | J160: 0.3087890909 | K160: 0.02646035623 | L160: 0.5951352453 | M160: 0.05966283565 | N160: 438.2805273 | O160: 0.8694039838
A161: 506.23 | B161: 16.9992 | C161: 221.813 | D161: 6010.64 | E161: 3387.58 | F161: 20.2895 | G161: 3893.81 | H161: 959.189 | I161: 104.96 | J161: 0.3090763636 | K161: 0.02544227328 | L161: 0.5752092778 | M161: 0.05735232899 | N161: 438.1664461 | O161: 0.8699910884
A162: 499.055 | B162: 17.0149 | C162: 218.613 | D162: 6017.52 | E162: 3356.82 | F162: 20.3945 | G162: 3855.87 | H162: 999.889 | I162: 104.706 | J162: 0.3093618182 | K162: 0.02508166978 | L162: 0.5699862462 | M162: 0.0565249318 | N162: 438.0539219 | O162: 0.8705728272
A163: 501.264 | B163: 17.0304 | C163: 219.523 | D163: 6024.3 | E163: 3388.85 | F163: 20.4986 | G163: 3890.12 | H163: 850.017 | I163: 104.455 | J163: 0.3096436364 | K163: 0.02519269043 | L163: 0.5754249232 | M163: 0.05676022288 | N163: 437.9388905 | O163: 0.8711441361
A164: 501.282 | B164: 17.0449 | C164: 219.477 | D164: 6030.66 | E164: 3405.2 | F164: 20.5969 | G164: 3906.48 | H164: 739.004 | I164: 104.219 | J164: 0.3099072727 | K164: 0.02519359508 | L164: 0.5782011444 | M164: 0.05674832905 | N164: 437.8314003 | O164: 0.8716794292
A165: 483.583 | B165: 17.0604 | C165: 211.672 | D165: 6037.47 | E165: 3301.8 | F165: 20.7024 | G165: 3785.39 | H165: 1020.5 | I165: 103.967 | J165: 0.3101890909 | K165: 0.02430407293 | L165: 0.5606438796 | M165: 0.05473025559 | N165: 437.715966 | O165: 0.872249915
A166: 479.399 | B166: 17.075 | C166: 209.788 | D166: 6043.82 | E166: 3288.9 | F166: 20.8015 | G166: 3768.3 | H166: 1012.82 | I166: 103.731 | J166: 0.3104545455 | K166: 0.02409379209 | L166: 0.5584534665 | M166: 0.05424312549 | N166: 437.6062528 | O166: 0.8727810612
A167: 475.004 | B167: 17.0898 | C167: 207.812 | D167: 6050.32 | E167: 3274.73 | F167: 20.9035 | G167: 3749.73 | H167: 1007.15 | I167: 103.489 | J167: 0.3107236364 | K167: 0.02387290674 | L167: 0.556047408 | M167: 0.05373220773 | N167: 437.4952632 | O167: 0.8733232811
A168: 476.394 | B168: 17.1041 | C168: 208.368 | D168: 6056.56 | E168: 3299.77 | F168: 21.0017 | G168: 3776.16 | H168: 858.899 | I168: 103.256 | J168: 0.3109836364 | K168: 0.02394276582 | L168: 0.5602991867 | M168: 0.05387596799 | N168: 437.3858613 | O168: 0.8738418141
A169: 466.708 | B169: 17.1188 | C169: 204.078 | D169: 6063.02 | E169: 3248.45 | F169: 21.104 | G169: 3715.16 | H169: 989.748 | I169: 103.015 | J169: 0.3112509091 | K169: 0.02345596365 | L169: 0.551585078 | M169: 0.05276673863 | N169: 437.2712703 | O169: 0.8743773482
A170: 467.816 | B170: 17.1333 | C170: 204.51 | D170: 6069.34 | E170: 3271.74 | F170: 21.2047 | G170: 3739.55 | H170: 833.595 | I170: 102.778 | J170: 0.3115145455 | K170: 0.02351164988 | L170: 0.5555397076 | M170: 0.05287843725 | N170: 437.159054 | O170: 0.8749006567
A171: 459.548 | B171: 17.1473 | C171: 200.845 | D171: 6075.48 | E171: 3228.83 | F171: 21.3029 | G171: 3688.38 | H171: 944.414 | I171: 102.548 | J171: 0.3117690909 | K171: 0.02309611403 | L171: 0.5482536125 | M171: 0.05193080891 | N171: 437.0490134 | O171: 0.8754064795
A172: 456.388 | B172: 17.1616 | C172: 199.412 | D172: 6081.7 | E172: 3221.75 | F172: 21.403 | G172: 3678.14 | H172: 906.964 | I172: 102.315 | J172: 0.3120290909 | K172: 0.02293729771 | L172: 0.5470514323 | M172: 0.05156029011 | N172: 436.9352393 | O172: 0.8759187393
A173: 452.177 | B173: 17.1753 | C173: 197.523 | D173: 6087.69 | E173: 3206.5 | F173: 21.4996 | G173: 3658.68 | H173: 905.923 | I173: 102.09 | J173: 0.3122781818 | K173: 0.02272565989 | L173: 0.5444619904 | M173: 0.0510718672 | N173: 436.8267294 | O173: 0.8764096967
A174: 448.951 | B174: 17.1893 | C174: 196.063 | D174: 6093.81 | E174: 3198.41 | F174: 21.599 | G174: 3647.36 | H174: 868.296 | I174: 101.86 | J174: 0.3125327273 | K174: 0.02256352653 | L174: 0.5430883127 | M174: 0.05069436724 | N174: 436.7135834 | O174: 0.8769107308
A175: 442.497 | B175: 17.2032 | C175: 193.194 | D175: 6099.89 | E175: 3166.98 | F175: 21.6982 | G175: 3609.47 | H175: 946.172 | I175: 101.631 | J175: 0.3127854545 | K175: 0.02223915928 | L175: 0.5377515155 | M175: 0.04995255394 | N175: 436.5995702 | O175: 0.877406893
A176: 435.412 | B176: 17.2156 | C176: 190.057 | D176: 6105.3 | E176: 3129.07 | F176: 21.7869 | G176: 3564.48 | H176: 1069.64 | I176: 101.427 | J176: 0.3130109091 | K176: 0.02188307903 | L176: 0.5313144177 | M176: 0.04914144614 | N176: 436.4992237 | O176: 0.8778470476
A177: 430.085 | B177: 17.2291 | C177: 187.684 | D177: 6111.19 | E177: 3104.64 | F177: 21.8839 | G177: 3534.72 | H177: 1125.32 | I177: 101.204 | J177: 0.3132563636 | K177: 0.02161535291 | L177: 0.5271662167 | M177: 0.04852787941 | N177: 436.3881558 | O177: 0.8783257538
A178: 436.026 | B178: 17.242 | C178: 190.23 | D178: 6116.82 | E178: 3161.01 | F178: 21.977 | G178: 3597.04 | H178: 675.073 | I178: 100.991 | J178: 0.3134909091 | K178: 0.02191393764 | L178: 0.5367378126 | M178: 0.0491861773 | N178: 436.2813227 | O178: 0.8787818637
A179: 425.093 | B179: 17.2555 | C179: 185.412 | D179: 6122.72 | E179: 3095.59 | F179: 22.075 | G179: 3520.68 | H179: 1031.95 | I179: 100.768 | J179: 0.3137363636 | K179: 0.02136446334 | L179: 0.5256295315 | M179: 0.0479404274 | N179: 436.1680856 | O179: 0.8792583712
A180: 427.556 | B180: 17.2683 | C180: 186.44 | D180: 6128.28 | E180: 3126.73 | F180: 22.1679 | G180: 3554.28 | H180: 656.372 | I180: 100.557 | J180: 0.3139690909 | K180: 0.0214882496 | L180: 0.5309170869 | M180: 0.04820622875 | N180: 436.0598378 | O180: 0.8797069229
A181: 417.804 | B181: 17.2815 | C181: 182.141 | D181: 6134.06 | E181: 3068.88 | F181: 22.2649 | G181: 3486.68 | H181: 1031.25 | I181: 100.337 | J181: 0.3142090909 | K181: 0.02099813039 | L181: 0.5210941878 | M181: 0.04709467234 | N181: 435.9484352 | O181: 0.8801715326
A182: 418.996 | B182: 17.2945 | C182: 182.614 | D182: 6139.7 | E182: 3090.9 | F182: 22.36 | G182: 3509.9 | H182: 704.033 | I182: 100.122 | J182: 0.3144454545 | K182: 0.02105803832 | L182: 0.524833172 | M182: 0.04721697198 | N182: 435.8370963 | O182: 0.8806243832
A183: 412.498 | B183: 17.3071 | C183: 179.737 | D183: 6145.18 | E183: 3055.7 | F183: 22.4527 | G183: 3468.2 | H183: 928.199 | I183: 99.9136 | J183: 0.3146745455 | K183: 0.0207314597 | L183: 0.5188562308 | M183: 0.0464730902 | N183: 435.7281732 | O183: 0.8810627306
A184: 406.693 | B184: 17.3199 | C184: 177.162 | D184: 6150.75 | E184: 3025.53 | F184: 22.5475 | G184: 3432.23 | H184: 1063.48 | I184: 99.7011 | J184: 0.3149072727 | K184: 0.02043971011 | L184: 0.5137333809 | M184: 0.04580729402 | N184: 435.6160544 | O184: 0.8815074079
A185: 405.785 | B185: 17.3321 | C185: 176.723 | D185: 6156.07 | E185: 3031.05 | F185: 22.6382 | G185: 3436.84 | H185: 899.759 | I185: 99.4982 | J185: 0.3151290909 | K185: 0.02039407555 | L185: 0.5146706739 | M185: 0.04569378547 | N185: 435.5089518 | O185: 0.8819306135
A186: 400.714 | B186: 17.3446 | C186: 174.471 | D186: 6161.55 | E186: 3005.73 | F186: 22.7322 | G186: 3406.45 | H186: 1015.8 | I186: 99.2887 | J186: 0.3153563636 | K186: 0.02013921557 | L186: 0.5103713514 | M186: 0.0451115047 | N186: 435.4003104 | O186: 0.8823658924
A187: 397.344 | B187: 17.3571 | C187: 172.959 | D187: 6166.96 | E187: 2992.81 | F187: 22.8254 | G187: 3390.15 | H187: 1016.72 | I187: 99.0816 | J187: 0.3155836364 | K187: 0.019969845 | L187: 0.5081775423 | M187: 0.04472055953 | N187: 435.2878111 | O187: 0.8827947049
A188: 395.166 | B188: 17.3682 | C188: 171.972 | D188: 6171.8 | E188: 2987.45 | F188: 22.9092 | G188: 3382.62 | H188: 943.303 | I188: 98.896 | J188: 0.3157854545 | K188: 0.01986038237 | L188: 0.5072674172 | M188: 0.04446535921 | N188: 435.1892622 | O188: 0.8831773988
A189: 391.533 | B189: 17.3804 | C189: 170.347 | D189: 6177.13 | E189: 2972.09 | F189: 23.0018 | G189: 3363.63 | H189: 972.763 | I189: 98.6914 | J189: 0.3160072727 | K189: 0.01967779386 | L189: 0.5046592974 | M189: 0.04404519657 | N189: 435.0769922 | O189: 0.8835978348
A190: 387.602 | B190: 17.3922 | C190: 168.595 | D190: 6182.24 | E190: 2953.8 | F190: 23.091 | G190: 3341.4 | H190: 1057.08 | I190: 98.495 | J190: 0.3162218182 | K190: 0.01948022837 | L190: 0.5015536651 | M190: 0.04359219661 | N190: 434.9693758 | O190: 0.8840001891
A191: 384.579 | B191: 17.4042 | C191: 167.238 | D191: 6187.47 | E191: 2942.53 | F191: 23.1826 | G191: 3327.11 | H191: 1045.84 | I191: 98.2939 | J191: 0.31644 | K191: 0.01932829745 | L191: 0.4996400251 | M191: 0.04324132849 | N191: 434.8599378 | O191: 0.8844104597
A192: 381.505 | B192: 17.4157 | C192: 165.861 | D192: 6192.48 | E192: 2930.28 | F192: 23.2708 | G192: 3311.78 | H192: 1056.76 | I192: 98.1006 | J192: 0.3166490909 | K192: 0.01917380335 | L192: 0.4975599817 | M192: 0.04288528914 | N192: 434.7544593 | O192: 0.8848038143
A193: 378.512 | B193: 17.4276 | C193: 164.518 | D193: 6197.63 | E193: 2918.79 | F193: 23.3617 | G193: 3297.3 | H193: 1052.29 | I193: 97.9023 | J193: 0.3168654545 | K193: 0.01902338017 | L193: 0.4956089858 | M193: 0.04253804088 | N193: 434.64408 | O193: 0.8852055408
A194: 370.088 | B194: 17.4393 | C194: 160.816 | D194: 6202.73 | E194: 2865.04 | F194: 23.4522 | G194: 3235.13 | H194: 529.468 | I194: 97.7053 | J194: 0.3170781818 | K194: 0.01860000402 | L194: 0.4864822644 | M194: 0.04158084576 | N194: 434.5344891 | O194: 0.8856032899
A195: 373.132 | B195: 17.4504 | C195: 162.1 | D195: 6207.55 | E195: 2899.35 | F195: 23.5381 | G195: 3272.48 | H195: 860.133 | I195: 97.5188 | J195: 0.31728 | K195: 0.01875299037 | L195: 0.4923080842 | M195: 0.04191283888 | N195: 434.4307108 | O195: 0.8859788992
A196: 370 | B196: 17.462 | C196: 160.699 | D196: 6212.58 | E196: 2886.16 | F196: 23.628 | G196: 3256.16 | H196: 856.985 | I196: 97.3243 | J196: 0.3174909091 | K196: 0.01859558129 | L196: 0.4900684292 | M196: 0.04155059405 | N196: 434.3216216 | O196: 0.8863692202
A197: 360.12 | B197: 17.4731 | C197: 156.369 | D197: 6217.4 | E197: 2819.54 | F197: 23.7146 | G197: 3179.66 | H197: 539.544 | I197: 97.1375 | J197: 0.3176927273 | K197: 0.01809902901 | L197: 0.4787563887 | M197: 0.04043102222 | N197: 434.2135955 | O197: 0.8867426077
A198: 364.034 | B198: 17.4842 | C198: 158.03 | D198: 6222.24 | E198: 2860.86 | F198: 23.802 | G198: 3224.89 | H198: 855.542 | I198: 96.9494 | J198: =B198/$B$2 -> 0.3178945455 | K198: 0.0182957401 | L198: 0.4857725027 | M198: 0.04086049308 | N198: 434.1078031 | O198: 0.8871175301
A199: 361.465 | B199: 17.4955 | C199: 156.875 | D199: 6227.14 | E199: 2851.43 | F199: 23.8907 | G199: 3212.9 | H199: 1024.74 | I199: 96.7591 | J199: 0.3181 | K199: =A199/$A$6 -> 0.01816662646 | L199: =E199/$L$3 -> 0.4841712937 | M199: =C199/$N$3 -> 0.0405618544 | N199: =C199*1000/A199 -> 433.9977591 | O199: =E199/(E199+A199) -> 0.8874955453
A200: 358.842 | B200: 17.5056 | C200: 155.701 | D200: 6231.54 | E200: 2840.35 | F200: 23.9706 | G200: 3199.19 | H200: 955.745 | I200: 96.5883 | J200: 0.3182836364 | K200: 0.01803479887 | L200: 0.4822899156 | M200: 0.04025830306 | N200: 433.8984846 | O200: 0.887833553
... 490 more rows

Sheet N + 45%
A1: Case: | B1: N + 45%
A2: N | B2: 80 | C2: [MSm3]
A3: Vaquifer | B3: =20.1014*(1+0.4545) -> 29.2374863 | C3: [Mm3] | K3: qw_max [Sm3/d] | L3: =MAX(E6:E690) -> 18903.9 | M3: qg_max [1000 Sm3/d] | N3: =MAX(C6:C691) -> 2984.73
A4: Average Oil Rate | B4: Cum Oil Production | C4: Average Gas Rate | D4: Cum Gas Production | E4: Average Water Rate | F4: Cum Water Production | G4: Average Liquid Rate | H4: Average Gaslift Rate | I4: Reservoir Pressure | J4: RF | K4: qomax_n | L4: qwmax_n | M4: qgmax_n | N4: GOR | O4: WC
A5: sm3/d | B5: M sm3 | C5: 1000 sm3/d | D5: M sm3 | E5: sm3/d | F5: M sm3 | G5: sm3/d | H5: 1000 sm3/d | I5: bara
A6: 19897.2 | B6: 0 | C6: 2984.73 | D6: 0 | E6: 0 | F6: 0 | G6: 19897.2 | H6: 99.6948 | I6: 280 | J6: =B6/$B$2 -> 0 | K6: =A6/$A$6 -> 1 | L6: =E6/$L$3 -> 0 | M6: =C6/$N$3 -> 1 | N6: =C6*1000/A6 -> 150.0075387 | O6: =E6/(E6+A6) -> 0
A7: 19852.5 | B7: 0.616863 | C7: 2978.02 | D7: 92.5267 | E7: 44.7386 | F7: 0 | G7: 19897.2 | H7: 99.6791 | I7: 280 | J7: 0.0077107875 | K7: =A7/$A$6 -> 0.9977534527 | L7: =E7/$L$3 -> 0.00236663334 | M7: =C7/$N$3 -> 0.9977518905 | N7: =C7*1000/A7 -> 150.0073039 | O7: =E7/(E7+A7) -> 0.002248482862
A8: 19778.6 | B8: 1.17278 | C8: 2966.94 | D8: 175.911 | E8: 118.716 | F8: 0.00125278 | G8: 19897.4 | H8: 99.6533 | I8: 280 | J8: 0.01465975 | K8: 0.9940393623 | L8: 0.006279973974 | M8: 0.9940396619 | N8: 150.007584 | O8: 0.00596643286
A9: 19671.8 | B9: 1.78596 | C9: 2950.92 | D9: 267.887 | E9: 225.865 | F9: 0.00493328 | G9: 19897.7 | H9: 99.6159 | I9: 280 | J9: 0.0223245 | K9: 0.9886717729 | L9: 0.01194806363 | M9: 0.9886723422 | N9: 150.0076251 | O9: 0.01135133193
A10: 19547.4 | B10: 2.37617 | C10: 2932.25 | D10: 356.414 | E10: 350.431 | F10: 0.0117098 | G10: 19897.8 | H10: 99.5593 | I10: 280 | J10: 0.029702125 | K10: 0.9824196369 | L10: 0.01853749755 | M10: 0.9824171701 | N10: 150.0071621 | O10: 0.01761151756
A11: 19400.5 | B11: 2.98218 | C11: 2910.22 | D11: 447.314 | E11: 497.859 | F11: 0.022574 | G11: 19898.4 | H11: 99.5071 | I11: 280 | J11: 0.03727725 | K11: 0.9750366886 | L11: 0.02633631155 | M11: 0.9750362679 | N11: 150.007474 | O11: 0.02502010342
A12: 19242.6 | B12: 3.56424 | C12: 2886.53 | D12: 534.621 | E12: 656.57 | F12: 0.037511 | G12: 19899.2 | H12: 99.4383 | I12: 280 | J12: 0.044553 | K12: 0.9671008986 | L12: 0.03473198652 | M12: 0.9670992016 | N12: 150.0072755 | O12: 0.0329948435
A13: 19064.8 | B13: 4.16081 | C13: 2859.87 | D13: 624.103 | E13: 835.454 | F13: 0.0578663 | G13: 19900.3 | H13: 99.3821 | I13: 280 | J13: 0.052010125 | K13: 0.9581649679 | L13: 0.04419479578 | M13: 0.9581670704 | N13: 150.0078679 | O13: 0.04198207721
A14: 18873.9 | B14: 4.75187 | C14: 2831.23 | D14: 712.759 | E14: 1027.92 | F14: 0.0837674 | G14: 19901.8 | H14: 99.3215 | I14: 280 | J14: 0.059398375 | K14: 0.9485706532 | L14: 0.05437608113 | M14: 0.9485715626 | N14: 150.0076826 | O14: 0.05164954763
A15: 18625.7 | B15: 5.31813 | C15: 2793.99 | D15: 797.696 | E15: 1222.33 | F15: 0.114607 | G15: 19848 | H15: 196.228 | I15: 280 | J15: 0.066476625 | K15: 0.9360965362 | L15: 0.06466020239 | M15: 0.9360947221 | N15: 150.007248 | O15: 0.06158444944
A16: 18414.5 | B16: 5.89558 | C16: 2762.31 | D16: 884.31 | E16: 1436.38 | F16: 0.152503 | G16: 19850.9 | H16: 196.122 | I16: 280 | J16: 0.07369475 | K16: 0.9254819774 | L16: 0.07598326271 | M16: 0.9254806967 | N16: 150.0073312 | O16: 0.07235850501
A17: 18201.4 | B17: 6.44805 | C17: 2730.35 | D17: 967.179 | E17: 1652.72 | F17: 0.195597 | G17: 19854.1 | H17: 196.022 | I17: 280 | J17: 0.080600625 | K17: 0.9147719277 | L17: 0.08742746206 | M17: 0.9147728605 | N17: 150.0076917 | O17: 0.08324317572
A18: 17973.6 | B18: 7.01234 | C18: 2696.17 | D18: 1051.82 | E18: 1884.81 | F18: 0.246836 | G18: 19858.4 | H18: 195.934 | I18: 280 | J18: 0.08765425 | K18: 0.9033230806 | L18: 0.09970482281 | M18: 0.9033212384 | N18: 150.0072328 | O18: 0.09491243257
A19: 17738.1 | B19: 7.56957 | C19: 2660.84 | D19: 1135.4 | E19: 2124.39 | F19: 0.305269 | G19: 19862.5 | H19: 197.31 | I19: 280 | J19: 0.094619625 | K19: 0.8914872444 | L19: 0.1123783981 | M19: 0.8914843219 | N19: 150.007047 | O19: 0.1069548682
A20: 17510 | B20: 8.08401 | C20: 2626.63 | D20: 1212.57 | E20: 2354.04 | F20: 0.366882 | G20: 19864 | H20: 197.18 | I20: 280 | J20: 0.101050125 | K20: 0.8800233199 | L20: 0.124526685 | M20: 0.8800226486 | N20: 150.0074243 | O20: 0.1185076148
A21: 17259.3 | B21: 8.62687 | C21: 2589.02 | D21: 1293.99 | E21: 2604.67 | F21: 0.439863 | G21: 19864 | H21: 197.026 | I21: 280 | J21: 0.107835875 | K21: 0.8674235571 | L21: 0.1377847957 | M21: 0.8674218439 | N21: 150.0072425 | O21: 0.1311253491
A22: 17012.9 | B22: 9.14469 | C22: 2552.06 | D22: 1371.66 | E22: 2851.48 | F22: 0.518009 | G22: 19864.4 | H22: 196.873 | I22: 280 | J22: 0.114308625 | K22: 0.8550399051 | L22: 0.1508408318 | M22: 0.8550388142 | N22: 150.0073474 | O22: 0.1435473949
A23: 16755.1 | B23: 9.67213 | C23: 2513.39 | D23: 1450.78 | E23: 3110.23 | F23: 0.606412 | G23: 19865.3 | H23: 196.704 | I23: 280 | J23: 0.120901625 | K23: 0.8420833082 | L23: 0.1645284835 | M23: 0.8420828685 | N23: 150.0074604 | O23: 0.1565657354
A24: 16503.5 | B24: 10.1748 | C24: 2475.64 | D24: 1526.18 | E24: 3363.34 | F24: 0.699726 | G24: 19866.8 | H24: 196.551 | I24: 280 | J24: 0.127185 | K24: 0.8294383129 | L24: 0.1779177842 | M24: 0.8294351583 | N24: 150.0069682 | O24: 0.1692941605
A25: 16241.8 | B25: 10.6865 | C25: 2436.39 | D25: 1602.92 | E25: 3627.1 | F25: 0.803998 | G25: 19868.9 | H25: 196.381 | I25: 280 | J25: 0.13358125 | K25: 0.8162857085 | L25: 0.1918704606 | M25: 0.8162848901 | N25: 150.0073883 | O25: 0.1825516259
A26: 15979.2 | B26: 11.19 | C26: 2396.99 | D26: 1678.45 | E26: 3892.34 | F26: 0.916447 | G26: 19871.5 | H26: 196.214 | I26: 280 | J26: 0.139875 | K26: 0.8030878717 | L26: 0.2059014277 | M26: 0.8030843661 | N26: 150.0068839 | O26: 0.1958751058
A27: 15724.9 | B27: 11.6694 | C27: 2358.85 | D27: 1750.36 | E27: 4149.78 | F27: 1.03323 | G27: 19874.6 | H27: 196.051 | I27: 280 | J27: 0.1458675 | K27: 0.7903071789 | L27: 0.2195197816 | M27: 0.7903059908 | N27: 150.0073132 | O27: 0.208797324
A28: 15462.3 | B28: 12.1569 | C28: 2319.47 | D28: 1823.48 | E28: 4416.14 | F28: 1.16188 | G28: 19878.5 | H28: 195.881 | I28: 280 | J28: 0.15196125 | K28: 0.777109342 | L28: 0.2336099958 | M28: 0.7771121676 | N28: 150.0080842 | O28: 0.2221572719
A29: 15201.9 | B29: 12.6208 | C29: 2280.39 | D29: 1893.07 | E29: 4671.34 | F29: 1.29437 | G29: 19873.2 | H29: 195.665 | I29: 280 | J29: 0.15776 | K29: 0.7640220735 | L29: 0.2471098556 | M29: 0.764018856 | N29: 150.006907 | O29: 0.2350567899
A30: 14934.2 | B30: 13.0921 | C30: 2240.24 | D30: 1963.76 | E30: 4933.97 | F30: 1.4392 | G30: 19868.2 | H30: 195.441 | I30: 280 | J30: 0.16365125 | K30: 0.7505679191 | L30: 0.261002756 | M30: 0.750567053 | N30: 150.0073656 | O30: 0.2483354028
A31: 14668.7 | B31: 13.5551 | C31: 2200.41 | D31: 2033.21 | E31: 5194.98 | F31: 1.59216 | G31: 19863.7 | H31: 195.217 | I31: 280 | J31: 0.16943875 | K31: 0.7372243331 | L31: 0.2748099598 | M31: 0.7372224623 | N31: 150.0071581 | O31: 0.2615315994
A32: 14431.2 | B32: 13.9659 | C32: 2164.79 | D32: 2094.82 | E32: 5428.81 | F32: 1.73763 | G32: 19860 | H32: 195.015 | I32: 280 | J32: 0.17457375 | K32: 0.7252879802 | L32: 0.2871793651 | M32: 0.7252883845 | N32: 150.0076224 | O32: 0.2733538402
A33: 14170.8 | B33: 14.4133 | C33: 2125.72 | D33: 2161.93 | E33: 5685.69 | F33: 1.90594 | G33: 19856.5 | H33: 194.8 | I33: 280 | J33: 0.18016625 | K33: 0.7122007117 | L33: 0.3007680955 | M33: 0.7121984233 | N33: 150.0070568 | O33: 0.2863391264
A34: 13921.5 | B34: 14.8384 | C34: 2088.33 | D34: 2225.7 | E34: 5931.58 | F34: 2.07653 | G34: 19853.1 | H34: 196.082 | I34: 280 | J34: 0.18548 | K34: 0.6996713105 | L34: 0.3137754643 | M34: 0.6996713271 | N34: 150.0075423 | O34: 0.2987737923
A35: 13645.5 | B35: 15.27 | C35: 2046.93 | D35: 2290.44 | E35: 6173 | F35: 2.26042 | G35: 19818.5 | H35: 351.065 | I35: 280 | J35: 0.190875 | K35: 0.6858000121 | L35: 0.326546374 | M35: 0.6858007257 | N35: 150.0076948 | O35: 0.3114766506
A36: 13406.4 | B36: 15.6794 | C36: 2011.07 | D36: 2351.85 | E36: 6413.57 | F36: 2.44562 | G36: 19820 | H36: 351.065 | I36: 280 | J36: 0.1959925 | K36: 0.6737832459 | L36: 0.3392723195 | M36: 0.6737862386 | N36: 150.008205 | O36: 0.3235913072
A37: 13161.8 | B37: 16.0951 | C37: 1974.36 | D37: 2414.19 | E37: 6658.47 | F37: 2.64446 | G37: 19820.2 | H37: 351.065 | I37: 280 | J37: 0.20118875 | K37: 0.6614900589 | L37: 0.3522273182 | M37: 0.6614869687 | N37: 150.006838 | O37: 0.3359424468
A38: 12914.4 | B38: 16.5031 | C38: 1937.25 | D38: 2475.39 | E38: 6896.38 | F38: 2.85089 | G38: 19810.8 | H38: 385.2 | I38: 280 | J38: 0.20628875 | K38: 0.6490561486 | L38: 0.3648125519 | M38: 0.6490536832 | N38: 150.006969 | O38: 0.3481124923
A39: 12682.2 | B39: 16.8906 | C39: 1902.42 | D39: 2533.51 | E39: 7124.4 | F39: 3.0578 | G39: 19806.5 | H39: 385.058 | I39: 280 | J39: 0.2111325 | K39: 0.6373861649 | L39: 0.3768746132 | M39: 0.637384286 | N39: 150.0070966 | O39: 0.3596982824
A40: 12446.4 | B40: 17.2838 | C40: 1867.06 | D40: 2592.49 | E40: 7356.26 | F40: 3.27867 | G40: 19802.7 | H40: 384.903 | I40: 280 | J40: 0.2160475 | K40: 0.6255352512 | L40: 0.3891398071 | M40: 0.6255373183 | N40: 150.0080345 | O40: 0.3714783771
A41: 12222.6 | B41: 17.6572 | C41: 1833.49 | D41: 2648.5 | E41: 7576.79 | F41: 3.49938 | G41: 19799.4 | H41: 384.701 | I41: 280 | J41: 0.220715 | K41: 0.6142874374 | L41: 0.4008056539 | M41: 0.6142900698 | N41: 150.0081816 | O41: 0.3826779512
A42: 11995.8 | B42: 18.0361 | C42: 1799.45 | D42: 2705.34 | E42: 7800.76 | F42: 3.73428 | G42: 19796.5 | H42: 384.452 | I42: 280 | J42: 0.22545125 | K42: 0.6028888487 | L42: 0.4126534736 | M42: 0.6028853531 | N42: 150.006669 | O42: 0.3940462383
A43: 11773.4 | B43: 18.408 | C43: 1766.1 | D43: 2761.12 | E43: 8020.63 | F43: 3.97612 | G43: 19794.1 | H43: 384.174 | I43: 280 | J43: 0.2301 | K43: 0.5917113966 | L43: 0.4242844069 | M43: 0.5917118131 | N43: 150.0076444 | O43: 0.4052044985
A44: 11576.7 | B44: 18.7377 | C44: 1736.6 | D44: 2810.57 | E44: 8215.48 | F44: 4.20071 | G44: 19792.2 | H44: 383.895 | I44: 280 | J44: 0.23422125 | K44: 0.5818255835 | L44: 0.4345918038 | M44: 0.5818281721 | N44: 150.0082061 | O44: 0.4150871708
A45: 11363.1 | B45: 19.0966 | C45: 1704.55 | D45: 2864.41 | E45: 8427.46 | F45: 4.45541 | G45: 19790.5 | H45: 383.588 | I45: 280 | J45: 0.2387075 | K45: 0.5710904047 | L45: 0.4458053629 | M45: 0.5710901824 | N45: 150.0074804 | O45: 0.425832316
A46: 11160.7 | B46: 19.4375 | C46: 1674.19 | D46: 2915.54 | E46: 8628.57 | F46: 4.70826 | G46: 19789.3 | H46: 383.253 | I46: 280 | J46: 0.24296875 | K46: 0.5609181191 | L46: 0.4564439084 | M46: 0.560918408 | N46: 150.007616 | O46: 0.4360226527
A47: 10954.9 | B47: 19.7835 | C47: 1643.31 | D47: 2967.44 | E47: 8831.48 | F47: 4.97577 | G47: 19786.4 | H47: 382.907 | I47: 280 | J47: 0.24729375 | K47: 0.5505749553 | L47: 0.4671776723 | M47: 0.5505724136 | N47: 150.0068463 | O47: 0.4463413722
A48: 10755.5 | B48: 20.1122 | C48: 1613.41 | D48: 3016.74 | E48: 9019.97 | F48: 5.24073 | G48: 19775.5 | H48: 381.961 | I48: 280 | J48: 0.2514025 | K48: 0.5405534447 | L48: 0.4771486307 | M48: 0.540554757 | N48: 150.0079029 | O48: 0.4561191213
A49: 10554.3 | B49: 20.4457 | C49: 1583.23 | D49: 3066.76 | E49: 9210.57 | F49: 5.52037 | G49: 19764.9 | H49: 382.151 | I49: 280 | J49: 0.25557125 | K49: 0.5304414692 | L49: 0.4872312063 | M49: 0.5304432897 | N49: 150.0080536 | O49: 0.4660071126
A50: 10353.2 | B50: 20.7729 | C50: 1553.05 | D50: 3115.84 | E50: 9392.61 | F50: 5.80592 | G50: 19745.8 | H50: 430.875 | I50: 280 | J50: 0.25966125 | K50: 0.5203345194 | L50: 0.4968609652 | M50: 0.5203318223 | N50: 150.0067612 | O50: 0.4756761055
A51: 10167.2 | B51: 21.0835 | C51: 1525.16 | D51: 3162.43 | E51: 9568.19 | F51: 6.08772 | G51: 19735.4 | H51: 437.231 | I51: 280 | J51: 0.26354375 | K51: 0.5109864705 | L51: 0.5061489957 | M51: 0.5109875935 | N51: 150.0078684 | O51: 0.4848239634
A52: 9975.16 | B52: 21.3987 | C52: 1496.35 | D52: 3209.71 | E52: 9741.21 | F52: 6.38436 | G52: 19716.4 | H52: 381.246 | I52: 280 | J52: 0.26748375 | K52: 0.5013348612 | L52: 0.5153016044 | M52: 0.5013351291 | N52: 150.0076189 | O52: 0.4940671128
A53: 9797.54 | B53: 21.698 | C53: 1469.7 | D53: 3254.6 | E53: 9908.13 | F53: 6.67662 | G53: 19705.7 | H53: 380.932 | I53: 280 | J53: 0.271225 | K53: 0.492407977 | L53: 0.5241315284 | M53: 0.4924063483 | N53: 150.0070426 | O53: 0.5028060452
A54: 9618.28 | B54: 22.0017 | C54: 1442.81 | D54: 3300.16 | E54: 10076.6 | F54: 6.9838 | G54: 19694.9 | H54: 380.626 | I54: 280 | J54: 0.27502125 | K54: 0.4833986692 | L54: 0.5330434461 | M54: 0.4833971582 | N54: 150.0070699 | O54: 0.5116355114
A55: 9443.33 | B55: 22.2999 | C55: 1416.57 | D55: 3344.89 | E55: 10240.9 | F55: 7.2962 | G55: 19684.3 | H55: 380.308 | I55: 280 | J55: 0.27874875 | K55: 0.4746059747 | L55: 0.5417347743 | M55: 0.4746057432 | N55: 150.0074656 | O55: 0.520259111
A56: 9289.01 | B56: 22.5644 | C56: 1393.42 | D56: 3384.55 | E56: 10385.8 | F56: 7.58297 | G56: 19674.8 | H56: 379.808 | I56: 280 | J56: 0.282055 | K56: 0.4668501096 | L56: 0.5493998593 | M56: 0.4668495978 | N56: 150.0073743 | O56: 0.5278729502
A57: 9121.98 | B57: 22.8523 | C57: 1368.36 | D57: 3427.75 | E57: 10542.5 | F57: 7.90495 | G57: 19664.5 | H57: 379.455 | I57: 280 | J57: 0.28565375 | K57: 0.4584554611 | L57: 0.5576891541 | M57: 0.4584535285 | N57: 150.0069064 | O57: 0.5361189312
A58: 8966.7 | B58: 23.126 | C58: 1345.07 | D58: 3468.8 | E58: 10693.5 | F58: 8.22125 | G58: 19660.2 | H58: 659.575 | I58: 280 | J58: 0.289075 | K58: 0.4506513479 | L58: 0.5656769238 | M58: 0.4506504776 | N58: 150.007249 | O58: 0.5439161351
A59: 8811.71 | B59: 23.404 | C59: 1321.82 | D59: 3510.5 | E59: 10848.1 | F59: 8.55278 | G59: 19659.8 | H59: 651.358 | I59: 280 | J59: 0.29255 | K59: 0.4428618097 | L59: 0.5738551304 | M59: 0.4428608283 | N59: 150.0072063 | O59: 0.5517906836
A60: 8663.18 | B60: 23.6684 | C60: 1299.54 | D60: 3550.15 | E60: 10991.8 | F60: 8.87825 | G60: 19655 | H60: 662.395 | I60: 280 | J60: 0.295855 | K60: 0.4353969403 | L60: 0.5814567364 | M60: 0.4353961665 | N60: 150.0072722 | O60: 0.5592374045
A61: 8512.15 | B61: 23.937 | C61: 1276.89 | D61: 3590.44 | E61: 11135.4 | F61: 9.21902 | G61: 19647.6 | H61: 667.035 | I61: 280 | J61: 0.2992125 | K61: 0.427806425 | L61: 0.5890530525 | M61: 0.4278075404 | N61: 150.0079298 | O61: 0.5667576873
A62: 8364.91 | B62: 24.2009 | C62: 1254.8 | D62: 3630.02 | E62: 11275.8 | F62: 9.56425 | G62: 19640.7 | H62: 665.258 | I62: 280 | J62: 0.30251125 | K62: 0.4204063888 | L62: 0.5964800914 | M62: 0.4204065359 | N62: 150.0075912 | O62: 0.574103482
A63: 8225.9 | B63: 24.4518 | C63: 1233.95 | D63: 3667.66 | E63: 11408.4 | F63: 9.90255 | G63: 19634.3 | H63: 669.604 | I63: 280 | J63: 0.3056475 | K63: 0.4134199787 | L63: 0.603494517 | M63: 0.4134209795 | N63: 150.0079019 | O63: 0.5810443968
A64: 8083.25 | B64: 24.7068 | C64: 1212.55 | D64: 3705.92 | E64: 11538.9 | F64: 10.2562 | G64: 19622.1 | H64: 802.76 | I64: 280 | J64: 0.308835 | K64: 0.4062506282 | L64: 0.6103978544 | M64: 0.4062511517 | N64: 150.007732 | O64: 0.5880548258
A65: 7945.63 | B65: 24.9494 | C65: 1191.9 | D65: 3742.29 | E65: 11657.7 | F65: 10.6024 | G65: 19603.3 | H65: 825.69 | I65: 280 | J65: 0.3118675 | K65: 0.3993340772 | L65: 0.6166822719 | M65: 0.3993326029 | N65: 150.006985 | O65: 0.5946795774
A66: 7821.24 | B66: 25.1957 | C66: 1173.24 | D66: 3779.24 | E66: 11798.8 | F66: 10.9638 | G66: 19620.1 | H66: 797.161 | I66: 280 | J66: 0.31494625 | K66: 0.3930824438 | L66: 0.6241463402 | M66: 0.3930807812 | N66: 150.0069043 | O66: 0.6013647271
A67: 7688.68 | B67: 25.4382 | C67: 1153.36 | D67: 3815.61 | E67: 11920.4 | F67: 11.3296 | G67: 19609.1 | H67: 809.166 | I67: 280 | J67: 0.3179775 | K67: 0.3864201998 | L67: 0.6305788753 | M67: 0.3864202122 | N67: 150.0075436 | O67: 0.6079020535
A68: 7575.85 | B68: 25.6612 | C68: 1136.43 | D68: 3849.06 | E68: 12044.4 | F68: 11.6754 | G68: 19620.3 | H68: 789.104 | I68: 280 | J68: 0.320765 | K68: 0.3807495527 | L68: 0.6371383683 | M68: 0.3807480074 | N68: 150.0069299 | O68: 0.61387597
A69: 7442.31 | B69: 25.896 | C69: 1116.4 | D69: 3884.29 | E69: 12149.3 | F69: 12.0488 | G69: 19591.6 | H69: 828.826 | I69: 280 | J69: 0.3237 | K69: 0.3740380556 | L69: 0.6426874878 | M69: 0.3740371826 | N69: 150.0071886 | O69: 0.6201276975
A70: 7326.78 | B70: 26.1193 | C70: 1099.07 | D70: 3917.78 | E70: 12265.1 | F70: 12.4133 | G70: 19591.9 | H70: 825.236 | I70: 280 | J70: =B70/$B$2 -> 0.32649125 | K70: 0.368231711 | L70: 0.6488132079 | M70: 0.3682309623 | N70: 150.0072337 | O70: 0.6260297634
A71: 7210.34 | B71: 26.3465 | C71: 1081.61 | D71: 3951.85 | E71: 12382.7 | F71: 12.7935 | G71: 19593 | H71: 820.409 | I71: 280 | J71: 0.32933125 | K71: =A71/$A$6 -> 0.3623796313 | L71: =E71/$L$3 -> 0.6550341464 | M71: =C71/$N$3 -> 0.3623811869 | N71: =C71*1000/A71 -> 150.0081827 | O71: =E71/(E71+A71) -> 0.6319948308
A72: 7085.99 | B72: 26.5628 | C72: 1062.95 | D72: 3984.3 | E72: 12469 | F72: 13.165 | G72: 19554.9 | H72: 879.816 | I72: 280 | J72: 0.332035 | K72: 0.3561300082 | L72: 0.6595993419 | M72: 0.3561293651 | N72: 150.0072679 | O72: 0.637637759
A73: 6984.92 | B73: 26.7825 | C73: 1047.79 | D73: 4017.25 | E73: 12598.7 | F73: 13.5516 | G73: 19583.6 | H73: 830.152 | I73: 280 | J73: 0.33478125 | K73: 0.3510503991 | L73: 0.66646036 | M73: 0.3510501787 | N73: 150.0074446 | O73: 0.6433284551
A74: 6870.87 | B74: 26.999 | C74: 1030.68 | D74: 4049.73 | E74: 12698.6 | F74: 13.9422 | G74: 19569.5 | H74: 820.396 | I74: 280 | J74: 0.3374875 | K74: 0.3453184368 | L74: 0.6717449838 | M74: 0.3453176669 | N74: 150.0072043 | O74: 0.6488985139
A75: 6756.33 | B75: 27.2052 | C75: 1013.5 | D75: 4080.65 | E75: 12779.9 | F75: 14.3232 | G75: 19536.3 | H75: 907.09 | I75: 280 | J75: 0.340065 | K75: 0.3395618479 | L75: 0.6760456837 | M75: 0.3395617024 | N75: 150.0074745 | O75: 0.6541640839
A76: 6668.29 | B76: 27.4146 | C76: 1000.29 | D76: 4112.07 | E76: 12914.4 | F76: 14.7194 | G76: 19582.7 | H76: 785.77 | I76: 280 | J76: 0.3426825 | K76: 0.3351371047 | L76: 0.6831606177 | M76: 0.3351358414 | N76: 150.0069733 | O76: 0.659480388
A77: 6567.92 | B77: 27.6147 | C77: 985.237 | D77: 4142.08 | E77: 13009.8 | F77: 15.1069 | G77: 19577.7 | H77: 790.211 | I77: 280 | J77: 0.34518375 | K77: 0.3300926764 | L77: 0.6882071953 | M77: 0.3300925042 | N77: 150.0074605 | O77: 0.6645206898
A78: 6464.17 | B78: 27.8183 | C78: 969.674 | D78: 4172.62 | E78: 13101.5 | F78: 15.5102 | G78: 19565.7 | H78: 802.265 | I78: 280 | J78: 0.34772875 | K78: 0.3248783748 | L78: 0.6930580462 | M78: 0.3248782972 | N78: 150.0075029 | O78: 0.6696167318
A79: 6350.14 | B79: 28.0187 | C79: 952.569 | D79: 4202.68 | E79: 13164.5 | F79: 15.9164 | G79: 19514.6 | H79: 928.746 | I79: 280 | J79: 0.35023375 | K79: 0.3191474177 | L79: 0.6963906919 | M79: 0.3191474606 | N79: 150.0075589 | O79: 0.6745960981
A80: 6265.52 | B80: 28.1965 | C80: 939.874 | D80: 4229.36 | E80: 13252.3 | F80: 16.285 | G80: 19517.8 | H80: 912.992 | I80: 280 | J80: 0.35245625 | K80: 0.314894558 | L80: 0.7010352361 | M80: 0.3148941445 | N80: 150.0073418 | O80: 0.6789846407
A81: 6169.09 | B81: 28.3908 | C81: 925.409 | D81: 4258.49 | E81: 13337.7 | F81: 16.6959 | G81: 19506.8 | H81: 924.648 | I81: 280 | J81: 0.354885 | K81: 0.3100481475 | L81: 0.7055528224 | M81: 0.31004781 | N81: 150.0073755 | O81: 0.6837465313
A82: 6084.28 | B82: 28.5759 | C82: 912.688 | D82: 4286.25 | E82: 13432.4 | F82: 17.096 | G82: 19516.7 | H82: 732.139 | I82: 280 | J82: 0.35719875 | K82: 0.3057857387 | L82: 0.7105623707 | M82: 0.305785783 | N82: 150.0075605 | O82: 0.6882523052
A83: 5996.75 | B83: 28.7645 | C83: 899.557 | D83: 4314.55 | E83: 13524.8 | F83: 17.5125 | G83: 19521.5 | H83: 816.371 | I83: 280 | J83: 0.35955625 | K83: 0.3013866273 | L83: 0.715450251 | M83: 0.3013863901 | N83: 150.0074207 | O83: 0.6928138391
A84: 5900.24 | B84: 28.9444 | C84: 885.08 | D84: 4341.53 | E84: 13581 | F84: 17.9182 | G84: 19481.3 | H84: 900.843 | I84: 280 | J84: 0.361805 | K84: 0.296536196 | L84: 0.7184231825 | M84: 0.2965360351 | N84: 150.0074573 | O84: 0.6971322154
A85: 5818.41 | B85: 29.1273 | C85: 872.805 | D85: 4368.97 | E85: 13673.4 | F85: 18.3393 | G85: 19491.8 | H85: 857.097 | I85: 280 | J85: 0.36409125 | K85: 0.2924235571 | L85: 0.7233110628 | M85: 0.2924234353 | N85: 150.0074763 | O85: 0.7014946277
A86: 5680.24 | B86: 29.3077 | C86: 852.078 | D86: 4396.03 | E86: 13624.9 | F86: 18.7632 | G86: 19305.1 | H86: 1502.74 | I86: 280 | J86: 0.36634625 | K86: 0.2854793639 | L86: 0.7207454546 | M86: 0.2854790886 | N86: 150.0073941 | O86: 0.7057654076
A87: 5658.49 | B87: 29.4782 | C87: 848.816 | D87: 4421.59 | E87: 13838.3 | F87: 19.172 | G87: 19496.7 | H87: 809.223 | I87: 280 | J87: 0.3684775 | K87: 0.2843862453 | L87: 0.7320341305 | M87: 0.2843861924 | N87: 150.0075108 | O87: 0.7097732499
A88: 5545.94 | B88: 29.6536 | C88: 831.932 | D88: 4447.9 | E88: 13836.6 | F88: 19.601 | G88: 19382.5 | H88: 1183.79 | I88: 280 | J88: 0.37067 | K88: 0.2787296705 | L88: 0.731944202 | M88: 0.2787293993 | N88: 150.0073928 | O88: 0.7138692865
A89: 5486.09 | B89: 29.82 | C89: 822.954 | D89: 4472.86 | E89: 13949.4 | F89: 20.0161 | G89: 19435.5 | H89: 1018.3 | I89: 280 | J89: 0.37275 | K89: 0.2757217096 | L89: 0.7379112247 | M89: 0.275721422 | N89: 150.0073823 | O89: 0.7177282384
A90: 5408.33 | B90: 29.9901 | C90: 811.29 | D90: 4498.37 | E90: 14021.4 | F90: 20.4486 | G90: 19429.7 | H90: 964.293 | I90: 280 | J90: 0.37487625 | K90: 0.271813622 | L90: 0.7417199625 | M90: 0.2718135309 | N90: 150.0074884 | O90: 0.7216466724
A91: 5335.29 | B91: 30.1577 | C91: 800.333 | D91: 4523.52 | E91: 14099.8 | F91: 20.8833 | G91: 19435.1 | H91: 929.51 | I91: 280 | J91: 0.37697125 | K91: 0.2681427538 | L91: 0.7458672549 | M91: 0.2681425121 | N91: 150.0074035 | O91: 0.7254815903
A92: 5265.11 | B92: 30.3071 | C92: 789.805 | D92: 4545.93 | E92: 14154.5 | F92: 21.2781 | G92: 19419.6 | H92: 971.436 | I92: 280 | J92: 0.37883875 | K92: 0.2646156243 | L92: 0.7487608377 | M92: 0.2646152248 | N92: 150.0073123 | O92: 0.7288766355
A93: 5196.41 | B93: 30.4704 | C93: 779.5 | D93: 4570.42 | E93: 14233.9 | F93: 21.7169 | G93: 19430.3 | H93: 913.743 | I93: 280 | J93: 0.38088 | K93: 0.2611628772 | L93: 0.7529610292 | M93: 0.2611626512 | N93: 150.007409 | O93: 0.7325616524
A94: 5122.1 | B94: 30.6263 | C94: 768.353 | D94: 4593.8 | E94: 14284.1 | F94: 22.144 | G94: 19406.2 | H94: 994.538 | I94: 280 | J94: 0.38282875 | K94: 0.2574281808 | L94: 0.7556165659 | M94: 0.2574279751 | N94: 150.0074188 | O94: 0.7360585792
A95: 5055.2 | B95: 30.7851 | C95: 758.318 | D95: 4617.62 | E95: 14357.6 | F95: 22.5868 | G95: 19412.8 | H95: 949.308 | I95: 280 | J95: 0.38481375 | K95: 0.2540658987 | L95: 0.7595046525 | M95: 0.2540658619 | N95: 150.007517 | O95: 0.7395944944
A96: 4994.28 | B96: 30.9367 | C96: 749.18 | D96: 4640.37 | E96: 14435 | F96: 23.0176 | G96: 19429.3 | H96: 860.036 | I96: 280 | J96: 0.38670875 | K96: 0.2510041614 | L96: 0.7635990457 | M96: 0.2510042784 | N96: 150.0076087 | O96: 0.7429508453
A97: 4926.63 | B97: 31.0916 | C97: 739.031 | D97: 4663.59 | E97: 14496.5 | F97: 23.4651 | G97: 19423.2 | H97: 864.436 | I97: 280 | J97: 0.388645 | K97: 0.2476041855 | L97: 0.7668523426 | M97: 0.2476039709 | N97: 150.0074087 | O97: 0.7463524159
A98: 4860.27 | B98: 31.2443 | C98: 729.077 | D98: 4686.5 | E98: 14556.5 | F98: 23.9145 | G98: 19416.7 | H98: 871.316 | I98: 280 | J98: 0.39055375 | K98: 0.2442690429 | L98: 0.7700262909 | M98: 0.2442689959 | N98: 150.0075099 | O98: 0.7496869974
A99: 4798 | B99: 31.3901 | C99: 719.736 | D99: 4708.38 | E99: 14615.2 | F99: 24.3513 | G99: 19413.2 | H99: 865.459 | I99: 280 | J99: 0.39237625 | K99: 0.2411394568 | L99: 0.7731314702 | M99: 0.2411393995 | N99: 150.0075031 | O99: 0.7528485773
A100: 4736.78 | B100: 31.5389 | C100: 710.553 | D100: 4730.69 | E100: 14680.4 | F100: 24.8044 | G100: 19417.2 | H100: 811.52 | I100: 280 | J100: 0.39423625 | K100: 0.238062642 | L100: 0.776580494 | M100: 0.2380627393 | N100: 150.0076001 | O100: 0.7560521147
A101: 4676.83 | B101: 31.681 | C101: 701.56 | D101: 4752.01 | E101: 14736.6 | F101: 25.2448 | G101: 19413.4 | H101: 799.382 | I101: 280 | J101: 0.3960125 | K101: 0.2350496552 | L101: 0.7795534255 | M101: 0.2350497365 | N101: 150.0075906 | O101: 0.7590930608
A102: 4608.15 | B102: 31.826 | C102: 691.256 | D102: 4773.75 | E102: 14768 | F102: 25.7017 | G102: 19376.2 | H102: 1137.43 | I102: 280 | J102: 0.397825 | K102: 0.2315979133 | L102: 0.7812144584 | M102: 0.2315974979 | N102: 150.0072697 | O102: 0.7621741161
A103: 4553.56 | B103: 31.9688 | C103: 683.068 | D103: 4795.18 | E103: 14839.1 | F103: 26.1595 | G103: 19392.6 | H103: 877.684 | I103: 280 | J103: 0.39961 | K103: 0.2288543112 | L103: 0.784975587 | M103: 0.2288542012 | N103: 150.0074667 | O103: 0.7651915725
A104: 4499.88 | B104: 32.0964 | C104: 675.015 | D104: 4814.31 | E104: 14885 | F104: 26.5751 | G104: 19384.9 | H104: 908.079 | I104: 280 | J104: 0.401205 | K104: 0.2261564441 | L104: 0.7874036574 | M104: 0.2261561347 | N104: 150.0073335 | O104: 0.7678665021
A105: 4442.69 | B105: 32.2359 | C105: 666.437 | D105: 4835.23 | E105: 14938.7 | F105: 27.0365 | G105: 19381.4 | H105: 903.506 | I105: 280 | J105: 0.40294875 | K105: 0.2232821704 | L105: 0.7902443411 | M105: 0.2232821729 | N105: 150.0075405 | O105: 0.7707754707
A106: 4387.24 | B106: 32.3691 | C106: 658.119 | D106: 4855.23 | E106: 14985.7 | F106: 27.4847 | G106: 19372.9 | H106: 947.972 | I106: 280 | J106: 0.40461375 | K106: 0.2204953461 | L106: 0.7927306006 | M106: 0.2204953212 | N106: 150.0075218 | O106: 0.7735377284
A107: 4333.65 | B107: 32.5052 | C107: 650.08 | D107: 4875.63 | E107: 15042.2 | F107: 27.9493 | G107: 19375.8 | H107: 875.939 | I107: 280 | J107: 0.406315 | K107: 0.2178020023 | L107: 0.7957194018 | M107: 0.2178019452 | N107: 150.0074995 | O107: 0.7763375542
A108: 4280.67 | B108: 32.6352 | C108: 642.132 | D108: 4895.13 | E108: 15088.6 | F108: 28.4006 | G108: 19369.2 | H108: 887.502 | I108: 280 | J108: 0.40794 | K108: 0.2151393161 | L108: 0.7981739218 | M108: 0.2151390578 | N108: 150.0073587 | O108: 0.7789968336
A109: 4226.81 | B109: 32.7679 | C109: 634.053 | D109: 4915.04 | E109: 15135 | F109: 28.8684 | G109: 19361.8 | H109: 875.488 | I109: 280 | J109: 0.40959875 | K109: 0.2124324025 | L109: 0.8006284418 | M109: 0.2124322803 | N109: 150.0074524 | O109: 0.781693447
A110: 4174.24 | B110: 32.8989 | C110: 626.168 | D110: 4934.69 | E110: 15181.4 | F110: 29.3376 | G110: 19355.7 | H110: 1180.04 | I110: 280 | J110: 0.41123625 | K110: 0.2097903223 | L110: 0.8030829617 | M110: 0.2097905003 | N110: 150.0076661 | O110: 0.7843398617
A111: 4123.86 | B111: 33.0242 | C111: 618.61 | D111: 4953.48 | E111: 15223.7 | F111: 29.7931 | G111: 19347.5 | H111: 1222.1 | I111: 280 | J111: 0.4128025 | K111: 0.2072583077 | L111: 0.8053205952 | M111: 0.207258278 | N111: 150.0075172 | O111: 0.7868537428
A112: 4071.22 | B112: 33.152 | C112: 610.713 | D112: 4972.66 | E112: 15260.6 | F112: 30.2651 | G112: 19331.8 | H112: 1125.04 | I112: 280 | J112: 0.4144 | K112: 0.2046127093 | L112: 0.8072725734 | M112: 0.2046124775 | N112: 150.0073688 | O112: 0.7894031705
A113: 4027.08 | B113: 33.2742 | C113: 604.092 | D113: 4990.98 | E113: 15317.5 | F113: 30.7229 | G113: 19344.5 | H113: 1198.63 | I113: 280 | J113: 0.4159275 | K113: 0.2023943067 | L113: 0.8102825343 | M113: 0.2023941864 | N113: 150.0074496 | O113: 0.7918238597
A114: 3977.52 | B114: 33.399 | C114: 596.658 | D114: 5009.7 | E114: 15357.3 | F114: 31.1978 | G114: 19334.8 | H114: 1278.76 | I114: 280 | J114: 0.4174875 | K114: 0.199903504 | L114: 0.81238792 | M114: 0.1999035089 | N114: 150.0075424 | O114: 0.7942820259
A115: 3927.7 | B115: 33.5223 | C115: 589.184 | D115: 5028.2 | E115: 15391.6 | F115: 31.6739 | G115: 19319.3 | H115: 1158.84 | I115: 280 | J115: 0.41902875 | K115: 0.1973996341 | L115: 0.8142023604 | M115: 0.1973994298 | N115: 150.0073835 | O115: 0.7966955324
A116: 3887.2 | B116: 33.6362 | C116: 583.108 | D116: 5045.29 | E116: 15443.6 | F116: 32.1203 | G116: 19330.8 | H116: 1280.48 | I116: 280 | J116: 0.4204525 | K116: 0.1953641718 | L116: 0.8169531155 | M116: 0.1953637347 | N116: 150.0072031 | O116: 0.7989115815
A117: 3841.9 | B117: 33.7568 | C117: 576.313 | D117: 5063.36 | E117: 15487.7 | F117: 32.5991 | G117: 19329.6 | H117: 1267.6 | I117: 280 | J117: 0.42196 | K117: 0.1930874696 | L117: 0.8192859674 | M117: 0.1930871469 | N117: 150.0072881 | O117: 0.8012426538
A118: 3796.54 | B118: 33.872 | C118: 569.51 | D118: 5080.65 | E118: 15520.2 | F118: 33.0638 | G118: 19316.7 | H118: 1548.76 | I118: 280 | J118: 0.4234 | K118: 0.1908077518 | L118: 0.8210051894 | M118: 0.1908078788 | N118: 150.0076385 | O118: 0.8034585546
A119: 3744.66 | B119: 33.9897 | C119: 561.727 | D119: 5098.31 | E119: 15528.6 | F119: 33.5449 | G119: 19273.3 | H119: 1584.72 | I119: 280 | J119: 0.42487125 | K119: 0.1882003498 | L119: 0.8214495422 | M119: 0.1882002727 | N119: 150.0074773 | O119: 0.8057069743
A120: 3712.59 | B120: 34.1021 | C120: 556.916 | D120: 5115.16 | E120: 15607.8 | F120: 34.0108 | G120: 19320.4 | H120: 1446.22 | I120: 280 | J120: 0.42627625 | K120: 0.1865885652 | L120: 0.8256391538 | M120: 0.1865884016 | N120: 150.0074072 | O120: 0.8078408355
A121: 3670.71 | B121: 34.2172 | C121: 550.633 | D121: 5132.42 | E121: 15650.2 | F121: 34.4947 | G121: 19320.9 | H121: 1319.27 | I121: 280 | J121: 0.427715 | K121: 0.1844837465 | L121: 0.8278820772 | M121: 0.1844833536 | N121: 150.0072193 | O121: 0.810013607
A122: 3629.19 | B122: 34.331 | C122: 544.405 | D122: 5149.49 | E122: 15690.3 | F122: 34.9799 | G122: 19319.5 | H122: 1312.21 | I122: 280 | J122: 0.4291375 | K122: 0.1823970207 | L122: 0.8300033326 | M122: 0.1823967327 | N122: 150.0073019 | O122: 0.8121487679
A123: 3589.69 | B123: 34.4399 | C123: 538.48 | D123: 5165.82 | E123: 15728.4 | F123: 35.4507 | G123: 19318.1 | H123: 1307.47 | I123: 280 | J123: 0.43049875 | K123: 0.1804118167 | L123: 0.8320187898 | M123: 0.1804116285 | N123: 150.0073823 | O123: 0.8141798697
A124: 3549.55 | B124: 34.5511 | C124: 532.459 | D124: 5182.52 | E124: 15767.1 | F124: 35.9383 | G124: 19316.7 | H124: 1315.94 | I124: 280 | J124: 0.43188875 | K124: 0.1783944475 | L124: 0.8340659864 | M124: 0.1783943606 | N124: 150.0074657 | O124: 0.8162440175
A125: 3430.33 | B125: 34.6576 | C125: 514.575 | D125: 5198.49 | E125: 15439.2 | F125: 36.4113 | G125: 18869.5 | H125: 1945.75 | I125: 280 | J125: 0.43322 | K125: 0.1724026496 | L125: 0.8167203593 | M125: 0.1724025289 | N125: 150.0074337 | O125: 0.8182079787
A126: 3359.24 | B126: 34.764 | C126: 503.911 | D126: 5214.44 | E126: 15319.5 | F126: 36.89 | G126: 18678.8 | H126: 2152.46 | I126: 280 | J126: 0.43455 | K126: 0.1688297851 | L126: 0.8103883326 | M126: 0.1688296764 | N126: 150.0074422 | O126: 0.8201570341
A127: 3438.04 | B127: 34.8681 | C127: 515.732 | D127: 5230.06 | E127: 15882.8 | F127: 37.3649 | G127: 19320.9 | H127: 1545.87 | I127: 280 | J127: 0.43585125 | K127: 0.1727901413 | L127: 0.8401864166 | M127: 0.1727901686 | N127: 150.0075624 | O127: 0.8220553558
A128: 3404.32 | B128: 34.9644 | C128: 510.674 | D128: 5244.5 | E128: 15916.6 | F128: 37.8097 | G128: 19320.9 | H128: 1546.44 | I128: 280 | J128: 0.437055 | K128: 0.1710954305 | L128: 0.8419744074 | M128: 0.171095543 | N128: 150.0076374 | O128: 0.8238013511
A129: 3227.16 | B129: 35.07 | C129: 484.098 | D129: 5260.34 | E129: 15288.2 | F129: 38.3031 | G129: 18515.3 | H129: 2368.11 | I129: 280 | J129: 0.438375 | K129: 0.1621916652 | L129: 0.8087325896 | M129: 0.162191555 | N129: 150.0074369 | O129: 0.825703632
A130: 3195.96 | B130: 35.1668 | C130: 479.418 | D130: 5274.86 | E130: 15324.8 | F130: 38.7618 | G130: 18520.8 | H130: 2360.83 | I130: 280 | J130: 0.439585 | K130: 0.1606236053 | L130: 0.810668698 | M130: 0.160623574 | N130: 150.0075095 | O130: 0.8274390468
A131: 3164.56 | B131: 35.2659 | C131: 474.707 | D131: 5289.72 | E131: 15364 | F131: 39.2369 | G131: 18528.5 | H131: 2350.52 | I131: 280 | J131: 0.44082375 | K131: 0.1590454938 | L131: 0.8127423442 | M131: 0.1590452068 | N131: 150.007268 | O131: 0.8292063711
A132: 3266.11 | B132: 35.3608 | C132: 489.941 | D132: 5303.96 | E132: 16047.4 | F132: 39.6979 | G132: 19313.5 | H132: 1421.19 | I132: 280 | J132: 0.44201 | K132: 0.164149227 | L132: 0.8488936145 | M132: 0.164149186 | N132: 150.0075013 | O132: 0.8308898797
A133: 3232.48 | B133: 35.4621 | C133: 484.896 | D133: 5319.15 | E133: 16086.2 | F133: 40.1954 | G133: 19318.7 | H133: 1549.04 | I133: 280 | J133: 0.44327625 | K133: 0.1624590395 | L133: 0.8509461011 | M133: 0.1624589159 | N133: 150.0074246 | O133: 0.8326759385
A134: 3199.04 | B134: 35.5623 | C134: 479.88 | D134: 5334.18 | E134: 16122.7 | F134: 40.6941 | G134: 19321.8 | H134: 1546.4 | I134: 280 | J134: =B134/$B$2 -> 0.44452875 | K134: 0.160778401 | L134: 0.8528769196 | M134: 0.1607783619 | N134: 150.0075023 | O134: 0.8344331308
A135: 3166.74 | B135: 35.6583 | C135: 475.034 | D135: 5348.58 | E135: 16155.3 | F135: 41.1778 | G135: 19322 | H135: 1546.36 | I135: 280 | J135: 0.44572875 | K135: =A135/$A$6 -> 0.159155057 | L135: =E135/$L$3 -> 0.8546014315 | M135: =C135/$N$3 -> 0.1591547644 | N135: =C135*1000/A135 -> 150.007263 | O135: =E135/(E135+A135) -> 0.8361073675
A136: 3132.78 | B136: 35.7564 | C136: 469.941 | D136: 5363.3 | E136: 16182.8 | F136: 41.6787 | G136: 19315.5 | H136: 1552.2 | I136: 280 | J136: 0.446955 | K136: 0.1574482842 | L136: 0.8560561577 | M136: 0.1574484124 | N136: 150.0076609 | O136: 0.8378107207
A137: 3102.7 | B137: 35.8504 | C137: 465.428 | D137: 5377.4 | E137: 16220.5 | F137: 42.1642 | G137: 19323.2 | H137: 1546.08 | I137: 280 | J137: 0.44813 | K137: 0.1559365137 | L137: 0.8580504552 | M137: 0.1559363829 | N137: 150.0074129 | O137: 0.8394313571
A138: 3070.87 | B138: 35.9466 | C138: 460.653 | D138: 5391.83 | E138: 16252.7 | F138: 42.6671 | G138: 19323.6 | H138: 1545.1 | I138: 280 | J138: 0.4493325 | K138: 0.1543367911 | L138: 0.8597538074 | M138: 0.1543365732 | N138: 150.0073269 | O138: 0.8410816428
A139: 3038.42 | B139: 36.0418 | C139: 455.786 | D139: 5406.11 | E139: 16278.5 | F139: 43.171 | G139: 19316.9 | H139: 1551.73 | I139: 280 | J139: 0.4505225 | K139: 0.1527059084 | L139: 0.8611186052 | M139: 0.1527059399 | N139: 150.0075697 | O139: 0.8427068083
A140: 3009.71 | B140: 36.1269 | C140: 451.479 | D140: 5418.87 | E140: 16301.9 | F140: 43.6268 | G140: 19311.6 | H140: 1437.5 | I140: 280 | J140: 0.45158625 | K140: 0.1512629918 | L140: 0.862356445 | M140: 0.1512629283 | N140: 150.0074758 | O140: 0.8441502288
A141: 2980.54 | B141: 36.2202 | C141: 447.103 | D141: 5432.87 | E141: 16339.2 | F141: 44.1322 | G141: 19319.8 | H141: 1538.91 | I141: 280 | J141: 0.4527525 | K141: 0.1497969564 | L141: 0.8643295828 | M141: 0.149796799 | N141: 150.0073812 | O141: 0.8457256671
A142: 2865.74 | B142: 36.3096 | C142: 429.883 | D142: 5446.28 | E142: 15892.6 | F142: 44.6224 | G142: 18758.3 | H142: 2068.43 | I142: 280 | J142: 0.45387 | K142: 0.1440273003 | L142: 0.8407048281 | M142: 0.144027433 | N142: 150.0076769 | O142: 0.8472284861
A143: 2921.49 | B143: 36.3985 | C143: 438.246 | D143: 5459.61 | E143: 16389.4 | F143: 45.1151 | G143: 19310.9 | H143: 1557.54 | I143: 280 | J143: 0.45498125 | K143: 0.1468292021 | L143: 0.8669851195 | M143: 0.1468293614 | N143: 150.0077015 | O143: 0.8487128247
A144: 2895.33 | B144: 36.4861 | C144: 434.321 | D144: 5472.76 | E144: 16428.7 | F144: 45.6068 | G144: 19324 | H144: 1546.7 | I144: 280 | J144: 0.45607625 | K144: 0.1455144442 | L144: 0.8690640556 | M144: 0.1455143346 | N144: 150.0074258 | O144: 0.8501694522
A145: 2866.27 | B145: 36.5759 | C145: 429.962 | D145: 5486.22 | E145: 16455.2 | F145: 46.1162 | G145: 19321.5 | H145: 1549.33 | I145: 280 | J145: 0.45719875 | K145: 0.1440539372 | L145: 0.8704658827 | M145: 0.144053901 | N145: 150.007501 | O145: 0.8516536268
A146: 2838.13 | B146: 36.6648 | C146: 425.74 | D146: 5499.55 | E146: 16484 | F146: 46.6263 | G146: 19322.1 | H146: 1549.06 | I146: 280 | J146: 0.45831 | K146: 0.1426396679 | L146: 0.8719893779 | M146: 0.1426393677 | N146: 150.0072231 | O146: 0.8531150551
A147: 2811.13 | B147: 36.7499 | C147: 421.69 | D147: 5512.32 | E147: 16510.4 | F147: 47.1209 | G147: 19321.5 | H147: 1549.73 | I147: 280 | J147: 0.45937375 | K147: 0.141282693 | L147: 0.8733859151 | M147: 0.1412824611 | N147: 150.0072924 | O147: 0.8545078987
A148: 2783.8 | B148: 36.8371 | C148: 417.591 | D148: 5525.39 | E148: 16538.3 | F148: 47.6327 | G148: 19322.1 | H148: 1549.51 | I148: 280 | J148: 0.46046375 | K148: 0.1399091329 | L148: 0.874861801 | M148: 0.1399091375 | N148: 150.0075436 | O148: 0.8559266332
A149: 2757.53 | B149: 36.9206 | C149: 413.65 | D149: 5537.92 | E149: 16563.6 | F149: 48.1289 | G149: 19321.2 | H149: 1550.53 | I149: 280 | J149: 0.4615075 | K149: 0.1385888467 | L149: 0.8762001492 | M149: 0.1385887501 | N149: 150.0074342 | O149: 0.8572790515
A150: 2731.17 | B150: 37.0061 | C150: 409.696 | D150: 5550.74 | E150: 16591.8 | F150: 48.6424 | G150: 19323 | H150: 1549.33 | I150: 280 | J150: 0.46257625 | K150: 0.1372640372 | L150: 0.8776919048 | M150: 0.1372640071 | N150: 150.0075059 | O150: 0.8586568214
A151: 2704.96 | B151: 37.0907 | C151: 405.765 | D151: 5563.44 | E151: 16618.1 | F151: 49.1568 | G151: 19323.1 | H151: 1549.5 | I151: 280 | J151: 0.46363375 | K151: 0.1359467664 | L151: 0.8790831522 | M151: 0.1359469701 | N151: 150.0077635 | O151: 0.8600138901
A152: 2581.67 | B152: 37.1665 | C152: 387.269 | D152: 5574.81 | E152: 16021.2 | F152: 49.6222 | G152: 18602.8 | H152: 2263.26 | I152: 280 | J152: 0.46458125 | K152: 0.1297504171 | L152: 0.8475076572 | M152: 0.1297500946 | N152: 150.0071659 | O152: 0.8612219512
A153: 2553.2 | B153: 37.2465 | C153: 382.998 | D153: 5586.81 | E153: 16014.5 | F153: 50.1189 | G153: 18567.7 | H153: 2312.11 | I153: 280 | J153: 0.46558125 | K153: 0.1283195626 | L153: 0.8471532329 | M153: 0.1283191444 | N153: 150.00705 | O153: 0.8624923927
A154: 2530.48 | B154: 37.3231 | C154: 379.591 | D154: 5598.3 | E154: 16035.4 | F154: 50.5993 | G154: 18565.9 | H154: 2315.32 | I154: 280 | J154: 0.46653875 | K154: 0.1271776933 | L154: 0.8482588249 | M154: 0.1271776677 | N154: 150.0075085 | O154: 0.8637026632
A155: 2507.9 | B155: 37.4016 | C155: 376.204 | D155: 5610.07 | E155: 16060.3 | F155: 51.0965 | G155: 18568.2 | H155: 2312.74 | I155: 280 | J155: 0.46752 | K155: 0.1260428603 | L155: 0.8495760134 | M155: 0.1260428917 | N155: 150.0075761 | O155: 0.8649357504
A156: 2486.22 | B156: 37.4768 | C156: 372.952 | D156: 5621.35 | E156: 16083.4 | F156: 51.5783 | G156: 18569.6 | H156: 2311.56 | I156: 280 | J156: 0.46846 | K156: 0.1249532598 | L156: 0.8507979835 | M156: 0.1249533459 | N156: 150.0076421 | O156: 0.8661135769
A157: 2463.88 | B157: 37.5539 | C157: 369.6 | D157: 5632.92 | E157: 16105.3 | F157: 52.0769 | G157: 18569.2 | H157: 2312.84 | I157: 280 | J157: 0.46942375 | K157: 0.1238304887 | L157: 0.8519564746 | M157: 0.1238302962 | N157: 150.0073056 | O157: 0.8673134732
A158: 2442.09 | B158: 37.6303 | C158: 366.332 | D158: 5644.37 | E158: 16128.6 | F158: 52.5763 | G158: 18570.7 | H158: 2311.44 | I158: 280 | J158: 0.47037875 | K158: 0.1227353597 | L158: 0.8531890245 | M158: 0.1227353898 | N158: 150.0075755 | O158: 0.8684976164
A159: 2421.5 | B159: 37.7036 | C159: 363.242 | D159: 5655.36 | E159: 16152.2 | F159: 53.0601 | G159: 18573.7 | H159: 2307.89 | I159: 280 | J159: 0.471295 | K159: 0.1217005408 | L159: 0.8544374441 | M159: 0.1217001203 | N159: 150.0070204 | O159: 0.869627484
A160: 2400.31 | B160: 37.7786 | C160: 360.064 | D160: 5666.62 | E160: 16175.1 | F160: 53.5609 | G160: 18575.4 | H160: 2306.22 | I160: 280 | J160: 0.4722325 | K160: 0.1206355668 | L160: 0.8556488344 | M160: 0.1206353674 | N160: 150.0072907 | O160: 0.8707802412
A161: 2379.97 | B161: 37.8506 | C161: 357.014 | D161: 5677.43 | E161: 16196.3 | F161: 54.0462 | G161: 18576.3 | H161: 2305.66 | I161: 280 | J161: 0.4731325 | K161: 0.1196133124 | L161: 0.8567702961 | M161: 0.1196134994 | N161: 150.0077732 | O161: 0.8718811688
A162: 2359.11 | B162: 37.9244 | C162: 353.884 | D162: 5688.49 | E162: 16217.1 | F162: 54.5483 | G162: 18576.2 | H162: 2306.5 | I162: 280 | J162: 0.474055 | K162: 0.1185649237 | L162: 0.8578705981 | M162: 0.1185648283 | N162: 150.0074181 | O162: 0.8730036967
A163: 2338.71 | B163: 37.9976 | C163: 350.824 | D163: 5699.46 | E163: 16238.9 | F163: 55.0511 | G163: 18577.6 | H163: 2305.28 | I163: 280 | J163: 0.47497 | K163: 0.1175396538 | L163: 0.8590237993 | M163: 0.1175396099 | N163: 150.0074828 | O163: 0.8741113631
A164: 2320.1 | B164: 38.0654 | C164: 348.032 | D164: 5709.64 | E164: 16260.6 | F164: 55.5221 | G164: 18580.7 | H164: 2301.67 | I164: 280 | J164: 0.4758175 | K164: 0.1166043463 | L164: 0.8601717106 | M164: 0.116604182 | N164: 150.0073273 | O164: 0.8751338755
A165: 2300.21 | B165: 38.1373 | C165: 345.049 | D165: 5720.43 | E165: 16281.8 | F165: 56.0262 | G165: 18582.1 | H165: 2300.41 | I165: 280 | J165: 0.47671625 | K165: 0.1156047082 | L165: 0.8612931723 | M165: 0.1156047616 | N165: 150.007608 | O165: 0.8762130684
A166: 2281.12 | B166: 38.2063 | C166: 342.184 | D166: 5730.78 | E166: 16301.4 | F166: 56.5147 | G166: 18582.5 | H166: 2300.4 | I166: 280 | J166: 0.47757875 | K166: 0.1146452767 | L166: 0.8623299954 | M166: 0.1146448758 | N166: 150.0070141 | O166: 0.8772437753
A167: 2261.58 | B167: 38.2771 | C167: 339.254 | D167: 5741.39 | E167: 16321 | F167: 57.0201 | G167: 18582.6 | H167: 2301 | I167: 280 | J167: 0.47846375 | K167: 0.113663229 | L167: 0.8633668185 | M167: 0.1136632124 | N167: 150.0075169 | O167: 0.8782956941
A168: 2331.05 | B168: 38.3449 | C168: 349.675 | D168: 5751.56 | E168: 16981.8 | F168: 57.5097 | G168: 19312.8 | H168: 1562.17 | I168: 280 | J168: 0.47931125 | K168: 0.117154675 | L168: 0.8983225684 | M168: 0.1171546505 | N168: 150.0075073 | O168: 0.8793005693
A169: 2312.72 | B169: 38.4172 | C169: 346.925 | D169: 5762.4 | E169: 17018.9 | F169: 58.0362 | G169: 19331.6 | H169: 1544.66 | I169: 280 | J169: 0.480215 | K169: 0.1162334399 | L169: 0.9002851263 | M169: 0.1162332941 | N169: 150.0073507 | O169: 0.8803659497
A170: 2291.98 | B170: 38.4889 | C170: 343.813 | D170: 5773.16 | E170: 17036.1 | F170: 58.5638 | G170: 19328.1 | H170: 1528.37 | I170: 280 | J170: 0.48111125 | K170: 0.1151910822 | L170: 0.9011949915 | M170: 0.1151906538 | N170: 150.0069809 | O170: 0.8814170885
A171: 2271.68 | B171: 38.5576 | C171: 340.769 | D171: 5783.47 | E171: 17048.9 | F171: 59.075 | G171: 19320.6 | H171: 1495.57 | I171: 280 | J171: 0.48197 | K171: 0.1141708381 | L171: 0.9018721005 | M171: 0.114170796 | N171: 150.0074834 | O171: 0.8824217492
A172: 2253.14 | B172: 38.6281 | C172: 337.988 | D172: 5794.04 | E172: 17078 | F172: 59.6035 | G172: 19331.2 | H172: 1539.44 | I172: 280 | J172: 0.48285125 | K172: 0.1132390487 | L172: 0.9034114654 | M172: 0.1132390534 | N172: 150.007545 | O172: 0.8834450529
A173: 2234.22 | B173: 38.6957 | C173: 335.15 | D173: 5804.18 | E173: 17096.9 | F173: 60.1159 | G173: 19331.1 | H173: 1548.47 | I173: 280 | J173: 0.48369625 | K173: 0.1122881611 | L173: 0.9044112591 | M173: 0.1122882137 | N173: 150.0076089 | O173: 0.8844236651
A174: 2208.6 | B174: 38.7649 | C174: 331.306 | D174: 5814.57 | E174: 17067.2 | F174: 60.6459 | G174: 19275.8 | H174: 1594.78 | I174: 280 | J174: 0.48456125 | K174: 0.1110005428 | L174: 0.9028401547 | M174: 0.111000325 | N174: 150.0072444 | O174: 0.885421098
A175: 2189.43 | B175: 38.8334 | C175: 328.431 | D175: 5824.84 | E175: 17084.2 | F175: 61.1751 | G175: 19273.7 | H175: 1596.87 | I175: 280 | J175: 0.4854175 | K175: 0.1100370906 | L175: 0.90373944 | M175: 0.1100370888 | N175: 150.0075362 | O175: 0.8864028208
A176: 2172.18 | B176: 38.8947 | C176: 325.843 | D176: 5834.03 | E176: 17098.1 | F176: 61.6535 | G176: 19270.3 | H176: 1600 | I176: 280 | J176: 0.48618375 | K176: 0.1091701345 | L176: 0.904474738 | M176: 0.1091700087 | N176: 150.0073659 | O176: 0.8872782336
A177: 2153.8 | B177: 38.9621 | C177: 323.085 | D177: 5844.13 | E177: 17117 | F177: 62.1835 | G177: 19270.8 | H177: 1599.79 | I177: 280 | J177: 0.48702625 | K177: 0.1082463864 | L177: 0.9054745317 | M177: 0.108245972 | N177: 150.0069644 | O177: 0.8882350499
A178: 2136.11 | B178: 39.0267 | C178: 320.433 | D178: 5853.83 | E178: 17134.2 | F178: 62.6971 | G178: 19270.3 | H178: 1600.2 | I178: 280 | J178: 0.48783375 | K178: 0.1073573166 | L178: 0.9063843969 | M178: 0.1073574494 | N178: 150.0077243 | O178: 0.8891502005
A179: 2117.55 | B179: 39.0929 | C179: 317.649 | D179: 5863.76 | E179: 17147.5 | F179: 63.2283 | G179: 19265.1 | H179: 1603.81 | I179: 280 | J179: 0.48866125 | K179: 0.106424522 | L179: 0.9070879554 | M179: 0.1064247017 | N179: 150.007792 | O179: 0.8900833374
A180: 2099.74 | B180: 39.1564 | C180: 314.977 | D180: 5873.29 | E180: 17159.4 | F180: 63.7428 | G180: 19259.2 | H180: 1608.03 | I180: 280 | J180: 0.489455 | K180: 0.1055294212 | L180: 0.9077174551 | M180: 0.1055294784 | N180: 150.00762 | O180: 0.8909743633
A181: 2089.79 | B181: 39.2215 | C181: 313.484 | D181: 5883.05 | E181: 17239.3 | F181: 64.2748 | G181: 19329.1 | H181: 1548.6 | I181: 280 | J181: 0.49026875 | K181: 0.1050293509 | L181: 0.9119440962 | M181: 0.1050292656 | N181: 150.007417 | O181: 0.8918836841
A182: 2071.46 | B182: 39.2863 | C182: 310.735 | D182: 5892.77 | E182: 17249.1 | F182: 64.8092 | G182: 19320.6 | H182: 1554.77 | I182: 280 | J182: 0.49107875 | K182: 0.1041081157 | L182: 0.9124625077 | M182: 0.1041082443 | N182: 150.007724 | O182: 0.8927846812
A183: 2033.67 | B183: 39.3485 | C183: 305.065 | D183: 5902.09 | E183: 17087.9 | F183: 65.3267 | G183: 19121.6 | H183: 1727.19 | I183: 280 | J183: 0.49185625 | K183: 0.1022088535 | L183: 0.9039351668 | M183: 0.102208575 | N183: 150.00713 | O183: 0.8936452394
A184: 2019.56 | B184: 39.4115 | C184: 302.949 | D184: 5911.55 | E184: 17125.8 | F184: 65.8565 | G184: 19145.4 | H184: 1705.25 | I184: 280 | J184: 0.49264375 | K184: 0.1014997085 | L184: 0.9059400441 | M184: 0.1014996331 | N184: 150.0074274 | O184: 0.8945143889
A185: 2006.13 | B185: 39.4721 | C185: 300.934 | D185: 5920.64 | E185: 17163.1 | F185: 66.3703 | G185: 19169.3 | H185: 1682.91 | I185: 280 | J185: 0.49340125 | K185: 0.1008247392 | L185: 0.9079131819 | M185: 0.1008245302 | N185: 150.0072278 | O185: 0.8953463441
A186: 1992.29 | B186: 39.5343 | C186: 298.859 | D186: 5929.97 | E186: 17200.7 | F186: 66.9024 | G186: 19193 | H186: 1660.87 | I186: 280 | J186: 0.49417875 | K186: 0.1001291639 | L186: 0.9099021895 | M186: 0.1001293249 | N186: 150.00778 | O186: 0.8961969969
A187: 1987.06 | B187: 39.5961 | C187: 298.073 | D187: 5939.23 | E187: 17311.8 | F187: 67.4357 | G187: 19298.9 | H187: 1568.91 | I187: 280 | J187: 0.49495125 | K187: 0.09986631285 | L187: 0.9157792836 | M187: 0.09986598453 | N187: 150.0070456 | O187: 0.8970374416
A188: 1967.06 | B188: 39.6517 | C188: 295.074 | D188: 5947.58 | E188: 17278.6 | F188: 67.9204 | G188: 19245.7 | H188: 1613.31 | I188: 280 | J188: 0.49564625 | K188: 0.09886114629 | L188: 0.9140230323 | M188: 0.09886120353 | N188: 150.0076256 | O188: 0.8977920217
A189: 1788.95 | B189: 39.7127 | C189: 268.356 | D189: 5956.73 | E189: 15856.3 | F189: 68.4561 | G189: 17645.2 | H189: 354.789 | I189: 280 | J189: 0.49640875 | K189: 0.08990963553 | L189: 0.8387845894 | M189: 0.08990964007 | N189: 150.0075463 | O189: 0.8986157748
A190: 1944.41 | B190: 39.7664 | C190: 291.676 | D190: 5964.78 | E190: 17371.7 | F190: 68.9319 | G190: 19316.1 | H190: 1552.48 | I190: 280 | J190: 0.49708 | K190: 0.09772279517 | L190: 0.918947942 | M190: 0.09772274209 | N190: 150.0074573 | O190: 0.8993373925
A191: 1929.43 | B191: 39.8266 | C191: 289.429 | D191: 5973.82 | E191: 17392.9 | F191: 69.4704 | G191: 19322.3 | H191: 1546.16 | I191: 280 | J191: 0.4978325 | K191: 0.09696992542 | L191: 0.9200694037 | M191: 0.09696991018 | N191: 150.0075152 | O191: 0.9001450653
A192: 1913.93 | B192: 39.8845 | C192: 287.103 | D192: 5982.5 | E192: 17402.5 | F192: 69.9922 | G192: 19316.4 | H192: 1550.76 | I192: 280 | J192: 0.49855625 | K192: 0.09619092134 | L192: 0.9205772354 | M192: 0.09619061021 | N192: 150.0070535 | O192: 0.9009169914
A193: 1897.31 | B193: 39.9439 | C193: 284.611 | D193: 5991.4 | E193: 17405 | F193: 70.5318 | G193: 19302.3 | H193: 1484.34 | I193: 280 | J193: 0.49929875 | K193: 0.09535562793 | L193: 0.9207094832 | M193: 0.09535569381 | N193: 150.0076424 | O193: 0.9017055472
A194: 1883.52 | B194: 40.0027 | C194: 282.541 | D194: 6000.22 | E194: 17431.4 | F194: 71.0714 | G194: 19314.9 | H194: 1526.98 | I194: 280 | J194: 0.50003375 | K194: 0.09466256559 | L194: 0.9221060205 | M194: 0.09466216375 | N194: 150.006902 | O194: 0.9024836758
A195: 1828.35 | B195: 40.0592 | C195: 274.267 | D195: 6008.7 | E195: 17065.1 | F195: 71.5943 | G195: 18893.5 | H195: 1926.92 | I195: 280 | J195: 0.50074 | K195: 0.09188981364 | L195: 0.9027290665 | M195: 0.09189005371 | N195: 150.0079306 | O195: 0.9032283675
A196: 1854.84 | B196: 40.1159 | C196: 278.24 | D196: 6017.2 | E196: 17460.8 | F196: 72.1234 | G196: 19315.7 | H196: 1548.54 | I196: 280 | J196: 0.50144875 | K196: 0.09322115675 | L196: 0.9236612551 | M196: 0.09322116238 | N196: 150.0075478 | O196: 0.9039721179
A197: 1840.98 | B197: 40.1715 | C197: 276.161 | D197: 6025.55 | E197: 17476.7 | F197: 72.6473 | G197: 19317.6 | H197: 1546.16 | I197: 280 | J197: 0.50214375 | K197: 0.09252457632 | L197: 0.9245023514 | M197: 0.09252461697 | N197: 150.0076046 | O197: 0.9046997362
A198: 1823.55 | B198: 40.2286 | C198: 273.546 | D198: 6034.11 | E198: 17461.6 | F198: 73.1891 | G198: 19285.1 | H198: 1572.66 | I198: 280 | J198: =B198/$B$2 -> 0.5028575 | K198: 0.09164857367 | L198: 0.9237035744 | M198: 0.09164849082 | N198: 150.0074031 | O198: 0.9054427889
A199: 1811.44 | B199: 40.2851 | C199: 271.73 | D199: 6042.59 | E199: 17495.3 | F199: 73.7304 | G199: 19306.7 | H199: 1553.91 | I199: 280 | J199: 0.50356375 | K199: =A199/$A$6 -> 0.09103994532 | L199: =E199/$L$3 -> 0.9254862753 | M199: =C199/$N$3 -> 0.09104006057 | N199: =C199*1000/A199 -> 150.0077287 | O199: =E199/(E199+A199) -> 0.9061757707
A200: 1797.89 | B200: 40.3359 | C200: 269.696 | D200: 6050.2 | E200: 17499.1 | F200: 74.2204 | G200: 19297 | H200: 1487.81 | I200: 280 | J200: 0.50419875 | K200: 0.09035894498 | L200: 0.925687292 | M200: 0.0903585919 | N200: 150.0069526 | O200: 0.9068305471
... 490 more rows

Sheet N - 45%
A1: Case: | B1: N - 45%
A2: N | B2: 30 | C2: [MSm3]
A3: Vaquifer | B3: =20.1014*(1-0.4545) -> 10.9653137 | C3: Mm3 | K3: qw_max [Sm3/d] | L3: =MAX(E6:E690) -> 18879.2 | M3: qg_max [1000 Sm3/d] | N3: =MAX(C6:C691) -> 2984.73
A4: Average Oil Rate | B4: Cum Oil Production | C4: Average Gas Rate | D4: Cum Gas Production | E4: Average Water Rate | F4: Cum Water Production | G4: Average Liquid Rate | H4: Average Gaslift Rate | I4: Reservoir Pressure | J4: RF | K4: qomax_n | L4: qwmax_n | M4: qgmax_n | N4: GOR | O4: WC
A5: sm3/d | B5: M sm3 | C5: 1000 sm3/d | D5: M sm3 | E5: sm3/d | F5: M sm3 | G5: sm3/d | H5: 1000 sm3/d | I5: bara
A6: 19897.2 | B6: 0 | C6: 2984.73 | D6: 0 | E6: 0 | F6: 0 | G6: 19897.2 | H6: 99.6948 | I6: 280 | J6: =B6/$B$2 -> 0 | K6: =A6/$A$6 -> 1 | L6: =E6/$L$3 -> 0 | M6: =C6/$N$3 -> 1 | N6: =C6*1000/A6 -> 150.0075387 | O6: =E6/(E6+A6) -> 0
A7: 19698.5 | B7: 0.616863 | C7: 2954.92 | D7: 92.5267 | E7: 199.106 | F7: 0 | G7: 19897.6 | H7: 99.6253 | I7: 280 | J7: 0.0205621 | K7: =A7/$A$6 -> 0.9900136703 | L7: =E7/$L$3 -> 0.01054631552 | M7: =C7/$N$3 -> 0.9900124969 | N7: =C7*1000/A7 -> 150.007361 | O7: =E7/(E7+A7) -> 0.01000653043
A8: 19365.6 | B8: 1.16846 | C8: 2904.99 | D8: 175.264 | E8: 532.885 | F8: 0.0055754 | G8: 19898.5 | H8: 99.4946 | I8: 280 | J8: 0.03894866667 | K8: 0.9732826729 | L8: 0.02822603712 | M8: 0.9732840156 | N8: 150.0077457 | O8: 0.0267801795
A9: 18885.6 | B9: 1.76885 | C9: 2832.98 | D9: 265.319 | E9: 1016.13 | F9: 0.0220961 | G9: 19901.7 | H9: 99.3176 | I9: 280 | J9: 0.05896166667 | K9: 0.9491586756 | L9: 0.05382272554 | M9: 0.9491578803 | N9: 150.0074131 | O9: 0.05105737039
A10: 18287.6 | B10: 2.33546 | C10: 2743.27 | D10: 350.308 | E10: 1565.19 | F10: 0.0525826 | G10: 19852.8 | H10: 196.06 | I10: 280 | J10: 0.07784866667 | K10: 0.9191041956 | L10: 0.08290552566 | M10: 0.9191015603 | N10: 150.0071086 | O10: 0.07883980035
A11: 17664.5 | B11: 2.90242 | C11: 2649.81 | D11: 435.35 | E11: 2199.61 | F11: 0.101107 | G11: 19864.1 | H11: 197.273 | I11: 280 | J11: 0.09674733333 | K11: 0.8877882315 | L11: 0.1165097038 | M11: 0.8877888452 | N11: 150.0076424 | O11: 0.1107328745
A12: 17008.9 | B12: 3.4324 | C12: 2551.46 | D12: 514.844 | E12: 2855.53 | F12: 0.167101 | G12: 19864.4 | H12: 196.871 | I12: 280 | J12: 0.1144133333 | K12: 0.8548388718 | L12: 0.1512527014 | M12: 0.854837791 | N12: 150.0073491 | O12: 0.1437509156
A13: 16307.3 | B13: 3.95971 | C13: 2446.22 | D13: 593.939 | E13: 3560.95 | F13: 0.255629 | G13: 19868.3 | H13: 196.423 | I13: 280 | J13: 0.1319903333 | K13: 0.819577629 | L13: 0.1886176321 | M13: 0.8195783203 | N13: 150.0076653 | O13: 0.1792281655
A14: 15597.2 | B14: 4.46528 | C14: 2339.69 | D14: 669.772 | E14: 4279.26 | F14: 0.366028 | G14: 19876.4 | H14: 195.968 | I14: 280 | J14: 0.1488426667 | K14: 0.7838891904 | L14: 0.2266653248 | M14: 0.7838866497 | N14: 150.0070525 | O14: 0.215292864
A15: 14898.1 | B15: 4.93323 | C15: 2234.83 | D15: 739.963 | E15: 4969.41 | F15: 0.494416 | G15: 19867.5 | H15: 195.411 | I15: 280 | J15: 0.164441 | K15: 0.7487535935 | L15: 0.2632214289 | M15: 0.7487544937 | N15: 150.0077191 | O15: 0.2501274694
A16: 14186.1 | B16: 5.39511 | C16: 2128.03 | D16: 809.243 | E16: 5670.52 | F16: 0.64848 | G16: 19856.7 | H16: 194.805 | I16: 280 | J16: 0.179837 | K16: 0.7129696641 | L16: 0.300358066 | M16: 0.7129723627 | N16: 150.0081065 | O16: 0.2855732748
A17: 13498.5 | B17: 5.82073 | C17: 2024.88 | D17: 873.084 | E17: 6320.87 | F17: 0.818609 | G17: 19819.4 | H17: 351.065 | I17: 280 | J17: 0.1940243333 | K17: 0.6784120379 | L17: 0.3348060299 | M17: 0.6784131228 | N17: 150.0077786 | O17: 0.3189238608
A18: 12833.6 | B18: 6.23922 | C18: 1925.14 | D18: 935.855 | E18: 6975.64 | F18: 1.01457 | G18: 19809.3 | H18: 385.158 | I18: 280 | J18: 0.207974 | K18: 0.6449952757 | L18: 0.3694881139 | M18: 0.6449963648 | N18: 150.007792 | O18: 0.3521407182
A19: 12197.6 | B19: 6.63709 | C19: 1829.74 | D19: 995.534 | E19: 7601.45 | F19: 1.23083 | G19: 19799.1 | H19: 384.676 | I19: 280 | J19: 0.2212363333 | K19: 0.6130309792 | L19: 0.4026362346 | M19: 0.6130336747 | N19: 150.0081983 | O19: 0.383930037
A20: 11633.6 | B20: 6.99085 | C20: 1745.13 | D20: 1048.6 | E20: 8159.09 | F20: 1.45129 | G20: 19792.7 | H20: 383.983 | I20: 280 | J20: 0.2330283333 | K20: 0.5846852824 | L20: 0.4321735031 | M20: 0.584686052 | N20: 150.0077362 | O20: 0.4122274436
A21: 11062.1 | B21: 7.35152 | C21: 1659.39 | D21: 1102.7 | E21: 8726.7 | F21: 1.70425 | G21: 19788.8 | H21: 383.079 | I21: 280 | J21: 0.2450506667 | K21: 0.555962648 | L21: 0.4622388661 | M21: 0.5559598356 | N21: 150.0067799 | O21: 0.4409918742
A22: 10529.3 | B22: 7.68341 | C22: 1579.47 | D22: 1152.48 | E22: 9236.32 | F22: 1.96607 | G22: 19765.6 | H22: 397.922 | I22: 280 | J22: 0.2561136667 | K22: 0.529185011 | L22: 0.4892325946 | M22: 0.5291835442 | N22: 150.007123 | O22: 0.4672921973
A23: 9998.44 | B23: 8.00985 | C23: 1499.84 | D23: 1201.44 | E23: 9719.33 | F23: 2.25242 | G23: 19717.8 | H23: 381.288 | I23: 280 | J23: 0.266995 | K23: 0.5025048751 | L23: 0.5148168355 | M23: 0.5025044141 | N23: 150.0074012 | O23: 0.4929223741
A24: 9525.56 | B24: 8.30982 | C24: 1428.9 | D24: 1246.44 | E24: 10163.7 | F24: 2.54402 | G24: 19689.2 | H24: 380.459 | I24: 280 | J24: 0.276994 | K24: 0.478738717 | L24: 0.5383543794 | M24: 0.4787367702 | N24: 150.0069287 | O24: 0.5162052815
A25: 9067.51 | B25: 8.60514 | C25: 1360.19 | D25: 1290.73 | E25: 10594.2 | F25: 2.85912 | G25: 19661.7 | H25: 380.126 | I25: 280 | J25: 0.286838 | K25: 0.45571789 | L25: 0.5611572524 | M25: 0.4557162624 | N25: 150.007003 | O25: 0.5388239375
A26: 8647.21 | B26: 8.88625 | C26: 1297.15 | D26: 1332.9 | E26: 11007 | F26: 3.18756 | G26: 19654.2 | H26: 662.453 | I26: 280 | J26: 0.2962083333 | K26: 0.4345943148 | L26: 0.5830225857 | M26: 0.434595424 | N26: 150.0079216 | O26: 0.5600326851
A27: 8261.46 | B27: 9.14569 | C27: 1239.28 | D27: 1371.81 | E27: 11375.8 | F27: 3.5178 | G27: 19637.3 | H27: 730.118 | I27: 280 | J27: 0.3048563333 | K27: 0.4152071648 | L27: 0.6025573118 | M27: 0.4152067356 | N27: 150.0073837 | O27: 0.5792967043
A28: 7889.5 | B28: 9.40182 | C28: 1183.48 | D28: 1410.23 | E28: 11736.1 | F28: 3.87048 | G28: 19625.6 | H28: 791.274 | I28: 280 | J28: 0.313394 | K28: 0.3965130772 | L28: 0.6216418069 | M28: 0.3965115773 | N28: 150.0069713 | O28: 0.5979995516
A29: 7547.96 | B29: 9.63852 | C29: 1132.25 | D29: 1445.73 | E29: 12056.4 | F29: 4.22259 | G29: 19604.3 | H29: 812.146 | I29: 280 | J29: 0.321284 | K29: 0.3793478479 | L29: 0.6386075681 | M29: 0.3793475457 | N29: 150.0074192 | O29: 0.6149856461
A30: 7221.64 | B30: 9.87253 | C30: 1083.3 | D30: 1480.83 | E30: 12374.6 | F30: 4.59637 | G30: 19596.2 | H30: 815.663 | I30: 280 | J30: 0.3290843333 | K30: 0.3629475504 | L30: 0.6554620959 | M30: 0.3629474023 | N30: 150.0074775 | O30: 0.6314782836
A31: 6913.78 | B31: 10.0964 | C31: 1037.12 | D31: 1514.42 | E31: 12670.2 | F31: 4.98001 | G31: 19584 | H31: 827.899 | I31: 280 | J31: 0.3365466667 | K31: 0.3474750216 | L31: 0.671119539 | M31: 0.347475316 | N31: 150.0076658 | O31: 0.6469675725
A32: 6655.32 | B32: 10.29 | C32: 998.348 | D32: 1543.46 | E32: 12926.2 | F32: 5.33481 | G32: 19581.5 | H32: 787.317 | I32: 280 | J32: 0.343 | K32: 0.3344852542 | L32: 0.6846794356 | M32: 0.3344851963 | N32: 150.0075128 | O32: 0.6601224011
A33: 6363.1 | B33: 10.4963 | C33: 954.512 | D33: 1574.41 | E33: 13149.1 | F33: 5.73555 | G33: 19512.2 | H33: 935.062 | I33: 280 | J33: 0.3498766667 | K33: 0.3197987657 | L33: 0.6964860799 | M33: 0.3197984407 | N33: 150.0073863 | O33: 0.6738912065
A34: 6128.59 | B34: 10.6873 | C34: 919.334 | D34: 1603.04 | E34: 13413.7 | F34: 6.13005 | G34: 19542.3 | H34: 792.883 | I34: 280 | J34: 0.3562433333 | K34: 0.3080126852 | L34: 0.7105015043 | M34: 0.30801245 | N34: 150.0074242 | O34: 0.6863934575
A35: 5883.2 | B35: 10.8773 | C35: 882.524 | D35: 1631.54 | E35: 13636.7 | F35: 6.54591 | G35: 19519.9 | H35: 797.115 | I35: 280 | J35: 0.3625766667 | K35: 0.2956797941 | L35: 0.7223134455 | M35: 0.2956796762 | N35: 150.0074789 | O35: 0.6986050133
A36: 5659.16 | B36: 11.0538 | C36: 848.915 | D36: 1658.02 | E36: 13837.6 | F36: 6.95504 | G36: 19496.8 | H36: 809.271 | I36: 280 | J36: 0.36846 | K36: 0.2844199184 | L36: 0.7329547862 | M36: 0.2844193612 | N36: 150.0072449 | O36: 0.7097384386
A37: 5429.64 | B37: 11.2292 | C37: 814.486 | D37: 1684.33 | E37: 14003.7 | F37: 7.38405 | G37: 19433.3 | H37: 1018.19 | I37: 280 | J37: 0.3743066667 | K37: 0.272884627 | L37: 0.7417528285 | M37: 0.2728843145 | N37: 150.007367 | O37: 0.7206018111
A38: 5224.88 | B38: 11.3975 | C38: 783.771 | D38: 1709.58 | E38: 14186.2 | F38: 7.81819 | G38: 19411 | H38: 996.699 | I38: 280 | J38: 0.3799166667 | K38: 0.2625937318 | L38: 0.7514195517 | M38: 0.2625936014 | N38: 150.0074643 | O38: 0.7308300208
A39: 5043.24 | B39: 11.5543 | C39: 756.524 | D39: 1733.09 | E39: 14367.4 | F39: 8.24381 | G39: 19410.6 | H39: 956.018 | I39: 280 | J39: 0.3851433333 | K39: 0.2534648091 | L39: 0.761017416 | M39: 0.2534648025 | N39: 150.0075348 | O39: 0.7401816736
A40: 4867.04 | B40: 11.7107 | C40: 730.092 | D40: 1756.55 | E40: 14549.9 | F40: 8.68924 | G40: 19417 | H40: 872.69 | I40: 280 | J40: 0.3903566667 | K40: 0.2446092918 | L40: 0.7706841392 | M40: 0.2446090601 | N40: 150.0073967 | O40: 0.7493405243
A41: 4703.47 | B41: 11.8567 | C41: 705.555 | D41: 1778.45 | E41: 14711.8 | F41: 9.12577 | G41: 19415.3 | H41: 804.014 | I41: 280 | J41: 0.3952233333 | K41: 0.2363885371 | L41: 0.7792597144 | M41: 0.236388216 | N41: 150.007335 | O41: 0.7577437759
A42: 4537.59 | B42: 12.0025 | C42: 680.673 | D42: 1800.32 | E42: 14852.8 | F42: 9.58187 | G42: 19390.3 | H42: 886.243 | I42: 280 | J42: 0.4000833333 | K42: 0.2280516857 | L42: 0.7867282512 | M42: 0.2280517836 | N42: 150.0076032 | O42: 0.7659876877
A43: 4382.07 | B43: 12.1432 | C43: 657.343 | D43: 1821.42 | E43: 14990.4 | F43: 10.0423 | G43: 19372.4 | H43: 949.492 | I43: 280 | J43: 0.4047733333 | K43: 0.2202355105 | L43: 0.7940166956 | M43: 0.2202353312 | N43: 150.0074166 | O43: 0.7737991077
A44: 4250.66 | B44: 12.2659 | C44: 637.631 | D44: 1839.83 | E44: 15114.5 | F44: 10.4621 | G44: 19365.2 | H44: 881.103 | I44: 280 | J44: 0.4088633333 | K44: 0.2136310637 | L44: 0.8005900674 | M44: 0.2136310487 | N44: 150.0075282 | O44: 0.7804996189
A45: 4107.12 | B45: 12.3977 | C45: 616.099 | D45: 1859.59 | E45: 15227.6 | F45: 10.9307 | G45: 19334.7 | H45: 1127.33 | I45: 280 | J45: 0.4132566667 | K45: 0.2064169833 | L45: 0.8065807873 | M45: 0.2064169958 | N45: 150.0075479 | O45: 0.7875779944
A46: 3979.44 | B46: 12.5209 | C46: 596.946 | D46: 1878.08 | E46: 15346.3 | F46: 11.3876 | G46: 19325.8 | H46: 955.883 | I46: 280 | J46: 0.4173633333 | K46: 0.2 | L46: 0.81286813 | M46: 0.2 | N46: 150.0075387 | O46: 0.7940860221
A47: 3856.4 | B47: 12.6443 | C47: 578.489 | D47: 1896.58 | E47: 15473.5 | F47: 11.8633 | G47: 19329.9 | H47: 1273.87 | I47: 280 | J47: 0.4214766667 | K47: 0.1938162153 | L47: 0.8196057036 | M47: 0.1938161911 | N47: 150.00752 | O47: 0.8004956053
A48: 3741.56 | B48: 12.76 | C48: 561.262 | D48: 1913.94 | E48: 15585.5 | F48: 12.3276 | G48: 19327.1 | H48: 1214.4 | I48: 280 | J48: 0.4253333333 | K48: 0.188044549 | L48: 0.8255381584 | M48: 0.1880444797 | N48: 150.0074835 | O48: 0.8064082173
A49: 3627.46 | B49: 12.876 | C49: 544.146 | D49: 1931.34 | E49: 15692.3 | F49: 12.8108 | G49: 19319.8 | H49: 1282.36 | I49: 280 | J49: 0.4292 | K49: 0.1823100738 | L49: 0.8311951778 | M49: 0.1823099577 | N49: 150.0074432 | O49: 0.8122409388
A50: 3446.03 | B50: 12.9884 | C50: 516.93 | D50: 1948.21 | E50: 15468 | F50: 13.2973 | G50: 18914 | H50: 1902.21 | I50: 280 | J50: 0.4329466667 | K50: 0.1731917054 | L50: 0.8193143777 | M50: 0.173191545 | N50: 150.0073998 | O50: 0.8178056184
A51: 3422.87 | B51: 13.0918 | C51: 513.456 | D51: 1963.71 | E51: 15898.2 | F51: 13.7613 | G51: 19321.1 | H51: 1545.94 | I51: 280 | J51: 0.4363933333 | K51: 0.1720277225 | L51: 0.8421013602 | M51: 0.1720276206 | N51: 150.0074499 | O51: 0.8228426272
A52: 3187.11 | B52: 13.1979 | C52: 478.09 | D52: 1979.63 | E52: 15335.5 | F52: 14.2542 | G52: 18522.6 | H52: 2358.41 | I52: 280 | J52: 0.43993 | K52: 0.1601788191 | L52: 0.8122960719 | M52: 0.1601786426 | N52: 150.0073735 | O52: 0.8279340762
A53: 3236.76 | B53: 13.2936 | C53: 485.538 | D53: 1993.97 | E53: 16081.9 | F53: 14.7143 | G53: 19318.7 | H53: 1549.03 | I53: 280 | J53: 0.44312 | K53: 0.1626741451 | L53: 0.8518316454 | M53: 0.1626740107 | N53: 150.0074148 | O53: 0.8324542178
A54: 3146.06 | B54: 13.3939 | C54: 471.932 | D54: 2009.02 | E54: 16170.1 | F54: 15.2129 | G54: 19316.2 | H54: 1551.57 | I54: 280 | J54: 0.4464633333 | K54: 0.1581157148 | L54: 0.8565034535 | M54: 0.1581154744 | N54: 150.0073107 | O54: 0.8371280834
A55: 3060.79 | B55: 13.4914 | C55: 459.142 | D55: 2023.65 | E55: 16262.9 | F55: 15.7142 | G55: 19323.7 | H55: 1545.34 | I55: 280 | J55: 0.4497133333 | K55: 0.1538301872 | L55: 0.8614189161 | M55: 0.1538303297 | N55: 150.0076778 | O55: 0.8416042692
A56: 2985.82 | B56: 13.5771 | C56: 447.895 | D56: 2036.51 | E56: 16337.6 | F56: 16.1696 | G56: 19323.4 | H56: 1546.76 | I56: 280 | J56: 0.45257 | K56: 0.1500623203 | L56: 0.8653756515 | M56: 0.1500621497 | N56: 150.0073682 | O56: 0.8454818039
A57: 2821.91 | B57: 13.6697 | C57: 423.307 | D57: 2050.4 | E57: 15942.3 | F57: 16.6761 | G57: 18764.2 | H57: 2062.6 | I57: 280 | J57: 0.4556566667 | K57: 0.1418244778 | L57: 0.8444372643 | M57: 0.1418242186 | N57: 150.0072646 | O57: 0.8496121073
A58: 2833.82 | B58: 13.7544 | C58: 425.093 | D58: 2063.09 | E58: 16488.2 | F58: 17.1544 | G58: 19322 | H58: 1549.13 | I58: 280 | J58: 0.45848 | K58: 0.1424230545 | L58: 0.8733526844 | M58: 0.1424225977 | N58: 150.0070576 | O58: 0.8533372805
A59: 2752.6 | B59: 13.8422 | C59: 412.911 | D59: 2076.27 | E59: 16516.7 | F59: 17.6656 | G59: 19269.3 | H59: 1593.61 | I59: 280 | J59: 0.4614066667 | K59: 0.1383410731 | L59: 0.8748622823 | M59: 0.1383411565 | N59: 150.0076292 | O59: 0.8571510122
A60: 2595.32 | B60: 13.9248 | C60: 389.317 | D60: 2088.66 | E60: 16033.9 | F60: 18.1612 | G60: 18629.3 | H60: 2228.26 | I60: 280 | J60: 0.46416 | K60: 0.1304364433 | L60: 0.8492891648 | M60: 0.1304362539 | N60: 150.0073209 | O60: 0.8606855252
A61: 2523.54 | B61: 14.0053 | C61: 378.549 | D61: 2100.73 | E61: 16043.5 | F61: 18.6582 | G61: 18567 | H61: 2313.98 | I61: 280 | J61: 0.4668433333 | K61: 0.1268289005 | L61: 0.8497976609 | M61: 0.1268285574 | N61: 150.0071328 | O61: 0.8640849592
A62: 2463.27 | B62: 14.0835 | C62: 369.509 | D62: 2112.46 | E62: 16106 | F62: 19.1556 | G62: 18569.3 | H62: 2312.74 | I62: 280 | J62: 0.46945 | K62: 0.1237998311 | L62: 0.8531081826 | M62: 0.1237998077 | N62: 150.0075103 | O62: 0.8673469663
A63: 2407.51 | B63: 14.1574 | C63: 361.144 | D63: 2123.55 | E63: 16167.4 | F63: 19.6388 | G63: 18574.9 | H63: 2306.67 | I63: 280 | J63: 0.4719133333 | K63: 0.1209974268 | L63: 0.856360439 | M63: 0.1209972091 | N63: 150.0072689 | O63: 0.8703891432
A64: 2351.37 | B64: 14.2321 | C64: 352.722 | D64: 2134.74 | E64: 16225.4 | F64: 20.1401 | G64: 18576.7 | H64: 2306.06 | I64: 280 | J64: 0.4744033333 | K64: 0.1181759243 | L64: 0.8594326031 | M64: 0.1181755134 | N64: 150.0070172 | O64: 0.8734241744
A65: 2299.4 | B65: 14.3026 | C65: 344.927 | D65: 2145.33 | E65: 16282.7 | F65: 20.6269 | G65: 18582.1 | H65: 2300.37 | I65: 280 | J65: 0.4767533333 | K65: 0.115563999 | L65: 0.8624676893 | M65: 0.1155638869 | N65: 150.0073932 | O65: 0.8762572583
A66: 2334.67 | B66: 14.3739 | C66: 350.218 | D66: 2156.02 | E66: 16973.8 | F66: 21.1317 | G66: 19308.5 | H66: 1565.7 | I66: 280 | J66: 0.47913 | K66: 0.1173366102 | L66: 0.8990741133 | M66: 0.1173365765 | N66: 150.0074957 | O66: 0.8790857069
A67: 2282.02 | B67: 14.4463 | C67: 342.32 | D67: 2166.88 | E67: 17044.4 | F67: 21.6579 | G67: 19326.4 | H67: 1520.48 | I67: 280 | J67: 0.4815433333 | K67: 0.1146905092 | L67: 0.9028136785 | M67: 0.114690441 | N67: 150.0074495 | O67: 0.8819222598
A68: 2232.9 | B68: 14.5125 | C68: 334.952 | D68: 2176.8 | E68: 17096.9 | F68: 22.1522 | G68: 19329.8 | H68: 1549.51 | I68: 280 | J68: 0.48375 | K68: 0.1122218202 | L68: 0.9055945167 | M68: 0.112221876 | N68: 150.0076134 | O68: 0.8844840609
A69: 2175.02 | B69: 14.5817 | C69: 326.269 | D69: 2187.19 | E69: 17095.5 | F69: 22.6823 | G69: 19270.5 | H69: 1599.72 | I69: 280 | J69: 0.4860566667 | K69: 0.1093128681 | L69: 0.905520361 | M69: 0.1093127352 | N69: 150.0073563 | O69: 0.8871322621
A70: 2127.2 | B70: 14.6469 | C70: 319.096 | D70: 2196.97 | E70: 17140.7 | F70: 23.1952 | G70: 19267.9 | H70: 1601.8 | I70: 280 | J70: =B70/$B$2 -> 0.48823 | K70: 0.1069095149 | L70: 0.9079145303 | M70: 0.1069095027 | N70: 150.0075216 | O70: 0.8895987627
A71: 2086.36 | B71: 14.7129 | C71: 312.97 | D71: 2206.87 | E71: 17243 | F71: 23.7266 | G71: 19329.3 | H71: 1548.23 | I71: 280 | J71: 0.49043 | K71: =A71/$A$6 -> 0.1048569648 | L71: =E71/$L$3 -> 0.9133331921 | M71: =C71/$N$3 -> 0.1048570557 | N71: =C71*1000/A71 -> 150.0076689 | O71: =E71/(E71+A71) -> 0.8920626446
A72: 2021.83 | B72: 14.7755 | C72: 303.289 | D72: 2216.26 | E72: 17119.5 | F72: 24.2439 | G72: 19141.3 | H72: 1709.05 | I72: 280 | J72: 0.4925166667 | K72: 0.1016137949 | L72: 0.9067916013 | M72: 0.1016135463 | N72: 150.0071717 | O72: 0.8943735885
A73: 1984.76 | B73: 14.8382 | C73: 297.728 | D73: 2225.66 | E73: 17221.7 | F73: 24.7747 | G73: 19206.4 | H73: 1648.53 | I73: 280 | J73: 0.4946066667 | K73: 0.09975071869 | L73: 0.9122049663 | M73: 0.09975039618 | N73: 150.0070537 | O73: 0.8966618523
A74: 1953.78 | B74: 14.8997 | C74: 293.082 | D74: 2234.89 | E74: 17368.1 | F74: 25.3086 | G74: 19321.9 | H74: 1548.12 | I74: 280 | J74: 0.4966566667 | K74: 0.0981937157 | L74: 0.9199595322 | M74: 0.09819380647 | N74: 150.0076774 | O74: 0.8988825104
A75: 1912.16 | B75: 14.9583 | C75: 286.838 | D75: 2243.68 | E75: 17397.6 | F75: 25.8297 | G75: 19309.7 | H75: 1556.24 | I75: 280 | J75: 0.49861 | K75: 0.0961019641 | L75: 0.9215220984 | M75: 0.09610182496 | N75: 150.0073216 | O75: 0.9009744295
A76: 1860.16 | B76: 15.0176 | C76: 279.038 | D76: 2252.57 | E76: 17329.9 | F76: 26.369 | G76: 19190.1 | H76: 1657.02 | I76: 280 | J76: 0.5005866667 | K76: 0.09348853105 | L76: 0.9179361414 | M76: 0.09348852325 | N76: 150.0075262 | O76: 0.9030664834
A77: 1834.78 | B77: 15.0734 | C77: 275.231 | D77: 2260.94 | E77: 17481.8 | F77: 26.889 | G77: 19316.5 | H77: 1546.82 | I77: 280 | J77: 0.5024466667 | K77: 0.09221297469 | L77: 0.9259820331 | M77: 0.09221303099 | N77: 150.0076303 | O77: 0.905015277
A78: 1796.42 | B78: 15.1303 | C78: 269.477 | D78: 2269.47 | E78: 17515.8 | F78: 27.431 | G78: 19312.2 | H78: 1548.63 | I78: 280 | J78: 0.5043433333 | K78: 0.09028506524 | L78: 0.9277829569 | M78: 0.09028521843 | N78: 150.0077933 | O78: 0.90698014
A79: 1756.79 | B79: 15.186 | C79: 263.532 | D79: 2277.83 | E79: 17523.7 | F79: 27.974 | G79: 19280.5 | H79: 1573.34 | I79: 280 | J79: 0.5062 | K79: 0.0882933277 | L79: 0.9282014068 | M79: 0.08829341347 | N79: 150.0076845 | O79: 0.9088825025
A80: 1727.36 | B80: 15.2352 | C80: 259.117 | D80: 2285.21 | E80: 17582.8 | F80: 28.4647 | G80: 19310.2 | H80: 1546.95 | I80: 280 | J80: 0.50784 | K80: 0.08681422512 | L80: 0.9313318361 | M80: 0.0868142177 | N80: 150.0075259 | O80: 0.9105465724
A81: 1685.36 | B81: 15.2887 | C81: 252.816 | D81: 2293.24 | E81: 17540.7 | F81: 29.0098 | G81: 19226 | H81: 1616.77 | I81: 280 | J81: 0.5096233333 | K81: 0.08470337535 | L81: 0.9291018687 | M81: 0.08470313898 | N81: 150.0071201 | O81: 0.9123398138
A82: 1659.3 | B82: 15.3393 | C82: 248.907 | D82: 2300.82 | E82: 17638.4 | F82: 29.5361 | G82: 19297.7 | H82: 1554.14 | I82: 280 | J82: 0.51131 | K82: 0.08339364333 | L82: 0.9342768761 | M82: 0.08339347278 | N82: 150.007232 | O82: 0.9140156599
A83: 1465.08 | B83: 15.3907 | C83: 219.773 | D83: 2308.54 | E83: 15915 | F83: 30.0829 | G83: 17380.1 | H83: 351.048 | I83: 280 | J83: 0.5130233333 | K83: 0.0736324709 | L83: 0.8429912284 | M83: 0.07363245587 | N83: 150.0075081 | O83: 0.915703495
A84: 1438.69 | B84: 15.4347 | C84: 215.814 | D84: 2315.13 | E84: 15922.5 | F84: 30.5604 | G84: 17361.2 | H84: 351.048 | I84: 280 | J84: 0.51449 | K84: 0.07230615363 | L84: 0.843388491 | M84: 0.07230603773 | N84: 150.0072983 | O84: 0.9171318326
A85: 1561.72 | B85: 15.4793 | C85: 234.27 | D85: 2321.82 | E85: 17616.8 | F85: 31.054 | G85: 19178.5 | H85: 1652.79 | I85: 280 | J85: 0.5159766667 | K85: 0.0784894357 | L85: 0.9331327599 | M85: 0.07848951161 | N85: 150.0076838 | O85: 0.9185693161
A86: 1540.87 | B86: 15.5277 | C86: 231.142 | D86: 2329.09 | E86: 17747.5 | F86: 31.6002 | G86: 19288.3 | H86: 1556.17 | I86: 280 | J86: 0.51759 | K86: 0.07744154956 | L86: 0.9400557227 | M86: 0.07744151062 | N86: 150.0074633 | O86: 0.9201140376
A87: 1512.37 | B87: 15.5739 | C87: 226.867 | D87: 2336.02 | E87: 17771.9 | F87: 32.1327 | G87: 19284.3 | H87: 1502.26 | I87: 280 | J87: 0.51913 | K87: 0.07600918722 | L87: 0.9413481503 | M87: 0.07600922026 | N87: 150.007604 | O87: 0.9215749416
A88: 1484.83 | B88: 15.6208 | C88: 222.736 | D88: 2343.05 | E88: 17809.4 | F88: 32.6836 | G88: 19294.3 | H88: 1548.41 | I88: 280 | J88: 0.5206933333 | K88: 0.07462507287 | L88: 0.9433344633 | M88: 0.07462517548 | N88: 150.007745 | O88: 0.9230427957
A89: 1457.79 | B89: 15.6654 | C89: 218.68 | D89: 2349.74 | E89: 17831.3 | F89: 33.218 | G89: 19289.1 | H89: 1551.38 | I89: 280 | J89: 0.52218 | K89: 0.07326608769 | L89: 0.9444944701 | M89: 0.07326625859 | N89: 150.0078887 | O89: 0.9244241175
A90: 1430.75 | B90: 15.7106 | C90: 214.623 | D90: 2356.51 | E90: 17854.9 | F90: 33.7708 | G90: 19285.6 | H90: 1553.01 | I90: 280 | J90: 0.5236866667 | K90: 0.07190710251 | L90: 0.9457445231 | M90: 0.07190700666 | N90: 150.0073388 | O90: 0.9258127157
A91: 1405.21 | B91: 15.7549 | C91: 210.791 | D91: 2363.17 | E91: 17887.2 | F91: 34.3243 | G91: 19292.4 | H91: 1546.02 | I91: 280 | J91: 0.5251633333 | K91: 0.07062350481 | L91: 0.9474554007 | M91: 0.07062313844 | N91: 150.0067606 | O91: 0.9271625473
A92: 1381.22 | B92: 15.7943 | C92: 207.194 | D92: 2369.07 | E92: 17896 | F92: 34.8252 | G92: 19277.2 | H92: 1557.63 | I92: 280 | J92: 0.5264766667 | K92: 0.06941780753 | L92: 0.9479215221 | M92: 0.06941800431 | N92: 150.007964 | O92: 0.9283496272
A93: 1355.91 | B93: 15.8371 | C93: 203.396 | D93: 2375.49 | E93: 17912.4 | F93: 35.38 | G93: 19268.3 | H93: 1563.97 | I93: 280 | J93: 0.5279033333 | K93: 0.06814576925 | L93: 0.948790203 | M93: 0.0681455274 | N93: 150.0070064 | O93: 0.9296300506
A94: 1333.97 | B94: 15.8778 | C94: 200.105 | D94: 2381.6 | E94: 17953 | F94: 35.9174 | G94: 19287 | H94: 1546.94 | I94: 280 | J94: 0.52926 | K94: 0.06704310154 | L94: 0.9509407178 | M94: 0.0670429151 | N94: 150.0071216 | O94: 0.9308356886
A95: 1308.39 | B95: 15.9191 | C95: 196.268 | D95: 2387.8 | E95: 17947 | F95: 36.474 | G95: 19255.3 | H95: 1572.68 | I95: 280 | J95: 0.5306366667 | K95: 0.06575749352 | L95: 0.9506229078 | M95: 0.06575737169 | N95: 150.0072608 | O95: 0.9320507141
A96: 1286.69 | B96: 15.9584 | C96: 193.014 | D96: 2393.69 | E96: 17973.5 | F96: 37.0125 | G96: 19260.2 | H96: 1567.44 | I96: 280 | J96: 0.5319466667 | K96: 0.0646668878 | L96: 0.9520265689 | M96: 0.06466715582 | N96: 150.0081605 | O96: 0.9331943247
A97: 1264.4 | B97: 15.9983 | C97: 189.669 | D97: 2399.67 | E97: 17994 | F97: 37.5697 | G97: 19258.4 | H97: 1567.84 | I97: 280 | J97: 0.5332766667 | K97: 0.06354662968 | L97: 0.95311242 | M97: 0.06354645144 | N97: 150.007118 | O97: 0.9343455323
A98: 1243.67 | B98: 16.0375 | C98: 186.559 | D98: 2405.55 | E98: 18028.3 | F98: 38.1276 | G98: 19272 | H98: 1555.13 | I98: 280 | J98: 0.5345833333 | K98: 0.06250477454 | L98: 0.9549292343 | M98: 0.06250448114 | N98: 150.0068346 | O98: 0.9354674172
A99: 1223.86 | B99: 16.0748 | C99: 183.588 | D99: 2411.15 | E99: 18057.6 | F99: 38.6685 | G99: 19281.5 | H99: 1545.99 | I99: 280 | J99: 0.5358266667 | K99: 0.06150915707 | L99: 0.9564812068 | M99: 0.06150908122 | N99: 150.0073538 | O99: 0.9365265908
A100: 1185.08 | B100: 16.1127 | C100: 177.77 | D100: 2416.84 | E100: 17804.9 | F100: 39.2283 | G100: 18989.9 | H100: 1800.78 | I100: 280 | J100: 0.53709 | K100: 0.05956013912 | L100: 0.9430961058 | M100: 0.05955982618 | N100: 150.0067506 | O100: 0.9375944577
A101: 1184.15 | B101: 16.1483 | C101: 177.631 | D101: 2422.17 | E101: 18097.6 | F101: 39.7625 | G101: 19281.7 | H101: 1543.54 | I101: 280 | J101: 0.5382766667 | K101: 0.05951339887 | L101: 0.9585999407 | M101: 0.05951325581 | N101: 150.0071781 | O101: 0.9385870058
A102: 1163.41 | B102: 16.185 | C102: 174.52 | D102: 2427.68 | E102: 18099.4 | F102: 40.3235 | G102: 19262.8 | H102: 1558.85 | I102: 280 | J102: 0.5395 | K102: 0.05847104115 | L102: 0.9586952837 | M102: 0.05847095047 | N102: 150.0073061 | O102: 0.9396033081
A103: 1143.27 | B103: 16.2211 | C103: 171.499 | D103: 2433.09 | E103: 18101.7 | F103: 40.8847 | G103: 19244.9 | H103: 1573.22 | I103: 280 | J103: 0.5407033333 | K103: 0.05745883843 | L103: 0.9588171109 | M103: 0.05745879862 | N103: 150.0074348 | O103: 0.9405938279
A104: 1127.13 | B104: 16.2531 | C104: 169.077 | D104: 2437.89 | E104: 18128.8 | F104: 41.3916 | G104: 19256 | H104: 1562.85 | I104: 280 | J104: 0.54177 | K104: 0.05664766902 | L104: 0.9602525531 | M104: 0.05664733493 | N104: 150.0066541 | O104: 0.9414658238
A105: 1097.04 | B105: 16.288 | C105: 164.564 | D105: 2443.13 | E105: 17952.4 | F105: 41.9536 | G105: 19049.4 | H105: 1742.67 | I105: 280 | J105: 0.5429333333 | K105: 0.05513539594 | L105: 0.9509089368 | M105: 0.05513530537 | N105: 150.0072924 | O105: 0.9424109055
A106: 1091.36 | B106: 16.3209 | C106: 163.712 | D106: 2448.07 | E106: 18154.5 | F106: 42.4922 | G106: 19245.9 | H106: 1569.71 | I106: 280 | J106: 0.54403 | K106: 0.05484992863 | L106: 0.9616138396 | M106: 0.05484985242 | N106: 150.0073303 | O106: 0.9432937785
A107: 1059.77 | B107: 16.3548 | C107: 158.974 | D107: 2453.14 | E107: 17930.7 | F107: 43.055 | G107: 18990.5 | H107: 1793.8 | I107: 280 | J107: 0.54516 | K107: 0.05326226806 | L107: 0.9497595237 | M107: 0.05326243915 | N107: 150.0080206 | O107: 0.9441946408
A108: 1056.87 | B108: 16.3866 | C108: 158.538 | D108: 2457.91 | E108: 18171 | F108: 43.593 | G108: 19227.9 | H108: 1583.61 | I108: 280 | J108: 0.54622 | K108: 0.05311651891 | L108: 0.9624878173 | M108: 0.05311636228 | N108: 150.0070964 | O108: 0.9450344734
A109: 1039.94 | B109: 16.4193 | C109: 155.998 | D109: 2462.83 | E109: 18180.2 | F109: 44.1564 | G109: 19220.2 | H109: 1589.5 | I109: 280 | J109: 0.54731 | K109: 0.05226564542 | L109: 0.9629751261 | M109: 0.05226536404 | N109: 150.0067312 | O109: 0.9458932141
A110: 1023.95 | B110: 16.4516 | C110: 153.6 | D110: 2467.66 | E110: 18198.7 | F110: 44.72 | G110: 19222.6 | H110: 1586.49 | I110: 280 | J110: 0.5483866667 | K110: 0.05146201476 | L110: 0.9639550405 | M110: 0.05146194128 | N110: 150.0073246 | O110: 0.9467321103
A111: 997.164 | B111: 16.4823 | C111: 149.582 | D111: 2472.27 | E111: 18005.7 | F111: 45.266 | G111: 19002.8 | H111: 1779.33 | I111: 280 | J111: 0.54941 | K111: 0.05011579519 | L111: 0.9537321497 | M111: 0.05011575586 | N111: 150.007421 | O111: 0.947525594
A112: 992.953 | B112: 16.5132 | C112: 148.95 | D112: 2476.91 | E112: 18219.8 | F112: 45.8242 | G112: 19212.7 | H112: 1593.62 | I112: 280 | J112: 0.55044 | K112: 0.04990415737 | L112: 0.9650726726 | M112: 0.04990401142 | N112: 150.0071 | O112: 0.9483180261
A113: 979.11 | B113: 16.543 | C113: 146.874 | D113: 2481.38 | E113: 18247.7 | F113: 46.3708 | G113: 19226.9 | H113: 1580.44 | I113: 280 | J113: 0.5514333333 | K113: 0.04920843134 | L113: 0.9665504894 | M113: 0.04920847112 | N113: 150.00766 | O113: 0.9490757957
A114: 964.447 | B114: 16.5734 | C114: 144.674 | D114: 2485.93 | E114: 18264 | F114: 46.9366 | G114: 19228.4 | H114: 1578.27 | I114: 280 | J114: 0.5524466667 | K114: 0.04847149348 | L114: 0.9674138735 | M114: 0.04847138602 | N114: 150.0072062 | O114: 0.9498426992
A115: 937.944 | B115: 16.6033 | C115: 140.699 | D115: 2490.41 | E115: 18045.9 | F115: 47.5028 | G115: 18983.8 | H115: 1793.7 | I115: 280 | J115: 0.5534433333 | K115: 0.04713949701 | L115: 0.9558614772 | M115: 0.04713960727 | N115: 150.0078896 | O115: 0.9505925144
A116: 936.286 | B116: 16.6305 | C116: 140.45 | D116: 2494.49 | E116: 18277.4 | F116: 48.0262 | G116: 19213.7 | H116: 1589.8 | I116: 280 | J116: 0.55435 | K116: 0.04705616871 | L116: 0.9681236493 | M116: 0.04705618264 | N116: 150.0075832 | O116: 0.9512698396
A117: 922.806 | B117: 16.6595 | C117: 138.428 | D117: 2498.85 | E117: 18297.3 | F117: 48.5928 | G117: 19220.2 | H117: 1583.36 | I117: 280 | J117: 0.5553166667 | K117: 0.04637868645 | L117: 0.9691777194 | M117: 0.04637873442 | N117: 150.0076939 | O117: 0.9519874656
A118: 909.603 | B118: 16.6872 | C118: 136.447 | D118: 2503 | E118: 18307.7 | F118: 49.1418 | G118: 19217.3 | H118: 1585.19 | I118: 280 | J118: 0.55624 | K118: 0.04571512575 | L118: 0.9697285902 | M118: 0.0457150228 | N118: 150.0072009 | O118: 0.9526674997
A119: 896.94 | B119: 16.7154 | C119: 134.548 | D119: 2507.23 | E119: 18332.2 | F119: 49.7094 | G119: 19229.1 | H119: 1574.11 | I119: 280 | J119: 0.55718 | K119: 0.04507870454 | L119: 0.9710263147 | M119: 0.04507878435 | N119: 150.0078043 | O119: 0.9533551682
A120: 873.289 | B120: 16.7423 | C120: 131 | D120: 2511.27 | E120: 18114 | F120: 50.2594 | G120: 18987.3 | H120: 1787.15 | I120: 280 | J120: 0.5580766667 | K120: 0.04389004483 | L120: 0.9594686216 | M120: 0.04389006711 | N120: 150.0076149 | O120: 0.9540066515
A121: 870.85 | B121: 16.7694 | C121: 130.634 | D121: 2515.33 | E121: 18335.4 | F121: 50.821 | G121: 19206.2 | H121: 1592.93 | I121: 280 | J121: 0.55898 | K121: 0.04376746477 | L121: 0.9711958134 | M121: 0.04376744295 | N121: 150.007464 | O121: 0.9546579889
A122: 859.291 | B122: 16.7964 | C122: 128.9 | D122: 2519.38 | E122: 18365.5 | F122: 51.3894 | G122: 19224.7 | H122: 1575.92 | I122: 280 | J122: 0.55988 | K122: 0.04318652876 | L122: 0.9727901606 | M122: 0.04318648588 | N122: 150.0073898 | O122: 0.9553029731
A123: 847.465 | B123: 16.8221 | C123: 127.126 | D123: 2523.25 | E123: 18375.8 | F123: 51.9404 | G123: 19223.2 | H123: 1576.61 | I123: 280 | J123: 0.5607366667 | K123: 0.04259217377 | L123: 0.9733357346 | M123: 0.04259212726 | N123: 150.0073749 | O123: 0.955914617
A124: 835.63 | B124: 16.8484 | C124: 125.351 | D124: 2527.19 | E124: 18389.2 | F124: 52.5101 | G124: 19224.9 | H124: 1545.91 | I124: 280 | J124: 0.5616133333 | K124: 0.04199736646 | L124: 0.9740455104 | M124: 0.0419974336 | N124: 150.0077786 | O124: 0.9565338159
A125: 814.56 | B125: 16.8735 | C125: 122.19 | D125: 2530.95 | E125: 18182.1 | F125: 53.0618 | G125: 18996.6 | H125: 1775.58 | I125: 280 | J125: 0.56245 | K125: 0.0409384235 | L125: 0.9630757659 | M125: 0.04093837634 | N125: 150.0073659 | O125: 0.9571208834
A126: 812.5 | B126: 16.8987 | C126: 121.881 | D126: 2534.73 | E126: 18399.3 | F126: 53.6255 | G126: 19211.8 | H126: 1584.84 | I126: 280 | J126: 0.56329 | K126: 0.04083489134 | L126: 0.9745804907 | M126: 0.04083484938 | N126: 150.0073846 | O126: 0.9577082835
A127: 801.37 | B127: 16.9239 | C127: 120.211 | D127: 2538.51 | E127: 18411.7 | F127: 54.1959 | G127: 19213.1 | H127: 1583.1 | I127: 280 | J127: 0.56413 | K127: 0.04027551615 | L127: 0.9752372982 | M127: 0.04027533479 | N127: 150.0068632 | O127: 0.9582903721
A128: 791.517 | B128: 16.9464 | C128: 118.733 | D128: 2541.88 | E128: 18422.8 | F128: 54.7115 | G128: 19214.3 | H128: 1552.8 | I128: 280 | J128: 0.56488 | K128: 0.03978032085 | L128: 0.9758252468 | M128: 0.03978014762 | N128: 150.0068855 | O128: 0.9588058738
A129: 780.625 | B129: 16.9709 | C129: 117.1 | D129: 2545.56 | E129: 18430.4 | F129: 55.2827 | G129: 19211.1 | H129: 1555.09 | I129: 280 | J129: 0.5656966667 | K129: 0.03923290714 | L129: 0.9762278063 | M129: 0.03923302945 | N129: 150.0080064 | O129: 0.9593657808
A130: 770.468 | B130: 16.9943 | C130: 115.576 | D130: 2549.07 | E130: 18441.8 | F130: 55.8356 | G130: 19212.2 | H130: 1553.18 | I130: 280 | J130: 0.5664766667 | K130: 0.03872243331 | L130: 0.9768316454 | M130: 0.0387224305 | N130: 150.0075279 | O130: 0.9598970824
A131: 760.483 | B131: 17.0182 | C131: 114.078 | D131: 2552.66 | E131: 18460.8 | F131: 56.4074 | G131: 19221.3 | H131: 1543.72 | I131: 280 | J131: 0.5672733333 | K131: 0.0382206039 | L131: 0.977838044 | M131: 0.03822054256 | N131: 150.007298 | O131: 0.9604353674
A132: 749.64 | B132: 17.041 | C132: 112.452 | D132: 2556.08 | E132: 18445.5 | F132: 56.9612 | G132: 19195.1 | H132: 1596.32 | I132: 280 | J132: 0.5680333333 | K132: 0.03767565286 | L132: 0.9770276283 | M132: 0.03767576967 | N132: 150.0080038 | O132: 0.9609463645
A133: 739.812 | B133: 17.0643 | C133: 110.977 | D133: 2559.56 | E133: 18457.9 | F133: 57.5331 | G133: 19197.8 | H133: 1593.43 | I133: 280 | J133: 0.56881 | K133: 0.03718171401 | L133: 0.9776844358 | M133: 0.03718158761 | N133: 150.0070288 | O133: 0.9614635327
A134: 729.891 | B134: 17.0872 | C134: 109.489 | D134: 2563 | E134: 18463.1 | F134: 58.1053 | G134: 19193 | H134: 1568.84 | I134: 280 | J134: =B134/$B$2 -> 0.5695733333 | K134: 0.03668310114 | L134: 0.9779598712 | M134: 0.03668305006 | N134: 150.0073299 | O134: 0.9619709612
A135: 720.599 | B135: 17.1091 | C135: 108.095 | D135: 2566.29 | E135: 18471 | F135: 58.6593 | G135: 19191.6 | H135: 1569.47 | I135: 280 | J135: 0.5703033333 | K135: =A135/$A$6 -> 0.03621610076 | L135: =E135/$L$3 -> 0.9783783211 | M135: =C135/$N$3 -> 0.03621600614 | N135: =C135*1000/A135 -> 150.0071468 | O135: =E135/(E135+A135) -> 0.962452373
A136: 711.764 | B136: 17.1314 | C136: 106.77 | D136: 2569.64 | E136: 18494.3 | F136: 59.2319 | G136: 19206 | H136: 1554.77 | I136: 280 | J136: 0.5710466667 | K136: 0.03577206843 | L136: 0.9796124836 | M136: 0.03577207989 | N136: 150.0075868 | O136: 0.9629406629
A137: 695.18 | B137: 17.1528 | C137: 104.282 | D137: 2572.84 | E137: 18301.1 | F137: 59.7868 | G137: 18996.3 | H137: 1769.72 | I137: 280 | J137: 0.57176 | K137: 0.03493858432 | L137: 0.9693789991 | M137: 0.03493850365 | N137: 150.0071924 | O137: 0.9634044139
A138: 693.378 | B138: 17.1743 | C138: 104.012 | D138: 2576.08 | E138: 18497.7 | F138: 60.3542 | G138: 19191.1 | H138: 1567.94 | I138: 280 | J138: 0.5724766667 | K138: 0.03484801882 | L138: 0.979792576 | M138: 0.03484804321 | N138: 150.0076437 | O138: 0.9638697732
A139: 684.685 | B139: 17.1958 | C139: 102.708 | D139: 2579.3 | E139: 18511 | F139: 60.9276 | G139: 19195.6 | H139: 1562.84 | I139: 280 | J139: 0.5731933333 | K139: 0.03441112317 | L139: 0.980497055 | M139: 0.03441115277 | N139: 150.0076678 | O139: 0.9643313067
A140: 676.466 | B140: 17.215 | C140: 101.475 | D140: 2582.18 | E140: 18508.8 | F140: 61.446 | G140: 19185.3 | H140: 1601.17 | I140: 280 | J140: 0.5738333333 | K140: 0.03399804998 | L140: 0.9803805246 | M140: 0.03399805007 | N140: 150.0075392 | O140: 0.9647403377
A141: 668.588 | B141: 17.236 | C141: 100.293 | D141: 2585.32 | E141: 18535.7 | F141: 62.0198 | G141: 19204.3 | H141: 1553.19 | I141: 280 | J141: 0.5745333333 | K141: 0.03360211487 | L141: 0.9818053731 | M141: 0.03360203435 | N141: 150.0071793 | O141: 0.9651854836
A142: 660.433 | B142: 17.256 | C142: 99.0699 | D142: 2588.33 | E142: 18543.1 | F142: 62.5759 | G142: 19203.5 | H142: 1553.31 | I142: 280 | J142: 0.5752 | K142: 0.03319225821 | L142: 0.9821973389 | M142: 0.03319224855 | N142: 150.0074951 | O142: 0.9656087763
A143: 652.394 | B143: 17.2765 | C143: 97.8639 | D143: 2591.4 | E143: 18557.3 | F143: 63.1508 | G143: 19209.7 | H143: 1546.68 | I143: 280 | J143: 0.5758833333 | K143: 0.03278823151 | L143: 0.9829494894 | M143: 0.0327881919 | N143: 150.0073575 | O143: 0.966038293
A144: 637.168 | B144: 17.2961 | C144: 95.58 | D144: 2594.34 | E144: 18352.5 | F144: 63.7076 | G144: 18989.7 | H144: 1772.76 | I144: 280 | J144: 0.5765366667 | K144: 0.03202299821 | L144: 0.9721015721 | M144: 0.03202299706 | N144: 150.0075333 | O144: 0.9664465961
A145: 636.106 | B145: 17.3159 | C145: 95.4207 | D145: 2597.3 | E145: 18556.3 | F145: 64.2765 | G145: 19192.4 | H145: 1562.31 | I145: 280 | J145: 0.5771966667 | K145: 0.03196962387 | L145: 0.982896521 | M145: 0.03196962539 | N145: 150.0075459 | O145: 0.9668563702
A146: 627.902 | B146: 17.3356 | C146: 94.19 | D146: 2600.26 | E146: 18552.4 | F146: 64.8518 | G146: 19180.3 | H146: 1603.08 | I146: 280 | J146: 0.5778533333 | K146: 0.03155730455 | L146: 0.9826899445 | M146: 0.03155729329 | N146: 150.0074852 | O146: 0.9672631849
A147: 620.297 | B147: 17.3544 | C147: 93.0491 | D147: 2603.08 | E147: 18553.9 | F147: 65.4084 | G147: 19174.2 | H147: 1608.12 | I147: 280 | J147: 0.57848 | K147: 0.03117508996 | L147: 0.982769397 | M147: 0.03117504766 | N147: 150.0073352 | O147: 0.9676493884
A148: 614.065 | B148: 17.3736 | C148: 92.1143 | D148: 2605.97 | E148: 18600.5 | F148: 65.9837 | G148: 19214.6 | H148: 1535.05 | I148: 280 | J148: 0.57912 | K148: 0.03086188006 | L148: 0.9852377219 | M148: 0.0308618535 | N148: 150.0074096 | O148: 0.9680416913
A149: 606.002 | B149: 17.3921 | C149: 90.9048 | D149: 2608.73 | E149: 18580.7 | F149: 66.5417 | G149: 19186.7 | H149: 1565.64 | I149: 280 | J149: 0.5797366667 | K149: 0.03045664717 | L149: 0.9841889487 | M149: 0.03045662422 | N149: 150.0074257 | O149: 0.9684155203
A150: 599.243 | B150: 17.4109 | C150: 89.8909 | D150: 2611.55 | E150: 18603.9 | F150: 67.1178 | G150: 19203.1 | H150: 1548.92 | I150: 280 | J150: 0.5803633333 | K150: 0.03011695113 | L150: 0.9854178143 | M150: 0.0301169285 | N150: 150.007426 | O150: 0.9687945354
A151: 591.879 | B151: 17.4294 | C151: 88.7863 | D151: 2614.34 | E151: 18604.6 | F151: 67.6945 | G151: 19196.4 | H151: 1554.92 | I151: 280 | J151: 0.58098 | K151: 0.0297468488 | L151: 0.9854548922 | M151: 0.02974684477 | N151: 150.0075184 | O151: 0.9691673145
A152: 579.861 | B152: 17.446 | C152: 86.9834 | D152: 2616.82 | E152: 18430.7 | F152: 68.2155 | G152: 19010.6 | H152: 1750.68 | I152: 280 | J152: 0.5815333333 | K152: 0.02914284422 | L152: 0.9762436968 | M152: 0.02914280354 | N152: 150.0073293 | O152: 0.9694979543
A153: 577.912 | B153: 17.464 | C153: 86.6911 | D153: 2619.52 | E153: 18593.2 | F153: 68.7869 | G153: 19171.1 | H153: 1578.85 | I153: 280 | J153: 0.5821333333 | K153: 0.02904489074 | L153: 0.984851053 | M153: 0.02904487173 | N153: 150.0074406 | O153: 0.9698550611
A154: 571.375 | B154: 17.4813 | C154: 85.7105 | D154: 2622.12 | E154: 18600.7 | F154: 69.3447 | G154: 19172.1 | H154: 1577.4 | I154: 280 | J154: 0.58271 | K154: 0.02871635205 | L154: 0.9852483156 | M154: 0.0287163328 | N154: 150.0074382 | O154: 0.9701975399
A155: 564.729 | B155: 17.499 | C155: 84.7135 | D155: 2624.78 | E155: 18608.2 | F155: 69.9214 | G155: 19173 | H155: 1575.98 | I155: 280 | J155: 0.5833 | K155: 0.0283823352 | L155: 0.9856455782 | M155: 0.02838229924 | N155: 150.0073487 | O155: 0.9705455019
A156: 558.418 | B156: 17.516 | C156: 83.7669 | D156: 2627.32 | E156: 18615.9 | F156: 70.4797 | G156: 19174.3 | H156: 1574.18 | I156: 280 | J156: 0.5838666667 | K156: 0.0280651549 | L156: 0.9860534345 | M156: 0.02806515162 | N156: 150.0075212 | O156: 0.9708767738
A157: 552.239 | B157: 17.5333 | C157: 82.8399 | D157: 2629.91 | E157: 18631.6 | F157: 71.0568 | G157: 19183.9 | H157: 1564.23 | I157: 280 | J157: 0.5844433333 | K157: 0.02775460869 | L157: 0.9868850375 | M157: 0.02775457077 | N157: 150.0073338 | O157: 0.9712133218
A158: 545.797 | B158: 17.5504 | C158: 81.8736 | D158: 2632.48 | E158: 18634.9 | F158: 71.6345 | G158: 19180.7 | H158: 1566.84 | I158: 280 | J158: 0.5850133333 | K158: 0.02743084454 | L158: 0.987059833 | M158: 0.02743082289 | N158: 150.0074203 | O158: 0.9715444647
A159: 539.723 | B159: 17.5668 | C159: 80.9625 | D159: 2634.94 | E159: 18640 | F159: 72.1935 | G159: 19179.7 | H159: 1567.4 | I159: 280 | J159: 0.58556 | K159: 0.02712557546 | L159: 0.9873299716 | M159: 0.02712556915 | N159: 150.0075038 | O159: 0.9718597083
A160: 533.724 | B160: 17.5835 | C160: 80.0626 | D160: 2637.45 | E160: 18651.2 | F160: 72.7714 | G160: 19184.9 | H160: 1561.75 | I160: 280 | J160: 0.5861166667 | K160: 0.02682407575 | L160: 0.9879232171 | M160: 0.02682406784 | N160: 150.0074945 | O160: 0.9721800305
A161: 523.158 | B161: 17.5995 | C161: 78.4776 | D161: 2639.85 | E161: 18490.4 | F161: 73.331 | G161: 19013.6 | H161: 1745.03 | I161: 280 | J161: 0.58665 | K161: 0.02629304626 | L161: 0.979405907 | M161: 0.02629303153 | N161: 150.0074547 | O161: 0.9724850025
A162: 521.732 | B162: 17.6158 | C162: 78.2636 | D162: 2642.28 | E162: 18654.2 | F162: 73.9043 | G162: 19175.9 | H162: 1569.69 | I162: 280 | J162: 0.5871933333 | K162: 0.02622137788 | L162: 0.9880821221 | M162: 0.02622133325 | N162: 150.0072834 | O162: 0.9727923524
A163: 515.929 | B163: 17.6319 | C163: 77.3932 | D163: 2644.71 | E163: 18661.7 | F163: 74.4826 | G163: 19177.7 | H163: 1567.52 | I163: 280 | J163: 0.58773 | K163: 0.02592972881 | L163: 0.9884793847 | M163: 0.02592971559 | N163: 150.0074623 | O163: 0.9730973521
A164: 510.543 | B164: 17.6469 | C164: 76.5853 | D164: 2646.95 | E164: 18667.1 | F164: 75.0238 | G164: 19177.6 | H164: 1567.12 | I164: 280 | J164: 0.58823 | K164: 0.02565903745 | L164: 0.9887654138 | M164: 0.02565903784 | N164: 150.007541 | O164: 0.9733782196
A165: 504.844 | B165: 17.6627 | C165: 75.7303 | D165: 2649.33 | E165: 18671.6 | F165: 75.6025 | G165: 19176.5 | H165: 1567.84 | I165: 280 | J165: 0.5887566667 | K165: 0.02537261524 | L165: 0.9890037713 | M165: 0.02537257976 | N165: 150.007329 | O165: 0.9736737426
A166: 499.451 | B166: 17.6779 | C166: 74.9213 | D166: 2651.6 | E166: 18677.2 | F166: 76.1627 | G166: 19176.6 | H166: 1567.26 | I166: 280 | J166: 0.5892633333 | K166: 0.02510157208 | L166: 0.9893003941 | M166: 0.02510153347 | N166: 150.007308 | O166: 0.9739552542
A167: 493.989 | B167: 17.6933 | C167: 74.102 | D167: 2653.92 | E167: 18683.8 | F167: 76.7418 | G167: 19177.8 | H167: 1565.7 | I167: 280 | J167: 0.5897766667 | K167: 0.02482706109 | L167: 0.9896499852 | M167: 0.02482703628 | N167: 150.0073888 | O167: 0.9742416084
A168: 488.764 | B168: 17.7082 | C168: 73.3183 | D168: 2656.15 | E168: 18689.2 | F168: 77.3023 | G168: 19178 | H168: 1564.99 | I168: 280 | J168: 0.5902733333 | K168: 0.02456446133 | L168: 0.9899360142 | M168: 0.02456446647 | N168: 150.0075701 | O168: 0.9745142915
A169: 479.058 | B169: 17.7233 | C169: 71.8623 | D169: 2658.42 | E169: 18525 | F169: 77.8818 | G169: 19004.1 | H169: 1751.3 | I169: 280 | J169: 0.5907766667 | K169: 0.024076654 | L169: 0.9812386118 | M169: 0.02407665015 | N169: 150.0075147 | O169: 0.974791805
A170: 474.064 | B170: 17.7382 | C170: 71.1131 | D170: 2660.65 | E170: 18536 | F170: 78.4561 | G170: 19010.1 | H170: 1745.57 | I170: 280 | J170: 0.5912733333 | K170: 0.02382566391 | L170: 0.9818212636 | M170: 0.02382563917 | N170: 150.007383 | O170: 0.9750624722
A171: 471.333 | B171: 17.7524 | C171: 70.7034 | D171: 2662.78 | E171: 18626.8 | F171: 79.0122 | G171: 19098.2 | H171: 1667.55 | I171: 280 | J171: 0.5917466667 | K171: 0.02368840842 | L171: 0.9866307894 | M171: 0.02368837382 | N171: 150.0073197 | O171: 0.9753204672
A172: 468.321 | B172: 17.767 | C172: 70.2517 | D172: 2664.97 | E172: 18712.9 | F172: 79.5897 | G172: 19181.2 | H172: 1560.24 | I172: 280 | J172: 0.5922333333 | K172: 0.02353703034 | L172: 0.991191364 | M172: 0.02353703685 | N172: 150.0075803 | O172: 0.975584401
A173: 462.511 | B173: 17.7811 | C173: 69.3801 | D173: 2667.08 | E173: 18678.7 | F173: 80.1511 | G173: 19141.2 | H173: 1629.78 | I173: 280 | J173: 0.5927033333 | K173: 0.02324502945 | L173: 0.9893798466 | M173: 0.02324501714 | N173: 150.0074593 | O173: 0.9758368998
A174: 458.058 | B174: 17.7954 | C174: 68.7122 | D174: 2669.23 | E174: 18702.2 | F174: 80.7302 | G174: 19160.3 | H174: 1580.34 | I174: 280 | J174: 0.59318 | K174: 0.02302122912 | L174: 0.9906246027 | M174: 0.0230212448 | N174: 150.007641 | O174: 0.9760933282
A175: 453.402 | B175: 17.8096 | C175: 68.0136 | D175: 2671.36 | E175: 18714.8 | F175: 81.31 | G175: 19168.2 | H175: 1572.03 | I175: 280 | J175: 0.5936533333 | K175: 0.02278722634 | L175: 0.9912920039 | M175: 0.02278718678 | N175: 150.0072783 | O175: 0.9763461383
A176: 447.371 | B176: 17.8223 | C176: 67.109 | D176: 2673.26 | E176: 18647.5 | F176: 81.8341 | G176: 19094.9 | H176: 1669.1 | I176: 280 | J176: 0.5940766667 | K176: 0.02248411837 | L176: 0.9877272342 | M176: 0.02248411079 | N176: 150.0074882 | O176: 0.9765711431
A177: 442.925 | B177: 17.8362 | C177: 66.4421 | D177: 2675.34 | E177: 18661.8 | F177: 82.4122 | G177: 19104.7 | H177: 1660.39 | I177: 280 | J177: 0.59454 | K177: 0.02226066984 | L177: 0.9884846816 | M177: 0.02226067349 | N177: 150.0075634 | O177: 0.9768159447
A178: 438.689 | B178: 17.8495 | C178: 65.8067 | D178: 2677.34 | E178: 18675.7 | F178: 82.9721 | G178: 19114.4 | H178: 1651.76 | I178: 280 | J178: 0.5949833333 | K178: 0.02204777557 | L178: 0.9892209416 | M178: 0.02204778992 | N178: 150.0076364 | O178: 0.9770492795
A179: 434.361 | B179: 17.8631 | C179: 65.1573 | D179: 2679.38 | E179: 18689.6 | F179: 83.5511 | G179: 19123.9 | H179: 1643.35 | I179: 280 | J179: 0.5954366667 | K179: 0.02183025752 | L179: 0.9899572016 | M179: 0.0218302158 | N179: 150.007252 | O179: 0.9772870798
A180: 430.266 | B180: 17.8761 | C180: 64.5431 | D180: 2681.33 | E180: 18704.5 | F180: 84.1118 | G180: 19134.8 | H180: 1633.94 | I180: 280 | J180: 0.59587 | K180: 0.02162444967 | L180: 0.9907464299 | M180: 0.02162443504 | N180: 150.0074373 | O180: 0.9775139137
A181: 425.831 | B181: 17.8894 | C181: 63.8779 | D181: 2683.33 | E181: 18708.4 | F181: 84.6917 | G181: 19134.3 | H181: 1634.17 | I181: 280 | J181: 0.5963133333 | K181: 0.02140155399 | L181: 0.9909530065 | M181: 0.02140156731 | N181: 150.0076321 | O181: 0.9777450685
A182: 421.544 | B182: 17.9026 | C182: 63.2347 | D182: 2685.31 | E182: 18715.9 | F182: 85.2717 | G182: 19137.4 | H182: 1600.52 | I182: 280 | J182: 0.5967533333 | K182: 0.02118609654 | L182: 0.9913502691 | M182: 0.02118607043 | N182: 150.0073539 | O182: 0.977972816
A183: 417.38 | B183: 17.9153 | C183: 62.6101 | D183: 2687.21 | E183: 18719.7 | F183: 85.8332 | G183: 19137.1 | H183: 1600.47 | I183: 280 | J183: 0.5971766667 | K183: 0.02097682086 | L183: 0.9915515488 | M183: 0.02097680527 | N183: 150.0074273 | O183: 0.9781899851
A184: 413.313 | B184: 17.9282 | C184: 62 | D184: 2689.15 | E184: 18731.5 | F184: 86.4136 | G184: 19144.8 | H184: 1592.28 | I184: 280 | J184: 0.5976066667 | K184: 0.02077242024 | L184: 0.9921765753 | M184: 0.02077239817 | N184: 150.0073794 | O184: 0.9784112281
A185: 409.471 | B185: 17.9406 | C185: 61.4238 | D185: 2691.01 | E185: 18744.7 | F185: 86.9756 | G185: 19154.2 | H185: 1582.57 | I185: 280 | J185: 0.59802 | K185: 0.02057932774 | L185: 0.9928757574 | M185: 0.02057934889 | N185: 150.0076929 | O185: 0.9786223585
A186: 401.392 | B186: 17.9533 | C186: 60.2118 | D186: 2692.92 | E186: 18565.8 | F186: 87.5567 | G186: 18967.2 | H186: 1781.23 | I186: 280 | J186: 0.5984433333 | K186: 0.02017329071 | L186: 0.9833997203 | M186: 0.02017328201 | N186: 150.007474 | O186: 0.9788375633
A187: 397.695 | B187: 17.9658 | C187: 59.6573 | D187: 2694.78 | E187: 18583.2 | F187: 88.1323 | G187: 18980.8 | H187: 1768.34 | I187: 280 | J187: 0.59886 | K187: 0.01998748568 | L187: 0.9843213695 | M187: 0.01998750306 | N187: 150.0076692 | O187: 0.979047616
A188: 394.305 | B188: 17.9769 | C188: 59.1487 | D188: 2696.45 | E188: 18594.3 | F188: 88.6527 | G188: 18988.6 | H188: 1760.97 | I188: 280 | J188: 0.59923 | K188: 0.01981710995 | L188: 0.9849093182 | M188: 0.01981710238 | N188: 150.0074815 | O188: 0.9792346515
A189: 390.67 | B189: 17.9891 | C189: 58.6034 | D189: 2698.29 | E189: 18610.1 | F189: 89.2291 | G189: 19000.8 | H189: 1749.61 | I189: 280 | J189: 0.5996366667 | K189: 0.01963442092 | L189: 0.9857462181 | M189: 0.01963440579 | N189: 150.0074231 | O189: 0.9794392543
A190: 387.202 | B190: 18.0008 | C190: 58.0832 | D190: 2700.04 | E190: 18625.6 | F190: 89.7875 | G190: 19012.8 | H190: 1738.53 | I190: 280 | J190: 0.6000266667 | K190: 0.01946012504 | L190: 0.9865672274 | M190: 0.01946011867 | N190: 150.0074896 | O190: 0.9796346693
A191: 383.632 | B191: 18.0128 | C191: 57.5476 | D191: 2701.85 | E191: 18639.9 | F191: 90.3649 | G191: 19023.6 | H191: 1728.59 | I191: 280 | J191: 0.6004266667 | K191: 0.01928070281 | L191: 0.9873246748 | M191: 0.01928067195 | N191: 150.0072987 | O191: 0.9798338185
A192: 380.258 | B192: 18.0244 | C192: 57.0416 | D192: 2703.57 | E192: 18655.6 | F192: 90.9242 | G192: 19035.9 | H192: 1717.39 | I192: 280 | J192: 0.6008133333 | K192: 0.01911113121 | L192: 0.9881562778 | M192: 0.01911114238 | N192: 150.0076264 | O192: 0.9800241208
A193: 376.754 | B193: 18.0361 | C193: 56.5159 | D193: 2705.34 | E193: 18668.6 | F193: 91.5025 | G193: 19045.4 | H193: 1708.68 | I193: 280 | J193: 0.6012033333 | K193: 0.01893502603 | L193: 0.9888448663 | M193: 0.01893501255 | N193: 150.0074319 | O193: 0.9802180626
A194: 373.341 | B194: 18.0478 | C194: 56.004 | D194: 2707.09 | E194: 18684 | F194: 92.0813 | G194: 19057.3 | H194: 1697.92 | I194: 280 | J194: 0.6015933333 | K194: 0.01876349436 | L194: 0.9896605788 | M194: 0.01876350625 | N194: 150.0076338 | O194: 0.9804095965
A195: 370.051 | B195: 18.059 | C195: 55.5105 | D195: 2708.77 | E195: 18697.3 | F195: 92.6419 | G195: 19067.3 | H195: 1688.94 | I195: 280 | J195: 0.6019666667 | K195: 0.01859814446 | L195: 0.9903650578 | M195: 0.01859816466 | N195: 150.0077016 | O195: 0.9805924273
A196: 368.88 | B196: 18.0705 | C196: 55.3348 | D196: 2710.49 | E196: 18822.5 | F196: 93.2215 | G196: 19191.4 | H196: 1542.02 | I196: 280 | J196: 0.60235 | K196: 0.01853929196 | L196: 0.9969966948 | M196: 0.01853929836 | N196: 150.0075905 | O196: 0.9807788705
A197: 363.483 | B197: 18.0816 | C197: 54.5251 | D197: 2712.15 | E197: 18725 | F197: 93.7862 | G197: 19088.5 | H197: 1670.06 | I197: 280 | J197: 0.60272 | K197: 0.01826804777 | L197: 0.991832281 | M197: 0.01826801754 | N197: 150.0072906 | O197: 0.9809579944
A198: 360.197 | B198: 18.0928 | C198: 54.0322 | D198: 2713.84 | E198: 18737.9 | F198: 94.3668 | G198: 19098.1 | H198: 1661.5 | I198: 280 | J198: =B198/$B$2 -> 0.6030933333 | K198: 0.0181028989 | L198: 0.9925155727 | M198: 0.01810287698 | N198: 150.0073571 | O198: 0.9811396392
A199: 356.998 | B199: 18.104 | C199: 53.5524 | D199: 2715.52 | E199: 18753.2 | F199: 94.9477 | G199: 19110.2 | H199: 1650.92 | I199: 280 | J199: 0.6034666667 | K199: =A199/$A$6 -> 0.01794212251 | L199: =E199/$L$3 -> 0.9933259884 | M199: =C199/$N$3 -> 0.01794212542 | N199: =C199*1000/A199 -> 150.0075631 | O199: =E199/(E199+A199) -> 0.9813189795
A200: 354.132 | B200: 18.114 | C200: 53.1224 | D200: 2717.02 | E200: 18766.2 | F200: 95.4728 | G200: 19120.4 | H200: 1641.8 | I200: 280 | J200: 0.6038 | K200: 0.01779808214 | L200: 0.9940145769 | M200: 0.01779805879 | N200: 150.0073419 | O200: 0.9814787735
... 15 more rows

Sheet Va - 45%
A1: Case: | B1: Va - 45%
A2: N | B2: 55 | C2: [MSm3]
A3: Vaquifer | B3: =20.1014*(1-0.4545) -> 10.9653137 | C3: Mm3 | K3: qw_max [Sm3/d] | L3: =MAX(E6:E690) -> 18904.5 | M3: qg_max [1000 Sm3/d] | N3: =MAX(C6:C691) -> 2984.73
A4: Average Oil Rate | B4: Cum Oil Production | C4: Average Gas Rate | D4: Cum Gas Production | E4: Average Water Rate | F4: Cum Water Production | G4: Average Liquid Rate | H4: Average Gaslift Rate | I4: Reservoir Pressure | J4: RF | K4: qomax_n | L4: qwmax_n | M4: qgmax_n | N4: GOR | O4: WC
A5: sm3/d | B5: M sm3 | C5: 1000 sm3/d | D5: M sm3 | E5: sm3/d | F5: M sm3 | G5: sm3/d | H5: 1000 sm3/d | I5: bara
A6: 19897.2 | B6: 0 | C6: 2984.73 | D6: 0 | E6: 0 | F6: 0 | G6: 19897.2 | H6: 99.6948 | I6: 280 | J6: =B6/$B$2 -> 0 | K6: =A6/$A$6 -> 1 | L6: =E6/$L$3 -> 0 | M6: =C6/$N$3 -> 1 | N6: =C6*1000/A6 -> 150.0075387 | O6: =E6/(E6+A6) -> 0
A7: 19818.3 | B7: 0.616863 | C7: 2972.89 | D7: 92.5267 | E7: 78.9768 | F7: 0 | G7: 19897.3 | H7: 99.6672 | I7: 280 | J7: 0.01121569091 | K7: =A7/$A$6 -> 0.9960346179 | L7: =E7/$L$3 -> 0.004177671983 | M7: =C7/$N$3 -> 0.996033142 | N7: =C7*1000/A7 -> 150.0073165 | O7: =E7/(E7+A7) -> 0.003969226583
A8: 19687.4 | B8: 1.17182 | C8: 2953.25 | D8: 175.768 | E8: 210.25 | F8: 0.00221153 | G8: 19897.6 | H8: 99.6092 | I8: 280 | J8: 0.02130581818 | K8: 0.9894558028 | L8: 0.0111216906 | M8: 0.9894529823 | N8: 150.0071111 | O8: 0.01056657444
A9: 19497.2 | B9: 1.78218 | C9: 2924.72 | D9: 267.319 | E9: 400.826 | F9: 0.00872979 | G9: 19898 | H9: 99.5415 | I9: 280 | J9: 0.03240327273 | K9: 0.9798966689 | L9: 0.02120267661 | M9: 0.9798943288 | N9: 150.0071805 | O9: 0.02014400825
A10: 19276.8 | B10: 2.36714 | C10: 2891.66 | D10: 355.06 | E10: 622.219 | F10: 0.0207555 | G10: 19899 | H10: 99.4629 | I10: 280 | J10: 0.04303890909 | K10: 0.9688197334 | L10: 0.03291380359 | M10: 0.96881795 | N10: 150.0072626 | O10: 0.03126882788
A11: 19017.3 | B11: 2.96477 | C11: 2852.73 | D11: 444.702 | E11: 883.4 | F11: 0.0400459 | G11: 19900.7 | H11: 99.3675 | I11: 280 | J11: 0.05390490909 | K11: 0.9557776974 | L11: 0.04672961464 | M11: 0.9557748942 | N11: 150.0070988 | O11: 0.04439039833
A12: 18687.6 | B12: 3.53533 | C12: 2803.28 | D12: 530.283 | E12: 1159.7 | F12: 0.06655 | G12: 19847.3 | H12: 196.258 | I12: 280 | J12: 0.06427872727 | K12: 0.9392075267 | L12: 0.06134518236 | M12: 0.9392072315 | N12: 150.0074916 | O12: 0.05843112161
A13: 18380.7 | B13: 4.11469 | C13: 2757.24 | D13: 617.185 | E13: 1470.64 | F13: 0.102503 | G13: 19851.4 | H13: 196.105 | I13: 280 | J13: 0.07481254545 | K13: 0.9237832459 | L13: 0.07779311804 | M13: 0.9237820506 | N13: 150.0073447 | O13: 0.07408265638
A14: 18054.9 | B14: 4.68454 | C14: 2708.36 | D14: 702.66 | E14: 1801.93 | F14: 0.148097 | G14: 19856.8 | H14: 195.958 | I14: 280 | J14: 0.08517345455 | K14: 0.9074090827 | L14: 0.09531751699 | M14: 0.9074053599 | N14: 150.0069233 | O14: 0.090746106
A15: 17724.2 | B15: 5.22623 | C15: 2658.76 | D15: 783.911 | E15: 2138.56 | F15: 0.202159 | G15: 19862.8 | H15: 197.303 | I15: 280 | J15: 0.09502236364 | K15: 0.8907886537 | L15: 0.1131243884 | M15: 0.8907874414 | N15: 150.0073346 | O15: 0.1076668096
A16: 17364.6 | B16: 5.77572 | C16: 2604.81 | D16: 866.332 | E16: 2499.37 | F16: 0.26846 | G16: 19863.9 | H16: 197.091 | I16: 280 | J16: 0.1050130909 | K16: 0.872715759 | L16: 0.1322103203 | M16: 0.8727121046 | N16: 150.0069106 | O16: 0.1258242939
A17: 17006.1 | B17: 6.2967 | C17: 2551.04 | D17: 944.477 | E17: 2858.33 | F17: 0.343447 | G17: 19864.4 | H17: 196.869 | I17: 280 | J17: 0.1144854545 | K17: 0.8546981485 | L17: 0.1511983919 | M17: 0.8546970748 | N17: 150.0073503 | O17: 0.143891871
A18: 16628.9 | B18: 6.82393 | C18: 2494.45 | D18: 1023.56 | E18: 3237.14 | F18: 0.432062 | G18: 19866 | H18: 196.625 | I18: 280 | J18: 0.1240714545 | K18: 0.8357407072 | L18: 0.1712364781 | M18: 0.8357372359 | N18: 150.0069157 | O18: 0.1629484286
A19: 16247.4 | B19: 7.33947 | C19: 2437.23 | D19: 1100.89 | E19: 3621.42 | F19: 0.532422 | G19: 19868.8 | H19: 196.385 | I19: 280 | J19: 0.1334449091 | K19: 0.8165671552 | L19: 0.1915639134 | M19: 0.8165663226 | N19: 150.0073858 | O19: 0.1822664859
A20: 15888.9 | B20: 7.81068 | C20: 2383.46 | D20: 1171.57 | E20: 3983.63 | F20: 0.637451 | G20: 19872.6 | H20: 196.156 | I20: 280 | J20: 0.1420123636 | K20: 0.7985495447 | L20: 0.2107239017 | M20: 0.7985512927 | N20: 150.0078671 | O20: 0.2004591262
A21: 15505.4 | B21: 8.30327 | C21: 2325.92 | D21: 1245.45 | E21: 4372.44 | F21: 0.760954 | G21: 19877.8 | H21: 195.909 | I21: 280 | J21: 0.1509685455 | K21: 0.7792754759 | L21: 0.2312909625 | M21: 0.7792731671 | N21: 150.0070943 | O21: 0.2199655496
A22: 15126.4 | B22: 8.76847 | C22: 2269.08 | D22: 1315.23 | E22: 4745.3 | F22: 0.892137 | G22: 19871.7 | H22: 195.602 | I22: 280 | J22: 0.1594267273 | K22: 0.7602275697 | L22: 0.2510143088 | M22: 0.7602295685 | N22: 150.0079331 | O22: 0.238796882
A23: 14737.1 | B23: 9.23743 | C23: 2210.67 | D23: 1385.57 | E23: 5127.7 | F23: 1.03925 | G23: 19864.8 | H23: 195.275 | I23: 280 | J23: 0.1679532727 | K23: 0.7406620027 | L23: 0.2712422968 | M23: 0.7406599592 | N23: 150.0071249 | O23: 0.2581299585
A24: 14365.3 | B24: 9.67958 | C24: 2154.9 | D24: 1451.89 | E24: 5493.77 | F24: 1.1931 | G24: 19859.1 | H24: 194.961 | I24: 280 | J24: 0.1759923636 | K24: 0.7219759564 | L24: 0.2906064694 | M24: 0.721974852 | N24: 150.0073093 | O24: 0.2766378285
A25: 13986.8 | B25: 10.1249 | C25: 2098.13 | D25: 1518.7 | E25: 5867.03 | F25: 1.36342 | G25: 19853.8 | H25: 196.139 | I25: 280 | J25: 0.1840890909 | K25: 0.7029531793 | L25: 0.3103509746 | M25: 0.7029547061 | N25: 150.0078646 | O25: 0.2955112439
A26: 13594.3 | B26: 10.5586 | C26: 2039.24 | D26: 1583.74 | E26: 6224.51 | F26: 1.54531 | G26: 19818.8 | H26: 351.065 | I26: 280 | J26: 0.1919745455 | K26: 0.6832267857 | L26: 0.329260758 | M26: 0.6832242782 | N26: 150.0069882 | O26: 0.3140708246
A27: 13247.3 | B27: 10.9664 | C27: 1987.2 | D27: 1644.91 | E27: 6573.93 | F27: 1.73206 | G27: 19821.3 | H27: 351.065 | I27: 280 | J27: 0.1993890909 | K27: 0.6657871459 | L27: 0.3477441879 | M27: 0.6657888653 | N27: 150.0079261 | O27: 0.3316610523
A28: 12887.2 | B28: 11.3771 | C28: 1933.17 | D28: 1706.52 | E28: 6923.08 | F28: 1.93587 | G28: 19810.2 | H28: 385.186 | I28: 280 | J28: 0.2068563636 | K28: 0.6476891221 | L28: 0.3662133354 | M28: 0.6476867254 | N28: 150.0069837 | O28: 0.3494690635
A29: 12550 | B29: 11.7638 | C29: 1882.6 | D29: 1764.51 | E29: 7254.29 | F29: 2.14358 | G29: 19804.3 | H29: 384.979 | I29: 280 | J29: 0.2138872727 | K29: 0.630742014 | L29: 0.3837335026 | M29: 0.6307438194 | N29: 150.0079681 | O29: 0.3662989181
A30: 12210.8 | B30: 12.1529 | C30: 1831.72 | D30: 1822.87 | E30: 7588.42 | F30: 2.36848 | G30: 19799.3 | H30: 384.689 | I30: 280 | J30: 0.2209618182 | K30: 0.6136943892 | L30: 0.4014081303 | M30: 0.6136970513 | N30: 150.0081895 | O30: 0.3832686338
A31: 11881.3 | B31: 12.5314 | C31: 1782.28 | D31: 1879.66 | E31: 7913.91 | F31: 2.60374 | G31: 19795.2 | H31: 384.313 | I31: 280 | J31: 0.2278436364 | K31: 0.5971342701 | L31: 0.418625724 | M31: 0.597132739 | N31: 150.0071541 | O31: 0.3997891409
A32: 11592.4 | B32: 12.8641 | C32: 1738.94 | D32: 1929.56 | E32: 8199.97 | F32: 2.82535 | G32: 19792.3 | H32: 383.917 | I32: 280 | J32: 0.2338927273 | K32: 0.5826146392 | L32: 0.4337575709 | M32: 0.5826121626 | N32: 150.0069011 | O32: 0.4142995508
A33: 11281.3 | B33: 13.2235 | C33: 1692.28 | D33: 1983.47 | E33: 8508.66 | F33: 3.07956 | G33: 19790 | H33: 383.462 | I33: 280 | J33: 0.2404272727 | K33: 0.5669792735 | L33: 0.4500864873 | M33: 0.5669792578 | N33: 150.0075346 | O33: 0.4299483172
A34: 10989.5 | B34: 13.562 | C34: 1648.51 | D34: 2034.24 | E34: 8798.71 | F34: 3.33485 | G34: 19788.2 | H34: 382.95 | I34: 280 | J34: 0.2465818182 | K34: 0.5523138934 | L34: 0.4654293951 | M34: 0.5523146147 | N34: 150.0077347 | O34: 0.4446440583
A35: 10689.2 | B35: 13.9027 | C35: 1603.46 | D35: 2085.34 | E35: 9082.9 | F35: 3.60763 | G35: 19772.1 | H35: 382.466 | I35: 280 | J35: 0.2527763636 | K35: 0.5372213176 | L35: 0.4804623238 | M35: 0.5372211222 | N35: 150.0074842 | O35: 0.4593796309
A36: 10406.6 | B36: 14.2234 | C36: 1561.07 | D36: 2133.44 | E36: 9347.38 | F36: 3.88014 | G36: 19754 | H36: 413.703 | I36: 280 | J36: 0.2586072727 | K36: 0.5230183141 | L36: 0.4944526436 | M36: 0.5230188325 | N36: 150.0076874 | O36: 0.4731897066
A37: 10123.4 | B37: 14.546 | C37: 1518.58 | D37: 2181.84 | E37: 9610.56 | F37: 4.16993 | G37: 19733.9 | H37: 435.848 | I37: 280 | J37: 0.2644727273 | K37: 0.5087851557 | L37: 0.5083741966 | M37: 0.508783039 | N37: 150.0069147 | O37: 0.4870061559
A38: 9847.08 | B38: 14.8599 | C38: 1477.13 | D38: 2228.91 | E38: 9861.58 | F38: 4.46788 | G38: 19708.7 | H38: 381.018 | I38: 280 | J38: 0.27018 | K38: 0.4948977746 | L38: 0.5216525166 | M38: 0.4948956857 | N38: 150.0069056 | O38: 0.5003678586
A39: 9593.36 | B39: 15.1553 | C39: 1439.08 | D39: 2273.23 | E39: 10100 | F39: 4.76375 | G39: 19693.3 | H39: 380.581 | I39: 280 | J39: 0.2755509091 | K39: 0.4821462316 | L39: 0.5342643286 | M39: 0.4821474639 | N39: 150.0079221 | O39: 0.5128632189
A40: 9340.11 | B40: 15.4527 | C40: 1401.09 | D40: 2317.84 | E40: 10337.9 | F40: 5.07687 | G40: 19678 | H40: 380.115 | I40: 280 | J40: 0.2809581818 | K40: 0.4694183101 | L40: 0.5468486339 | M40: 0.4694193445 | N40: 150.0078693 | O40: 0.5253529193
A41: 9102.03 | B41: 15.7329 | C41: 1365.37 | D41: 2359.87 | E41: 10558.2 | F41: 5.38704 | G41: 19660.2 | H41: 668.63 | I41: 280 | J41: 0.2860527273 | K41: 0.4574528074 | L41: 0.558501944 | M41: 0.4574517628 | N41: 150.0071962 | O41: 0.5370333918
A42: 8872.92 | B42: 16.0151 | C42: 1331 | D42: 2402.2 | E42: 10787.9 | F42: 5.71436 | G42: 19660.9 | H42: 644.88 | I42: 280 | J42: 0.2911836364 | K42: 0.4459381219 | L42: 0.5706524901 | M42: 0.4459364834 | N42: 150.0069876 | O42: 0.5487004103
A43: 8648.24 | B43: 16.2902 | C43: 1297.3 | D43: 2443.46 | E43: 11006 | F43: 6.04882 | G43: 19654.3 | H43: 662.379 | I43: 280 | J43: 0.2961854545 | K43: 0.4346460809 | L43: 0.5821894258 | M43: 0.4346456798 | N43: 150.0074003 | O43: 0.5599809507
A44: 8450.58 | B44: 16.5324 | C44: 1267.65 | D44: 2479.78 | E44: 11194.1 | F44: 6.35701 | G44: 19644.7 | H44: 665.703 | I44: 280 | J44: 0.3005890909 | K44: 0.4247120198 | L44: 0.5921394377 | M44: 0.424711783 | N44: 150.0074551 | O44: 0.5698285745
A45: 8238.96 | B45: 16.7944 | C45: 1235.91 | D45: 2519.08 | E45: 11396 | F45: 6.70406 | G45: 19634.9 | H45: 670.054 | I45: 280 | J45: 0.3053527273 | K45: 0.4140763525 | L45: 0.6028194345 | M45: 0.4140776553 | N45: 150.0080107 | O45: 0.5803933392
A46: 8032.6 | B46: 17.0416 | C46: 1204.95 | D46: 2556.16 | E46: 11572 | F46: 7.04596 | G46: 19604.6 | H46: 826.596 | I46: 280 | J46: 0.3098472727 | K46: 0.4037050439 | L46: 0.6121293872 | M46: 0.4037048577 | N46: 150.0074696 | O46: 0.5902696306
A47: 7846.02 | B47: 17.2906 | C47: 1176.96 | D47: 2593.51 | E47: 11775.2 | F47: 7.40472 | G47: 19621.3 | H47: 796.198 | I47: 280 | J47: 0.3143745455 | K47: 0.3943278451 | L47: 0.6228781507 | M47: 0.3943271251 | N47: 150.0072648 | O47: 0.6001257822
A48: 7631.44 | B48: 17.526 | C48: 1144.77 | D48: 2628.82 | E48: 11904.2 | F48: 7.75801 | G48: 19535.6 | H48: 923.043 | I48: 280 | J48: 0.3186545455 | K48: 0.3835434131 | L48: 0.6297019228 | M48: 0.38354223 | N48: 150.007076 | O48: 0.6093580758
A49: 7462.37 | B49: 17.7626 | C49: 1119.41 | D49: 2664.31 | E49: 12100.6 | F49: 8.12707 | G49: 19563 | H49: 874.579 | I49: 280 | J49: 0.3229563636 | K49: 0.3750462377 | L49: 0.6400909836 | M49: 0.375045649 | N49: 150.0073033 | O49: 0.6185461614
A50: 7306.36 | B50: 17.9939 | C50: 1096.01 | D50: 2699.01 | E50: 12305.1 | F50: 8.50221 | G50: 19611.4 | H50: 794.395 | I50: 280 | J50: 0.3271618182 | K50: 0.3672054359 | L50: 0.6509085138 | M50: 0.3672057439 | N50: 150.0076646 | O50: 0.6274443616
A51: 7141.05 | B51: 18.2131 | C51: 1071.21 | D51: 2731.89 | E51: 12466 | F51: 8.8714 | G51: 19607 | H51: 796.585 | I51: 280 | J51: 0.3311472727 | K51: 0.3588972318 | L51: 0.6594197149 | M51: 0.3588967846 | N51: 150.0073519 | O51: 0.6357917178
A52: 6968.78 | B52: 18.4345 | C52: 1045.37 | D52: 2765.1 | E52: 12614 | F52: 9.25787 | G52: 19582.8 | H52: 831.072 | I52: 280 | J52: 0.3351727273 | K52: 0.3502392296 | L52: 0.6672485387 | M52: 0.3502393851 | N52: 150.0076053 | O52: 0.6441373492
A53: 6800.69 | B53: 18.6436 | C53: 1020.15 | D53: 2796.46 | E53: 12738.3 | F53: 9.63632 | G53: 19539 | H53: 902.844 | I53: 280 | J53: 0.3389745455 | K53: 0.3417913073 | L53: 0.6738236928 | M53: 0.3417897096 | N53: 150.0068375 | O53: 0.651942603
A54: 6663.06 | B54: 18.8545 | C54: 999.509 | D54: 2828.08 | E54: 12918.8 | F54: 10.0312 | G54: 19581.9 | H54: 787.009 | I54: 280 | J54: 0.3428090909 | K54: 0.3348742537 | L54: 0.683371684 | M54: 0.3348741762 | N54: 150.0075041 | O54: 0.6597330386
A55: 6510.02 | B55: 19.061 | C55: 976.552 | D55: 2859.07 | E55: 13056.6 | F55: 10.4318 | G55: 19566.6 | H55: 807.924 | I55: 280 | J55: 0.3465636364 | K55: 0.3271827192 | L55: 0.6906609537 | M55: 0.3271826932 | N55: 150.0075269 | O55: 0.6672894961
A56: 6363.09 | B56: 19.2433 | C56: 954.511 | D56: 2886.41 | E56: 13149.1 | F56: 10.7974 | G56: 19512.2 | H56: 935.059 | I56: 280 | J56: 0.3498781818 | K56: 0.3197982631 | L56: 0.6955539686 | M56: 0.3197981057 | N56: 150.0074649 | O56: 0.6738915519
A57: 6226.7 | B57: 19.4406 | C57: 934.052 | D57: 2916 | E57: 13290.7 | F57: 11.205 | G57: 19517.4 | H57: 909.411 | I57: 280 | J57: 0.3534654545 | K57: 0.3129435297 | L57: 0.7030442487 | M57: 0.3129435493 | N57: 150.0075481 | O57: 0.6809667271
A58: 6103.16 | B58: 19.6274 | C58: 915.519 | D58: 2944.02 | E58: 13433.1 | F58: 11.6038 | G58: 19536.3 | H58: 801.786 | I58: 280 | J58: 0.3568618182 | K58: 0.3067346159 | L58: 0.7105768468 | M58: 0.3067342775 | N58: 150.0073732 | O58: 0.6875983428
A59: 5968.64 | B59: 19.8166 | C59: 895.341 | D59: 2972.4 | E59: 13552.6 | F59: 12.0202 | G59: 19521.3 | H59: 811.361 | I59: 280 | J59: 0.3603018182 | K59: 0.2999738657 | L59: 0.716898093 | M59: 0.299973867 | N59: 150.0075394 | O59: 0.6942489309
A60: 5837.32 | B60: 19.9957 | C60: 875.641 | D60: 2999.26 | E60: 13651.5 | F60: 12.4268 | G60: 19488.8 | H60: 868.784 | I60: 280 | J60: 0.3635581818 | K60: 0.2933739421 | L60: 0.7221296517 | M60: 0.293373605 | N60: 150.0073664 | O60: 0.7004785308
A61: 5675.82 | B61: 20.1767 | C61: 851.415 | D61: 3026.41 | E61: 13676.5 | F61: 12.8501 | G61: 19352.4 | H61: 1296.05 | I61: 280 | J61: 0.3668490909 | K61: 0.2852572221 | L61: 0.7234520881 | M61: 0.2852569579 | N61: 150.0073998 | O61: 0.7067111333
A62: 5567.92 | B62: 20.3526 | C62: 835.23 | D62: 3052.8 | E62: 13813 | F62: 13.2741 | G62: 19380.9 | H62: 1190.71 | I62: 280 | J62: 0.3700472727 | K62: 0.2798343486 | L62: 0.7306725912 | M62: 0.2798343569 | N62: 150.0075432 | O62: 0.7127112645
A63: 5473.98 | B63: 20.5197 | C63: 821.138 | D63: 3077.86 | E63: 13961.3 | F63: 13.6885 | G63: 19435.3 | H63: 1017.47 | I63: 280 | J63: 0.3730854545 | K63: 0.2751130812 | L63: 0.7385172842 | M63: 0.2751129918 | N63: 150.00749 | O63: 0.7183482821
A64: 5363.75 | B64: 20.6894 | C64: 804.602 | D64: 3103.32 | E64: 14071.5 | F64: 14.1213 | G64: 19435.2 | H64: 935.403 | I64: 280 | J64: 0.3761709091 | K64: 0.2695731058 | L64: 0.7443465841 | M64: 0.2695727922 | N64: 150.0073643 | O64: 0.7240195006
A65: 5255.48 | B65: 20.8503 | C65: 788.362 | D65: 3127.45 | E65: 14162.1 | F65: 14.5435 | G65: 19417.6 | H65: 977.43 | I65: 280 | J65: 0.3790963636 | K65: 0.2641316366 | L65: 0.7491390939 | M65: 0.264131764 | N65: 150.0076111 | O65: 0.7293442334
A66: 5149.24 | B66: 21.0132 | C66: 772.425 | D66: 3151.89 | E66: 14258.5 | F66: 14.9826 | G66: 19407.8 | H66: 993.893 | I66: 280 | J66: 0.3820581818 | K66: 0.2587921919 | L66: 0.7542384088 | M66: 0.2587922526 | N66: 150.0075739 | O66: 0.7346811118
A67: 5050.13 | B67: 21.1729 | C67: 757.557 | D67: 3175.84 | E67: 14362.9 | F67: 15.4246 | G67: 19413 | H67: 947.296 | I67: 280 | J67: 0.3849618182 | K67: 0.253811089 | L67: 0.7597609035 | M67: 0.2538108975 | N67: 150.0074256 | O67: 0.7398587444
A68: 4963.71 | B68: 21.3194 | C68: 744.593 | D68: 3197.81 | E68: 14468.5 | F68: 15.8412 | G68: 19432.2 | H68: 835.777 | I68: 280 | J68: 0.3876254545 | K68: 0.2494677643 | L68: 0.7653468751 | M68: 0.249467456 | N68: 150.0073534 | O68: 0.7445627646
A69: 4864.73 | B69: 21.4732 | C69: 729.746 | D69: 3220.89 | E69: 14552.1 | F69: 16.2897 | G69: 19416.8 | H69: 872.459 | I69: 280 | J69: 0.3904218182 | K69: 0.244493195 | L69: 0.7697691026 | M69: 0.2444931367 | N69: 150.007503 | O69: 0.7494580732
A70: 4774.95 | B70: 21.6192 | C70: 716.278 | D70: 3242.78 | E70: 14639.9 | F70: 16.7263 | G70: 19414.8 | H70: 845.983 | I70: 280 | J70: =B70/$B$2 -> 0.3930763636 | K70: 0.2399810024 | L70: 0.7744134994 | M70: 0.2399808358 | N70: 150.0074346 | O70: 0.7540568173
A71: 4685.04 | B71: 21.7672 | C71: 702.791 | D71: 3264.99 | E71: 14728.8 | F71: 17.1802 | G71: 19413.8 | H71: 801.948 | I71: 280 | J71: 0.3957672727 | K71: =A71/$A$6 -> 0.2354622761 | L71: =E71/$L$3 -> 0.7791160835 | M71: =C71/$N$3 -> 0.2354621691 | N71: =C71*1000/A71 -> 150.0074706 | O71: =E71/(E71+A71) -> 0.7586752544
A72: 4591.48 | B72: 21.9078 | C72: 688.756 | D72: 3286.07 | E72: 14783.4 | F72: 17.6221 | G72: 19374.9 | H72: 1018.98 | I72: 280 | J72: 0.3983236364 | K72: 0.2307601069 | L72: 0.7820042847 | M72: 0.2307599012 | N72: 150.007405 | O72: 0.7630189193
A73: 4509.67 | B73: 22.0501 | C73: 676.484 | D73: 3307.42 | E73: 14876.5 | F73: 18.0804 | G73: 19386.1 | H73: 903.547 | I73: 280 | J73: 0.4009109091 | K73: 0.2266484732 | L73: 0.7869290381 | M73: 0.2266483065 | N73: 150.0074285 | O73: 0.7673769497
A74: 4425.85 | B74: 22.1899 | C74: 663.911 | D74: 3328.39 | E74: 14953.1 | F74: 18.5416 | G74: 19378.9 | H74: 915.604 | I74: 280 | J74: 0.4034527273 | K74: 0.2224358201 | L74: 0.7909809834 | M74: 0.2224358652 | N74: 150.0075692 | O74: 0.7716155932
A75: 4348.14 | B75: 22.3227 | C75: 652.253 | D75: 3348.31 | E75: 15028.9 | F75: 18.9903 | G75: 19377 | H75: 875.445 | I75: 280 | J75: 0.4058672727 | K75: 0.2185302455 | L75: 0.7949906107 | M75: 0.2185299843 | N75: 150.0073595 | O75: 0.7756034977
A76: 4268.33 | B76: 22.4575 | C76: 640.282 | D76: 3368.53 | E76: 15099.2 | F76: 19.4562 | G76: 19367.6 | H76: 885.166 | I76: 280 | J76: 0.4083181818 | K76: 0.2145191283 | L76: 0.798709302 | M76: 0.2145192362 | N76: 150.0076142 | O76: 0.7796141274
A77: 4192.75 | B77: 22.5856 | C77: 628.944 | D77: 3387.74 | E77: 15163.4 | F77: 19.9092 | G77: 19356.2 | H77: 1184.91 | I77: 280 | J77: 0.4106472727 | K77: 0.2107206039 | L77: 0.8021053188 | M77: 0.2107205677 | N77: 150.007513 | O77: 0.7833892587
A78: 4114.84 | B78: 22.7156 | C78: 617.257 | D78: 3407.24 | E78: 15220.6 | F78: 20.3793 | G78: 19335.4 | H78: 1126.5 | I78: 280 | J78: 0.4130109091 | K78: 0.2068049776 | L78: 0.8051310535 | M78: 0.2068049706 | N78: 150.0075337 | O78: 0.7871866376
A79: 4045.93 | B79: 22.8432 | C79: 606.919 | D79: 3426.37 | E79: 15301.3 | F79: 20.8512 | G79: 19347.3 | H79: 1183.15 | I79: 280 | J79: 0.4153309091 | K79: 0.2033416762 | L79: 0.8093998783 | M79: 0.2033413408 | N79: 150.0072913 | O79: 0.790878074
A80: 3978.6 | B80: 22.9564 | C80: 596.82 | D80: 3443.36 | E80: 15347.1 | F80: 21.2797 | G80: 19325.7 | H80: 955.726 | I80: 280 | J80: 0.4173890909 | K80: 0.199957783 | L80: 0.8118225819 | M80: 0.1999577851 | N80: 150.0075403 | O80: 0.7941290613
A81: 3912.53 | B81: 23.0798 | C81: 586.908 | D81: 3461.87 | E81: 15421.6 | F81: 21.7555 | G81: 19334.2 | H81: 1247.67 | I81: 280 | J81: 0.4196327273 | K81: 0.1966372153 | L81: 0.8157634426 | M81: 0.1966368817 | N81: 150.0072843 | O81: 0.7976360974
A82: 3847.67 | B82: 23.1972 | C82: 577.179 | D82: 3479.47 | E82: 15482 | F82: 22.2182 | G82: 19329.7 | H82: 1269.94 | I82: 280 | J82: 0.4217672727 | K82: 0.1933774601 | L82: 0.818958449 | M82: 0.1933772904 | N82: 150.0074071 | O82: 0.8009448687
A83: 3764.26 | B83: 23.3165 | C83: 564.667 | D83: 3497.37 | E83: 15468.5 | F83: 22.6981 | G83: 19232.7 | H83: 1618.93 | I83: 280 | J83: 0.4239363636 | K83: 0.189185413 | L83: 0.8182443334 | M83: 0.1891852864 | N83: 150.0074384 | O83: 0.8042787411
A84: 3721.69 | B84: 23.4294 | C84: 558.282 | D84: 3514.31 | E84: 15602.3 | F84: 23.1622 | G84: 19324 | H84: 1271.85 | I84: 280 | J84: 0.4259890909 | K84: 0.187045916 | L84: 0.8253220133 | M84: 0.1870460645 | N84: 150.0076578 | O84: 0.8074057169
A85: 3659.82 | B85: 23.5448 | C85: 549 | D85: 3531.61 | E85: 15660.7 | F85: 23.6459 | G85: 19320.6 | H85: 1316.52 | I85: 280 | J85: 0.4280872727 | K85: 0.1839364333 | L85: 0.8284112248 | M85: 0.1839362354 | N85: 150.0073774 | O85: 0.8105734214
A86: 3599.78 | B86: 23.6582 | C86: 539.993 | D86: 3548.63 | E86: 15718.7 | F86: 24.1315 | G86: 19318.5 | H86: 1304.86 | I86: 280 | J86: 0.4301490909 | K86: 0.1809189233 | L86: 0.8314792774 | M86: 0.180918542 | N86: 150.0072227 | O86: 0.8136613233
A87: 3543.11 | B87: 23.7663 | C87: 531.492 | D87: 3564.83 | E87: 15773.4 | F87: 24.6031 | G87: 19316.5 | H87: 1317.08 | I87: 280 | J87: 0.4321145455 | K87: 0.1780707838 | L87: 0.8343727684 | M87: 0.1780703782 | N87: 150.0071971 | O87: 0.8165760792
A88: 3381.61 | B88: 23.8761 | C88: 507.267 | D88: 3581.31 | E88: 15354.6 | F88: 25.0921 | G88: 18736.2 | H88: 2086.23 | I88: 280 | J88: 0.4341109091 | K88: 0.1699540639 | L88: 0.8122193129 | M88: 0.1699540662 | N88: 150.0075408 | O88: 0.8195147258
A89: 3434.96 | B89: 23.9776 | C89: 515.27 | D89: 3596.53 | E89: 15885 | F89: 25.5527 | G89: 19320 | H89: 1547.06 | I89: 280 | J89: 0.4359563636 | K89: 0.1726353457 | L89: 0.8402761247 | M89: 0.1726353808 | N89: 150.0075692 | O89: 0.8222066712
A90: 3239.58 | B90: 24.084 | C90: 485.96 | D90: 3612.5 | E90: 15273.2 | F90: 26.0452 | G90: 18512.8 | H90: 2371.61 | I90: 280 | J90: 0.4378909091 | K90: 0.1628158736 | L90: 0.8079134598 | M90: 0.162815397 | N90: 150.0070997 | O90: 0.8250084536
A91: 3192.54 | B91: 24.1845 | C91: 478.905 | D91: 3627.56 | E91: 15328.9 | F91: 26.5187 | G91: 18521.4 | H91: 2360.04 | I91: 280 | J91: 0.4397181818 | K91: 0.1604517219 | L91: 0.8108598482 | M91: 0.1604516991 | N91: 150.0075175 | O91: 0.8276300331
A92: 3150.97 | B92: 24.2739 | C92: 472.669 | D92: 3640.97 | E92: 15378.2 | F92: 26.948 | G92: 18529.1 | H92: 2349.97 | I92: 280 | J92: 0.4413436364 | K92: 0.1583624832 | L92: 0.8134676929 | M92: 0.1583623979 | N92: 150.007458 | O92: 0.829945432
A93: 3236.73 | B93: 24.3716 | C93: 485.534 | D93: 3655.63 | E93: 16081.9 | F93: 27.4247 | G93: 19318.7 | H93: 1549.03 | I93: 280 | J93: 0.44312 | K93: 0.1626726374 | L93: 0.8506916343 | M93: 0.1626726706 | N93: 150.0075694 | O93: 0.8324555106
A94: 3189.2 | B94: 24.4687 | C94: 478.403 | D94: 3670.19 | E94: 16131.3 | F94: 27.9072 | G94: 19320.5 | H94: 1547.81 | I94: 280 | J94: 0.4448854545 | K94: 0.160283859 | L94: 0.8533047687 | M94: 0.1602835097 | N94: 150.0072118 | O94: 0.8349318082
A95: 3139.97 | B95: 24.5675 | C95: 471.019 | D95: 3685.02 | E95: 16174.9 | F95: 28.4073 | G95: 19314.9 | H95: 1552.66 | I95: 280 | J95: 0.4466818182 | K95: 0.1578096416 | L95: 0.8556110979 | M95: 0.1578095841 | N95: 150.0074841 | O95: 0.8374325067
A96: 3095.07 | B96: 24.6618 | C96: 464.284 | D96: 3699.15 | E96: 16224.6 | F96: 28.8926 | G96: 19319.6 | H96: 1549.08 | I96: 280 | J96: 0.4483963636 | K96: 0.1555530426 | L96: 0.8582401016 | M96: 0.1555530986 | N96: 150.0075927 | O96: 0.8397969531
A97: 3049 | B97: 24.7577 | C97: 457.373 | D97: 3713.55 | E97: 16271.1 | F97: 29.3956 | G97: 19320.1 | H97: 1549.01 | I97: 280 | J97: 0.45014 | K97: 0.1532376415 | L97: 0.8606998334 | M97: 0.1532376463 | N97: 150.0075435 | O97: 0.8421850819
A98: 3003.9 | B98: 24.8522 | C98: 450.607 | D98: 3727.72 | E98: 16316.2 | F98: 29.9001 | G98: 19320.1 | H98: 1549.34 | I98: 280 | J98: 0.4518581818 | K98: 0.1509709909 | L98: 0.8630855087 | M98: 0.1509707746 | N98: 150.0073238 | O98: 0.8445194383
A99: 2961.71 | B99: 24.9424 | C99: 444.279 | D99: 3741.24 | E99: 16361.5 | F99: 30.3896 | G99: 19323.2 | H99: 1547.11 | I99: 280 | J99: 0.4534981818 | K99: 0.148850592 | L99: 0.8654817636 | M99: 0.1488506498 | N99: 150.007597 | O99: 0.846727847
A100: 2834.07 | B100: 25.0342 | C100: 425.131 | D100: 3755.01 | E100: 15929.6 | F100: 30.8968 | G100: 18763.7 | H100: 2062.95 | I100: 280 | J100: 0.4551672727 | K100: 0.1424356191 | L100: 0.8426353514 | M100: 0.1424353292 | N100: 150.0072334 | O100: 0.8489597184
A101: 2878.6 | B101: 25.1192 | C101: 431.811 | D101: 3767.77 | E101: 16442.4 | F101: 31.3748 | G101: 19321 | H101: 1549.6 | I101: 280 | J101: 0.4567127273 | K101: 0.1446736224 | L101: 0.869761168 | M101: 0.1446733875 | N101: 150.0072952 | O101: 0.8510118524
A102: 2837.44 | B102: 25.2085 | C102: 425.638 | D102: 3781.16 | E102: 16484.5 | F102: 31.8845 | G102: 19321.9 | H102: 1549.17 | I102: 280 | J102: 0.4583363636 | K102: 0.1426049896 | L102: 0.871988151 | M102: 0.1426051938 | N102: 150.0077535 | O102: 0.8531493214
A103: 2797.18 | B103: 25.2964 | C103: 419.597 | D103: 3794.35 | E103: 16525.6 | F103: 32.3956 | G103: 19322.8 | H103: 1548.82 | I103: 280 | J103: 0.4599345455 | K103: 0.1405815894 | L103: 0.8741622365 | M103: 0.1405812251 | N103: 150.0071501 | O103: 0.8552392565
A104: 2754.09 | B104: 25.3747 | C104: 413.133 | D104: 3806.1 | E104: 16517.1 | F104: 32.8583 | G104: 19271.2 | H104: 1592 | I104: 280 | J104: 0.4613581818 | K104: 0.138415958 | L104: 0.8737126081 | M104: 0.1384155351 | N104: 150.0070804 | O104: 0.8570877045
A105: 2722.13 | B105: 25.4601 | C105: 408.34 | D105: 3818.91 | E105: 16595.8 | F105: 33.3704 | G105: 19317.9 | H105: 1553.53 | I105: 280 | J105: 0.4629109091 | K105: 0.1368097019 | L105: 0.8778756381 | M105: 0.1368096947 | N105: 150.0075309 | O105: 0.8590879043
A106: 2587.12 | B106: 25.5418 | C106: 388.088 | D106: 3831.16 | E106: 16023.5 | F106: 33.8683 | G106: 18610.6 | H106: 2252.79 | I106: 280 | J106: 0.4643963636 | K106: 0.130024325 | L106: 0.8476024227 | M106: 0.1300244913 | N106: 150.0077306 | O106: 0.8609868989
A107: 2546.29 | B107: 25.622 | C107: 381.962 | D107: 3843.19 | E107: 16017.8 | F107: 34.3651 | G107: 18564.1 | H107: 2317.29 | I107: 280 | J107: 0.4658545455 | K107: 0.1279722775 | L107: 0.8473009072 | M107: 0.1279720444 | N107: 150.0072655 | O107: 0.8628378768
A108: 2514.28 | B108: 25.6984 | C108: 377.16 | D108: 3854.65 | E108: 16053.5 | F108: 34.8457 | G108: 18567.8 | H108: 2313.15 | I108: 280 | J108: 0.4672436364 | K108: 0.1263635084 | L108: 0.8491893465 | M108: 0.1263631886 | N108: 150.0071591 | O108: 0.8645890893
A109: 2481.6 | B109: 25.7764 | C109: 372.259 | D109: 3866.34 | E109: 16088.2 | F109: 35.3434 | G109: 18569.8 | H109: 2311.36 | I109: 280 | J109: 0.4686618182 | K109: 0.1247210663 | L109: 0.8510248883 | M109: 0.1247211641 | N109: 150.0076564 | O109: 0.8663636657
A110: 2449.36 | B110: 25.8533 | C110: 367.422 | D110: 3877.88 | E110: 16120.9 | F110: 35.8421 | G110: 18570.2 | H110: 2311.88 | I110: 280 | J110: 0.47006 | K110: 0.1231007378 | L110: 0.8527546351 | M110: 0.123100582 | N110: 150.0073489 | O110: 0.8681030853
A111: 2419.2 | B111: 25.9268 | C111: 362.898 | D111: 3888.9 | E111: 16154.7 | F111: 36.3258 | G111: 18573.9 | H111: 2307.72 | I111: 280 | J111: 0.4713963636 | K111: 0.1215849466 | L111: 0.8545425692 | M111: 0.121584867 | N111: 150.0074405 | O111: 0.8697527175
A112: 2388.42 | B112: 26.0018 | C112: 358.281 | D112: 3900.15 | E112: 16187.7 | F112: 36.8266 | G112: 18576.1 | H112: 2305.62 | I112: 280 | J112: 0.47276 | K112: 0.1200379953 | L112: 0.8562881854 | M112: 0.1200379934 | N112: 150.0075364 | O112: 0.8714252492
A113: 2358.95 | B113: 26.0734 | C113: 353.86 | D113: 3910.9 | E113: 16217.3 | F113: 37.3123 | G113: 18576.2 | H113: 2306.53 | I113: 280 | J113: 0.4740618182 | K113: 0.1185568824 | L113: 0.8578539501 | M113: 0.1185567874 | N113: 150.0074186 | O113: 0.8730125833
A114: 2329.41 | B114: 26.1466 | C114: 349.429 | D114: 3921.87 | E114: 16249.6 | F114: 37.8151 | G114: 18579.1 | H114: 2303.58 | I114: 280 | J114: 0.4753927273 | K114: 0.1170722514 | L114: 0.859562538 | M114: 0.117072231 | N114: 150.0075126 | O114: 0.8746214142
A115: 2300.47 | B115: 26.2188 | C115: 345.087 | D115: 3932.7 | E115: 16281.6 | F115: 38.3189 | G115: 18582.1 | H115: 2300.39 | I115: 280 | J115: 0.4767054545 | K115: 0.1156177754 | L115: 0.8612552567 | M115: 0.115617493 | N115: 150.0071724 | O115: 0.8761994762
A116: 2273.54 | B116: 26.2855 | C116: 341.049 | D116: 3942.71 | E116: 16308.5 | F116: 38.7911 | G116: 18582 | H116: 2301.37 | I116: 280 | J116: 0.4779181818 | K116: 0.1142643186 | L116: 0.8626781983 | M116: 0.1142646068 | N116: 150.0079172 | O116: 0.8776485251
A117: 2333.27 | B117: 26.356 | C117: 350.008 | D117: 3953.28 | E117: 16976.9 | F117: 39.2967 | G117: 19310.2 | H117: 1564.33 | I117: 280 | J117: 0.4792 | K117: 0.1172662485 | L117: 0.8980348594 | M117: 0.1172662184 | N117: 150.0075002 | O117: 0.8791688525
A118: 2306.76 | B118: 26.426 | C118: 346.031 | D118: 3963.78 | E118: 17024 | F118: 39.806 | G118: 19330.7 | H118: 1540.52 | I118: 280 | J118: 0.4804727273 | K118: 0.1159339002 | L118: 0.9005263297 | M118: 0.1159337696 | N118: 150.0073696 | O118: 0.8806689442
A119: 2276.7 | B119: 26.4975 | C119: 341.523 | D119: 3974.51 | E119: 17048.7 | F119: 40.3338 | G119: 19325.4 | H119: 1516.2 | I119: 280 | J119: 0.4817727273 | K119: 0.1144231349 | L119: 0.9018328969 | M119: 0.1144234152 | N119: 150.0079062 | O119: 0.882191313
A120: 2249.38 | B120: 26.5658 | C120: 337.424 | D120: 3984.75 | E120: 17081.1 | F120: 40.8453 | G120: 19330.5 | H120: 1536.18 | I120: 280 | J120: 0.4830145455 | K120: 0.1130500774 | L120: 0.9035467746 | M120: 0.1130500916 | N120: 150.0075576 | O120: 0.8836355848
A121: 2214.83 | B121: 26.6356 | C121: 332.242 | D121: 3995.21 | E121: 17061.4 | F121: 41.3749 | G121: 19276.2 | H121: 1594.32 | I121: 280 | J121: 0.4842836364 | K121: 0.1113136522 | L121: 0.9025046946 | M121: 0.1113139212 | N121: 150.0079013 | O121: 0.8851004579
A122: 2186.92 | B122: 26.7042 | C122: 328.055 | D122: 4005.51 | E122: 17086.7 | F122: 41.9038 | G122: 19273.6 | H122: 1596.92 | I122: 280 | J122: 0.4855309091 | K122: 0.1099109422 | L122: 0.9038430003 | M122: 0.1099111142 | N122: 150.0077735 | O122: 0.8865329917
A123: 2160.36 | B123: 26.7698 | C123: 324.07 | D123: 4015.35 | E123: 17110.2 | F123: 42.4165 | G123: 19270.6 | H123: 1599.93 | I123: 280 | J123: 0.4867236364 | K123: 0.1085760811 | L123: 0.9050860906 | M123: 0.1085759851 | N123: 150.0074062 | O123: 0.8878932423
A124: 2133.68 | B124: 26.8368 | C124: 320.069 | D124: 4025.4 | E124: 17136 | F124: 42.9469 | G124: 19269.7 | H124: 1600.59 | I124: 280 | J124: 0.4879418182 | K124: 0.1072351889 | L124: 0.906450845 | M124: 0.1072354953 | N124: 150.0079675 | O124: 0.8892726812
A125: 2107.57 | B125: 26.9008 | C125: 316.151 | D125: 4035 | E125: 17154.2 | F125: 43.461 | G125: 19261.8 | H125: 1606.14 | I125: 280 | J125: 0.4891054545 | K125: 0.1059229439 | L125: 0.9074135788 | M125: 0.1059228138 | N125: 150.0073544 | O125: 0.890582745
A126: 2089.24 | B126: 26.9662 | C126: 313.401 | D126: 4044.8 | E126: 17239.7 | F126: 43.9929 | G126: 19328.9 | H126: 1548.68 | I126: 280 | J126: 0.4902945455 | K126: 0.1050017088 | L126: 0.9119363115 | M126: 0.1050014574 | N126: 150.0071796 | O126: 0.8919112998
A127: 2063.54 | B127: 27.0309 | C127: 309.546 | D127: 4054.52 | E127: 17261.6 | F127: 44.5273 | G127: 19325.2 | H127: 1550.61 | I127: 280 | J127: 0.4914709091 | K127: 0.1037100698 | L127: 0.9130947658 | M127: 0.1037098833 | N127: 150.0072691 | O127: 0.8932199198
A128: 2021.72 | B128: 27.0887 | C128: 303.273 | D128: 4063.19 | E128: 17119.8 | F128: 45.0107 | G128: 19141.5 | H128: 1708.86 | I128: 280 | J128: 0.4925218182 | K128: 0.1016082665 | L128: 0.9055939062 | M128: 0.1016081857 | N128: 150.0074194 | O128: 0.8943803836
A129: 2001.52 | B129: 27.1514 | C129: 300.243 | D129: 4072.59 | E129: 17176 | F129: 45.5415 | G129: 19177.5 | H129: 1675.21 | I129: 280 | J129: 0.4936618182 | K129: 0.1005930483 | L129: 0.9085667434 | M129: 0.1005930185 | N129: 150.0074943 | O129: 0.8956319691
A130: 1982.14 | B130: 27.2114 | C130: 297.336 | D130: 4081.59 | E130: 17229 | F130: 46.0568 | G130: 19211.1 | H130: 1644.27 | I130: 280 | J130: 0.4947527273 | K130: 0.09961904188 | L130: 0.9113703087 | M130: 0.09961906102 | N130: 150.0075676 | O130: 0.8968234056
A131: 1969.2 | B131: 27.2729 | C131: 295.395 | D131: 4090.81 | E131: 17343.3 | F131: 46.5909 | G131: 19312.5 | H131: 1556.66 | I131: 280 | J131: 0.4958709091 | K131: 0.09896869911 | L131: 0.9174164881 | M131: 0.09896875094 | N131: 150.0076173 | O131: 0.8980349515
A132: 1947.89 | B132: 27.332 | C132: 292.198 | D132: 4099.67 | E132: 17375.1 | F132: 47.1113 | G132: 19322.9 | H132: 1546.91 | I132: 280 | J132: 0.4969454545 | K132: 0.09789769415 | L132: 0.9190986273 | M132: 0.09789763228 | N132: 150.007444 | O132: 0.8991931373
A133: 1923.2 | B133: 27.3924 | C133: 288.494 | D133: 4108.73 | E133: 17380.1 | F133: 47.6499 | G133: 19303.3 | H133: 1482.01 | I133: 280 | J133: 0.4980436364 | K133: 0.09665681603 | L133: 0.9193631146 | M133: 0.09665664901 | N133: 150.0072795 | O133: 0.9003693669
A134: 1900.97 | B134: 27.452 | C134: 285.159 | D134: 4117.68 | E134: 17402.8 | F134: 48.1887 | G134: 19303.8 | H134: 1488.33 | I134: 280 | J134: =B134/$B$2 -> 0.4991272727 | K134: 0.09553957341 | L134: 0.9205638869 | M134: 0.09553929501 | N134: 150.0071016 | O134: 0.9015233812
A135: 1880.99 | B135: 27.509 | C135: 282.163 | D135: 4126.23 | E135: 17435.3 | F135: 48.7109 | G135: 19316.3 | H135: 1531.98 | I135: 280 | J135: 0.5001636364 | K135: =A135/$A$6 -> 0.09453541202 | L135: =E135/$L$3 -> 0.9222830543 | M135: =C135/$N$3 -> 0.09453551913 | N135: =C135*1000/A135 -> 150.0077087 | O135: =E135/(E135+A135) -> 0.9026215697
A136: 1858.54 | B136: 27.5673 | C136: 278.795 | D136: 4134.98 | E136: 17448.4 | F136: 49.2514 | G136: 19307 | H136: 1556 | I136: 280 | J136: 0.5012236364 | K136: 0.09340711256 | L136: 0.922976011 | M136: 0.09340710885 | N136: 150.0075328 | O136: 0.9037372054
A137: 1839.05 | B137: 27.6231 | C137: 275.871 | D137: 4143.34 | E137: 17478.2 | F137: 49.7749 | G137: 19317.3 | H137: 1546.38 | I137: 280 | J137: 0.5022381818 | K137: 0.09242757775 | L137: 0.9245523553 | M137: 0.09242745575 | N137: 150.0073407 | O137: 0.9047975255
A138: 1816.02 | B138: 27.6801 | C138: 272.416 | D138: 4151.89 | E138: 17477.8 | F138: 50.3168 | G138: 19293.8 | H138: 1564.98 | I138: 280 | J138: 0.5032745455 | K138: 0.09127012846 | L138: 0.9245311963 | M138: 0.09126989711 | N138: 150.0071585 | O138: 0.9058755602
A139: 1795.31 | B139: 27.7364 | C139: 269.309 | D139: 4160.34 | E139: 17495.4 | F139: 50.8586 | G139: 19290.7 | H139: 1469.87 | I139: 280 | J139: 0.5042981818 | K139: 0.09022927849 | L139: 0.9254621915 | M139: 0.09022893193 | N139: 150.0069626 | O139: 0.9069339594
A140: 1776.73 | B140: 27.7867 | C140: 266.523 | D140: 4167.88 | E140: 17509.1 | F140: 51.3485 | G140: 19285.9 | H140: 1569.79 | I140: 280 | J140: 0.5052127273 | K140: 0.08929547876 | L140: 0.9261868867 | M140: 0.08929551417 | N140: 150.0075982 | O140: 0.907873812
A141: 1756.51 | B141: 27.8418 | C141: 263.489 | D141: 4176.14 | E141: 17524.1 | F141: 51.8914 | G141: 19280.6 | H141: 1573.27 | I141: 280 | J141: 0.5062145455 | K141: 0.08827925537 | L141: 0.9269803486 | M141: 0.08827900681 | N141: 150.0071164 | O141: 0.9088975919
A142: 1740.41 | B142: 27.8945 | C142: 261.074 | D142: 4184.05 | E142: 17570 | F142: 52.4171 | G142: 19310.4 | H142: 1547.45 | I142: 280 | J142: 0.5071727273 | K142: 0.08747009629 | L142: 0.9294083419 | M142: 0.0874698884 | N142: 150.0071822 | O142: 0.9098719292
A143: 1714.82 | B143: 27.9484 | C143: 257.236 | D143: 4192.14 | E143: 17523.3 | F143: 52.9618 | G143: 19238.2 | H143: 1607.65 | I143: 280 | J143: 0.5081527273 | K143: 0.08618398569 | L143: 0.9269380306 | M143: 0.08618400994 | N143: 150.007581 | O143: 0.9108634316
A144: 1698.17 | B144: 27.9999 | C144: 254.739 | D144: 4199.86 | E144: 17556.3 | F144: 53.4876 | G144: 19254.5 | H144: 1592.7 | I144: 280 | J144: 0.5090890909 | K144: 0.08534718453 | L144: 0.9286836468 | M144: 0.08534741836 | N144: 150.0079497 | O144: 0.9118038565
A145: 1682.89 | B145: 28.0525 | C145: 252.447 | D145: 4207.75 | E145: 17607.7 | F145: 54.0319 | G145: 19290.6 | H145: 1561.27 | I145: 280 | J145: 0.5100454545 | K145: 0.08457923728 | L145: 0.9314025761 | M145: 0.0845795097 | N145: 150.0080219 | O145: 0.9127610923
A146: 1666.24 | B146: 28.1047 | C146: 249.948 | D146: 4215.58 | E146: 17642.1 | F146: 54.5778 | G146: 19308.3 | H146: 1545.56 | I146: 280 | J146: 0.5109945455 | K146: 0.08374243612 | L146: 0.9332222487 | M146: 0.08374224804 | N146: 150.0072018 | O146: 0.913703612
A147: 1485.46 | B147: 28.1547 | C147: 222.831 | D147: 4223.08 | E147: 15909.2 | F147: 55.1071 | G147: 17394.6 | H147: 351.048 | I147: 280 | J147: 0.5119036364 | K147: 0.07465673562 | L147: 0.8415562432 | M147: 0.07465700415 | N147: 150.0080783 | O147: 0.9146025274
A148: 1470.22 | B148: 28.2007 | C148: 220.544 | D148: 4229.99 | E148: 15913.6 | F148: 55.6003 | G148: 17383.8 | H148: 351.048 | I148: 280 | J148: 0.51274 | K148: 0.07389079871 | L148: 0.841788992 | M148: 0.07389077069 | N148: 150.0074819 | O148: 0.9154259536
A149: 1455.71 | B149: 28.2449 | C149: 218.367 | D149: 4236.6 | E149: 15917.7 | F149: 56.0777 | G149: 17373.4 | H149: 351.048 | I149: 280 | J149: 0.5135436364 | K149: 0.07316155037 | L149: 0.8420058716 | M149: 0.07316139148 | N149: 150.007213 | O149: 0.9162104618
A150: 1440.95 | B150: 28.29 | C150: 216.153 | D150: 4243.37 | E150: 15921.9 | F150: 56.5712 | G150: 17362.9 | H150: 351.048 | I150: 280 | J150: 0.5143636364 | K150: 0.07241973745 | L150: 0.8422280409 | M150: 0.07241961584 | N150: 150.0072869 | O150: 0.9170095923
A151: 1577.02 | B151: 28.3347 | C151: 236.565 | D151: 4250.07 | E151: 17607.4 | F151: 57.0648 | G151: 19184.4 | H151: 1648.22 | I151: 280 | J151: 0.5151763636 | K151: 0.07925838811 | L151: 0.9313867069 | M151: 0.07925842539 | N151: 150.0076093 | O151: 0.9177968372
A152: 1561.69 | B152: 28.3788 | C152: 234.265 | D152: 4256.7 | E152: 17616.8 | F152: 57.5579 | G152: 19178.5 | H152: 1652.74 | I152: 280 | J152: 0.5159781818 | K152: 0.07848792795 | L152: 0.931883943 | M152: 0.07848783642 | N152: 150.0073638 | O152: 0.918570753
A153: 1554.61 | B153: 28.4272 | C153: 233.204 | D153: 4263.96 | E153: 17737.1 | F153: 58.104 | G153: 19291.7 | H153: 1514.6 | I153: 280 | J153: 0.5168581818 | K153: 0.07813209899 | L153: 0.9382475072 | M153: 0.07813236038 | N153: 150.0080406 | O153: 0.9194156454
A154: 1538.6 | B154: 28.4739 | C154: 230.801 | D154: 4270.95 | E154: 17748.1 | F154: 58.6362 | G154: 19286.7 | H154: 1557.47 | I154: 280 | J154: 0.5177072727 | K154: 0.07732746316 | L154: 0.9388293792 | M154: 0.07732726243 | N154: 150.0071494 | O154: 0.9202248181
A155: 1522.61 | B155: 28.5216 | C155: 228.403 | D155: 4278.11 | E155: 17762.7 | F155: 59.1864 | G155: 19285.3 | H155: 1503.34 | I155: 280 | J155: 0.5185745455 | K155: 0.0765238325 | L155: 0.9396016821 | M155: 0.07652383968 | N155: 150.0075528 | O155: 0.9210481968
A156: 1507.33 | B156: 28.5673 | C156: 226.111 | D156: 4284.96 | E156: 17776.1 | F156: 59.7194 | G156: 19283.4 | H156: 1500.95 | I156: 280 | J156: 0.5194054545 | K156: 0.07575588525 | L156: 0.9403105081 | M156: 0.07575593102 | N156: 150.0076294 | O156: 0.9218328897
A157: 1491.69 | B157: 28.614 | C157: 223.765 | D157: 4291.97 | E157: 17788.5 | F157: 60.2705 | G157: 19280.2 | H157: 1495.54 | I157: 280 | J157: 0.5202545455 | K157: 0.074969845 | L157: 0.9409664366 | M157: 0.07496993028 | N157: 150.0077094 | O157: 0.9226309492
A158: 1476.09 | B158: 28.6602 | C158: 221.424 | D158: 4298.91 | E158: 17798.3 | F158: 60.822 | G158: 19274.4 | H158: 1564.82 | I158: 280 | J158: 0.5210945455 | K158: 0.07418581509 | L158: 0.9414848317 | M158: 0.07418560473 | N158: 150.0071134 | O158: 0.9234170316
A159: 1462.7 | B159: 28.7045 | C159: 219.416 | D159: 4305.55 | E159: 17825.5 | F159: 61.3559 | G159: 19288.2 | H159: 1552.43 | I159: 280 | J159: 0.5219 | K159: 0.07351285608 | L159: 0.9429236425 | M159: 0.07351284706 | N159: 150.0075203 | O159: 0.9241660704
A160: 1447.92 | B160: 28.7499 | C160: 217.199 | D160: 4312.35 | E160: 17839.4 | F160: 61.9086 | G160: 19287.3 | H160: 1552.45 | I160: 280 | J160: 0.5227254545 | K160: 0.072770038 | L160: 0.9436589172 | M160: 0.0727700663 | N160: 150.0075971 | O160: 0.924928917
A161: 1433.56 | B161: 28.7933 | C161: 215.045 | D161: 4318.87 | E161: 17849.2 | F161: 62.4438 | G161: 19282.8 | H161: 1555.54 | I161: 280 | J161: 0.5235145455 | K161: 0.07204832841 | L161: 0.9441773123 | M161: 0.07204839299 | N161: 150.0076732 | O161: 0.9256558708
A162: 1420.08 | B162: 28.8378 | C162: 213.022 | D162: 4325.53 | E162: 17873.4 | F162: 62.9972 | G162: 19293.5 | H162: 1545.83 | I162: 280 | J162: 0.5243236364 | K162: 0.07137084615 | L162: 0.9454574308 | M162: 0.07137060974 | N162: 150.0070419 | O162: 0.9263958602
A163: 1400.23 | B163: 28.8818 | C163: 210.045 | D163: 4332.14 | E163: 17814 | F163: 63.5513 | G163: 19214.3 | H163: 1612.99 | I163: 280 | J163: 0.5251236364 | K163: 0.07037321834 | L163: 0.9423153217 | M163: 0.07037319959 | N163: 150.0074988 | O163: 0.9271253649
A164: 1392.51 | B164: 28.9224 | C164: 208.887 | D164: 4338.23 | E164: 17893 | F164: 64.0679 | G164: 19285.5 | H164: 1551.15 | I164: 280 | J164: 0.5258618182 | K164: 0.06998522405 | L164: 0.946494221 | M164: 0.06998522479 | N164: 150.0075403 | O164: 0.9277950129
A165: 1379.33 | B165: 28.9656 | C165: 206.91 | D165: 4344.7 | E165: 17912.9 | F165: 64.6227 | G165: 19292.2 | H165: 1544.53 | I165: 280 | J165: 0.5266472727 | K165: 0.06932281929 | L165: 0.9475468804 | M165: 0.06932285332 | N165: 150.0076124 | O165: 0.9285033405
A166: 1363.99 | B166: 29.0069 | C166: 204.609 | D166: 4350.91 | E166: 17895.8 | F166: 65.1601 | G166: 19259.8 | H166: 1571.68 | I166: 280 | J166: 0.5273981818 | K166: 0.06855185654 | L166: 0.9466423338 | M166: 0.06855192932 | N166: 150.007698 | O166: 0.929179394
A167: 1350.64 | B167: 29.0492 | C167: 202.606 | D167: 4357.25 | E167: 17907.4 | F167: 65.7149 | G167: 19258 | H167: 1572.49 | I167: 280 | J167: 0.5281672727 | K167: 0.06788090787 | L167: 0.9472559444 | M167: 0.06788084684 | N167: 150.0074039 | O167: 0.9298661754
A168: 1339.88 | B168: 29.0898 | C168: 200.992 | D168: 4363.33 | E168: 17945 | F168: 66.2522 | G168: 19284.9 | H168: 1549.05 | I168: 280 | J168: 0.5289054545 | K168: 0.06734012826 | L168: 0.9492448888 | M168: 0.06734009441 | N168: 150.0074634 | O168: 0.9305217352
A169: 1324.58 | B169: 29.1313 | C169: 198.697 | D169: 4369.56 | E169: 17925.3 | F169: 66.8085 | G169: 19249.8 | H169: 1578.23 | I169: 280 | J169: 0.52966 | K169: 0.06657117584 | L169: 0.9482028089 | M169: 0.06657118064 | N169: 150.0075496 | O169: 0.9311902204
A170: 1312.28 | B170: 29.1724 | C170: 196.852 | D170: 4375.72 | E170: 17942.9 | F170: 67.3642 | G170: 19255.2 | H170: 1573 | I170: 280 | J170: 0.5304072727 | K170: 0.06595299841 | L170: 0.9491338041 | M170: 0.06595303428 | N170: 150.0076203 | O170: 0.9318479495
A171: 1300.36 | B171: 29.2117 | C171: 195.064 | D171: 4381.63 | E171: 17957.2 | F171: 67.9026 | G171: 19257.6 | H171: 1570.34 | I171: 280 | J171: 0.5311218182 | K171: 0.06535391914 | L171: 0.9498902378 | M171: 0.06535398512 | N171: 150.0076902 | O171: 0.9324753499
A172: 1288.18 | B172: 29.252 | C172: 193.237 | D172: 4387.68 | E172: 17971.4 | F172: 68.4593 | G172: 19259.6 | H172: 1567.97 | I172: 280 | J172: 0.5318545455 | K172: 0.06474177271 | L172: 0.9506413817 | M172: 0.06474186945 | N172: 150.0077629 | O172: 0.9331148447
A173: 1276.74 | B173: 29.2907 | C173: 191.52 | D173: 4393.47 | E173: 17987.5 | F173: 68.9985 | G173: 19264.3 | H173: 1563.42 | I173: 280 | J173: 0.5325581818 | K173: 0.06416681744 | L173: 0.9514930308 | M173: 0.06416660803 | N173: 150.0070492 | O173: 0.9337248705
A174: 1264.3 | B174: 29.3303 | C174: 189.654 | D174: 4399.41 | E174: 17993.1 | F174: 69.5561 | G174: 19257.4 | H174: 1568.69 | I174: 280 | J174: 0.5332781818 | K174: 0.06354160384 | L174: 0.9517892565 | M174: 0.06354142586 | N174: 150.0071186 | O174: 0.9343473158
A175: 1252.06 | B175: 29.3695 | C175: 187.819 | D175: 4405.29 | E175: 17998.7 | F175: 70.114 | G175: 19250.8 | H175: 1573.76 | I175: 280 | J175: 0.5339909091 | K175: 0.06292644191 | L175: 0.9520854823 | M175: 0.06292662988 | N175: 150.0079868 | O175: 0.9349604899
A176: 1242.92 | B176: 29.4045 | C176: 186.447 | D176: 4410.55 | E176: 18029.1 | F176: 70.618 | G176: 19272 | H176: 1555.08 | I176: 280 | J176: 0.5346272727 | K176: 0.0624670808 | L176: 0.953693565 | M176: 0.06246695681 | N176: 150.007241 | O176: 0.9355065011
A177: 1231.6 | B177: 29.4431 | C177: 184.749 | D177: 4416.33 | E177: 18043.4 | F177: 71.1769 | G177: 19275 | H177: 1551.95 | I177: 280 | J177: 0.5353290909 | K177: 0.06189815652 | L177: 0.9544499987 | M177: 0.06189806113 | N177: 150.0073076 | O177: 0.9361037613
A178: 1221.01 | B178: 29.48 | C178: 183.16 | D178: 4421.87 | E178: 18060.3 | F178: 71.7183 | G178: 19281.3 | H178: 1546.02 | I178: 280 | J178: 0.536 | K178: 0.06136592083 | L178: 0.9553439657 | M178: 0.06136568467 | N178: 150.0069614 | O178: 0.9366739086
A179: 1207.96 | B179: 29.5179 | C179: 181.203 | D179: 4427.55 | E179: 18044.1 | F179: 72.2782 | G179: 19252.1 | H179: 1570.38 | I179: 280 | J179: 0.5366890909 | K179: 0.06071004966 | L179: 0.9544870269 | M179: 0.06071001397 | N179: 150.0074506 | O179: 0.9372555456
A180: 1197.79 | B180: 29.5541 | C180: 179.677 | D180: 4432.98 | E180: 18062.3 | F180: 72.8195 | G180: 19260.1 | H180: 1562.96 | I180: 280 | J180: 0.5373472727 | K180: 0.06019892246 | L180: 0.9554497606 | M180: 0.06019874495 | N180: 150.0070964 | O180: 0.9378097402
A181: 1187.22 | B181: 29.5912 | C181: 178.091 | D181: 4438.55 | E181: 18078.1 | F181: 73.3795 | G181: 19265.3 | H181: 1557.96 | I181: 280 | J181: 0.5380218182 | K181: 0.05966769194 | L181: 0.9562855405 | M181: 0.0596673736 | N181: 150.0067384 | O181: 0.9383752774
A182: 1177.11 | B182: 29.6281 | C182: 176.576 | D182: 4444.08 | E182: 18098.7 | F182: 73.94 | G182: 19275.8 | H182: 1548.42 | I182: 280 | J182: 0.5386927273 | K182: 0.05915958024 | L182: 0.9573752281 | M182: 0.05915979 | N182: 150.0080706 | O182: 0.9389333055
A183: 1165.94 | B183: 29.6634 | C183: 174.9 | D183: 4449.37 | E183: 18095 | F183: 74.483 | G183: 19261 | H183: 1560.55 | I183: 280 | J183: 0.5393345455 | K183: 0.05859819472 | L183: 0.9571795075 | M183: 0.05859826517 | N183: 150.0077191 | O183: 0.9394660904
A184: 1155.78 | B184: 29.6995 | C184: 173.376 | D184: 4454.79 | E184: 18110.1 | F184: 75.044 | G184: 19265.9 | H184: 1555.78 | I184: 280 | J184: 0.5399909091 | K184: 0.05808757011 | L184: 0.9579782591 | M184: 0.05808766622 | N184: 150.0077869 | O184: 0.9400089692
A185: 1145.18 | B185: 29.7342 | C185: 171.785 | D185: 4460 | E185: 18110.5 | F185: 75.5873 | G185: 19255.7 | H185: 1564.04 | I185: 280 | J185: 0.5406218182 | K185: 0.05755483184 | L185: 0.9579994181 | M185: 0.05755461968 | N185: 150.0069858 | O185: 0.9405276781
A186: 1135.57 | B186: 29.7697 | C186: 170.344 | D186: 4465.32 | E186: 18129.8 | F186: 76.1488 | G186: 19265.3 | H186: 1555.22 | I186: 280 | J186: 0.5412672727 | K186: 0.05707184931 | L186: 0.9590203391 | M186: 0.05707182894 | N186: 150.0074852 | O186: 0.9410564137
A187: 1124.95 | B187: 29.8049 | C187: 168.751 | D187: 4470.6 | E187: 18130.8 | F187: 76.7109 | G187: 19255.8 | H187: 1562.92 | I187: 280 | J187: 0.5419072727 | K187: 0.05653810586 | L187: 0.9590732365 | M187: 0.05653811233 | N187: 150.0075559 | O187: 0.9415784895
A188: 1116.6 | B188: 29.8364 | C188: 167.499 | D188: 4475.33 | E188: 18149.6 | F188: 77.2186 | G188: 19266.2 | H188: 1553.46 | I188: 280 | J188: 0.54248 | K188: 0.05611844883 | L188: 0.9600677087 | M188: 0.0561186439 | N188: 150.0080602 | O188: 0.9420435789
A189: 1095.97 | B189: 29.871 | C189: 164.404 | D189: 4480.52 | E189: 17981.8 | F189: 77.7813 | G189: 19077.8 | H189: 1717.79 | I189: 280 | J189: 0.5431090909 | K189: 0.05508161952 | L189: 0.9511915152 | M189: 0.05508169918 | N189: 150.0077557 | O189: 0.9425525101
A190: 1096.49 | B190: 29.9039 | C190: 164.481 | D190: 4485.45 | E190: 18151.6 | F190: 78.3208 | G190: 19248.1 | H190: 1568.11 | I190: 280 | J190: 0.5437072727 | K190: 0.05510775385 | L190: 0.9601735037 | M190: 0.05510749716 | N190: 150.00684 | O190: 0.9430338283
A191: 1086.71 | B191: 29.9379 | C191: 163.015 | D191: 4490.55 | E191: 18157.1 | F191: 78.8835 | G191: 19243.8 | H191: 1571.26 | I191: 280 | J191: 0.5443254545 | K191: 0.05461622741 | L191: 0.9604644397 | M191: 0.05461633046 | N191: 150.0078218 | O191: 0.9435293739
A192: 1078.45 | B192: 29.9705 | C192: 161.776 | D192: 4495.44 | E192: 18180.6 | F192: 79.4283 | G192: 19259 | H192: 1557.69 | I192: 280 | J192: 0.5449181818 | K192: 0.05420109362 | L192: 0.96170753 | M192: 0.05420121753 | N192: 150.0078817 | O192: 0.9440029493
A193: 1069.12 | B193: 30.0039 | C193: 160.376 | D193: 4500.46 | E193: 18189.5 | F193: 79.9919 | G193: 19258.6 | H193: 1557.58 | I193: 280 | J193: 0.5455254545 | K193: 0.05373218342 | L193: 0.9621783173 | M193: 0.05373216338 | N193: 150.0074828 | O193: 0.9444861574
A194: 1057.85 | B194: 30.0371 | C194: 158.686 | D194: 4505.43 | E194: 18163 | F194: 80.5558 | G194: 19220.8 | H194: 1589.85 | I194: 280 | J194: 0.5461290909 | K194: 0.05316577207 | L194: 0.9607765347 | M194: 0.05316594801 | N194: 150.0080352 | O194: 0.9449634121
A195: 1049.45 | B195: 30.0688 | C195: 157.426 | D195: 4510.19 | E195: 18177.7 | F195: 81.1007 | G195: 19227.2 | H195: 1583.83 | I195: 280 | J195: 0.5467054545 | K195: 0.05274360211 | L195: 0.9615541273 | M195: 0.05274379927 | N195: 150.0080995 | O195: 0.9454183277
A196: 1040.14 | B196: 30.1014 | C196: 156.029 | D196: 4515.07 | E196: 18180 | F196: 81.6643 | G196: 19220.2 | H196: 1589.5 | I196: 280 | J196: 0.5472981818 | K196: 0.05227569708 | L196: 0.9616757915 | M196: 0.05227575024 | N196: 150.0076913 | O196: 0.9458828083
A197: 1031.85 | B197: 30.1326 | C197: 154.785 | D197: 4519.75 | E197: 18192.7 | F197: 82.2097 | G197: 19224.5 | H197: 1585.25 | I197: 280 | J197: 0.5478654545 | K197: 0.05185905555 | L197: 0.9623475892 | M197: 0.05185896212 | N197: 150.0072685 | O197: 0.946326442
A198: 1023.04 | B198: 30.1646 | C198: 153.463 | D198: 4524.55 | E198: 18199.5 | F198: 82.7738 | G198: 19222.6 | H198: 1586.52 | I198: 280 | J198: =B198/$B$2 -> 0.5484472727 | K198: 0.05141627968 | L198: 0.9627072919 | M198: 0.05141604098 | N198: 150.0068424 | O198: 0.9467791457
A199: 1015.92 | B199: 30.1963 | C199: 152.395 | D199: 4529.3 | E199: 18234.6 | F199: 83.338 | G199: 19250.5 | H199: 1561.76 | I199: 280 | J199: 0.5490236364 | K199: =A199/$A$6 -> 0.05105844038 | L199: =E199/$L$3 -> 0.9645639927 | M199: =C199/$N$3 -> 0.05105821967 | N199: =C199*1000/A199 -> 150.0068903 | O199: =E199/(E199+A199) -> 0.9472263606
A200: 993.687 | B200: 30.2247 | C200: 149.06 | D200: 4533.57 | E200: 17979.3 | F200: 83.8486 | G200: 18972.9 | H200: 1806.66 | I200: 280 | J200: 0.54954 | K200: 0.04994104698 | L200: 0.9510592716 | M200: 0.04994086567 | N200: 150.0069942 | O200: 0.9476262225
... 490 more rows

Sheet PI
A1: Case: | B1: PI heterogeneous | D1: PI 1 [Sm3/d/bar] | E1: PI 2 [Sm3/d/bar] | F1: PI 3 [Sm3/d/bar] | G1: PI 4 [Sm3/d/bar] | H1: PI 5 [Sm3/d/bar] | I1: PI 6 [Sm3/d/bar] | J1: PI 7 [Sm3/d/bar]
A2: N | B2: 55 | C2: [MSm3] | D2: 67.358352 | E2: =67.358352*1.5 -> 101.037528 | F2: =67.358352*0.5 -> 33.679176 | G2: 67.358352 | H2: =67.358352*1.5 -> 101.037528 | I2: =67.358352*0.5 -> 33.679176 | J2: 67.358352
K3: qw_max [Sm3/d] | L3: =MAX(E6:E690) -> 18375.8 | M3: qg_max [1000 Sm3/d] | N3: =MAX(C6:C691) -> 2901.35
A4: Average Oil Rate | B4: Cum Oil Production | C4: Average Gas Rate | D4: Cum Gas Production | E4: Average Water Rate | F4: Cum Water Production | G4: Average Liquid Rate | H4: Average Gaslift Rate | I4: Reservoir Pressure | J4: RF | K4: qomax_n | L4: qwmax_n | M4: qgmax_n | N4: GOR | O4: WC
A5: sm3/d | B5: M sm3 | C5: 1000 sm3/d | D5: M sm3 | E5: sm3/d | F5: M sm3 | G5: sm3/d | H5: 1000 sm3/d | I5: bara
A6: 19341.4 | B6: 0 | C6: 2901.35 | D6: 0 | E6: 0 | F6: 0 | G6: 19341.4 | H6: 129.475 | I6: 280 | J6: =B6/$B$2 -> 0 | K6: =A6/$A$6 -> 1 | L6: =E6/$L$3 -> 0 | M6: =C6/$N$3 -> 1 | N6: =C6*1000/A6 -> 150.0072384 | O6: =E6/(E6+A6) -> 0
A7: 19268.2 | B7: 0.599631 | C7: 2890.37 | D7: 89.942 | E7: 73.5368 | F7: 0 | G7: 19341.7 | H7: 129.461 | I7: 280 | J7: 0.01090238182 | K7: =A7/$A$6 -> 0.9962153722 | L7: =E7/$L$3 -> 0.004001828492 | M7: =C7/$N$3 -> 0.9962155548 | N7: =C7*1000/A7 -> 150.0072659 | O7: =E7/(E7+A7) -> 0.003801975012
A8: 19146.6 | B8: 1.13918 | C8: 2872.14 | D8: 170.872 | E8: 195.722 | F8: 0.0020592 | G8: 19342.4 | H8: 129.437 | I8: 280 | J8: 0.02071236364 | K8: 0.9899283402 | L8: 0.01065107369 | M8: 0.9899322729 | N8: 150.0078343 | O8: 0.01011884716
A9: 18970.4 | B9: 1.73278 | C9: 2845.7 | D9: 259.909 | E9: 373.099 | F9: 0.00812708 | G9: 19343.5 | H9: 129.374 | I9: 280 | J9: 0.03150509091 | K9: 0.9808183482 | L9: 0.02030382351 | M9: 0.9808192738 | N9: 150.0073799 | O9: 0.01928808226
A10: 18765.7 | B10: 2.30193 | C10: 2814.99 | D10: 345.279 | E10: 579.215 | F10: 0.019321 | G10: 19344.9 | H10: 129.335 | I10: 280 | J10: 0.04185327273 | K10: 0.9702348331 | L10: 0.03152053244 | M10: 0.970234546 | N10: 150.007194 | O10: 0.02994146007
A11: 18524.7 | B11: 2.88371 | C11: 2778.84 | D11: 432.544 | E11: 822.505 | F11: 0.0372781 | G11: 19347.2 | H11: 129.271 | I11: 280 | J11: 0.05243109091 | K11: 0.9577745148 | L11: 0.04476022813 | M11: 0.957774829 | N11: 150.0072876 | O11: 0.04251285909
A12: 18267.2 | B12: 3.4395 | C12: 2740.22 | D12: 515.909 | E12: 1083.13 | F12: 0.0619552 | G12: 19350.4 | H12: 129.264 | I12: 280 | J12: 0.06253636364 | K12: 0.9444611042 | L12: 0.0589432841 | M12: 0.9444637841 | N12: 150.007664 | O12: 0.05597475599
A13: 17956.5 | B13: 4.00583 | C13: 2693.62 | D13: 600.856 | E13: 1373.18 | F13: 0.095535 | G13: 19329.7 | H13: 170.761 | I13: 280 | J13: 0.07283327273 | K13: 0.9283971171 | L13: 0.07472763091 | M13: 0.9284022955 | N13: 150.0080751 | O13: 0.07103997583
A14: 17630.6 | B14: 4.56253 | C14: 2644.72 | D14: 684.358 | E14: 1681.66 | F14: 0.138107 | G14: 19312.3 | H14: 200.073 | I14: 280 | J14: 0.08295509091 | K14: 0.911547251 | L14: 0.09151492724 | M14: 0.9115480724 | N14: 150.0073735 | O14: 0.08707732808
A15: 17321.6 | B15: 5.09149 | C15: 2598.37 | D15: 763.7 | E15: 1996.83 | F15: 0.188561 | G15: 19318.4 | H15: 201.097 | I15: 280 | J15: 0.09257254545 | K15: 0.8955711582 | L15: 0.1086662894 | M15: 0.8955727506 | N15: 150.0075051 | O15: 0.1033639897
A16: 16986.7 | B16: 5.6285 | C16: 2548.13 | D16: 844.249 | E16: 2335.39 | F16: 0.250467 | G16: 19322.1 | H16: 200.949 | I16: 280 | J16: 0.1023363636 | K16: 0.8782559691 | L16: 0.1270905212 | M16: 0.8782566736 | N16: 150.0073587 | O16: 0.1208663245
A17: 16650.3 | B17: 6.13814 | C17: 2497.66 | D17: 920.693 | E17: 2672.53 | F17: 0.320535 | G17: 19322.8 | H17: 201.114 | I17: 280 | J17: 0.1116025455 | K17: 0.860863226 | L17: 0.1454374776 | M17: 0.8608613232 | N17: 150.0069068 | O17: 0.1383094505
A18: 16295.7 | B18: 6.65434 | C18: 2444.48 | D18: 998.121 | E18: 3028.91 | F18: 0.40339 | G18: 19324.7 | H18: 200.934 | I18: 280 | J18: 0.120988 | K18: 0.8425294963 | L18: 0.1648314631 | M18: 0.8425319248 | N18: 150.0076707 | O18: 0.1567384801
A19: 15936.5 | B19: 7.15955 | C19: 2390.59 | D19: 1073.9 | E19: 3391.07 | F19: 0.497294 | G19: 19327.6 | H19: 200.77 | I19: 280 | J19: 0.1301736364 | K19: 0.8239579348 | L19: 0.1845399928 | M19: 0.8239578127 | N19: 150.0072161 | O19: 0.1754524754
A20: 15598.3 | B20: 7.62174 | C20: 2339.86 | D20: 1143.23 | E20: 3733.01 | F20: 0.595642 | G20: 19331.3 | H20: 200.584 | I20: 280 | J20: 0.1385770909 | K20: 0.8064721271 | L20: 0.2031481623 | M20: 0.8064728488 | N20: 150.0073726 | O20: 0.1931069338
A21: 15235.8 | B21: 8.10533 | C21: 2285.48 | D21: 1215.76 | E21: 4100.7 | F21: 0.711375 | G21: 19336.5 | H21: 200.395 | I21: 280 | J21: 0.1473696364 | K21: 0.7877299472 | L21: 0.2231576312 | M21: 0.7877298499 | N21: 150.0072198 | O21: 0.2120704367
A22: 14866 | B22: 8.56244 | C22: 2230.01 | D22: 1284.33 | E22: 4450.79 | F22: 0.834406 | G22: 19316.8 | H22: 230.837 | I22: 280 | J22: 0.1556807273 | K22: 0.7686103384 | L22: 0.2422093188 | M22: 0.7686111638 | N22: 150.0073994 | O22: 0.2304104357
A23: 14497.8 | B23: 9.02332 | C23: 2174.78 | D23: 1353.46 | E23: 4813.61 | F23: 0.972391 | G23: 19311.4 | H23: 230.555 | I23: 280 | J23: 0.1640603636 | K23: 0.7495734538 | L23: 0.2619537653 | M23: 0.7495751978 | N23: 150.0075874 | O23: 0.2492624826
A24: 14145.3 | B24: 9.45829 | C24: 2121.9 | D24: 1418.7 | E24: 5161.58 | F24: 1.11681 | G24: 19306.9 | H24: 230.761 | I24: 280 | J24: 0.1719689091 | K24: 0.7313482995 | L24: 0.2808900837 | M24: 0.7313491995 | N24: 150.007423 | O24: 0.2673440763
A25: 13786.2 | B25: 9.89683 | C25: 2068.04 | D25: 1484.48 | E25: 5517.29 | F25: 1.27683 | G25: 19303.5 | H25: 230.479 | I25: 280 | J25: 0.1799423636 | K25: 0.7127819082 | L25: 0.3002476083 | M25: 0.7127854275 | N25: 150.007979 | O25: 0.285818264
A26: 13433 | B26: 10.3242 | C26: 2015.06 | D26: 1548.59 | E26: 5867.9 | F26: 1.44788 | G26: 19300.9 | H26: 230.849 | I26: 280 | J26: 0.1877127273 | K26: 0.6945205621 | L26: 0.3193275939 | M26: 0.6945249625 | N26: 150.0081888 | O26: 0.3040220922
A27: 13087.9 | B27: 10.7273 | C27: 1963.29 | D27: 1609.04 | E27: 6196.82 | F27: 1.62393 | G27: 19284.8 | H27: 297.166 | I27: 280 | J27: 0.1950418182 | K27: 0.6766780068 | L27: 0.3372272228 | M27: 0.6766815448 | N27: 150.0080227 | O27: 0.3213331591
A28: 12748 | B28: 11.133 | C28: 1912.3 | D28: 1669.9 | E28: 6534.27 | F28: 1.81605 | G28: 19282.3 | H28: 297.007 | I28: 280 | J28: 0.2024181818 | K28: 0.6591043048 | L28: 0.3555910491 | M28: 0.6591069674 | N28: 150.0078444 | O28: 0.3388745205
A29: 12421.2 | B29: 11.5155 | C29: 1863.27 | D29: 1727.27 | E29: 6851.02 | F29: 2.01209 | G29: 19272.2 | H29: 297.159 | I29: 280 | J29: 0.2093727273 | K29: 0.6422079064 | L29: 0.3728283939 | M29: 0.6422079377 | N29: 150.0072457 | O29: 0.3554868095
A30: 12089.7 | B30: 11.9006 | C30: 1813.55 | D30: 1785.03 | E30: 7169.46 | F30: 2.22449 | G30: 19259.2 | H30: 329.11 | I30: 280 | J30: 0.2163745455 | K30: 0.6250685059 | L30: 0.3901577074 | M30: 0.6250710876 | N30: 150.0078579 | O30: 0.3722623417
A31: 11770.9 | B31: 12.2754 | C31: 1765.73 | D31: 1841.25 | E31: 7481.99 | F31: 2.44676 | G31: 19252.9 | H31: 344.162 | I31: 280 | J31: 0.2231890909 | K31: 0.608585728 | L31: 0.4071654023 | M31: 0.6085891051 | N31: 150.0080708 | O31: 0.3886164623
A32: 11490.9 | B32: 12.605 | C32: 1723.72 | D32: 1890.69 | E32: 7756.82 | F32: 2.65628 | G32: 19247.7 | H32: 343.813 | I32: 280 | J32: 0.2291818182 | K32: 0.5941090097 | L32: 0.4221214859 | M32: 0.5941096386 | N32: 150.0073972 | O32: 0.4029994202
A33: 11189 | B33: 12.9612 | C33: 1678.43 | D33: 1944.13 | E33: 8053.66 | F33: 2.89676 | G33: 19242.6 | H33: 343.387 | I33: 280 | J33: 0.2356581818 | K33: 0.5785000052 | L33: 0.4382753404 | M33: 0.5784996639 | N33: 150.0071499 | O33: 0.4185315336
A34: 10905.4 | B34: 13.2969 | C34: 1635.9 | D34: 1994.48 | E34: 8332.89 | F34: 3.13839 | G34: 19238.3 | H34: 343.298 | I34: 280 | J34: 0.2417618182 | K34: 0.5638371576 | L34: 0.4534708693 | M34: 0.5638409706 | N34: 150.0082528 | O34: 0.4331408873
A35: 10617.5 | B35: 13.635 | C35: 1592.7 | D35: 2045.19 | E35: 8610.43 | F35: 3.39673 | G35: 19227.9 | H35: 381.082 | I35: 280 | J35: 0.2479090909 | K35: 0.548951989 | L35: 0.4685744294 | M35: 0.5489513502 | N35: 150.0070638 | O35: 0.4478084744
A36: 10343.3 | B36: 13.9536 | C36: 1551.57 | D36: 2092.98 | E36: 8867.06 | F36: 3.65506 | G36: 19210.4 | H36: 380.68 | I36: 280 | J36: 0.2537018182 | K36: 0.5347751455 | L36: 0.4825400799 | M36: 0.5347751909 | N36: 150.0072511 | O36: 0.4615769824
A37: 10065.7 | B37: 14.2743 | C37: 1509.94 | D37: 2141.07 | E37: 9120.73 | F37: 3.92996 | G37: 19186.5 | H37: 533.684 | I37: 280 | J37: 0.2595327273 | K37: 0.5204225134 | L37: 0.4963446489 | M37: 0.5204266979 | N37: 150.0084445 | O37: 0.4753740013
A38: 9806.52 | B38: 14.5863 | C38: 1471.05 | D38: 2187.88 | E38: 9374.1 | F38: 4.21273 | G38: 19180.6 | H38: 506.041 | I38: 280 | J38: 0.2652054545 | K38: 0.5070222424 | L38: 0.5101328922 | M38: 0.5070225929 | N38: 150.0073421 | O38: 0.4887276845
A39: 9562.34 | B39: 14.8805 | C39: 1434.42 | D39: 2232.01 | E39: 9610.08 | F39: 4.49397 | G39: 19172.4 | H39: 506.124 | I39: 280 | J39: 0.2705545455 | K39: 0.49439751 | L39: 0.5229747821 | M39: 0.4943974357 | N39: 150.0072158 | O39: 0.5012450176
A40: 9311.1 | B40: 15.177 | C40: 1396.73 | D40: 2276.48 | E40: 9838.75 | F40: 4.79191 | G40: 19149.9 | H40: 595.551 | I40: 280 | J40: 0.2759454545 | K40: 0.4814077575 | L40: 0.5354188661 | M40: 0.4814069313 | N40: 150.0069809 | O40: 0.5137768703
A41: 9087.75 | B41: 15.4564 | C41: 1363.23 | D41: 2318.38 | E41: 10064.7 | F41: 5.08709 | G41: 19152.4 | H41: 572.863 | I41: 280 | J41: 0.2810254545 | K41: 0.4698599895 | L41: 0.5477149294 | M41: 0.4698605821 | N41: 150.0074276 | O41: 0.5255045699
A42: 8850 | B42: 15.7381 | C42: 1327.57 | D42: 2360.64 | E42: 10274.6 | F42: 5.39912 | G42: 19124.6 | H42: 661.634 | I42: 280 | J42: 0.2861472727 | K42: 0.4575677045 | L42: 0.5591375614 | M42: 0.457569752 | N42: 150.0079096 | O42: 0.5372452234
A43: 8631.68 | B43: 16.0125 | C43: 1294.82 | D43: 2401.8 | E43: 10490 | F43: 5.71766 | G43: 19121.7 | H43: 667.388 | I43: 280 | J43: 0.2911363636 | K43: 0.4462800004 | L43: 0.5708595 | M43: 0.4462819033 | N43: 150.007878 | O43: 0.5485919647
A44: 8440.35 | B44: 16.2542 | C44: 1266.12 | D44: 2438.05 | E44: 10677.5 | F44: 6.01141 | G44: 19117.8 | H44: 667.982 | I44: 280 | J44: 0.2955309091 | K44: 0.4363877486 | L44: 0.5810631374 | M44: 0.4363899564 | N44: 150.0079973 | O44: 0.5585094558
A45: 8230.6 | B45: 16.5158 | C45: 1234.65 | D45: 2477.3 | E45: 10873 | F45: 6.34243 | G45: 19103.6 | H45: 539.934 | I45: 280 | J45: 0.3002872727 | K45: 0.4255431355 | L45: 0.59170213 | M45: 0.4255432816 | N45: 150.0072899 | O45: 0.5691597395
A46: 8029.72 | B46: 16.7628 | C46: 1204.52 | D46: 2514.34 | E46: 11048.9 | F46: 6.66865 | G46: 19078.6 | H46: 499.684 | I46: 280 | J46: 0.3047781818 | K46: 0.4151571241 | L46: 0.6012745023 | M46: 0.4151584607 | N46: 150.0077213 | O46: 0.5791246956
A47: 7815.06 | B47: 17.0117 | C47: 1172.32 | D47: 2551.68 | E47: 11203.5 | F47: 7.01119 | G47: 19018.5 | H47: 936.838 | I47: 280 | J47: 0.3093036364 | K47: 0.4040586514 | L47: 0.6096877415 | M47: 0.4040601789 | N47: 150.0078054 | O47: 0.5890824542
A48: 7660.91 | B48: 17.2462 | C48: 1149.19 | D48: 2586.85 | E48: 11413.9 | F48: 7.34732 | G48: 19074.8 | H48: 745.561 | I48: 280 | J48: 0.3135672727 | K48: 0.3960887009 | L48: 0.6211375831 | M48: 0.396088028 | N48: 150.0069835 | O48: 0.5983755539
A49: 7456.37 | B49: 17.4837 | C49: 1118.51 | D49: 2622.48 | E49: 11550.7 | F49: 7.70118 | G49: 19007.1 | H49: 948.519 | I49: 280 | J49: 0.3178854545 | K49: 0.3855134582 | L49: 0.628582157 | M49: 0.3855136402 | N49: 150.0073092 | O49: 0.6077054486
A50: 7303.36 | B50: 17.7149 | C50: 1095.56 | D50: 2657.15 | E50: 11750.6 | F50: 8.05928 | G50: 19053.9 | H50: 810.16 | I50: 280 | J50: 0.3220890909 | K50: 0.3776024486 | L50: 0.6394605949 | M50: 0.3776035294 | N50: 150.0076677 | O50: 0.6167012002
A51: 7142.15 | B51: 17.934 | C51: 1071.38 | D51: 2690.02 | E51: 11911 | F51: 8.41183 | G51: 19053.2 | H51: 801.273 | I51: 280 | J51: 0.3260727273 | K51: 0.3692674781 | L51: 0.6481894666 | M51: 0.369269478 | N51: 150.0080508 | O51: 0.6251459732
A52: 6963.49 | B52: 18.1554 | C52: 1044.58 | D52: 2723.23 | E52: 12041.7 | F52: 8.7811 | G52: 19005.2 | H52: 945.165 | I52: 280 | J52: 0.3300981818 | K52: 0.3600302977 | L52: 0.6553020821 | M52: 0.3600323987 | N52: 150.0081137 | O52: 0.6336006112
A53: 6771.18 | B53: 18.3643 | C53: 1015.73 | D53: 2754.57 | E53: 12116.3 | F53: 9.14238 | G53: 18887.5 | H53: 1194.9 | I53: 280 | J53: 0.3338963636 | K53: 0.3500873773 | L53: 0.6593617693 | M53: 0.3500887518 | N53: 150.0078273 | O53: 0.6414990248
A54: 6619.77 | B54: 18.5743 | C54: 993.015 | D54: 2786.05 | E54: 12259.4 | F54: 9.51802 | G54: 18879.2 | H54: 1210.71 | I54: 280 | J54: 0.3377145455 | K54: 0.3422590919 | L54: 0.6671491853 | M54: 0.3422596378 | N54: 150.0074776 | O54: 0.6493611742
A55: 6470.92 | B55: 18.7795 | C55: 970.687 | D55: 2816.84 | E55: 12393.2 | F55: 9.89809 | G55: 18864.1 | H55: 1238.12 | I55: 280 | J55: 0.3414454545 | K55: 0.334563165 | L55: 0.674430501 | M55: 0.3345639099 | N55: 150.0075723 | O55: 0.6569720718
A56: 6349.55 | B56: 18.9607 | C56: 952.479 | D56: 2844.02 | E56: 12527 | F56: 10.2451 | G56: 18876.6 | H56: 1221.55 | I56: 280 | J56: 0.34474 | K56: 0.3282880247 | L56: 0.6817118166 | M56: 0.3282882107 | N56: 150.0073234 | O56: 0.6636276226
A57: 6214.6 | B57: 19.1575 | C57: 932.236 | D57: 2873.54 | E57: 12662.8 | F57: 10.6335 | G57: 18877.4 | H57: 1219.38 | I57: 280 | J57: 0.3483181818 | K57: 0.3213107634 | L57: 0.6891019711 | M57: 0.3213111138 | N57: 150.0074019 | O57: 0.6707915285
A58: 6088.46 | B58: 19.344 | C58: 913.314 | D58: 2901.51 | E58: 12791.1 | F58: 11.0134 | G58: 18879.6 | H58: 1211.9 | I58: 280 | J58: 0.3517090909 | K58: 0.3147890018 | L58: 0.69608398 | M58: 0.3147893222 | N58: 150.007391 | O58: 0.6775104928
A59: 5965.66 | B59: 19.5327 | C59: 894.894 | D59: 2929.82 | E59: 12927.8 | F59: 11.41 | G59: 18893.4 | H59: 1185.44 | I59: 280 | J59: 0.35514 | K59: 0.3084399268 | L59: 0.7035231119 | M59: 0.3084405535 | N59: 150.0075432 | O59: 0.6842473533
A60: 5845.28 | B60: 19.7117 | C60: 876.835 | D60: 2956.67 | E60: 13045.3 | F60: 11.7978 | G60: 18890.5 | H60: 1186.46 | I60: 280 | J60: 0.3583945455 | K60: 0.302215972 | L60: 0.7099173914 | M60: 0.3022162097 | N60: 150.0073564 | O60: 0.6905717029
A61: 5748.07 | B61: 19.8929 | C61: 862.254 | D61: 2983.85 | E61: 13217 | F61: 12.2023 | G61: 18965 | H61: 867.611 | I61: 280 | J61: 0.3616890909 | K61: 0.2971899656 | L61: 0.7192612022 | M61: 0.2971906182 | N61: 150.0075678 | O61: 0.6969127981
A62: 5628.34 | B62: 20.0712 | C62: 844.292 | D62: 3010.58 | E62: 13327.8 | F62: 12.612 | G62: 18956.1 | H62: 865.79 | I62: 280 | J62: 0.3649309091 | K62: 0.2909996174 | L62: 0.7252908717 | M62: 0.290999707 | N62: 150.0072846 | O62: 0.7030861768
A63: 5468.86 | B63: 20.24 | C63: 820.37 | D63: 3035.91 | E63: 13316.6 | F63: 13.0119 | G63: 18785.5 | H63: 1373.84 | I63: 280 | J63: 0.368 | K63: 0.2827540923 | L63: 0.7246813744 | M63: 0.2827545798 | N63: 150.007497 | O63: 0.7088780365
A64: 5382.11 | B64: 20.4096 | C64: 807.356 | D64: 3061.34 | E64: 13478.5 | F64: 13.4247 | G64: 18860.7 | H64: 1226.54 | I64: 280 | J64: 0.3710836364 | K64: 0.2782688947 | L64: 0.7334918752 | M64: 0.2782690816 | N64: 150.0073391 | O64: 0.7146375435
A65: 5287.98 | B65: 20.571 | C65: 793.236 | D65: 3085.56 | E65: 13602.4 | F65: 13.8291 | G65: 18890.4 | H65: 1154.49 | I65: 280 | J65: 0.3740181818 | K65: 0.2734021322 | L65: 0.7402344388 | M65: 0.2734023816 | N65: 150.0073752 | O65: 0.7200702156
A66: 5190.86 | B66: 20.735 | C66: 778.668 | D66: 3110.15 | E66: 13721.7 | F66: 14.2508 | G66: 18912.5 | H66: 1049.43 | I66: 280 | J66: 0.377 | K66: 0.2683807791 | L66: 0.7467266731 | M66: 0.2683812708 | N66: 150.0075132 | O66: 0.7255337194
A67: 5088.12 | B67: 20.8959 | C67: 763.256 | D67: 3134.29 | E67: 13815.8 | F67: 14.6762 | G67: 18903.9 | H67: 1001.57 | I67: 280 | J67: 0.3799254545 | K67: 0.2630688575 | L67: 0.7518475386 | M67: 0.2630692609 | N67: 150.0074684 | O67: 0.7308431267
A68: 4997.3 | B68: 21.0435 | C68: 749.632 | D68: 3156.43 | E68: 13907.9 | F68: 15.0769 | G68: 18905.2 | H68: 1053.69 | I68: 280 | J68: 0.3826090909 | K68: 0.2583732305 | L68: 0.7568595653 | M68: 0.2583735158 | N68: 150.007404 | O68: 0.7356653196
A69: 4896.69 | B69: 21.1984 | C69: 734.539 | D69: 3179.67 | E69: 13986.2 | F69: 15.5081 | G69: 18882.9 | H69: 1147.78 | I69: 280 | J69: 0.3854254545 | K69: 0.2531714354 | L69: 0.7611206043 | M69: 0.2531714547 | N69: 150.0072498 | O69: 0.740681114
A70: 4812.01 | B70: 21.3453 | C70: 721.837 | D70: 3201.7 | E70: 14087.7 | F70: 15.9277 | G70: 18899.7 | H70: 898.903 | I70: 280 | J70: =B70/$B$2 -> 0.3880963636 | K70: 0.2487932621 | L70: 0.7666441733 | M70: 0.2487934927 | N70: 150.0073774 | O70: 0.7453923896
A71: 4720.69 | B71: 21.4945 | C71: 708.139 | D71: 3224.08 | E71: 14172 | F71: 16.3645 | G71: 18892.7 | H71: 894.699 | I71: 280 | J71: 0.3908090909 | K71: =A71/$A$6 -> 0.2440717838 | L71: =E71/$L$3 -> 0.7712317287 | M71: =C71/$N$3 -> 0.2440722422 | N71: =C71*1000/A71 -> 150.0075201 | O71: =E71/(E71+A71) -> 0.7501314
A72: 4634.73 | B72: 21.6361 | C72: 695.244 | D72: 3245.32 | E72: 14250.7 | F72: 16.7897 | G72: 18885.5 | H72: 922.613 | I72: 280 | J72: 0.3933836364 | K72: 0.2396274313 | L72: 0.7755145354 | M72: 0.2396277595 | N72: 150.0074438 | O72: 0.7545870017
A73: 4545.92 | B73: 21.7798 | C73: 681.921 | D73: 3266.88 | E73: 14322 | F73: 17.2315 | G73: 18867.9 | H73: 1197.01 | I73: 280 | J73: 0.3959963636 | K73: 0.2350357265 | L73: 0.7793946386 | M73: 0.2350357592 | N73: 150.0072593 | O73: 0.7590661822
A74: 4465.66 | B74: 21.9208 | C74: 669.882 | D74: 3288.02 | E74: 14410.1 | F74: 17.6755 | G74: 18875.7 | H74: 1122.68 | I74: 280 | J74: 0.39856 | K74: 0.2308860786 | L74: 0.7841889877 | M74: 0.2308863115 | N74: 150.0073897 | O74: 0.7634182677
A75: 4385.62 | B75: 22.0547 | C75: 657.876 | D75: 3308.11 | E75: 14478.6 | F75: 18.1078 | G75: 18864.3 | H75: 1075.51 | I75: 280 | J75: 0.4009945455 | K75: 0.2267478052 | L75: 0.7879167166 | M75: 0.2267482379 | N75: 150.0075246 | O75: 0.7675164942
A76: 4306.99 | B76: 22.1907 | C76: 646.08 | D76: 3328.51 | E76: 14553.4 | F76: 18.5567 | G76: 18860.4 | H76: 1098.46 | I76: 280 | J76: 0.4034672727 | K76: 0.2226824325 | L76: 0.7919872876 | M76: 0.2226825443 | N76: 150.0073137 | O76: 0.7716383383
A77: 4225.59 | B77: 22.3199 | C77: 633.87 | D77: 3347.89 | E77: 14598.3 | F77: 18.9933 | G77: 18823.9 | H77: 1308.37 | I77: 280 | J77: 0.4058163636 | K77: 0.2184738437 | L77: 0.7944307187 | M77: 0.2184741586 | N77: 150.0074546 | O77: 0.7755198314
A78: 4157.5 | B78: 22.4509 | C78: 623.656 | D78: 3367.54 | E78: 14690.4 | F78: 19.4459 | G78: 18847.9 | H78: 957.364 | I78: 280 | J78: 0.4081981818 | K78: 0.214953416 | L78: 0.7994427453 | M78: 0.2149537284 | N78: 150.0074564 | O78: 0.7794183967
A79: 4087.29 | B79: 22.5798 | C79: 613.124 | D79: 3386.87 | E79: 14767.3 | F79: 19.9014 | G79: 18854.6 | H79: 1187.64 | I79: 280 | J79: 0.4105418182 | K79: 0.2113233789 | L79: 0.8036275972 | M79: 0.2113236941 | N79: 150.0074622 | O79: 0.7832204254
A80: 4023.43 | B80: 22.6943 | C80: 603.545 | D80: 3404.04 | E80: 14827.6 | F80: 20.3149 | G80: 18851 | H80: 1178.47 | I80: 280 | J80: 0.4126236364 | K80: 0.208021653 | L80: 0.806909087 | M80: 0.2080221276 | N80: 150.0075806 | O80: 0.7865671
A81: 3944.54 | B81: 22.819 | C81: 591.71 | D81: 3422.75 | E81: 14855.3 | F81: 20.7746 | G81: 18799.8 | H81: 1355.93 | I81: 280 | J81: 0.4148909091 | K81: 0.2039428376 | L81: 0.8084165043 | M81: 0.2039429921 | N81: 150.0073519 | O81: 0.7901822569
A82: 3883.01 | B82: 22.9374 | C82: 582.48 | D82: 3440.5 | E82: 14928.5 | F82: 21.2203 | G82: 18811.5 | H82: 944.951 | I82: 280 | J82: 0.4170436364 | K82: 0.2007615788 | L82: 0.8124000044 | M82: 0.2007617144 | N82: 150.0073397 | O82: 0.7935832902
A83: 3822.03 | B83: 23.0577 | C83: 573.333 | D83: 3458.56 | E83: 15006.8 | F83: 21.6831 | G83: 18828.8 | H83: 1277.64 | I83: 280 | J83: 0.4192309091 | K83: 0.1976087563 | L83: 0.8166610433 | M83: 0.1976090441 | N83: 150.0074568 | O83: 0.7970118165
A84: 3762.48 | B84: 23.1724 | C84: 564.4 | D84: 3475.76 | E84: 15073.4 | F84: 22.1333 | G84: 18835.9 | H84: 1240.7 | I84: 280 | J84: 0.4213163636 | K84: 0.1945298686 | L84: 0.8202853753 | M84: 0.1945301325 | N84: 150.0074419 | O84: 0.8002493114
A85: 3700.09 | B85: 23.2891 | C85: 555.041 | D85: 3493.25 | E85: 15131.3 | F85: 22.6006 | G85: 18831.4 | H85: 1251.95 | I85: 280 | J85: 0.4234381818 | K85: 0.1913041455 | L85: 0.8234362586 | M85: 0.1913043928 | N85: 150.0074323 | O85: 0.8035147698
A86: 3636.1 | B86: 23.4038 | C86: 545.442 | D86: 3510.46 | E86: 15174.4 | F86: 23.0698 | G86: 18810.5 | H86: 1193.4 | I86: 280 | J86: 0.4255236364 | K86: 0.1879956983 | L86: 0.8257817347 | M86: 0.1879959329 | N86: 150.0074255 | O86: 0.8066983865
A87: 3580.29 | B87: 23.5129 | C87: 537.069 | D87: 3526.82 | E87: 15233.6 | F87: 23.525 | G87: 18813.9 | H87: 1288.58 | I87: 280 | J87: 0.4275072727 | K87: 0.1851101782 | L87: 0.8290033631 | M87: 0.185110035 | N87: 150.0071223 | O87: 0.8096996421
A88: 3525.01 | B88: 23.6239 | C88: 528.778 | D88: 3543.47 | E88: 15298 | F88: 23.9973 | G88: 18823 | H88: 1254.46 | I88: 280 | J88: 0.4295254545 | K88: 0.1822520603 | L88: 0.8325079724 | M88: 0.1822523997 | N88: 150.0075177 | O88: 0.8127286762
A89: 3469.48 | B89: 23.7296 | C89: 520.449 | D89: 3559.34 | E89: 15344.5 | F89: 24.4563 | G89: 18814 | H89: 1273.92 | I89: 280 | J89: 0.4314472727 | K89: 0.1793810169 | L89: 0.8350384745 | M89: 0.1793816672 | N89: 150.0077821 | O89: 0.8155903217
A90: 3412.87 | B90: 23.8372 | C90: 511.956 | D90: 3575.47 | E90: 15388.4 | F90: 24.932 | G90: 18801.2 | H90: 1294.25 | I90: 280 | J90: 0.4334036364 | K90: 0.1764541347 | L90: 0.8374274862 | M90: 0.1764544092 | N90: 150.0074717 | O90: 0.8184766242
A91: 3355.43 | B91: 23.943 | C91: 503.34 | D91: 3591.34 | E91: 15420.6 | F91: 25.4091 | G91: 18776 | H91: 1378.19 | I91: 280 | J91: 0.4353272727 | K91: 0.1734843393 | L91: 0.8391797908 | M91: 0.1734847571 | N91: 150.0075996 | O91: 0.8212918279
A92: 3312.19 | B92: 24.0369 | C92: 496.853 | D92: 3605.43 | E92: 15482.8 | F92: 25.8409 | G92: 18794.9 | H92: 1310.53 | I92: 280 | J92: 0.4370345455 | K92: 0.1712487204 | L92: 0.8425646775 | M92: 0.1712489014 | N92: 150.0073969 | O92: 0.8237727182
A93: 3263.06 | B93: 24.1396 | C93: 489.484 | D93: 3620.84 | E93: 15540.1 | F93: 26.3209 | G93: 18803.2 | H93: 1273.92 | I93: 280 | J93: 0.4389018182 | K93: 0.1687085733 | L93: 0.845682909 | M93: 0.1687090492 | N93: 150.0076615 | O93: 0.8264621479
A94: 3211.41 | B94: 24.2375 | C94: 481.736 | D94: 3635.52 | E94: 15569.4 | F94: 26.7871 | G94: 18780.8 | H94: 1351.96 | I94: 280 | J94: 0.4406818182 | K94: 0.1660381358 | L94: 0.8472773974 | M94: 0.1660385683 | N94: 150.007629 | O94: 0.8290057777
A95: 3159.62 | B95: 24.3371 | C95: 473.966 | D95: 3650.45 | E95: 15599.9 | F95: 27.2698 | G95: 18759.5 | H95: 1462.95 | I95: 280 | J95: 0.4424927273 | K95: 0.1633604599 | L95: 0.8489371891 | M95: 0.1633605046 | N95: 150.0072794 | O95: 0.8315724496
A96: 3118.86 | B96: 24.4319 | C96: 467.853 | D96: 3664.67 | E96: 15669 | F96: 27.7379 | G96: 18787.9 | H96: 1306.07 | I96: 280 | J96: 0.4442163636 | K96: 0.1612530634 | L96: 0.8526975696 | M96: 0.1612535544 | N96: 150.0076951 | O96: 0.8339959953
A97: 3067.45 | B97: 24.5286 | C97: 460.14 | D97: 3679.18 | E97: 15687.9 | F97: 28.2236 | G97: 18755.4 | H97: 1432.55 | I97: 280 | J97: 0.4459745455 | K97: 0.1585950345 | L97: 0.8537260963 | M97: 0.1585951367 | N97: 150.0073351 | O97: 0.8364493331
A98: 3026.23 | B98: 24.6237 | C98: 453.957 | D98: 3693.44 | E98: 15752 | F98: 28.71 | G98: 18778.2 | H98: 1285.36 | I98: 280 | J98: 0.4477036364 | K98: 0.1564638547 | L98: 0.8572143798 | M98: 0.1564640598 | N98: 150.007435 | O98: 0.8388437036
A99: 2981.93 | B99: 24.7145 | C99: 447.311 | D99: 3707.06 | E99: 15785.5 | F99: 29.1826 | G99: 18767.4 | H99: 1265.41 | I99: 280 | J99: 0.4493545455 | K99: 0.1541734311 | L99: 0.8590374297 | M99: 0.154173402 | N99: 150.0072101 | O99: 0.8411114361
A100: 2939.88 | B100: 24.8069 | C100: 441.004 | D100: 3720.93 | E100: 15833.6 | F100: 29.672 | G100: 18773.5 | H100: 1327.1 | I100: 280 | J100: 0.4510345455 | K100: 0.1519993382 | L100: 0.8616550028 | M100: 0.1519995864 | N100: 150.0074833 | O100: 0.8434025018
A101: 2898.25 | B101: 24.8951 | C101: 434.759 | D101: 3734.16 | E101: 15869.4 | F101: 30.147 | G101: 18767.7 | H101: 1343.32 | I101: 280 | J101: 0.4526381818 | K101: 0.1498469604 | L101: 0.8636032173 | M101: 0.1498471401 | N101: 150.0074183 | O101: 0.8455720349
A102: 2856.6 | B102: 24.985 | C102: 428.511 | D102: 3747.63 | E102: 15907.9 | F102: 30.639 | G102: 18764.5 | H102: 1365.65 | I102: 280 | J102: 0.4542727273 | K102: 0.1476935486 | L102: 0.8656983642 | M102: 0.1476936598 | N102: 150.0073514 | O102: 0.8477657278
A103: 2814.17 | B103: 25.0735 | C103: 422.146 | D103: 3760.92 | E103: 15935.9 | F103: 31.1322 | G103: 18750.1 | H103: 1303.38 | I103: 280 | J103: 0.4558818182 | K103: 0.1454998087 | L103: 0.8672221073 | M103: 0.1454998535 | N103: 150.0072846 | O103: 0.8499114937
A104: 2779.27 | B104: 25.1523 | C104: 416.911 | D104: 3772.74 | E104: 15975.2 | F104: 31.5784 | G104: 18754.4 | H104: 1371.13 | I104: 280 | J104: 0.4573145455 | K104: 0.1436953892 | L104: 0.8693607897 | M104: 0.1436955211 | N104: 150.007376 | O104: 0.8518075957
A105: 2740.24 | B105: 25.2385 | C105: 411.057 | D105: 3785.66 | E105: 16011.2 | F105: 32.0737 | G105: 18751.5 | H105: 1379.59 | I105: 280 | J105: 0.4588818182 | K105: 0.141677438 | L105: 0.8713198881 | M105: 0.1416778396 | N105: 150.0076636 | O105: 0.8538650898
A106: 2703.74 | B106: 25.3207 | C106: 405.582 | D106: 3797.99 | E106: 16048.1 | F106: 32.5541 | G106: 18751.8 | H106: 1371.87 | I106: 280 | J106: 0.4603763636 | K106: 0.1397902944 | L106: 0.873327964 | M106: 0.139790787 | N106: 150.007767 | O106: 0.8558146827
A107: 2666.39 | B107: 25.4045 | C107: 399.979 | D107: 3810.57 | E107: 16083 | F107: 33.0516 | G107: 18749.3 | H107: 1379.15 | I107: 280 | J107: 0.4619 | K107: 0.1378592036 | L107: 0.875227201 | M107: 0.1378596171 | N107: 150.0076883 | O107: 0.8577879067
A108: 2631.19 | B108: 25.4845 | C108: 394.698 | D108: 3822.57 | E108: 16117 | F108: 33.5341 | G108: 18748.2 | H108: 1380.98 | I108: 280 | J108: 0.4633545455 | K108: 0.1360392733 | L108: 0.8770774606 | M108: 0.1360394299 | N108: 150.0074111 | O108: 0.8596563188
A109: 2595.57 | B109: 25.5661 | C109: 389.355 | D109: 3834.8 | E109: 16151.7 | F109: 34.0338 | G109: 18747.3 | H109: 1381.54 | I109: 280 | J109: 0.4648381818 | K109: 0.1341976279 | L109: 0.8789658137 | M109: 0.1341978734 | N109: 150.0075128 | O109: 0.8615494416
A110: 2560.66 | B110: 25.6466 | C110: 384.118 | D110: 3846.87 | E110: 16185.4 | F110: 34.5346 | G110: 18746.1 | H110: 1384.22 | I110: 280 | J110: 0.4663018182 | K110: 0.1323926913 | L110: 0.8807997475 | M110: 0.1323928516 | N110: 150.00742 | O110: 0.863402763
A111: 2527.54 | B111: 25.7234 | C111: 379.15 | D111: 3858.4 | E111: 16217.2 | F111: 35.0202 | G111: 18744.7 | H111: 1388.47 | I111: 280 | J111: 0.4676981818 | K111: 0.1306803024 | L111: 0.8825302844 | M111: 0.1306805453 | N111: 150.0075172 | O111: 0.8651600396
A112: 2493.78 | B112: 25.8018 | C112: 374.085 | D112: 3870.15 | E112: 16247.9 | F112: 35.5229 | G112: 18741.7 | H112: 1401.65 | I112: 280 | J112: 0.4691236364 | K112: 0.1289348237 | L112: 0.88420096 | M112: 0.1289348062 | N112: 150.007218 | O112: 0.8669393566
A113: 2462.4 | B113: 25.8766 | C113: 369.379 | D113: 3881.37 | E113: 16281.2 | F113: 36.0104 | G113: 18743.6 | H113: 1378.54 | I113: 280 | J113: 0.4704836364 | K113: 0.1273123972 | L113: 0.886013126 | M113: 0.1273128027 | N113: 150.007716 | O113: 0.8686271581
A114: 2428.34 | B114: 25.9529 | C114: 364.269 | D114: 3892.82 | E114: 16299.8 | F114: 36.5152 | G114: 18728.1 | H114: 1313.59 | I114: 280 | J114: 0.4718709091 | K114: 0.1255514079 | L114: 0.8870253268 | M114: 0.1255515536 | N114: 150.0074125 | O114: 0.870337364
A115: 2396.77 | B115: 26.0282 | C115: 359.533 | D115: 3904.11 | E115: 16329.8 | F115: 37.0205 | G115: 18726.5 | H115: 1313.56 | I115: 280 | J115: 0.47324 | K115: 0.1239191579 | L115: 0.8886579088 | M115: 0.12391921 | N115: 150.0073015 | O115: 0.8720123333
A116: 2367.83 | B116: 26.0977 | C116: 355.192 | D116: 3914.54 | E116: 16357.3 | F116: 37.4941 | G116: 18725.1 | H116: 1311.56 | I116: 280 | J116: 0.4745036364 | K116: 0.1224228856 | L116: 0.8901544423 | M116: 0.12242301 | N116: 150.0073907 | O116: 0.8735480074
A117: 2337.44 | B117: 26.1711 | C117: 350.633 | D117: 3925.55 | E117: 16386 | F117: 38.0012 | G117: 18723.4 | H117: 1322.36 | I117: 280 | J117: 0.4758381818 | K117: 0.1208516447 | L117: 0.891716279 | M117: 0.1208516725 | N117: 150.0072729 | O117: 0.8751596929
A118: 2310.52 | B118: 26.2413 | C118: 346.595 | D118: 3936.07 | E118: 16426.7 | F118: 38.4928 | G118: 18737.3 | H118: 1404.99 | I118: 280 | J118: 0.4771145455 | K118: 0.1194598116 | L118: 0.8939311486 | M118: 0.1194599066 | N118: 150.0073577 | O118: 0.8766882174
A119: 2282.29 | B119: 26.3129 | C119: 342.36 | D119: 3946.82 | E119: 16461.9 | F119: 39.0021 | G119: 18744.2 | H119: 1438.28 | I119: 280 | J119: 0.4784163636 | K119: 0.1180002482 | L119: 0.8958467114 | M119: 0.1180002413 | N119: 150.0072296 | O119: 0.8782401373
A120: 2251.62 | B120: 26.3814 | C120: 337.759 | D120: 3957.09 | E120: 16467.2 | F120: 39.496 | G120: 18718.8 | H120: 1264.73 | I120: 280 | J120: 0.4796618182 | K120: 0.1164145305 | L120: 0.8961351343 | M120: 0.1164144278 | N120: 150.007106 | O120: 0.8797135717
A121: 2225.56 | B121: 26.4512 | C121: 333.85 | D121: 3967.56 | E121: 16509 | F121: 40.0065 | G121: 18734.6 | H121: 1407.85 | I121: 280 | J121: 0.4809309091 | K121: 0.1150671616 | L121: 0.8984098651 | M121: 0.1150671239 | N121: 150.0071892 | O121: 0.8812056435
A122: 2195.81 | B122: 26.5202 | C122: 329.388 | D122: 3977.91 | E122: 16519.2 | F122: 40.5184 | G122: 18715.1 | H122: 1275.08 | I122: 280 | J122: 0.4821854545 | K122: 0.1135290103 | L122: 0.898964943 | M122: 0.1135292192 | N122: 150.0075143 | O122: 0.8826711821
A123: 2169.47 | B123: 26.586 | C123: 325.436 | D123: 3987.79 | E123: 16542.8 | F123: 41.014 | G123: 18712.2 | H123: 1237.9 | I123: 280 | J123: 0.4833818182 | K123: 0.1121671647 | L123: 0.9002492408 | M123: 0.1121670946 | N123: 150.0071446 | O123: 0.8840616344
A124: 2142.89 | B124: 26.6533 | C124: 321.449 | D124: 3997.88 | E124: 16567.7 | F124: 41.5268 | G124: 18710.5 | H124: 1242.15 | I124: 280 | J124: 0.4846054545 | K124: 0.1107929105 | L124: 0.9016042839 | M124: 0.1107929068 | N124: 150.0072332 | O124: 0.8854718103
A125: 2120.73 | B125: 26.7176 | C125: 318.126 | D125: 4007.52 | E125: 16615.5 | F125: 42.0239 | G125: 18736.2 | H125: 1506.63 | I125: 280 | J125: 0.4857745455 | K125: 0.1096471817 | L125: 0.9042055312 | M125: 0.1096475779 | N125: 150.0077803 | O125: 0.8868112742
A126: 2091.81 | B126: 26.7833 | C126: 313.788 | D126: 4017.38 | E126: 16613.9 | F126: 42.539 | G126: 18705.7 | H126: 1232.26 | I126: 280 | J126: 0.4869690909 | K126: 0.1081519435 | L126: 0.9041184601 | M126: 0.1081524118 | N126: 150.0078879 | O126: 0.8881726489
A127: 2068.95 | B127: 26.8482 | C127: 310.359 | D127: 4027.11 | E127: 16655.7 | F127: 43.0541 | G127: 18724.7 | H127: 1567.11 | I127: 280 | J127: 0.4881490909 | K127: 0.1069700229 | L127: 0.906393191 | M127: 0.1069705482 | N127: 150.0079751 | O127: 0.8895066129
A128: 2048.8 | B128: 26.9061 | C128: 307.335 | D128: 4035.8 | E128: 16694.4 | F128: 43.5205 | G128: 18743.2 | H128: 1575.77 | I128: 280 | J128: 0.4892018182 | K128: 0.1059282162 | L128: 0.9084992218 | M128: 0.1059282748 | N128: 150.0073214 | O128: 0.8906910239
A129: 2023.54 | B129: 26.9697 | C129: 303.547 | D129: 4045.33 | E129: 16709.9 | F129: 44.0381 | G129: 18733.4 | H129: 1434.43 | I129: 280 | J129: 0.4903581818 | K129: 0.1046222094 | L129: 0.9093427225 | M129: 0.1046226757 | N129: 150.0079069 | O129: 0.8919824656
A130: 2000.38 | B130: 27.0304 | C130: 300.072 | D130: 4054.43 | E130: 16731.3 | F130: 44.5394 | G130: 18731.7 | H130: 1416.27 | I130: 280 | J130: 0.4914618182 | K130: 0.1034247779 | L130: 0.9105072976 | M130: 0.1034249573 | N130: 150.0074986 | O130: 0.8932087245
A131: 1976.76 | B131: 27.0924 | C131: 296.528 | D131: 4063.74 | E131: 16752.1 | F131: 45.0581 | G131: 18728.9 | H131: 1422.8 | I131: 280 | J131: 0.4925890909 | K131: 0.1022035633 | L131: 0.9116392211 | M131: 0.102203457 | N131: 150.0070823 | O131: 0.8944538002
A132: 1940.99 | B132: 27.1517 | C132: 291.163 | D132: 4072.63 | E132: 16657.6 | F132: 45.5607 | G132: 18598.6 | H132: 1736.12 | I132: 280 | J132: 0.4936672727 | K132: 0.1003541626 | L132: 0.9064965879 | M132: 0.1003543178 | N132: 150.0074704 | O132: 0.8956377876
A133: 1919.47 | B133: 27.2119 | C133: 287.934 | D133: 4081.66 | E133: 16685.7 | F133: 46.0771 | G133: 18605.1 | H133: 1726.32 | I133: 280 | J133: 0.4947618182 | K133: 0.09924152336 | L133: 0.908025773 | M133: 0.09924138763 | N133: 150.0070332 | O133: 0.8968313646
A134: 1908.41 | B134: 27.2714 | C134: 286.276 | D134: 4090.58 | E134: 16802.4 | F134: 46.5944 | G134: 18710.8 | H134: 1553.32 | I134: 280 | J134: =B134/$B$2 -> 0.4958436364 | K134: 0.09866969299 | L134: 0.9143765169 | M134: 0.09866992952 | N134: 150.0075979 | O134: 0.8980049501
A135: 1887.2 | B135: 27.3286 | C135: 283.094 | D135: 4099.17 | E135: 16821.6 | F135: 47.0986 | G135: 18708.8 | H135: 1561.73 | I135: 280 | J135: 0.4968836364 | K135: =A135/$A$6 -> 0.09757308158 | L135: =E135/$L$3 -> 0.9154213694 | M135: =C135/$N$3 -> 0.09757319868 | N135: =C135*1000/A135 -> 150.0074184 | O135: =E135/(E135+A135) -> 0.8991276832
A136: 1865.6 | B136: 27.3871 | C136: 279.853 | D136: 4107.95 | E136: 16840.5 | F136: 47.6201 | G136: 18706.1 | H136: 1541.77 | I136: 280 | J136: 0.4979472727 | K136: 0.09645630616 | L136: 0.9164498961 | M136: 0.09645613249 | N136: 150.0069683 | O136: 0.9002678271
A137: 1845 | B137: 27.4431 | C137: 276.764 | D137: 4116.34 | E137: 16858 | F137: 48.1253 | G137: 18703 | H137: 1604.61 | I137: 280 | J137: 0.4989654545 | K137: 0.09539123331 | L137: 0.9174022355 | M137: 0.0953914557 | N137: 150.0075881 | O137: 0.9013527242
A138: 1824.33 | B138: 27.5003 | C138: 273.662 | D138: 4124.92 | E138: 16877.9 | F138: 48.648 | G138: 18702.2 | H138: 1602.99 | I138: 280 | J138: 0.5000054545 | K138: 0.09432254128 | L138: 0.9184851816 | M138: 0.09432229824 | N138: 150.0068518 | O138: 0.9024538785
A139: 1803.85 | B139: 27.5569 | C139: 270.591 | D139: 4133.41 | E139: 16896.1 | F139: 49.1712 | G139: 18699.9 | H139: 1606.26 | I139: 280 | J139: 0.5010345455 | K139: 0.09326367274 | L139: 0.9194756147 | M139: 0.09326382546 | N139: 150.007484 | O139: 0.9035371752
A140: 1785.8 | B140: 27.6074 | C140: 267.884 | D140: 4140.98 | E140: 16913.6 | F140: 49.6443 | G140: 18699.4 | H140: 1606.26 | I140: 280 | J140: 0.5019527273 | K140: 0.09233044144 | L140: 0.9204279542 | M140: 0.09233081152 | N140: 150.0078396 | O140: 0.9044996096
A141: 1766.14 | B141: 27.6627 | C141: 264.935 | D141: 4149.29 | E141: 16932.7 | F141: 50.1687 | G141: 18698.8 | H141: 1605.83 | I141: 280 | J141: 0.5029581818 | K141: 0.091313969 | L141: 0.9214673647 | M141: 0.09131438813 | N141: 150.0079269 | O141: 0.9055481517
A142: 1747.18 | B142: 27.7157 | C142: 262.09 | D142: 4157.24 | E142: 16948.4 | F142: 50.6767 | G142: 18695.6 | H142: 1614.02 | I142: 280 | J142: 0.5039218182 | K142: 0.09033368836 | L142: 0.9223217493 | M142: 0.09033381012 | N142: 150.0074406 | O142: 0.9065458253
A143: 1728.14 | B143: 27.7699 | C143: 259.234 | D143: 4165.36 | E143: 16966.7 | F143: 51.2022 | G143: 18694.8 | H143: 1611.24 | I143: 280 | J143: 0.5049072727 | K143: 0.08934927151 | L143: 0.9233176243 | M143: 0.08934944078 | N143: 150.0075225 | O143: 0.9075605889
A144: 1707.82 | B144: 27.8217 | C144: 256.185 | D144: 4173.14 | E144: 16962.2 | F144: 51.7112 | G144: 18670 | H144: 1650.85 | I144: 280 | J144: 0.5058490909 | K144: 0.08829867538 | L144: 0.923072737 | M144: 0.08829855067 | N144: 150.0070265 | O144: 0.9085260755
A145: 1691.63 | B145: 27.8747 | C145: 253.756 | D145: 4181.08 | E145: 17001.8 | F145: 52.2371 | G145: 18693.4 | H145: 1607.77 | I145: 280 | J145: 0.5068127273 | K145: 0.08746161085 | L145: 0.9252277452 | M145: 0.0874613542 | N145: 150.0067982 | O145: 0.909506709
A146: 1673.59 | B146: 27.9271 | C146: 251.051 | D146: 4188.95 | E146: 17020.1 | F146: 52.7642 | G146: 18693.7 | H146: 1588.3 | I146: 280 | J146: 0.5077654545 | K146: 0.08652889656 | L146: 0.9262236202 | M146: 0.08652902959 | N146: 150.007469 | O146: 0.9104729992
A147: 1656.19 | B147: 27.9774 | C147: 248.44 | D147: 4196.48 | E147: 17035.1 | F147: 53.2748 | G147: 18691.3 | H147: 1612.15 | I147: 280 | J147: 0.50868 | K147: 0.08562927192 | L147: 0.9270399112 | M147: 0.08562910369 | N147: 150.0069436 | O147: 0.9113924186
A148: 1637.01 | B148: 28.0287 | C148: 245.563 | D148: 4204.18 | E148: 17035 | F148: 53.803 | G148: 18672 | H148: 1642.76 | I148: 280 | J148: 0.5096127273 | K148: 0.08463761672 | L148: 0.9270344692 | M148: 0.08463749634 | N148: 150.007025 | O148: 0.9123281318
A149: 1621.81 | B149: 28.0778 | C149: 243.283 | D149: 4211.55 | E149: 17066.6 | F149: 54.314 | G149: 18688.4 | H149: 1509.61 | I149: 280 | J149: 0.5105054545 | K149: 0.08385173772 | L149: 0.9287541223 | M149: 0.08385165526 | N149: 150.0070908 | O149: 0.9132184065
A150: 1605.02 | B150: 28.1281 | C150: 240.765 | D150: 4219.09 | E150: 17085.1 | F150: 54.8431 | G150: 18690.2 | H150: 1575.11 | I150: 280 | J150: 0.51142 | K150: 0.08298365165 | L150: 0.9297608812 | M150: 0.08298378341 | N150: 150.0074765 | O150: 0.9141246819
A151: 1583.46 | B151: 28.1778 | C151: 237.53 | D151: 4226.55 | E151: 17049.1 | F151: 55.3728 | G151: 18632.6 | H151: 1679.76 | I151: 280 | J151: 0.5123236364 | K151: 0.08186894434 | L151: 0.9278017828 | M151: 0.08186878522 | N151: 150.0069468 | O151: 0.9150165087
A152: 1570.1 | B152: 28.2222 | C152: 235.527 | D152: 4233.2 | E152: 17078.9 | F152: 55.8502 | G152: 18649 | H152: 1662.94 | I152: 280 | J152: 0.5131309091 | K152: 0.08117819806 | L152: 0.9294234809 | M152: 0.08117841694 | N152: 150.0076428 | O152: 0.9158078181
A153: 1556.55 | B153: 28.2709 | C153: 233.495 | D153: 4240.5 | E153: 17123.2 | F153: 56.3797 | G153: 18679.7 | H153: 1624.99 | I153: 280 | J153: 0.5140163636 | K153: 0.0804776283 | L153: 0.9318342603 | M153: 0.08047805332 | N153: 150.0080306 | O153: 0.916671797
A154: 1541.65 | B154: 28.3176 | C154: 231.26 | D154: 4247.51 | E154: 17144.2 | F154: 56.8935 | G154: 18685.8 | H154: 1614.43 | I154: 280 | J154: 0.5148654545 | K154: 0.07970726007 | L154: 0.9329770677 | M154: 0.07970772227 | N154: 150.0081082 | O154: 0.9174963943
A155: 1526.09 | B155: 28.3654 | C155: 228.925 | D155: 4254.68 | E155: 17161.3 | F155: 57.425 | G155: 18687.4 | H155: 1610.22 | I155: 280 | J155: 0.5157345455 | K155: 0.07890276816 | L155: 0.9339076394 | M155: 0.0789029245 | N155: 150.0075356 | O155: 0.9183358404
A156: 1511.05 | B156: 28.4111 | C156: 226.669 | D156: 4261.54 | E156: 17175.1 | F156: 57.9399 | G156: 18686.2 | H156: 1590.13 | I156: 280 | J156: 0.5165654545 | K156: 0.07812516157 | L156: 0.9346586271 | M156: 0.07812535544 | N156: 150.0076106 | O156: 0.9191352954
A157: 1491.75 | B157: 28.458 | C157: 223.774 | D157: 4268.57 | E157: 17143.5 | F157: 58.4723 | G157: 18635.3 | H157: 1674.91 | I157: 280 | J157: 0.5174181818 | K157: 0.07712730206 | L157: 0.9329389741 | M157: 0.07712754407 | N157: 150.0077091 | O157: 0.9199500946
A158: 1479.16 | B158: 28.5042 | C158: 221.884 | D158: 4275.51 | E158: 17185.2 | F158: 59.0038 | G158: 18664.4 | H158: 1642.91 | I158: 280 | J158: 0.5182581818 | K158: 0.07647636676 | L158: 0.935208263 | M158: 0.07647612318 | N158: 150.0067606 | O158: 0.9207494926
A159: 1465.27 | B159: 28.5486 | C159: 219.801 | D159: 4282.17 | E159: 17203.7 | F159: 59.5194 | G159: 18669 | H159: 1635.87 | I159: 280 | J159: 0.5190654545 | K159: 0.07575821812 | L159: 0.9362150219 | M159: 0.07575818154 | N159: 150.0071659 | O159: 0.9215130776
A160: 1452.14 | B160: 28.594 | C160: 217.832 | D160: 4288.98 | E160: 17234.8 | F160: 60.0528 | G160: 18686.9 | H160: 1612.75 | I160: 280 | J160: 0.5198909091 | K160: 0.07507936344 | L160: 0.9379074653 | M160: 0.07507953194 | N160: 150.007575 | O160: 0.922291183
A161: 1428.74 | B161: 28.6376 | C161: 214.322 | D161: 4295.51 | E161: 17134.3 | F161: 60.5699 | G161: 18563.1 | H161: 1739.82 | I161: 280 | J161: 0.5206836364 | K161: 0.07386952341 | L161: 0.9324383156 | M161: 0.07386975029 | N161: 150.0076991 | O161: 0.9230330808
A162: 1423.92 | B162: 28.6819 | C162: 213.598 | D162: 4302.16 | E162: 17258.8 | F162: 61.1011 | G162: 18682.7 | H162: 1609.02 | I162: 280 | J162: 0.5214890909 | K162: 0.07362031704 | L162: 0.9392135308 | M162: 0.07362021128 | N162: 150.0070229 | O162: 0.9237841171
A163: 1409.97 | B163: 28.7261 | C163: 211.507 | D163: 4308.78 | E163: 17272.3 | F163: 61.6361 | G163: 18682.2 | H163: 1608.55 | I163: 280 | J163: 0.5222927273 | K163: 0.07289906625 | L163: 0.9399481927 | M163: 0.0728995123 | N163: 150.0081562 | O163: 0.9245289785
A164: 1395.79 | B164: 28.7669 | C164: 209.378 | D164: 4314.91 | E164: 17268.2 | F164: 62.1371 | G164: 18664 | H164: 1638.03 | I164: 280 | J164: 0.5230345455 | K164: 0.07216592387 | L164: 0.9397250732 | M164: 0.07216571596 | N164: 150.0068062 | O164: 0.9252148121
A165: 1383.38 | B165: 28.8102 | C165: 207.518 | D165: 4321.4 | E165: 17295.3 | F165: 62.6724 | G165: 18678.7 | H165: 1612.11 | I165: 280 | J165: 0.5238218182 | K165: 0.07152429504 | L165: 0.9411998389 | M165: 0.07152463508 | N165: 150.0079515 | O165: 0.9259380213
A166: 1361.35 | B166: 28.8517 | C166: 204.212 | D166: 4327.63 | E166: 17192.7 | F166: 63.1913 | G166: 18554 | H166: 1744.81 | I166: 280 | J166: 0.5245763636 | K166: 0.07038528752 | L166: 0.9356164085 | M166: 0.07038516553 | N166: 150.0069784 | O166: 0.9266278791
A167: 1356.01 | B167: 28.8939 | C167: 203.411 | D167: 4333.96 | E167: 17302.8 | F167: 63.7243 | G167: 18658.8 | H167: 1640.65 | I167: 280 | J167: 0.5253436364 | K167: 0.07010919582 | L167: 0.9416079844 | M167: 0.07010908715 | N167: 150.0070058 | O167: 0.9273260192
A168: 1336.86 | B168: 28.9346 | C168: 200.539 | D168: 4340.06 | E168: 17229.6 | F168: 64.2435 | G168: 18566.5 | H168: 1730.63 | I168: 280 | J168: 0.5260836364 | K168: 0.06911909169 | L168: 0.9376244844 | M168: 0.06911920313 | N168: 150.0074802 | O168: 0.9279959669
A169: 1329.1 | B169: 28.9761 | C169: 199.374 | D169: 4346.28 | E169: 17305.3 | F169: 64.7776 | G169: 18634.4 | H169: 1662.46 | I169: 280 | J169: 0.5268381818 | K169: 0.06871787978 | L169: 0.9417440329 | M169: 0.06871766591 | N169: 150.0067715 | O169: 0.9286749238
A170: 1319.66 | B170: 29.0173 | C170: 197.959 | D170: 4352.46 | E170: 17358.4 | F170: 65.3141 | G170: 18678.1 | H170: 1607.92 | I170: 280 | J170: 0.5275872727 | K170: 0.06822980756 | L170: 0.944633703 | M170: 0.06822996191 | N170: 150.0075777 | O170: 0.9293470521
A171: 1299.19 | B171: 29.0569 | C171: 194.888 | D171: 4358.4 | E171: 17257.9 | F171: 65.8349 | G171: 18557.1 | H171: 1737.8 | I171: 280 | J171: 0.5283072727 | K171: 0.06717145605 | L171: 0.9391645534 | M171: 0.06717148913 | N171: 150.0073122 | O171: 0.9299895619
A172: 1287.15 | B172: 29.0971 | C172: 193.081 | D172: 4364.44 | E172: 17270.5 | F172: 66.37 | G172: 18557.6 | H172: 1736.53 | I172: 280 | J172: 0.5290381818 | K172: 0.06654895716 | L172: 0.9398502378 | M172: 0.06654867562 | N172: 150.0066037 | O172: 0.9306404636
A173: 1283.69 | B173: 29.1358 | C173: 192.562 | D173: 4370.23 | E173: 17391.3 | F173: 66.8881 | G173: 18675 | H173: 1609.87 | I173: 280 | J173: 0.5297418182 | K173: 0.06637006628 | L173: 0.9464241013 | M173: 0.06636979337 | N173: 150.0066215 | O173: 0.9312615428
A174: 1262.96 | B174: 29.1756 | C174: 189.453 | D174: 4376.2 | E174: 17282.3 | F174: 67.4273 | G174: 18545.3 | H174: 1747.75 | I174: 280 | J174: 0.5304654545 | K174: 0.0652982721 | L174: 0.9404923867 | M174: 0.06529822324 | N174: 150.0071261 | O174: 0.9318985013
A175: 1252.63 | B175: 29.2147 | C175: 187.903 | D175: 4382.07 | E175: 17311 | F175: 67.9631 | G175: 18563.7 | H175: 1728.2 | I175: 280 | J175: 0.5311763636 | K175: 0.0647641846 | L175: 0.9420542235 | M175: 0.06476398918 | N175: 150.0067857 | O175: 0.9325223569
A176: 1242.5 | B176: 29.2498 | C176: 186.384 | D176: 4387.34 | E176: 17324.2 | F176: 68.4478 | G176: 18566.7 | H176: 1724.38 | I176: 280 | J176: 0.5318145455 | K176: 0.06424043761 | L176: 0.9427725596 | M176: 0.0642404398 | N176: 150.0072435 | O176: 0.9330791148
A177: 1229.58 | B177: 29.2883 | C177: 184.446 | D177: 4393.11 | E177: 17312.6 | F177: 68.9849 | G177: 18542.2 | H177: 1748.61 | I177: 280 | J177: 0.5325145455 | K177: 0.06357244046 | L177: 0.9421412945 | M177: 0.06357247488 | N177: 150.0073196 | O177: 0.9336874089
A178: 1226.86 | B178: 29.3252 | C178: 184.038 | D178: 4398.65 | E178: 17437.6 | F178: 69.5044 | G178: 18664.5 | H178: 1623.6 | I178: 280 | J178: 0.5331854545 | K178: 0.06343180949 | L178: 0.9489437195 | M178: 0.06343185069 | N178: 150.0073358 | O178: 0.9342675866
A179: 1208.38 | B179: 29.3632 | C179: 181.266 | D179: 4404.35 | E179: 17343 | F179: 70.045 | G179: 18551.4 | H179: 1737.89 | I179: 280 | J179: 0.5338763636 | K179: 0.06247634608 | L179: 0.9437956443 | M179: 0.06247643338 | N179: 150.007448 | O179: 0.9348630668
A180: 1203.98 | B180: 29.3995 | C180: 180.606 | D180: 4409.79 | E180: 17441.6 | F180: 70.5653 | G180: 18645.5 | H180: 1643.86 | I180: 280 | J180: 0.5345363636 | K180: 0.06224885479 | L180: 0.9491613971 | M180: 0.06224895307 | N180: 150.0074752 | O180: 0.9354281283
A181: 1187.11 | B181: 29.4368 | C181: 178.076 | D181: 4415.39 | E181: 17363.6 | F181: 71.106 | G181: 18550.7 | H181: 1737.31 | I181: 280 | J181: 0.5352145455 | K181: 0.06137663251 | L181: 0.9449166839 | M181: 0.06137694522 | N181: 150.0080026 | O181: 0.9360073011
A182: 1184.05 | B182: 29.4736 | C182: 177.616 | D182: 4420.91 | E182: 17484.6 | F182: 71.6443 | G182: 18668.6 | H182: 1612.45 | I182: 280 | J182: 0.5358836364 | K182: 0.06121842266 | L182: 0.9515014312 | M182: 0.06121839833 | N182: 150.0071788 | O182: 0.9365754889
A183: 1166.04 | B183: 29.5091 | C183: 174.914 | D183: 4426.24 | E183: 17378.3 | F183: 72.1689 | G183: 18544.3 | H183: 1742.42 | I183: 280 | J183: 0.5365290909 | K183: 0.06028725945 | L183: 0.9457166491 | M183: 0.06028710773 | N183: 150.0068608 | O183: 0.9371215152
A184: 1163.59 | B184: 29.5453 | C184: 174.547 | D184: 4431.66 | E184: 17506.2 | F184: 72.7077 | G184: 18669.8 | H184: 1608.06 | I184: 280 | J184: 0.5371872727 | K184: 0.06016058817 | L184: 0.9526768903 | M184: 0.06016061489 | N184: 150.007305 | O184: 0.9376752497
A185: 1153.74 | B185: 29.5802 | C185: 173.069 | D185: 4436.9 | E185: 17517.4 | F185: 73.2329 | G185: 18671.1 | H185: 1605.27 | I185: 280 | J185: 0.5378218182 | K185: 0.0596513179 | L185: 0.9532863875 | M185: 0.05965119686 | N185: 150.006934 | O185: 0.9382073082
